Workbook

Sheet Om kalkylen
A1: Samhällsekomisk analysmodell för åtgärder i plankorsningar
A2: Håkan Berell, WSP Analys & Stategi, 2013-12-12
A4: Instruktioner till användaren
A5: Denna kalkylmodell kan användas till att göra samhällsekonomiska analyser av åtgärder i plankorsningar (dvs korsning mellan väg och järnväg). Ifall du vill studera flera olika åtgärder (eller paket av åtgärder)
A6: så får du använda modellen upprepade gånger och spara varje körning med eget filnamn.
A8: Som användare kommer du att fylla i indataförutsättningar i gröna fält under fliken "Indata" och - när det är klart - trycka på de makro-knappar som initierar beräkningarna. Resultatet kan därefter avläsas under fliken "SEK Resultat".
A9: Ifall du vill ha mer detaljerad information om effekterna/beräkningarna kan detta utläsas under de båda beräkningsflikarna "Kvantiteter" och "Ekonomi".
A11: I övrigt förväntas du längs ned på denna sida skriva in information om den åtgärd som du nu studerar. Vidare finns det en icke skrivskyddad flik vid namn "TEMP" där du kan göra sidoberäkningar och spara underlagsdata etc.
A13: De färger som används har följande innebörd:
B14: = fyll i gröna rutor! Samtliga gröna rutor måste innehålla ett igenomtänkt värde (som kan innebära att cellen lämnas tom...)
B15: = cell som innehåller resultat av en beräkning
A18: Kalkylsituationer
A19: Modellen kan hantera både åtgärder i en viss plankorsning - men också analysera resultatet av ett paket med åtgärder.
A21: Modellen kan hantera följande kalkylsituationer:
A23: 1) En befintlig korsning får en ändrad skyddsnivå (1 korsning i JA, 1 korsning i UA)
A24: 2) En eller flera plankorsningar stängs och vägtrafiken (inklusive gående och cyklande) får en längre resväg (fler korsningar i JA än i UA)
A25: 3) En eller flera plankorsningar tillkommer och vägtrafiekn (inkl GC) får en kortare resväg (färre korsningar i JA än i UA)
A26: 4) En kombination av ovanstående åtgärder genomförs (t.ex. i samband med en stråkkalkyl).
A29: Antaganden
A30: a) Vad gäller antal tågpassager antar vi att två tåg inte passerar korsningen vid samma tidpunkt
A31: b) Alla fordon som fastnar bakom grindarna hinner passera korsningen innan nästa tåg fäller bommarna igen.
A32: c) Vad gäller olycksrisker antar vi att risken är lika oavsett vilken tid på dygnet tågpassagen inträffar
A33: d) Modellen utgår ifrån att storleken på flödet av fordon, gående och cyklande inte påverkas av åtgärderna. Ingen slutar/börjar såldes resa pga plankorsningsåtgärderna, vilket innebär att antal fordon måste vara lika i JA och UA.
A37: Kalkyldokumentation av studerad åtgärd
A38: Fylls i av den som gör kalkylen…
A40: Åtgärdens namn
A41: Handläggarens namn
A43: Text…
A46: Plankorsningsmodellen_xx_verxx
A48: Datum för upprättande av kalkyl | B48: 2024-01-23

Sheet Kalkylvärden
A1: Kalkylvärden och systemvärden | C1: Version av plankorsningsmodellen | D1: Plankorsningsmodellen 2024 1.0 | K1: Källor med mera…
A2: Övergripande kalkylparametrar | B2: Modellen länkar till nedanstående tabeller. Till höger finns vissa celler med indata till de "skarpa" indatatabellerna nedan. | K2: Andelar | T2: Interpolering av fordonsandelar
A3: Basår | B3: 2019 | D3: Faktor för beräkning av extern kostnad vägslitage | K3: Personbil, andelar | L3: 2010 | M3: 2020 | N3: 2030 | O3: 2050 | P3: Genomsnitt av interpolerade årsvärden | U3: Bensin | W3: Diesel
A4: Kalkylränta (%) | B4: 3.5 | K4: andel bensin | L4: 0.69 | M4: 0.36 | N4: 0.34 | O4: 0.34 | P4: =AVERAGE(U4:U45) ->  | Q4: Källa: "Bygg om eller bygg nytt", kap 7, sid. 23. | T4: 2010 | U4: =L4 -> 0.69 | V4: =(U4-U15)/(ROW(U4)-ROW(U15)) -> -0.03 | W4: =1-U4 -> 0.31
A5: Skattefaktor | B5: 1.2 | C5: ASEK 8 | D5: Personbil | E5: 1 | G5: 0.47 | K5: andel diesel | L5: 0.31 | M5: 0.64 | N5: 0.66 | O5: 0.66 | P5: =AVERAGE(W4:W45) ->  | Q5: Källa: "Bygg om eller bygg nytt", kap 7, sid. 23. | T5: 2011 | U5: =U4+$V$4 -> 0.66 | W5: =1-U5 -> 0.34
A6: Diskonteringsår och byggstart | B6: 2028 | D6: Tung lastbil | E6: 1 | G6: 0.55 | T6: 2012 | U6: =U5+$V$4 -> 0.63 | W6: =1-U6 -> 0.37
A7: Prognosår | B7: 2045 | K7: Lastbil, andelar
A8: Brytpunktsår för trafiktillväxt | B8: 2065 | K8: Lbu | T8: 2013 | U8: =U6+$V$4 -> 0.6 | W8: =1-U8 -> 0.4
A9: Prisnivå kalkylvärden | B9: 2019-medel | K9: Lbs | T9: 2014 | U9: 0.57 | W9: =1-U9 -> 0.43
A10: Trafikstart | B10: =B6+Indata!B25 -> 2031 | C10: Obs: formel | T10: 2015 | U10: =U9+$V$4 -> 0.54 | W10: =1-U10 -> 0.46
A11: Uppräkning med "real BNP" | B11: ASEK 8 | D11: Real kostnadsökning inv+dou/reinv 2019-2045 | E11: se flik 6 asek 8 kalkylbilaga | T11: 2016 | U11: 0.51 | W11: =1-U11 -> 0.49
D12: Uppräkningsfaktor investeringkostnad bana | E12: =(121.2/100)^(1/(2019-2009)) -> 1.019413222 | T12: 2017 | U12: =U11+$V$4 -> 0.48 | W12: 0.52
A13: Uppräkningsfaktor per år (%) | B13: 1.15 | D13: Uppräkningsfaktor (kostnad) driftsindex bana | E13: 1.009 | T13: 2018 | U13: 0.45 | W13: 0.55
A14: Antal år som uppräkningen avser | B14: 26 | C14: Används kanske inte | D14: Uppräkningsfaktor (kostnad) driftsindex väg | E14: 1.012 | T14: 2019 | U14: 0.42 | W14: 0.58
A15: Notera: Denna uppräkningsfaktor skall tillämpas på betalningsviljepåverkade kalkylvärden | T15: 2020 | U15: =M4 -> 0.36 | V15: =(U15-U25)/(ROW(U15)-ROW(U25)) -> -0.002 | W15: 0.64
T16: 2021 | U16: =U15+$V$15 -> 0.358 | W16: 0.642
A17: Uppräkning till årsvärden | B17: Samma som i sampers/samkalk | T17: 2022 | U17: =U16+$V$15 -> 0.356 | W17: 0.644
B18: Faktor | S18: =U17+$V$15 -> 0.354 | U18: =1-S18 -> 0.646
A19: Från ÅDT till fordon per år | B19: 365 | S19: 0.352 | U19: =1-S19 -> 0.648
A20: Antal tåg per vardagsmedeldygn | B20: 320 | S20: 0.35 | U20: =1-S20 -> 0.65
T21: 2026 | U21: =S20+$V$15 -> 0.348 | W21: 0.652
A22: Olycksvärdering | C22: ASEK 8 | F22: Tabell miljöeffekter | T22: 2027 | U22: 0.346 | W22: 0.654
B23: Materiella | C23: Riskvärdering | D23: Totalt | G23: Andel emission | T23: 2028 | U23: 0.344 | W23: 0.656
A24: Dödsfall | B24: 6573000 | C24: 46415000 | D24: =B24+C24 -> 52988000 | F24: Pb | T24: 2029 | U24: 0.342 | W24: 0.658
A25: Mycket allvarligt skadad (MAS) | B25: 4980000 | C25: 13982000 | D25: =B25+C25 -> 18962000 | F25: Nox | G25: 0.05 | T25: 2030 | U25: =N4 -> 0.34 | V25: =(U25-U45)/(ROW(U25)-ROW(U45)) -> 0 | W25: 0.66
A26: Allvarligt skadad (AS-MAS) | B26: 397000 | C26: 12148000 | D26: =B26+C26 -> 12545000 | F26: CO2 | G26: 0.06
A27: Ej allvarligt skadad (EAS) | B27: 45000 | C27: 700000 | D27: =B27+C27 -> 745000 | F27: Pmavgas | G27: 0.06 | T27: 2031 | U27: =U25+$V$25 -> 0.34 | W27: 0.66
A28: Egendomsskada | B28: 16000 | C28: 0 | D28: =B28+C28 -> 16000 | F28: Pmslitage | G28: 0.2 | T28: 2032 | U28: =U27+$V$25 -> 0.34 | W28: 0.66
F29: Lb | T29: 2033 | U29: 0.34 | W29: 0.66
A30: Värdering av emissioner (regionala effekter) | F30: Nox | G30: 0.95 | T30: 2035 | U30: =#REF!+$V$25 -> 
B31: Kr/kg | C31: ASEK 8 | F31: CO2 | G31: 0.94 | T31: 2036
A32: kväveoxider, NOx | B32: 137 | F32: Pmavgas | G32: 0.94 | T32: 2037
B33: 0 | F33: Pmslitage | G33: 0.8 | T33: 2038
A34: koldioxid, CO2 | B34: 1.38 | T34: 2039
A35: avgaspartiklar, PM 3,5 | B35: 7433 | T35: 2040
A36: slitagepartiklar, PM 10 | B36: 1513 | T36: 2041
T37: 2042
T38: 2043
T39: 2044
T40: 2045
T41: 2046
T42: 2047
A43: Tidsvärden persontrafik, regionala värden | C43: ASEK 8 | T43: 2048
B44: kr/tim | C44: andel | D44: viktat | E44: Huvudanalys | F44: Känslighetsanalys | T44: 2049
A45: Åktid med bil | D45: =E45 -> 85.75 | E45: =($B46*$C46+$B47*$C47) -> 85.75 | F45: 95 | T45: 2050 | U45: =O4 -> 0.34 | W45: 0.66
A46: Bil ,arbete | B46: 112 | C46: =13/48 -> 0.2708333333
A47: Bil, övrigt | B47: 76 | C47: =35/48 -> 0.7291666667
A48: Åktid med cykel | D48: =B49*C49+B50*C50+B51*C51+B52*C52 -> 169.5
A49: Cykel, blandtrafik | B49: 185 | C49: 0.5 | E49: Andelen är ett antagande
A50: Cykel, cykelfält i körbana | B50: 166 | C50: 0.1 | E50: Andelen är ett antagande
A51: Cykel, cykelbana vid väg | B51: 154 | C51: 0.2 | E51: Andelen är ett antagande
A52: Cykel, cykelbana | B52: 148 | C52: 0.2 | E52: Andelen är ett antagande
A53: Promenadtid till fots | B53: =B52*E53 -> 118.4 | C53: 1 | D53: =B53*C53 -> 118.4 | E53: 0.8
A54: Lastbil, förarlön | B54: 341
A56: Notera: Beträffande cykel väljer jag att inte bygga upp indatafliken så att det går att göra en fullständig CYKALK-beräkning. Här bedöms de nyttor
A57: som kommer från cykel vara så pass små att det inte motiverar att "tynga" användaren med detaljerade indata-möjligheter.
A59: Tidsvärden godstrafik | C59: ASEK 8
B60: kr/ntontim | C60: andel | D60: viktat | E60: ton per Lb | F60: kr/fordon
A61: Genomsnittlig tung lastbil, kr/ntontim | D61: =B62*C62+B63*C63 -> 5.03752381
A62: Lbu | B62: =F62/E62 -> 6.526666667 | C62: 0.7 | E62: 3 | F62: 19.58
A63: Lbs | B63: =F63/E63 -> 1.562857143 | C63: 0.3 | E63: 14 | F63: 21.88
A71: Transportkostnad med cykel på länk | B71: ASEK 8
B72: kr/fkm
A73: Cykel (inkl. moms, prisnivå 2019) | B73: 0.73
A75: Cykel: Olycksrisk och olyckskostnad på länk
C76: ASEK 8
A77: Antal olyckor per miljoner pkm | B77: 2.5
A78: Olyckskostnad per cykelolycka (mkr) | B78: 3.937
A95: Gång- och cykel, trafiktillväxt
B96: % per år
A97: Trafiktillväxt, 2019-2045 | B97: 0
A98: Trafiktillväxt, 2046-- | B98: 0
A102: Gång- och cykel, hastigheter
B103: km/h
A104: Gående | B104: 5 | C104: ASEK 8
A105: Cyklande | B105: 15 | C105: ASEK 8
A107: Antal personer per fordonstyp | B107: ASEK 8
B108: Personer | C108: andel
A109: Personbil | B109: =B110*C110+B111*C111 -> 1.75
A110: odifferentierat, privatresa (EVA) | B110: 1.75 | C110: 1
B111: 1 | C111: 0
A112: Lastbil | B112: 1
A113: Cykel | B113: 1 | D113: Källa: Eget antagande
A119: KORSNINGSEFFEKTER
A120: Olycksrisker i korsningar | C120: ASEK 8
A121: Vägkategori | B121: Planfri korsning | C121: Helbom | D121: Halvbom | E121: Ljud/ljus | F121: Oskyddad
A122: Statliga/regionala vägar | B122: 0 | C122: =(7*10^-8)*B132 -> 7e-08 | D122: =(1*10^-7)*B132 -> 1e-07 | E122: =(1.11*10^-6)*B132 -> 1.11e-06 | F122: 0
A123: Gator, andra vägar | B123: 0 | C123: =(2.938*10^-8)*B132 -> 2.938e-08 | D123: =(3.88*10^-8)*B132 -> 3.88e-08 | E123: =(2.66*10^-7)*B132 -> 2.66e-07 | F123: =(2.43*10^-7)*B132 -> 2.43e-07
A124: Privata vägar | B124: 0 | C124: =(3.75*10^-9)*B132 -> 3.75e-09 | D124: =(4.38*10^-9)*B132 -> 4.38e-09 | E124: =(2.69*10^-8)*B132 -> 2.69e-08 | F124: =(3.94*10^-8)*B132 -> 3.94e-08
B125: NOTERA: Denna tabell länkas via INDIREKT formler. Tabellen får inte flyttas så att
B126: radnummer ändras!
A130: Uppräkningsfaktor för egendomsskador som andel av antal olyckor med personskador
B131: Andel
A132: Andel egendomsolyckor | B132: 1
A133: Används ej!! Har använts i tidigare versioner men inte från 180401. satt till 1 för att inte påverka beräkningar.
A136: Olyckans konsekvens | C136: ASEK 8
A137: Förväntat antal dödade, skadade m.m. vid genomsnittlig plankorsningsolycka
B138: Andel | C138: Kr per olycka | D138: Andel av kr
A139: Dödsfall | B139: 0.39 | C139: =B139*D24 -> 20665320 | D139: =C139/C$144 -> 0.9525265185
A140: Mycket allvarligt skadad (MAS) | B140: 0.01 | C140: =B140*D25 -> 189620 | D140: =C140/C$144 -> 0.00874015396
A141: Allvarligt skadad (AS-MAS) | B141: 0.05 | C141: 627250 | D141: =C141/C$144 -> 0.02891183193
A142: Ej allvarligt skadad (EAS) | B142: 0.28 | C142: 208600 | D142: =C142/C$144 -> 0.00961499903
A143: Egendomsskada | B143: 0.28 | C143: 4480 | D143: =C143/C$144 -> 0.0002064966235
B144: =SUM(B139:B143) -> 1.01 | C144: =SUM(C139:C143) -> 21695270 | D144: =SUM(D139:D143) -> 1
A156: Fordonskostnader till följd av ett stopp | B156: kr/stopp | L156: 3.4 | M156: 3.9 | N156: 4.7
A157: km/h | B157: 30 | C157: 40 | D157: 50 | E157: 60 | F157: 70 | G157: 80 | H157: 90 | L157: 4.7 | M157: 5.8 | N157: 7.5
A158: Personbil | B158: 0 | C158: 0 | D158: 0 | E158: 0 | F158: 0 | G158: 0 | H158: 0 | L158: 6 | M158: 8.2 | N158: 11
A159: Lastbil | B159: 0 | C159: 0 | D159: 0 | E159: 0 | F159: 0 | G159: 0 | H159: 0 | L159: 7.5 | M159: 11.3 | N159: 16
A160: Källa: Saknas underlag från EVA 2024:1 | B160: NOTERA: Denna tabell länkas via INDIREKT formler. Tabellen får inte flyttas så att | L160: 9.3 | M160: 15 | N160: 22
B161: radnummer ändras! | L161: 11 | M161: 19.9 | N161: 30
A162: Miljöeffekter | B162: gram/stopp | L162: 14 | M162: 26.8 | N162: 40
A163: km/h | B163: 30 | C163: 40 | D163: 50 | E163: 60 | F163: 70 | G163: 80 | H163: 90 | L163: Källa: Samma som tidigare. Manuell avläsning av diagram från VGU 2004.
A164: Personbil
A165: kväveoxider, NOx | B165: 0 | C165: 0 | D165: 0 | E165: 0 | F165: 0 | G165: 0 | H165: 0
B166: 0 | C166: 0 | D166: 0 | E166: 0 | F166: 0 | G166: 0 | H166: 0
A167: koldioxid, CO2 | B167: 0 | C167: 0 | D167: 0 | E167: 0 | F167: 0 | G167: 0 | H167: 0
A168: avgaspartiklar, PM 3,5 | B168: 0 | C168: 0 | D168: 0 | E168: 0 | F168: 0 | G168: 0 | H168: 0
A169: slitagepartiklar, PM 10 | B169: 0 | C169: 0 | D169: 0 | E169: 0 | F169: 0 | G169: 0 | H169: 0
A170: Lastbil
A171: kväveoxider, NOx | B171: 0 | C171: 0 | D171: 0 | E171: 0 | F171: 0 | G171: 0 | H171: 0
B172: 0 | C172: 0 | D172: 0 | E172: 0 | F172: 0 | G172: 0 | H172: 0
A173: koldioxid, CO2 | B173: 0 | C173: 0 | D173: 0 | E173: 0 | F173: 0 | G173: 0 | H173: 0
A174: avgaspartiklar, PM 3,5 | B174: 0 | C174: 0 | D174: 0 | E174: 0 | F174: 0 | G174: 0 | H174: 0
A175: slitagepartiklar, PM 10 | B175: 0 | C175: 0 | D175: 0 | E175: 0 | F175: 0 | G175: 0 | H175: 0
A176: Källa: Saknas underlag från EVA 2024:1 | B176: NOTERA: Denna tabell länkas via INDIREKT formler. Tabellen får inte flyttas så att
B177: radnummer ändras!
A178: Tidsåtgång vid passage av korsning med sänkt hastighet
A179: km/h | B179: Personbil (sek.) | C179: Lastbil (sek.)
A180: 30 | B180: =L156 -> 3.4 | C180: =(M156+N156)/2 -> 4.3
A181: 40 | B181: 4.7 | C181: 6.65
A182: 50 | B182: 6 | C182: 9.6
A183: 60 | B183: 7.5 | C183: 13.65
A184: 70 | B184: 9.3 | C184: 18.5
A185: 80 | B185: 11 | C185: 24.95
A186: 90 | B186: 14 | C186: 33.4
A187: Källa: Samma som tidigare. Manuell avläsning av diagram från VGU 2004.
A188: Notera: Fördröjningen för lastbil avser nu en 50/50 fördelning mellan Lbs och Lbu.
A193: LÄNKEFFEKTER
A194: Restidsvinst- eller förlust vid omledning | B194: sekunder/fkm
A195: km/h | B195: 30 | C195: 40 | D195: 50 | E195: 60 | F195: 70 | G195: 80 | H195: 90
A196: Personbil | B196: 86.1268753 | C196: 86.1268753 | D196: 69.64335881 | E196: 58.94917495 | F196: 49.06123823 | G196: 43.78766079 | H196: 40.86360501
A197: Lastbil | B197: 86.1268753 | C197: 86.1268753 | D197: 69.64335881 | E197: 59.49389791 | F197: 50.42223651 | G197: 45.71173488 | H197: 44.49917486
A198: Källa: EVA 2024:1
A200: Godskostnader | B200: kr/fkm
A201: km/h | B201: 30 | C201: 40 | D201: 50 | E201: 60 | F201: 70 | G201: 80 | H201: 90
A202: Lastbil | B202: 0.4948523162 | C202: 0.4948523162 | D202: 0.3999470965 | E202: 0.3426189439 | F202: 0.2895016658 | G202: 0.2624316881 | H202: 0.2556509033
A203: Källa: EVA 2024:1
A205: Fordonskostnader | B205: kr/fkm
B206: 30 | C206: 40 | D206: 50 | E206: 60 | F206: 70 | G206: 80 | H206: 90
A207: Personbil | B207: 1.153284523 | C207: 1.153284523 | D207: 1.129395642 | E207: 1.120637293 | F207: 1.0999556 | G207: 1.10457006 | H207: 1.109811372
A208: Lastbil | B208: 7.999467126 | C208: 7.999467126 | D208: 7.622917487 | E208: 7.495452034 | F208: 7.300225719 | G208: 7.280965676 | H208: 7.290966991
A209: Källa: EVA 2024:1
A211: Miljöeffekter | B211: gram/fkm
A212: km/h | B212: 30 | C212: 40 | D212: 50 | E212: 60 | F212: 70 | G212: 80 | H212: 90
A213: Personbil
A214: kväveoxider, NOx | B214: 0.00731653 | C214: 0.00712201 | D214: 0.00742534 | E214: 0.00743108 | F214: 0.00620198 | G214: 0.00696287 | H214: 0.00625297 | J214: =B214/(B214+B220) -> 0.02830345934 | K214: =C214/(C214+C220) -> 0.03765539504
A216: koldioxid, CO2 | B216: 8.42 | C216: 7.78 | D216: 7.99 | E216: 7.44 | F216: 6.8 | G216: 7.27 | H216: 7.07
A217: avgaspartiklar, PM 3,5 | B217: 9.423e-05 | C217: 9.055e-05 | D217: 8.671e-05 | E217: 9.381e-05 | F217: 0.00010309 | G217: 9.96e-05 | H217: 7.938e-05
A218: slitagepartiklar, PM 10 | B218: 0.0567 | C218: 0.0678 | D218: 0.0829 | E218: 0.0939 | F218: 0.1068 | G218: 0.1175 | H218: 0.1175
A219: Lastbil
A220: kväveoxider, NOx | B220: 0.2511865 | C220: 0.1820145 | D220: 0.1500875 | E220: 0.134032 | F220: 0.130291 | G220: 0.134809 | H220: 0.1309765
A222: koldioxid, CO2 | B222: 124.405 | C222: 148.24 | D222: 114.45 | E222: 109.47 | F222: 112.235 | G222: 111.51 | H222: 106.525
A223: avgaspartiklar, PM 3,5 | B223: 0.00235355 | C223: 0.00218232 | D223: 0.001702315 | E223: 0.001474865 | F223: 0.00134127 | G223: 0.00130511 | H223: 0.00141615
A224: slitagepartiklar, PM 10 | B224: 0.2958 | C224: 0.297 | D224: 0.3292 | E224: 0.3424 | F224: 0.363 | G224: 0.3777 | H224: 0.3777
A225: Källa: EVA 2024:1
C226: Källa: EVA 2024:1
A227: Trafiksäkerhetseffekter | B227: Antal per mfkm
A228: km/h | B228: 30 | C228: 40 | D228: 50 | E228: 60 | F228: 70 | G228: 80 | H228: 90
A229: Personbil
A230: Dödsfall | B230: 0.00109206167 | C230: 0.00109206167 | D230: 0.001417022498 | E230: 0.001384660896 | F230: 0.001390517227 | G230: 0.001694602049 | H230: 0.002664609286
A231: Mycket allvarligt skadad (MAS) | B231: 0.008581690629 | C231: 0.008581690629 | D231: 0.009117606346 | E231: 0.006156622478 | F231: 0.008907596222 | G231: 0.006917683452 | H231: 0.00758555357
A232: Allvarligt skadad (AS-MAS) | B232: 0.04397903118 | C232: 0.04397903118 | D232: 0.04587446359 | E232: 0.03218705249 | F232: 0.04338056435 | G232: 0.03204695555 | H232: 0.0317669812
A233: Ej allvarligt skadad (EAS) | B233: 0.2892971771 | C233: 0.2892971771 | D233: 0.3012650308 | E233: 0.2238888248 | F233: 0.2700950194 | G233: 0.2045248283 | H233: 0.1993040385
A234: Egendomsskada | B234: 4.524488462 | C234: 4.524488462 | D234: 4.965901971 | E234: 2.740429828 | F234: 6.832857318 | G234: 5.940641738 | H234: 5.815985849
A235: Lastbil
A236: Dödsfall | B236: 0.002102218714 | C236: 0.002102218714 | D236: 0.00272776831 | E236: 0.002665472224 | F236: 0.002676745661 | G236: 0.003262108944 | H236: 0.005129372875
A237: Mycket allvarligt skadad (MAS) | B237: 0.01651975446 | C237: 0.01651975446 | D237: 0.01755139222 | E237: 0.01185149827 | F237: 0.01714712273 | G237: 0.01331654065 | H237: 0.01460219062
A238: Allvarligt skadad (AS-MAS) | B238: 0.08465963502 | C238: 0.08465963502 | D238: 0.08830834241 | E238: 0.06196007605 | F238: 0.08350758637 | G238: 0.06169038943 | H238: 0.06115143881
A239: Ej allvarligt skadad (EAS) | B239: 0.556897066 | C239: 0.556897066 | D239: 0.5799351842 | E239: 0.4309859878 | F239: 0.5199329124 | G239: 0.3937102945 | H239: 0.383660274
A240: Egendomsskada | B240: 8.70964029 | C240: 8.70964029 | D240: 9.559361294 | E240: 5.275327419 | F240: 13.15325034 | G240: 11.43573534 | H240: 11.19577276
A241: Infrastrukturslitage (väg) | B241: ASEK 8
A243: Personbil (kr/fdkm) | B243: 0.044
A244: Lastbil (kr/fdkm) | B244: 0.476
A249: Ton per lastbil | B249: Källa: antagande
B250: Nton/lastbil | C250: Andel
A251: Nettoton per lastbil (genomsnitt) | B251: =(B252*C252)+(B253*C253) -> 6.3
A252: Nettoton per Lbu (genomsnitt) | B252: 3 | C252: 0.7
A253: Nettoton per Lbs (genomsnitt) | B253: 14 | C253: 0.3
A255: KÄNSLIGHETSANALYSER
A257: Hög CO2 värdering | B257: Kr/kg
A258: Värdering av CO2 | C258: Används inte i ASEK 8
A260: Total efterfrågan år 2045 (-20%) | B260: Faktor
A261: Trafiktillväxt 2019-2045 (väg) | B261: 0.8
A262: Trafiktillväxt 2046-- (väg) | B262: 1
A263: Trafiktillväxt 2019-2045 (järnväg) | B263: 0.8
A264: Trafiktillväxt 2046-- (järnväg) | B264: 1
A266: Total efterfrågan år 2045 (20%) | B266: Faktor
A267: Trafiktillväxt 2019-2045 (väg) | B267: 1.2
A268: Trafiktillväxt 2046-- (väg) | B268: 1
A269: Trafiktillväxt 2019-2045 (järnväg) | B269: 1.2
... 1 more rows

Sheet Indata
A2: Indata | B2: OBS!! Glöm inte att ange datum för kalkylen i flik "Om kalkylen" cell B48. Datumet följer med in i kalkylförutsättningar som går in i seb-it.
A4: Steg 1 - Infrastrukturkostnader och förutsättningar
A6: Huvudanalys
A7: När du anger anläggningskostnaden och reinvesteringskostnader behöver du göra detta i prisnivå 2019-årsmedel (men realt uttryckt i 2028 års kostnad). Här anges investeringskostnaderna som beräknats i lathund indexomräkning kapitalisering omräkning investeringskostnader kolumn D flik Nuvärde investeringskostnader. Kostnaderna som läggs in här måste alltså först ha bearbetas i den lathunden för att sen läggas in här per år. Rätt prisnivå för reinvesteringar måste beräknas utanför modellen.
A10: Investeringskostnader
A11: År | B11: 2028 | C11: 2029 | D11: 2030 | E11: 2031 | F11: 2032 | G11: 2033 | H11: 2034 | I11: 2035 | J11: 2036 | K11: 2037 | L11: 2038 | M11: 2039 | N11: 2040 | O11: 2041 | P11: 2042 | Q11: 2043 | R11: 2044 | S11: 2045 | T11: 2046 | U11: 2047 | V11: 2048 | W11: 2049 | X11: 2050 | Y11: 2051 | Z11: 2052 | AA11: 2053 | AB11: 2054 | AC11: 2055 | AD11: 2056 | AE11: 2057 | AF11: 2058 | AG11: 2059 | AH11: 2060 | AI11: 2061 | AJ11: 2062 | AK11: 2063 | AL11: 2064 | AM11: 2065 | AN11: 2066 | AO11: 2067 | AP11: 2068 | AQ11: 2069 | AR11: 2070 | AS11: 2071 | AT11: 2072 | AU11: 2073 | AV11: 2074 | AW11: 2075 | AX11: 2076 | AY11: 2077 | AZ11: 2078 | BA11: 2079 | BB11: 2080 | BC11: 2081 | BD11: 2082 | BE11: 2083 | BF11: 2084 | BG11: 2085 | BH11: 2086 | BI11: 2087 | BJ11: 2088 | BK11: 2089 | BL11: 2090 | BM11: 2091 | BN11: 2092 | BO11: 2093 | BP11: 2094 | BQ11: 2095 | BR11: 2096 | BS11: 2097
A12: Investeringskostnader UA (prisnivå 2019-årsmedel) | B12: 10 | C12: 20 | D12: 10
A13: Investeringskostnader JA (prisnivå 2019-årsmedel) Aldrig användas!!! Om aktuellt läggs kostnader i JA reinvestering.
A15: Reinvesteringskostnader
A17: År | B17: 2028 | C17: 2029 | D17: 2030 | E17: 2031 | F17: 2032 | G17: 2033 | H17: 2034 | I17: 2035 | J17: 2036 | K17: 2037 | L17: 2038 | M17: 2039 | N17: 2040 | O17: 2041 | P17: 2042 | Q17: 2043 | R17: 2044 | S17: 2045 | T17: 2046 | U17: 2047 | V17: 2048 | W17: 2049 | X17: 2050 | Y17: 2051 | Z17: 2052 | AA17: 2053 | AB17: 2054 | AC17: 2055 | AD17: 2056 | AE17: 2057 | AF17: 2058 | AG17: 2059 | AH17: 2060 | AI17: 2061 | AJ17: 2062 | AK17: 2063 | AL17: 2064 | AM17: 2065 | AN17: 2066 | AO17: 2067 | AP17: 2068 | AQ17: 2069 | AR17: 2070 | AS17: 2071 | AT17: 2072 | AU17: 2073 | AV17: 2074 | AW17: 2075 | AX17: 2076 | AY17: 2077 | AZ17: 2078 | BA17: 2079 | BB17: 2080 | BC17: 2081 | BD17: 2082 | BE17: 2083 | BF17: 2084 | BG17: 2085 | BH17: 2086 | BI17: 2087 | BJ17: 2088 | BK17: 2089 | BL17: 2090 | BM17: 2091 | BN17: 2092 | BO17: 2093 | BP17: 2094 | BQ17: 2095 | BR17: 2096 | BS17: 2097
A18: Reinvesteringskostnader UA (prisnivå 2019-årsmedel) | E18: 2 | F18: 2 | G18: 2
A19: Reinvesteringskostnader JA (prisnivå 2019-årsmedel) | E19: 1 | F19: 1 | G19: 1
A21: Ange ett positivt tal (nedan) ifall kostnaden för drift och underhåll ÖKAR i och med de studerade åtgärderna (UA) och ett negativt tal ifall de årliga kostnaderna MINSKAR.
A22: Förändring av årlig kostnad för drift och underhåll (prisnivå 2019-årsmedel) | B22: 0.1 | C22: mkr/år
A23: Byggstart | B23: =B11 -> 2028
A24: Kalkylperiod | B24: 40 | C24: Notera: Max 40 år
A25: Byggtid | B25: =COUNT(B12:BS12) -> 3
A26: Trafikstart | B26: =B23+B25 -> 2031
A27: Trafiktillväxt 2019-2045 (väg) | B27: 1.5 | C27: % per år
A28: Trafiktillväxt 2046-2065 (väg) | B28: 0.5 | C28: % per år
A29: Antal tåg per dygn i utgångsläget (år 2024) | B29: 20 | C29: antal/dygn
A30: Antal tåg per dygn i prognosen för år 2045 | B30: 30 | C30: antal/dygn
A31: Notera: Tågantalet per dygn i utgångsläget bör vara lika med tågantalet per dygn i indatatabellen nedan! Tänk även på att fördela tågantalet över dag och natt nedan.
A34: Steg 2 - Generera rätt antal korsningar
A35: Det första steget i beräkningen är att du får ange antal korsningar som berörs av den studerade åtgärden. Ibland innebär åtgärden bara att skyddet i en viss korsning förändras, ibland innebär åtgärderna
A36: att ett stort antal plankorsningar byggs om. Denna kalkylmodell skall ge dig möjlighet att göra såväl kalkyler för 1 korsning som för ett helt järnvägsstråk med flera inblandade korsningar.
A37: Vare sig du gör en kalkyl med 1 korsning endast eller studerar åtgärder längs ett stråk är det viktigt att utredningsomårdet görs så pass stort att eventuella omflyttningar av trafikflöden kan fångas.
A38: Om kalkylen avser en åtgärd som innebär att 1 korsning slopas så bör 3 korsningar ingå i JA ifall det bedöms bli aktuellt med omflyttning av trafik till närmaste korsning på vardera sida om den slopade korsningen.
A40: Antal korsningar som berörs i JA | B40: 3
A41: Antal korsningar som berörs i UA | B41: 2
A44: Steg 3 - Ange indata per korsning
A45: Här behöver du fylla i indata om respektive plankorsning och om den trafik som berör korsningen.
A46: Vad gäller bomfällningstid finns detaljerade data att hämta från Trafikverkets system DS-analys, som samlar in data från Tågledningssystemen i Malmö, Göteborg, Norrköping, Hallsberg och Stockholm. Dock inte för Ånge och Boden.
A48: Viktigt 1! När du anger namnet på vägarna/plankorsningarna så är det viktigt att du startar i ena änden av järnvägssträckan och namnger korsningarna i turordning. Modellen beaktar den ordning som korsningarna i JA och UA ligger i
A49: till att beräkna mellan vilka korsningar eventuella omflyttningar sker.
A51: Viktigt 2! Modellen förutsätter att antalet fordon som passerar järnvägen inte påverkas av plankorsningsåtgärderna! Således kan fordon flytta mellan olika korsningar, men summan av fordon i JA-korsningarna måste
A52: vara lika med summan av fordon i UA-korsningarna. Det samma måste gälla inom varje underkategori, t.ex. mellan klockan 06-22, respektive mellan klockan 22-06. Antal lastbilar och personbilar måste också vara lika.
A54: Viktigt 3! Det är viktigt att korsningarna ges genomtänkta namn/beteckningar som är konsistena mellan JA och UA. Dvs om en viss korsning finns med i både JA och UA så bör dessa ha samma namn/beteckning. Detta används för att
A55: avgöra ifall det sker en omflyttning av trafik mellan korsningar.
B60: JA1 | C60: JA2 | D60: JA3 | E60: UA1 | F60: UA2
A61: Namn på plankorsning | B61: a | C61: b | D61: c | E61: b | F61: c
A62: Typ av plankorsning (vägskyddsanordning, 4 alt.) | B62: 4 | C62: 3 | D62: 3 | E62: 1 | F62: 1
A63: Typ av väg (kategori, 3 alternativ) | B63: 2 | C63: 2 | D63: 2 | E63: 2 | F63: 2
A64: Antal personbilar (ÅDT)
A65: mellan kl. 06-22 | B65: 500 | C65: 500 | D65: 500 | E65: 750 | F65: 750
A66: mellan kl. 22-06 | B66: 200 | C66: 200 | D66: 200 | E66: 300 | F66: 300
A67: Antal lastbilar (ÅDT)
A68: mellan kl. 06-22 | B68: 500 | C68: 500 | D68: 500 | E68: 750 | F68: 750
A69: mellan kl. 22-06 | B69: 200 | C69: 200 | D69: 200 | E69: 300 | F69: 300
A70: Antal fordon per dygn ÅDT
A71: mellan kl. 06-22 | B71: =B65+B68 -> 1000 | C71: 1000 | D71: 1000 | E71: 1500 | F71: 1500
A72: mellan kl. 22-06 | B72: 400 | C72: 400 | D72: 400 | E72: 600 | F72: 600
A73: Antal cyklande per dygn ÅDT
A74: mellan kl. 06-22 | B74: 100 | C74: 100 | D74: 100 | E74: 150 | F74: 150
A75: mellan kl. 22-06
A76: Antal gående per dygn ÅDT
A77: mellan kl. 06-22 | B77: 100 | C77: 100 | D77: 100 | E77: 150 | F77: 150
A78: mellan kl. 22-06
A79: Antal tågpassager per dygn
A80: mellan kl. 06-22 | B80: 20 | C80: 20 | D80: 20 | E80: 20 | F80: 20
A81: mellan kl. 22-06
A82: Bommarnas liggtid+förringning (minuter per tågpassage) | C82: 2 | D82: 2 | E82: 3 | F82: 3
A83: Skyltad väghastighet vid vägkorsning | B83: 2 | C83: 2 | D83: 2 | E83: 2 | F83: 2
A84: Praktisk hastighet vid korsning när bommar inte ligger nere (sänkt hastighet för att skydda bilen…) | B84: 2 | C84: 2 | D84: 2 | E84: 2 | F84: 2
A87: När hela tabellen är ifylld - tryck på:
A89: Viktigt 3! Om du efter att du tryckt på "Run Steg 4" har anledning att ändra ÅDT i tabellen ovan och om det kommer att ske omledning mellan olika korsningar, så behöver du trycka på "Run Steg 4" igen.
A90: Om du bara ändrar i den tabell som hör till "Steg 3" så blir ändringarna korrekt hanterade vad avser effekterna i korsningarna - men det blir fel antal fordon som berörs i omledningsberäkningarna i "Steg 4".
A94: Steg 4 - Omledningsalgoritm och indata
A96: De uppgifter som fyllts i ovan visar att det sker ett antal omflyttningar av fordon mellan olika korsningar. Här nedanför redovisas de förändringar som uppkommer, mätt i fordonsomflyttningar.
A97: Om du har gjort förändringar av ÅDT i "Steg 3" och vill att dessa skall beaktas i "Steg 4" så kan du trycka på "Run Steg 4" igen.
A102: Från korsning | B102: a | C102: b
A103: Till korsning | B103: b | C103: c
A104: Antal personbilar (ÅDT)
A105: mellan kl. 06-22 | B105: 500 | C105: 250
A106: mellan kl. 22-06 | B106: 200 | C106: 100
A107: Antal lastbilar (ÅDT)
A108: mellan kl. 06-22 | B108: 500 | C108: 250
A109: mellan kl. 22-06 | B109: 200 | C109: 100
A110: Antal fordon per dygn ÅDT
A111: mellan kl. 06-22 | B111: 1000 | C111: 500
A112: mellan kl. 22-06 | B112: 400 | C112: 200
A113: Antal cyklande per dygn
A114: mellan kl. 06-22 | B114: 100 | C114: 50
A115: mellan kl. 22-06
A116: Antal gående per dygn
A117: mellan kl. 06-22 | B117: 100 | C117: 50
A118: mellan kl. 22-06
A122: Dessa omflyttningar innebär förändrade körsträckor, vilket kommer att påverka tidsåtgång, kostnader, emissioner och antal olyckor (väg-väg). För att korrekt bedöma dessa
A123: effekter behövs det uppgifter om såväl hur antalet km per fordon och tur förändras - men också hur tidsåtgången förändras. De uppgifter som skall matas in i cellerna nedan avser
A124: förändringen i körsträcka i kilometer samt vilken hastighetsbegränsning som huvudsakligen gäller på de vägar som används. Således är det en differens som skall fyllas i.
A126: Sannolikt blir det nödvändigt med en sidoberäkning utanför denna modell, där dominerande flöde (från plats, till plats) identifieras för olika korsningar och där det görs en
A127: bedömning hur det dominerande flödet förändras när korsningar slopas/tillkommer.
A129: Personbilar
A130: Förändrad körsträcka (km) vid omflyttning av fordon från en korsning till en annan. Längre sträcka anges med (+) och kortare sträcka anges med (-)
A131: Förändrat antal km på väg med 30 km/h | B131: -1 | C131: -1
A132: Förändrat antal km på väg med 50 km/h
A133: Förändrat antal km på väg med 70 km/h
A134: Förändrat antal km på väg med 90 km/h
A136: Lastbilar
A137: Förändrad körsträcka (km) om vid omflyttning av fordon från en korsning till en annan. Längre sträcka anges med (+) och kortare sträcka anges med (-)
A138: Förändrat antal km på väg med 30 km/h | B138: -1 | C138: -1
A139: Förändrat antal km på väg med 50 km/h
A140: Förändrat antal km på väg med 70 km/h
A141: Förändrat antal km på väg med 90 km/h
A143: Cyklister
A144: Förändrad körsträcka (km) om vid omflyttning av cyklister från en korsning till en annan. Längre sträcka anges med (+) och kortare sträcka anges med (-)
A145: Förändrad sträcka (km) | B145: -1 | C145: -1
A147: Gående
A148: Förändrad promenadsträcka (km) vid omflyttning av gående från en korsning till en annan. Längre sträcka anges med (+) och kortare sträcka anges med (-)
A149: Förändrad sträcka (km) | B149: -1 | C149: -1
A154: Alla indata är nu på plats. Det återstår bara att trycka på knappen nedan för att aktivera de formler som skall genomföra beräkningarna.

Sheet Kvantiteter
A1: Effekter i kvantitativ form
A4: Beräkning av antal fordon/GC som berörs av bomfällning respektive inte berörs av bomfällning
B5: JA1 | C5: JA2 | D5: JA3 | E5: UA1 | F5: UA2
A6: Korsningens namn: | B6: =Indata!B61 -> a | C6: =Indata!C61 -> b | D6: =Indata!D61 -> c | E6: =Indata!E61 -> b | F6: =Indata!F61 -> c
A7: Andel tid då bommarna ligger nere
A8: Mellan kl. 06-22 | B8: =(Indata!B82*Indata!B80)/(60*16) -> 0 | C8: =(Indata!C82*Indata!C80)/(60*16) -> 0.04166666667 | D8: =(Indata!D82*Indata!D80)/(60*16) -> 0.04166666667 | E8: =(Indata!E82*Indata!E80)/(60*16) -> 0.0625 | F8: =(Indata!F82*Indata!F80)/(60*16) -> 0.0625
A9: Mellan kl. 22-06 | B9: =(Indata!B82*Indata!B81)/(60*8) -> 0 | C9: =(Indata!C82*Indata!C81)/(60*8) -> 0 | D9: =(Indata!D82*Indata!D81)/(60*8) -> 0 | E9: =(Indata!E82*Indata!E81)/(60*8) -> 0 | F9: =(Indata!F82*Indata!F81)/(60*8) -> 0
A10: Antal fordon/GC som fastnar bakom bommarna (ÅDT)
A11: Personbilar mellan kl. 06-22 | B11: =B8*Indata!B65 -> 0 | C11: =C8*Indata!C65 -> 20.83333333 | D11: =D8*Indata!D65 -> 20.83333333 | E11: =E8*Indata!E65 -> 46.875 | F11: =F8*Indata!F65 -> 46.875
A12: Personbilar mellan kl. 22-06 | B12: =B9*Indata!B66 -> 0 | C12: =C9*Indata!C66 -> 0 | D12: =D9*Indata!D66 -> 0 | E12: =E9*Indata!E66 -> 0 | F12: =F9*Indata!F66 -> 0
A13: Lastbilar mellan kl. 06-22 | B13: =B8*Indata!B68 -> 0 | C13: =C8*Indata!C68 -> 20.83333333 | D13: =D8*Indata!D68 -> 20.83333333 | E13: =E8*Indata!E68 -> 46.875 | F13: =F8*Indata!F68 -> 46.875
A14: Lastbilar mellan kl. 22-06 | B14: =B9*Indata!B69 -> 0 | C14: =C9*Indata!C69 -> 0 | D14: =D9*Indata!D69 -> 0 | E14: =E9*Indata!E69 -> 0 | F14: =F9*Indata!F69 -> 0
A15: Cyklister mellan kl. 06-22 | B15: =B8*Indata!B74 -> 0 | C15: =C8*Indata!C74 -> 4.166666667 | D15: =D8*Indata!D74 -> 4.166666667 | E15: =E8*Indata!E74 -> 9.375 | F15: =F8*Indata!F74 -> 9.375
A16: Cyklister mellan kl. 22-06 | B16: =B9*Indata!B75 -> 0 | C16: =C9*Indata!C75 -> 0 | D16: =D9*Indata!D75 -> 0 | E16: =E9*Indata!E75 -> 0 | F16: =F9*Indata!F75 -> 0
A17: Gående mellan kl. 06-22 | B17: =B8*Indata!B77 -> 0 | C17: =C8*Indata!C77 -> 4.166666667 | D17: =D8*Indata!D77 -> 4.166666667 | E17: =E8*Indata!E77 -> 9.375 | F17: =F8*Indata!F77 -> 9.375
A18: Gående mellan kl. 22-06 | B18: =B9*Indata!B78 -> 0 | C18: =C9*Indata!C78 -> 0 | D18: =D9*Indata!D78 -> 0 | E18: =E9*Indata!E78 -> 0 | F18: =F9*Indata!F78 -> 0
A19: Antal fordon som fritt passerar korsningen (ÅDT)
A20: Personbilar mellan kl. 06-22 | B20: =Indata!B65-Kvantiteter!B11 -> 500 | C20: =Indata!C65-Kvantiteter!C11 -> 479.1666667 | D20: =Indata!D65-Kvantiteter!D11 -> 479.1666667 | E20: =Indata!E65-Kvantiteter!E11 -> 703.125 | F20: =Indata!F65-Kvantiteter!F11 -> 703.125
A21: Personbilar mellan kl. 22-06 | B21: =Indata!B66-Kvantiteter!B12 -> 200 | C21: =Indata!C66-Kvantiteter!C12 -> 200 | D21: =Indata!D66-Kvantiteter!D12 -> 200 | E21: =Indata!E66-Kvantiteter!E12 -> 300 | F21: =Indata!F66-Kvantiteter!F12 -> 300
A22: Lastbilar mellan kl. 06-22 | B22: =Indata!B68-Kvantiteter!B13 -> 500 | C22: =Indata!C68-Kvantiteter!C13 -> 479.1666667 | D22: =Indata!D68-Kvantiteter!D13 -> 479.1666667 | E22: =Indata!E68-Kvantiteter!E13 -> 703.125 | F22: =Indata!F68-Kvantiteter!F13 -> 703.125
A23: Lastbilar mellan kl. 22-06 | B23: =Indata!B69-Kvantiteter!B14 -> 200 | C23: =Indata!C69-Kvantiteter!C14 -> 200 | D23: =Indata!D69-Kvantiteter!D14 -> 200 | E23: =Indata!E69-Kvantiteter!E14 -> 300 | F23: =Indata!F69-Kvantiteter!F14 -> 300
A24: Genomsnittlig tid bakom bommarna för drabbat fordon/GC (min)
A25: Halva tiden, givet uniform fördelning av trafiken | B25: =Indata!B82/2 -> 0 | C25: =Indata!C82/2 -> 1 | D25: =Indata!D82/2 -> 1 | E25: =Indata!E82/2 -> 1.5 | F25: =Indata!F82/2 -> 1.5
A28: Antal olyckor i korsningarna (per år)
B29: JA1 | C29: JA2 | D29: JA3 | E29: UA1 | F29: UA2
A30: Korsningens namn: | B30: =Indata!B61 -> a | C30: =Indata!C61 -> b | D30: =Indata!D61 -> c | E30: =Indata!E61 -> b | F30: =Indata!F61 -> c
A31: Antal olyckor per dygn
A32: Mellan kl. 06-22 | B32: =IF(OR(Indata!B$62=5, Indata!B$62=0),0, INDIRECT("Kalkylvärden!R"&(121+Indata!B$63) & "C" & (Indata!B$62+2), FALSE)) * Indata!B80 -> 4.86e-06 | C32: =IF(OR(Indata!C$62=5, Indata!C$62=0),0, INDIRECT("Kalkylvärden!R"&(121+Indata!C$63) & "C" & (Indata!C$62+2), FALSE)) * Indata!C80 -> 5.32e-06 | D32: =IF(OR(Indata!D$62=5, Indata!D$62=0),0, INDIRECT("Kalkylvärden!R"&(121+Indata!D$63) & "C" & (Indata!D$62+2), FALSE)) * Indata!D80 -> 5.32e-06 | E32: =IF(OR(Indata!E$62=5, Indata!E$62=0),0, INDIRECT("Kalkylvärden!R"&(121+Indata!E$63) & "C" & (Indata!E$62+2), FALSE)) * Indata!E80 -> 5.876e-07 | F32: =IF(OR(Indata!F$62=5, Indata!F$62=0),0, INDIRECT("Kalkylvärden!R"&(121+Indata!F$63) & "C" & (Indata!F$62+2), FALSE)) * Indata!F80 -> 5.876e-07
A33: Mellan kl. 22-06 | B33: =IF(OR(Indata!B$62=5, Indata!B$62=0),0, INDIRECT("Kalkylvärden!R"&(121+Indata!B$63) & "C" & (Indata!B$62+2), FALSE)) * Indata!B81 -> 0 | C33: =IF(OR(Indata!C$62=5, Indata!C$62=0),0, INDIRECT("Kalkylvärden!R"&(121+Indata!C$63) & "C" & (Indata!C$62+2), FALSE)) * Indata!C81 -> 0 | D33: =IF(OR(Indata!D$62=5, Indata!D$62=0),0, INDIRECT("Kalkylvärden!R"&(121+Indata!D$63) & "C" & (Indata!D$62+2), FALSE)) * Indata!D81 -> 0 | E33: =IF(OR(Indata!E$62=5, Indata!E$62=0),0, INDIRECT("Kalkylvärden!R"&(121+Indata!E$63) & "C" & (Indata!E$62+2), FALSE)) * Indata!E81 -> 0 | F33: =IF(OR(Indata!F$62=5, Indata!F$62=0),0, INDIRECT("Kalkylvärden!R"&(121+Indata!F$63) & "C" & (Indata!F$62+2), FALSE)) * Indata!F81 -> 0
A34: Summa antal olyckor per år | B34: =(B32+B33)*Kalkylvärden!$B$20 -> 0.0015552 | C34: =(C32+C33)*Kalkylvärden!$B$20 -> 0.0017024 | D34: =(D32+D33)*Kalkylvärden!$B$20 -> 0.0017024 | E34: =(E32+E33)*Kalkylvärden!$B$20 -> 0.000188032 | F34: =(F32+F33)*Kalkylvärden!$B$20 -> 0.000188032
A35: Antal olyckor per skadetyp per år
A36: Antal dödade per år | B36: =B34*Kalkylvärden!$B$139 -> 0.000606528 | C36: =C34*Kalkylvärden!$B$139 -> 0.000663936 | D36: =D34*Kalkylvärden!$B$139 -> 0.000663936 | E36: =E34*Kalkylvärden!$B$139 -> 7.333248e-05 | F36: =F34*Kalkylvärden!$B$139 -> 7.333248e-05
A37: Mycket allvarligt skadad (MAS) | B37: =B34*Kalkylvärden!$B$140 -> 1.5552e-05 | C37: =C34*Kalkylvärden!$B$140 -> 1.7024e-05 | D37: =D34*Kalkylvärden!$B$140 -> 1.7024e-05 | E37: =E34*Kalkylvärden!$B$140 -> 1.88032e-06 | F37: =F34*Kalkylvärden!$B$140 -> 1.88032e-06
A38: Allvarligt skadad (AS-MAS) | B38: =B34*Kalkylvärden!$B$141 -> 7.776e-05 | C38: =C34*Kalkylvärden!$B$141 -> 8.512e-05 | D38: =D34*Kalkylvärden!$B$141 -> 8.512e-05 | E38: =E34*Kalkylvärden!$B$141 -> 9.4016e-06 | F38: =F34*Kalkylvärden!$B$141 -> 9.4016e-06
A39: Ej allvarligt skadad (EAS) | B39: =B34*Kalkylvärden!$B$142 -> 0.000435456 | C39: =C34*Kalkylvärden!$B$142 -> 0.000476672 | D39: =D34*Kalkylvärden!$B$142 -> 0.000476672 | E39: =E34*Kalkylvärden!$B$142 -> 5.264896e-05 | F39: =F34*Kalkylvärden!$B$142 -> 5.264896e-05
A40: Antal olyckor med bara materiella skador per år | B40: =B34*Kalkylvärden!$B$143 -> 0.000435456 | C40: =C34*Kalkylvärden!$B$143 -> 0.000476672 | D40: =D34*Kalkylvärden!$B$143 -> 0.000476672 | E40: =E34*Kalkylvärden!$B$143 -> 5.264896e-05 | F40: =F34*Kalkylvärden!$B$143 -> 5.264896e-05
B42: Summa JA | C42: Summa UA | D42: Skillnad (UA -JA)
A43: Antal dödade per år | B43: =SUM(B36:D36) -> 0.0019344 | C43: =SUM(E36:F36) -> 0.00014666496 | D43: =C43-B43 -> -0.00178773504
A44: Mycket allvarligt skadad (MAS) | B44: =SUM(B37:D37) -> 4.96e-05 | C44: =SUM(E37:F37) -> 3.76064e-06 | D44: =C44-B44 -> -4.583936e-05
A45: Allvarligt skadad (AS-MAS) | B45: =SUM(B38:D38) -> 0.000248 | C45: =SUM(E38:F38) -> 1.88032e-05 | D45: =C45-B45 -> -0.0002291968
A46: Ej allvarligt skadad (EAS) | B46: =SUM(B39:D39) -> 0.0013888 | C46: =SUM(E39:F39) -> 0.00010529792 | D46: =C46-B46 -> -0.00128350208
A47: Antal olyckor med bara materiella skador per år | B47: =SUM(B40:D40) -> 0.0013888 | C47: =SUM(E40:F40) -> 0.00010529792 | D47: =C47-B47 -> -0.00128350208
A52: Antal olyckor vid omledning (per år)
A53: Från korsning | B53: =Indata!B102 -> a | C53: =Indata!C102 -> b
A54: Till korsning | B54: =Indata!B103 -> b | C54: =Indata!C103 -> c
A55: Antal personbilar (ÅDT)
A56: mellan kl. 06-22 | B56: =Indata!B105 -> 500 | C56: =Indata!C105 -> 250
A57: mellan kl. 22-06 | B57: =Indata!B106 -> 200 | C57: =Indata!C106 -> 100
A58: Antal lastbilar (ÅDT)
A59: mellan kl. 06-22 | B59: =Indata!B108 -> 500 | C59: =Indata!C108 -> 250
A60: mellan kl. 22-06 | B60: =Indata!B109 -> 200 | C60: =Indata!C109 -> 100
A61: Antal fordon per dygn ÅDT
A62: mellan kl. 06-22 | B62: =Indata!B111 -> 1000 | C62: =Indata!C111 -> 500
A63: mellan kl. 22-06 | B63: =Indata!B112 -> 400 | C63: =Indata!C112 -> 200
A64: Antal cyklande per dygn
A65: mellan kl. 06-22 | B65: =Indata!B114 -> 100 | C65: =Indata!C114 -> 50
A66: mellan kl. 22-06 | B66: =Indata!B115 -> 0 | C66: =Indata!C115 -> 0
A68: Antal dödade per år
A69: pga personbilar | B69: =((B56+B57)*Indata!B131*Kalkylvärden!$B230/10^6+(B56+B57)*Indata!B132*Kalkylvärden!$D230/10^6+(B56+B57)*Indata!B133*Kalkylvärden!$F230/10^6+(B56+B57)*Indata!B134*Kalkylvärden!$H230/10^6)*Kalkylvärden!$B19 -> -0.0002790217566 | C69: =((C56+C57)*Indata!C131*Kalkylvärden!$B230/10^6+(C56+C57)*Indata!C132*Kalkylvärden!$D230/10^6+(C56+C57)*Indata!C133*Kalkylvärden!$F230/10^6+(C56+C57)*Indata!C134*Kalkylvärden!$H230/10^6)*Kalkylvärden!$B19 -> -0.0001395108783
A70: pga lastbilar | B70: =((B59+B60)*Indata!B138*Kalkylvärden!$B$236/10^6+(B59+B60)*Indata!B139*Kalkylvärden!$D$236/10^6+(B59+B60)*Indata!B140*Kalkylvärden!$F$236/10^6+(B59+B60)*Indata!B141*Kalkylvärden!$H$236/10^6)*Kalkylvärden!$B$19 -> -0.0005371168815 | C70: =((C59+C60)*Indata!C138*Kalkylvärden!$B$236/10^6+(C59+C60)*Indata!C139*Kalkylvärden!$D$236/10^6+(C59+C60)*Indata!C140*Kalkylvärden!$F$236/10^6+(C59+C60)*Indata!C141*Kalkylvärden!$H$236/10^6)*Kalkylvärden!$B$19 -> -0.0002685584407
A71: Mycket allvarligt skadad (MAS)
A72: pga personbilar | B72: =((B56+B57)*Indata!B131*Kalkylvärden!$B$231/10^6+(B56+B57)*Indata!B132*Kalkylvärden!$D$231/10^6+(B56+B57)*Indata!B133*Kalkylvärden!$F$231/10^6+(B56+B57)*Indata!B134*Kalkylvärden!$H$231/10^6)*Kalkylvärden!$B$19 -> -0.002192621956 | C72: =((C56+C57)*Indata!C131*Kalkylvärden!$B$231/10^6+(C56+C57)*Indata!C132*Kalkylvärden!$D$231/10^6+(C56+C57)*Indata!C133*Kalkylvärden!$F$231/10^6+(C56+C57)*Indata!C134*Kalkylvärden!$H$231/10^6)*Kalkylvärden!$B$19 -> -0.001096310978
A73: pga lastbilar | B73: =((B59+B60)*Indata!B138*Kalkylvärden!$B$237/10^6+(B59+B60)*Indata!B139*Kalkylvärden!$D$237/10^6+(B59+B60)*Indata!B140*Kalkylvärden!$F$237/10^6+(B59+B60)*Indata!B141*Kalkylvärden!$H$237/10^6)*Kalkylvärden!$B$19 -> -0.004220797265 | C73: =((C59+C60)*Indata!C138*Kalkylvärden!$B$237/10^6+(C59+C60)*Indata!C139*Kalkylvärden!$D$237/10^6+(C59+C60)*Indata!C140*Kalkylvärden!$F$237/10^6+(C59+C60)*Indata!C141*Kalkylvärden!$H$237/10^6)*Kalkylvärden!$B$19 -> -0.002110398632
A74: Allvarligt skadad (AS-MAS)
A75: pga personbilar | B75: =((B56+B57)*Indata!B131*Kalkylvärden!$B$232/10^6+(B56+B57)*Indata!B132*Kalkylvärden!$D$232/10^6+(B56+B57)*Indata!B133*Kalkylvärden!$F$232/10^6+(B56+B57)*Indata!B134*Kalkylvärden!$H$232/10^6)*Kalkylvärden!$B$19 -> -0.01123664247 | C75: =((C56+C57)*Indata!C131*Kalkylvärden!$B$232/10^6+(C56+C57)*Indata!C132*Kalkylvärden!$D$232/10^6+(C56+C57)*Indata!C133*Kalkylvärden!$F$232/10^6+(C56+C57)*Indata!C134*Kalkylvärden!$H$232/10^6)*Kalkylvärden!$B$19 -> -0.005618321233
A76: pga lastbilar | B76: =((B59+B60)*Indata!B138*Kalkylvärden!$B$238/10^6+(B59+B60)*Indata!B139*Kalkylvärden!$D$238/10^6+(B59+B60)*Indata!B140*Kalkylvärden!$F$238/10^6+(B59+B60)*Indata!B141*Kalkylvärden!$H$238/10^6)*Kalkylvärden!$B$19 -> -0.02163053675 | C76: =((C59+C60)*Indata!C138*Kalkylvärden!$B$238/10^6+(C59+C60)*Indata!C139*Kalkylvärden!$D$238/10^6+(C59+C60)*Indata!C140*Kalkylvärden!$F$238/10^6+(C59+C60)*Indata!C141*Kalkylvärden!$H$238/10^6)*Kalkylvärden!$B$19 -> -0.01081526837
A77: Ej allvarligt skadad (EAS)
A78: pga personbilar | B78: =((B56+B57)*Indata!B131*Kalkylvärden!$B$233/10^6+(B56+B57)*Indata!B132*Kalkylvärden!$D$233/10^6+(B56+B57)*Indata!B133*Kalkylvärden!$F$233/10^6+(B56+B57)*Indata!B134*Kalkylvärden!$H$233/10^6)*Kalkylvärden!$B$19 -> -0.07391542876 | C78: =((C56+C57)*Indata!C131*Kalkylvärden!$B$233/10^6+(C56+C57)*Indata!C132*Kalkylvärden!$D$233/10^6+(C56+C57)*Indata!C133*Kalkylvärden!$F$233/10^6+(C56+C57)*Indata!C134*Kalkylvärden!$H$233/10^6)*Kalkylvärden!$B$19 -> -0.03695771438
A79: pga lastbilar | B79: =((B59+B60)*Indata!B138*Kalkylvärden!$B$239/10^6+(B59+B60)*Indata!B139*Kalkylvärden!$D$239/10^6+(B59+B60)*Indata!B140*Kalkylvärden!$F$239/10^6+(B59+B60)*Indata!B141*Kalkylvärden!$H$239/10^6)*Kalkylvärden!$B$19 -> -0.1422872004 | C79: =((C59+C60)*Indata!C138*Kalkylvärden!$B$239/10^6+(C59+C60)*Indata!C139*Kalkylvärden!$D$239/10^6+(C59+C60)*Indata!C140*Kalkylvärden!$F$239/10^6+(C59+C60)*Indata!C141*Kalkylvärden!$H$239/10^6)*Kalkylvärden!$B$19 -> -0.07114360018
A80: Antal olyckor med bara materiella skador per år
A81: pga personbilar | B81: =((B56+B57)*Indata!B131*Kalkylvärden!$B$234/10^6+(B56+B57)*Indata!B132*Kalkylvärden!$D$234/10^6+(B56+B57)*Indata!B133*Kalkylvärden!$F$234/10^6+(B56+B57)*Indata!B134*Kalkylvärden!$H$234/10^6)*Kalkylvärden!$B$19 -> -1.156006802 | C81: =((C56+C57)*Indata!C131*Kalkylvärden!$B$234/10^6+(C56+C57)*Indata!C132*Kalkylvärden!$D$234/10^6+(C56+C57)*Indata!C133*Kalkylvärden!$F$234/10^6+(C56+C57)*Indata!C134*Kalkylvärden!$H$234/10^6)*Kalkylvärden!$B$19 -> -0.5780034011
A82: pga lastbilar | B82: =((B59+B60)*Indata!B138*Kalkylvärden!$B$240/10^6+(B59+B60)*Indata!B139*Kalkylvärden!$D$240/10^6+(B59+B60)*Indata!B140*Kalkylvärden!$F$240/10^6+(B59+B60)*Indata!B141*Kalkylvärden!$H$240/10^6)*Kalkylvärden!$B$19 -> -2.225313094 | C82: =((C59+C60)*Indata!C138*Kalkylvärden!$B$240/10^6+(C59+C60)*Indata!C139*Kalkylvärden!$D$240/10^6+(C59+C60)*Indata!C140*Kalkylvärden!$F$240/10^6+(C59+C60)*Indata!C141*Kalkylvärden!$H$240/10^6)*Kalkylvärden!$B$19 -> -1.112656547
A83: Antal cykelolcykor per år
A84: förändrad volym pga omledning | B84: =(B65+B66)*Kalkylvärden!$B$19*Indata!B145*1/10^6*Kalkylvärden!$B$77 -> -0.09125 | C84: =(C65+C66)*Kalkylvärden!$B$19*Indata!C145*1/10^6*Kalkylvärden!$B$77 -> -0.045625
B86: Summa
A87: Antal dödade per år | B87: =SUM(B69:C69)+SUM(B70:C70) -> -0.001224207957
A88: Mycket allvarligt skadad (MAS) | B88: =SUM(B72:C72)+SUM(B73:C73) -> -0.009620128831
A89: Allvarligt skadad (AS-MAS) | B89: =SUM(B75:C75)+SUM(B76:C76) -> -0.04930076882
A90: Ej allvarligt skadad (EAS) | B90: =SUM(B78:C78)+SUM(B79:C79) -> -0.3243039437
A91: Antal olyckor med bara materiella skador per år | B91: =SUM(B81:C81)+SUM(B82:C82) -> -5.071979844
A92: Notera: + innebär fler skadade och - innebär färre
A94: Förändrad tidsåtgång per år för fordon - personbilstimmar och lastbilstimmar
B95: JA1 | C95: JA2 | D95: JA3 | E95: UA1 | F95: UA2
A96: Korsningens namn: | B96: =Indata!B61 -> a | C96: =Indata!C61 -> b | D96: =Indata!D61 -> c | E96: =Indata!E61 -> b | F96: =Indata!F61 -> c
A97: Tidsförluster bakom bom (fordonstimmar per år)
A98: Personbilar mellan kl. 06-22 | B98: =IF(Indata!B$62=5,0,B11*B$25/60)*Kalkylvärden!$B$19 -> 0 | C98: =IF(Indata!C$62=5,0,C11*C$25/60)*Kalkylvärden!$B$19 -> 126.7361111 | D98: =IF(Indata!D$62=5,0,D11*D$25/60)*Kalkylvärden!$B$19 -> 126.7361111 | E98: =IF(Indata!E$62=5,0,E11*E$25/60)*Kalkylvärden!$B$19 -> 427.734375 | F98: =IF(Indata!F$62=5,0,F11*F$25/60)*Kalkylvärden!$B$19 -> 427.734375
A99: Personbilar mellan kl. 22-06 | B99: =IF(Indata!B$62=5,0,B12*B$25/60)*Kalkylvärden!$B$19 -> 0 | C99: =IF(Indata!C$62=5,0,C12*C$25/60)*Kalkylvärden!$B$19 -> 0 | D99: =IF(Indata!D$62=5,0,D12*D$25/60)*Kalkylvärden!$B$19 -> 0 | E99: =IF(Indata!E$62=5,0,E12*E$25/60)*Kalkylvärden!$B$19 -> 0 | F99: =IF(Indata!F$62=5,0,F12*F$25/60)*Kalkylvärden!$B$19 -> 0
A100: Lastbilar mellan kl. 06-22 | B100: =IF(Indata!B$62=5,0,B13*B$25/60)*Kalkylvärden!$B$19 -> 0 | C100: =IF(Indata!C$62=5,0,C13*C$25/60)*Kalkylvärden!$B$19 -> 126.7361111 | D100: =IF(Indata!D$62=5,0,D13*D$25/60)*Kalkylvärden!$B$19 -> 126.7361111 | E100: =IF(Indata!E$62=5,0,E13*E$25/60)*Kalkylvärden!$B$19 -> 427.734375 | F100: =IF(Indata!F$62=5,0,F13*F$25/60)*Kalkylvärden!$B$19 -> 427.734375
A101: Lastbilar mellan kl. 22-06 | B101: =IF(Indata!B$62=5,0,B14*B$25/60)*Kalkylvärden!$B$19 -> 0 | C101: =IF(Indata!C$62=5,0,C14*C$25/60)*Kalkylvärden!$B$19 -> 0 | D101: =IF(Indata!D$62=5,0,D14*D$25/60)*Kalkylvärden!$B$19 -> 0 | E101: =IF(Indata!E$62=5,0,E14*E$25/60)*Kalkylvärden!$B$19 -> 0 | F101: =IF(Indata!F$62=5,0,F14*F$25/60)*Kalkylvärden!$B$19 -> 0
A102: Cyklister mellan kl. 06-22 | B102: =IF(Indata!B$62=5,0,B15*B$25/60)*Kalkylvärden!$B$19 -> 0 | C102: =IF(Indata!C$62=5,0,C15*C$25/60)*Kalkylvärden!$B$19 -> 25.34722222 | D102: =IF(Indata!D$62=5,0,D15*D$25/60)*Kalkylvärden!$B$19 -> 25.34722222 | E102: =IF(Indata!E$62=5,0,E15*E$25/60)*Kalkylvärden!$B$19 -> 85.546875 | F102: =IF(Indata!F$62=5,0,F15*F$25/60)*Kalkylvärden!$B$19 -> 85.546875
A103: Cyklister mellan kl. 22-06 | B103: =IF(Indata!B$62=5,0,B16*B$25/60)*Kalkylvärden!$B$19 -> 0 | C103: =IF(Indata!C$62=5,0,C16*C$25/60)*Kalkylvärden!$B$19 -> 0 | D103: =IF(Indata!D$62=5,0,D16*D$25/60)*Kalkylvärden!$B$19 -> 0 | E103: =IF(Indata!E$62=5,0,E16*E$25/60)*Kalkylvärden!$B$19 -> 0 | F103: =IF(Indata!F$62=5,0,F16*F$25/60)*Kalkylvärden!$B$19 -> 0
A104: Gående mellan kl. 06-22 | B104: =IF(Indata!B$62=5,0,B17*B$25/60)*Kalkylvärden!$B$19 -> 0 | C104: =IF(Indata!C$62=5,0,C17*C$25/60)*Kalkylvärden!$B$19 -> 25.34722222 | D104: =IF(Indata!D$62=5,0,D17*D$25/60)*Kalkylvärden!$B$19 -> 25.34722222 | E104: =IF(Indata!E$62=5,0,E17*E$25/60)*Kalkylvärden!$B$19 -> 85.546875 | F104: =IF(Indata!F$62=5,0,F17*F$25/60)*Kalkylvärden!$B$19 -> 85.546875
A105: Gående mellan kl. 22-06 | B105: =IF(Indata!B$62=5,0,B18*B$25/60)*Kalkylvärden!$B$19 -> 0 | C105: =IF(Indata!C$62=5,0,C18*C$25/60)*Kalkylvärden!$B$19 -> 0 | D105: =IF(Indata!D$62=5,0,D18*D$25/60)*Kalkylvärden!$B$19 -> 0 | E105: =IF(Indata!E$62=5,0,E18*E$25/60)*Kalkylvärden!$B$19 -> 0 | F105: =IF(Indata!F$62=5,0,F18*F$25/60)*Kalkylvärden!$B$19 -> 0
A106: Tidsförluster vid fri passage av korsning (fordonstimmar per år)
A107: Personbilar mellan kl. 06-22 | B107: =B11*Kalkylvärden!$B$19*(INDIRECT("Kalkylvärden!R" & (179+Indata!B$83) & "C2", FALSE)-INDIRECT("Kalkylvärden!R" & (179+Indata!B$84) & "C2", FALSE))*1/3600 -> 0 | C107: =C11*Kalkylvärden!$B$19*(INDIRECT("Kalkylvärden!R" & (179+Indata!C$83) & "C2", FALSE)-INDIRECT("Kalkylvärden!R" & (179+Indata!C$84) & "C2", FALSE))*1/3600 -> 0 | D107: =D11*Kalkylvärden!$B$19*(INDIRECT("Kalkylvärden!R" & (179+Indata!D$83) & "C2", FALSE)-INDIRECT("Kalkylvärden!R" & (179+Indata!D$84) & "C2", FALSE))*1/3600 -> 0 | E107: =E11*Kalkylvärden!$B$19*(INDIRECT("Kalkylvärden!R" & (179+Indata!E$83) & "C2", FALSE)-INDIRECT("Kalkylvärden!R" & (179+Indata!E$84) & "C2", FALSE))*1/3600 -> 0 | F107: =F11*Kalkylvärden!$B$19*(INDIRECT("Kalkylvärden!R" & (179+Indata!F$83) & "C2", FALSE)-INDIRECT("Kalkylvärden!R" & (179+Indata!F$84) & "C2", FALSE))*1/3600 -> 0
A108: Personbilar mellan kl. 22-06 | B108: =B12*Kalkylvärden!$B$19*(INDIRECT("Kalkylvärden!R" & (179+Indata!B$83) & "C2", FALSE)-INDIRECT("Kalkylvärden!R" & (179+Indata!B$84) & "C2", FALSE))*1/3600 -> 0 | C108: =C12*Kalkylvärden!$B$19*(INDIRECT("Kalkylvärden!R" & (179+Indata!C$83) & "C2", FALSE)-INDIRECT("Kalkylvärden!R" & (179+Indata!C$84) & "C2", FALSE))*1/3600 -> 0 | D108: =D12*Kalkylvärden!$B$19*(INDIRECT("Kalkylvärden!R" & (179+Indata!D$83) & "C2", FALSE)-INDIRECT("Kalkylvärden!R" & (179+Indata!D$84) & "C2", FALSE))*1/3600 -> 0 | E108: =E12*Kalkylvärden!$B$19*(INDIRECT("Kalkylvärden!R" & (179+Indata!E$83) & "C2", FALSE)-INDIRECT("Kalkylvärden!R" & (179+Indata!E$84) & "C2", FALSE))*1/3600 -> 0 | F108: =F12*Kalkylvärden!$B$19*(INDIRECT("Kalkylvärden!R" & (179+Indata!F$83) & "C2", FALSE)-INDIRECT("Kalkylvärden!R" & (179+Indata!F$84) & "C2", FALSE))*1/3600 -> 0
A109: Lastbilar mellan kl. 06-22 | B109: =B13*Kalkylvärden!$B$19*(INDIRECT("Kalkylvärden!R" & (179+Indata!B$83) & "C3", FALSE)-INDIRECT("Kalkylvärden!R" & (179+Indata!B$84) & "C3", FALSE))*1/3600 -> 0 | C109: =C13*Kalkylvärden!$B$19*(INDIRECT("Kalkylvärden!R" & (179+Indata!C$83) & "C3", FALSE)-INDIRECT("Kalkylvärden!R" & (179+Indata!C$84) & "C3", FALSE))*1/3600 -> 0 | D109: =D13*Kalkylvärden!$B$19*(INDIRECT("Kalkylvärden!R" & (179+Indata!D$83) & "C3", FALSE)-INDIRECT("Kalkylvärden!R" & (179+Indata!D$84) & "C3", FALSE))*1/3600 -> 0 | E109: =E13*Kalkylvärden!$B$19*(INDIRECT("Kalkylvärden!R" & (179+Indata!E$83) & "C3", FALSE)-INDIRECT("Kalkylvärden!R" & (179+Indata!E$84) & "C3", FALSE))*1/3600 -> 0 | F109: =F13*Kalkylvärden!$B$19*(INDIRECT("Kalkylvärden!R" & (179+Indata!F$83) & "C3", FALSE)-INDIRECT("Kalkylvärden!R" & (179+Indata!F$84) & "C3", FALSE))*1/3600 -> 0
A110: Lastbilar mellan kl. 22-06 | B110: =B14*Kalkylvärden!$B$19*(INDIRECT("Kalkylvärden!R" & (179+Indata!B$83) & "C3", FALSE)-INDIRECT("Kalkylvärden!R" & (179+Indata!B$84) & "C3", FALSE))*1/3600 -> 0 | C110: =C14*Kalkylvärden!$B$19*(INDIRECT("Kalkylvärden!R" & (179+Indata!C$83) & "C3", FALSE)-INDIRECT("Kalkylvärden!R" & (179+Indata!C$84) & "C3", FALSE))*1/3600 -> 0 | D110: =D14*Kalkylvärden!$B$19*(INDIRECT("Kalkylvärden!R" & (179+Indata!D$83) & "C3", FALSE)-INDIRECT("Kalkylvärden!R" & (179+Indata!D$84) & "C3", FALSE))*1/3600 -> 0 | E110: =E14*Kalkylvärden!$B$19*(INDIRECT("Kalkylvärden!R" & (179+Indata!E$83) & "C3", FALSE)-INDIRECT("Kalkylvärden!R" & (179+Indata!E$84) & "C3", FALSE))*1/3600 -> 0 | F110: =F14*Kalkylvärden!$B$19*(INDIRECT("Kalkylvärden!R" & (179+Indata!F$83) & "C3", FALSE)-INDIRECT("Kalkylvärden!R" & (179+Indata!F$84) & "C3", FALSE))*1/3600 -> 0
A112: varav bakom bom
A113: personbilar | B113: =SUM(B98:B99) -> 0 | C113: =SUM(C98:C99) -> 126.7361111 | D113: 126.7361111 | E113: 427.734375 | F113: 427.734375
A114: lastbilar | B114: =SUM(B100:B101) -> 0 | C114: =SUM(C100:C101) -> 126.7361111 | D114: 126.7361111 | E114: 427.734375 | F114: 427.734375
A115: cyklar | B115: =SUM(B102:B103) -> 0 | C115: =SUM(C102:C103) -> 25.34722222 | D115: 25.34722222 | E115: 85.546875 | F115: 85.546875
A116: gående | B116: =SUM(B104:B105) -> 0 | C116: =SUM(C104:C105) -> 25.34722222 | D116: 25.34722222 | E116: 85.546875 | F116: 85.546875
A117: varav vid fri passage av korsning
A118: personbilar | B118: =SUM(B107:B108) -> 0 | C118: =SUM(C107:C108) -> 0 | D118: 0 | E118: 0 | F118: 0
A119: lastbilar | B119: =SUM(B109:B110) -> 0 | C119: =SUM(C109:C110) -> 0 | D119: 0 | E119: 0 | F119: 0
B121: Summa JA | C121: Summa UA
A122: Summa fordonstimmar (+GC) per år | B122: =SUM(B113:D119) -> 608.3333333 | C122: =SUM(E113:F119)+SUM(B132:B135) -> -30884.7222
A124: Tidsförluster vid ev. omledning via annan korsning (fordonstimmar per år)
A125: Från korsning | B125: =Indata!B102 -> a | C125: =Indata!C102 -> b
A126: Till korsning | B126: =Indata!B103 -> b | C126: =Indata!C103 -> c
A127: Personbilar | B127: =((Indata!B105+Indata!B106)*Indata!B131*Kalkylvärden!$B$196/3600+(Indata!B105+Indata!B106)*Indata!B132*Kalkylvärden!$D$196/3600+(Indata!B105+Indata!B106)*Indata!B133*Kalkylvärden!$F$196/3600+(Indata!B105+Indata!B106)*Indata!B134*Kalkylvärden!$H$196/3600)*Kalkylvärden!$B$19 -> -6112.615733 | C127: =((Indata!C105+Indata!C106)*Indata!C131*Kalkylvärden!$B$196/3600+(Indata!C105+Indata!C106)*Indata!C132*Kalkylvärden!$D$196/3600+(Indata!C105+Indata!C106)*Indata!C133*Kalkylvärden!$F$196/3600+(Indata!C105+Indata!C106)*Indata!C134*Kalkylvärden!$H$196/3600)*Kalkylvärden!$B$19 -> -3056.307866
A128: Lastbilar | B128: =((Indata!B108+Indata!B109)*Indata!B138*Kalkylvärden!$B$197/3600+(Indata!B108+Indata!B109)*Indata!B139*Kalkylvärden!$D$197/3600+(Indata!B108+Indata!B109)*Indata!B140*Kalkylvärden!$F$197/3600+(Indata!B108+Indata!B109)*Indata!B141*Kalkylvärden!$H$197/3600)*Kalkylvärden!$B$19 -> -6112.615733 | C128: =((Indata!C108+Indata!C109)*Indata!C138*Kalkylvärden!$B$197/3600+(Indata!C108+Indata!C109)*Indata!C139*Kalkylvärden!$D$197/3600+(Indata!C108+Indata!C109)*Indata!C140*Kalkylvärden!$F$197/3600+(Indata!C108+Indata!C109)*Indata!C141*Kalkylvärden!$H$197/3600)*Kalkylvärden!$B$19 -> -3056.307866
A129: Cyklister | B129: =(Indata!B114+Indata!B115)*Indata!B145/Kalkylvärden!$B$105*Kalkylvärden!$B$19 -> -2433.333333 | C129: =(Indata!C114+Indata!C115)*Indata!C145/Kalkylvärden!$B$105*Kalkylvärden!$B$19 -> -1216.666667
A130: Gående | B130: =(Indata!B117+Indata!B118)*Indata!B149/Kalkylvärden!$B$104*Kalkylvärden!$B$19 -> -7300 | C130: =(Indata!C117+Indata!C118)*Indata!C149/Kalkylvärden!$B$104*Kalkylvärden!$B$19 -> -3650
A131: varav vid omledning | B131: Summa
A132: personbilar | B132: =SUM(B127:C127) -> -9168.923599
A133: lastbilar | B133: =SUM(B128:C128) -> -9168.923599
A134: cyklar | B134: =SUM(B129:C129) -> -3650
A135: gående | B135: =SUM(B130:C130) -> -10950
A137: Förändrad tidsåtgång per år uttryckt i antal persontimmar
A138: Nedanstående persontimmar används för att beräkna antal vunna/förlorade persontimmar - vilket ligger till grund för ett nyckeltal som beskriver åtgärdens effektivitet.
A139: Under fliken "Ekonomi" beräknas värdet av tidseffekterna där olika typer kategorier av resenärer får olika vikt.
B141: JA1 | C141: JA2 | D141: JA3 | E141: UA1 | F141: UA2
A142: Korsningens namn: | B142: =Indata!B61 -> a | C142: =Indata!C61 -> b | D142: =Indata!D61 -> c | E142: =Indata!E61 -> b | F142: =Indata!F61 -> c
A143: Tidsförluster bakom bom (fordonstimmar per år)
A144: Antal persontimmar | B144: =(B98+B99)*Kalkylvärden!$B$109+(Kvantiteter!B100+Kvantiteter!B101)*Kalkylvärden!$B$112+SUM(Kvantiteter!B102:B105) -> 0 | C144: =(C98+C99)*Kalkylvärden!$B$109+(Kvantiteter!C100+Kvantiteter!C101)*Kalkylvärden!$B$112+SUM(Kvantiteter!C102:C105) -> 399.21875 | D144: =(D98+D99)*Kalkylvärden!$B$109+(Kvantiteter!D100+Kvantiteter!D101)*Kalkylvärden!$B$112+SUM(Kvantiteter!D102:D105) -> 399.21875 | E144: =(E98+E99)*Kalkylvärden!$B$109+(Kvantiteter!E100+Kvantiteter!E101)*Kalkylvärden!$B$112+SUM(Kvantiteter!E102:E105) -> 1347.363281 | F144: =(F98+F99)*Kalkylvärden!$B$109+(Kvantiteter!F100+Kvantiteter!F101)*Kalkylvärden!$B$112+SUM(Kvantiteter!F102:F105) -> 1347.363281
A145: Tidsförluster vid fri passage av korsning (fordonstimmar per år)
A146: Antal persontimmar | B146: =(B107+B108)*Kalkylvärden!$B$109+(Kvantiteter!B109+Kvantiteter!B110)*Kalkylvärden!$B$112 -> 0 | C146: =(C107+C108)*Kalkylvärden!$B$109+(Kvantiteter!C109+Kvantiteter!C110)*Kalkylvärden!$B$112 -> 0 | D146: =(D107+D108)*Kalkylvärden!$B$109+(Kvantiteter!D109+Kvantiteter!D110)*Kalkylvärden!$B$112 -> 0 | E146: =(E107+E108)*Kalkylvärden!$B$109+(Kvantiteter!E109+Kvantiteter!E110)*Kalkylvärden!$B$112 -> 0 | F146: =(F107+F108)*Kalkylvärden!$B$109+(Kvantiteter!F109+Kvantiteter!F110)*Kalkylvärden!$B$112 -> 0
B148: Summa JA | C148: Summa UA
A149: Summa persontimmar | B149: =SUM(B144:D146) -> 798.4375 | C149: =SUM(E144:F146)+SUM(B157:B157) -> -37119.81334
A151: Tidsförluster vid ev. omledning via annan korsning (fordonstimmar per år)
A152: Från korsning | B152: =Indata!B102 -> a | C152: =Indata!C102 -> b
A153: Till korsning | B153: =Indata!B103 -> b | C153: =Indata!C103 -> c
A154: Antal persontimmar (+ avser fler timmar, - avser färre timmar) | B154: =(B127*Kalkylvärden!$B$109)+(Kvantiteter!B128*Kalkylvärden!$B$112)+Kvantiteter!B129+Kvantiteter!B130 -> -26543.0266 | C154: =(C127*Kalkylvärden!$B$109)+(Kvantiteter!C128*Kalkylvärden!$B$112)+Kvantiteter!C129+Kvantiteter!C130 -> -13271.5133
B156: Summa
A157: Antal persontimmar (+ avser fler timmar, - avser färre timmar) | B157: =SUM(B154:C154) -> -39814.5399
A160: Förändrade emissioner (kg/år)
B161: JA1 | C161: JA2 | D161: JA3 | E161: UA1 | F161: UA2
A162: Korsningens namn: | B162: =Indata!B61 -> a | C162: =Indata!C61 -> b | D162: =Indata!D61 -> c | E162: =Indata!E61 -> b | F162: =Indata!F61 -> c
A163: Emissioner bakom bom (kg per år)
A164: Personbil
A165: kväveoxider, NOx | B165: =IF(OR(Indata!B$62=5, Indata!B$62=0),0, (B$11+B$12)*Kalkylvärden!$B$19*HLOOKUP(INDIRECT("Kalkylvärden!R163" & "C" & (Indata!B$83+1), FALSE),Kalkylvärden!$B$163:$H$175,3,FALSE)*1/1000) -> 0 | C165: =IF(OR(Indata!C$62=5, Indata!C$62=0),0, (C$11+C$12)*Kalkylvärden!$B$19*HLOOKUP(INDIRECT("Kalkylvärden!R163" & "C" & (Indata!C$83+1), FALSE),Kalkylvärden!$B$163:$H$175,3,FALSE)*1/1000) -> 0 | D165: =IF(OR(Indata!D$62=5, Indata!D$62=0),0, (D$11+D$12)*Kalkylvärden!$B$19*HLOOKUP(INDIRECT("Kalkylvärden!R163" & "C" & (Indata!D$83+1), FALSE),Kalkylvärden!$B$163:$H$175,3,FALSE)*1/1000) -> 0 | E165: =IF(OR(Indata!E$62=5, Indata!E$62=0),0, (E$11+E$12)*Kalkylvärden!$B$19*HLOOKUP(INDIRECT("Kalkylvärden!R163" & "C" & (Indata!E$83+1), FALSE),Kalkylvärden!$B$163:$H$175,3,FALSE)*1/1000) -> 0 | F165: =IF(OR(Indata!F$62=5, Indata!F$62=0),0, (F$11+F$12)*Kalkylvärden!$B$19*HLOOKUP(INDIRECT("Kalkylvärden!R163" & "C" & (Indata!F$83+1), FALSE),Kalkylvärden!$B$163:$H$175,3,FALSE)*1/1000) -> 0
B166: =IF(OR(Indata!B$62=5, Indata!B$62=0),0, (B$11+B$12)*Kalkylvärden!$B$19*HLOOKUP(INDIRECT("Kalkylvärden!R163" & "C" & (Indata!B$83+1), FALSE),Kalkylvärden!$B$163:$H$175,4,FALSE)*1/1000) -> 0 | C166: =IF(OR(Indata!C$62=5, Indata!C$62=0),0, (C$11+C$12)*Kalkylvärden!$B$19*HLOOKUP(INDIRECT("Kalkylvärden!R163" & "C" & (Indata!C$83+1), FALSE),Kalkylvärden!$B$163:$H$175,4,FALSE)*1/1000) -> 0 | D166: =IF(OR(Indata!D$62=5, Indata!D$62=0),0, (D$11+D$12)*Kalkylvärden!$B$19*HLOOKUP(INDIRECT("Kalkylvärden!R163" & "C" & (Indata!D$83+1), FALSE),Kalkylvärden!$B$163:$H$175,4,FALSE)*1/1000) -> 0 | E166: =IF(OR(Indata!E$62=5, Indata!E$62=0),0, (E$11+E$12)*Kalkylvärden!$B$19*HLOOKUP(INDIRECT("Kalkylvärden!R163" & "C" & (Indata!E$83+1), FALSE),Kalkylvärden!$B$163:$H$175,4,FALSE)*1/1000) -> 0 | F166: =IF(OR(Indata!F$62=5, Indata!F$62=0),0, (F$11+F$12)*Kalkylvärden!$B$19*HLOOKUP(INDIRECT("Kalkylvärden!R163" & "C" & (Indata!F$83+1), FALSE),Kalkylvärden!$B$163:$H$175,4,FALSE)*1/1000) -> 0
A167: koldioxid, CO2 | B167: =IF(OR(Indata!B$62=5, Indata!B$62=0),0, (B$11+B$12)*Kalkylvärden!$B$19*HLOOKUP(INDIRECT("Kalkylvärden!R163" & "C" & (Indata!B$83 +1), FALSE),Kalkylvärden!$B$163:$H$175,5,FALSE)*1/1000) -> 0 | C167: =IF(OR(Indata!C$62=5, Indata!C$62=0),0, (C$11+C$12)*Kalkylvärden!$B$19*HLOOKUP(INDIRECT("Kalkylvärden!R163" & "C" & (Indata!C$83 +1), FALSE),Kalkylvärden!$B$163:$H$175,5,FALSE)*1/1000) -> 0 | D167: =IF(OR(Indata!D$62=5, Indata!D$62=0),0, (D$11+D$12)*Kalkylvärden!$B$19*HLOOKUP(INDIRECT("Kalkylvärden!R163" & "C" & (Indata!D$83 +1), FALSE),Kalkylvärden!$B$163:$H$175,5,FALSE)*1/1000) -> 0 | E167: =IF(OR(Indata!E$62=5, Indata!E$62=0),0, (E$11+E$12)*Kalkylvärden!$B$19*HLOOKUP(INDIRECT("Kalkylvärden!R163" & "C" & (Indata!E$83 +1), FALSE),Kalkylvärden!$B$163:$H$175,5,FALSE)*1/1000) -> 0 | F167: =IF(OR(Indata!F$62=5, Indata!F$62=0),0, (F$11+F$12)*Kalkylvärden!$B$19*HLOOKUP(INDIRECT("Kalkylvärden!R163" & "C" & (Indata!F$83 +1), FALSE),Kalkylvärden!$B$163:$H$175,5,FALSE)*1/1000) -> 0
A168: avgaspartiklar, PM 3,5 | B168: =IF(OR(Indata!B$62=5, Indata!B$62=0),0, (B$11+B$12)*Kalkylvärden!$B$19*HLOOKUP(INDIRECT("Kalkylvärden!R163" & "C" & (Indata!B$83+1), FALSE),Kalkylvärden!$B$163:$H$175,6,FALSE)*1/1000) -> 0 | C168: =IF(OR(Indata!C$62=5, Indata!C$62=0),0, (C$11+C$12)*Kalkylvärden!$B$19*HLOOKUP(INDIRECT("Kalkylvärden!R163" & "C" & (Indata!C$83+1), FALSE),Kalkylvärden!$B$163:$H$175,6,FALSE)*1/1000) -> 0 | D168: =IF(OR(Indata!D$62=5, Indata!D$62=0),0, (D$11+D$12)*Kalkylvärden!$B$19*HLOOKUP(INDIRECT("Kalkylvärden!R163" & "C" & (Indata!D$83+1), FALSE),Kalkylvärden!$B$163:$H$175,6,FALSE)*1/1000) -> 0 | E168: =IF(OR(Indata!E$62=5, Indata!E$62=0),0, (E$11+E$12)*Kalkylvärden!$B$19*HLOOKUP(INDIRECT("Kalkylvärden!R163" & "C" & (Indata!E$83+1), FALSE),Kalkylvärden!$B$163:$H$175,6,FALSE)*1/1000) -> 0 | F168: =IF(OR(Indata!F$62=5, Indata!F$62=0),0, (F$11+F$12)*Kalkylvärden!$B$19*HLOOKUP(INDIRECT("Kalkylvärden!R163" & "C" & (Indata!F$83+1), FALSE),Kalkylvärden!$B$163:$H$175,6,FALSE)*1/1000) -> 0
A169: slitagepartiklar, PM 10 | B169: =IF(OR(Indata!B$62=5, Indata!B$62=0),0, (B$11+B$12)*Kalkylvärden!$B$19*HLOOKUP(INDIRECT("Kalkylvärden!R163" & "C" & (Indata!B$83+1), FALSE),Kalkylvärden!$B$163:$H$175,7,FALSE)*1/1000) -> 0 | C169: =IF(OR(Indata!C$62=5, Indata!C$62=0),0, (C$11+C$12)*Kalkylvärden!$B$19*HLOOKUP(INDIRECT("Kalkylvärden!R163" & "C" & (Indata!C$83+1), FALSE),Kalkylvärden!$B$163:$H$175,7,FALSE)*1/1000) -> 0 | D169: =IF(OR(Indata!D$62=5, Indata!D$62=0),0, (D$11+D$12)*Kalkylvärden!$B$19*HLOOKUP(INDIRECT("Kalkylvärden!R163" & "C" & (Indata!D$83+1), FALSE),Kalkylvärden!$B$163:$H$175,7,FALSE)*1/1000) -> 0 | E169: =IF(OR(Indata!E$62=5, Indata!E$62=0),0, (E$11+E$12)*Kalkylvärden!$B$19*HLOOKUP(INDIRECT("Kalkylvärden!R163" & "C" & (Indata!E$83+1), FALSE),Kalkylvärden!$B$163:$H$175,7,FALSE)*1/1000) -> 0 | F169: =IF(OR(Indata!F$62=5, Indata!F$62=0),0, (F$11+F$12)*Kalkylvärden!$B$19*HLOOKUP(INDIRECT("Kalkylvärden!R163" & "C" & (Indata!F$83+1), FALSE),Kalkylvärden!$B$163:$H$175,7,FALSE)*1/1000) -> 0
A170: Lastbil
A171: kväveoxider, NOx | B171: =IF(OR(Indata!B$62=5, Indata!B$62=0),0, (B$13+B$14)*Kalkylvärden!$B$19*HLOOKUP(INDIRECT("Kalkylvärden!R163" & "C" & (Indata!B$83+1), FALSE),Kalkylvärden!$B$163:$H$175,9,FALSE)*1/1000) -> 0 | C171: =IF(OR(Indata!C$62=5, Indata!C$62=0),0, (C$13+C$14)*Kalkylvärden!$B$19*HLOOKUP(INDIRECT("Kalkylvärden!R163" & "C" & (Indata!C$83+1), FALSE),Kalkylvärden!$B$163:$H$175,9,FALSE)*1/1000) -> 0 | D171: =IF(OR(Indata!D$62=5, Indata!D$62=0),0, (D$13+D$14)*Kalkylvärden!$B$19*HLOOKUP(INDIRECT("Kalkylvärden!R163" & "C" & (Indata!D$83+1), FALSE),Kalkylvärden!$B$163:$H$175,9,FALSE)*1/1000) -> 0 | E171: =IF(OR(Indata!E$62=5, Indata!E$62=0),0, (E$13+E$14)*Kalkylvärden!$B$19*HLOOKUP(INDIRECT("Kalkylvärden!R163" & "C" & (Indata!E$83+1), FALSE),Kalkylvärden!$B$163:$H$175,9,FALSE)*1/1000) -> 0 | F171: =IF(OR(Indata!F$62=5, Indata!F$62=0),0, (F$13+F$14)*Kalkylvärden!$B$19*HLOOKUP(INDIRECT("Kalkylvärden!R163" & "C" & (Indata!F$83+1), FALSE),Kalkylvärden!$B$163:$H$175,9,FALSE)*1/1000) -> 0
B172: =IF(OR(Indata!B$62=5, Indata!B$62=0),0, (B$13+B$14)*Kalkylvärden!$B$19*HLOOKUP(INDIRECT("Kalkylvärden!R163" & "C" & (Indata!B$83+1), FALSE),Kalkylvärden!$B$163:$H$175,10,FALSE)*1/1000) -> 0 | C172: =IF(OR(Indata!C$62=5, Indata!C$62=0),0, (C$13+C$14)*Kalkylvärden!$B$19*HLOOKUP(INDIRECT("Kalkylvärden!R163" & "C" & (Indata!C$83+1), FALSE),Kalkylvärden!$B$163:$H$175,10,FALSE)*1/1000) -> 0 | D172: =IF(OR(Indata!D$62=5, Indata!D$62=0),0, (D$13+D$14)*Kalkylvärden!$B$19*HLOOKUP(INDIRECT("Kalkylvärden!R163" & "C" & (Indata!D$83+1), FALSE),Kalkylvärden!$B$163:$H$175,10,FALSE)*1/1000) -> 0 | E172: =IF(OR(Indata!E$62=5, Indata!E$62=0),0, (E$13+E$14)*Kalkylvärden!$B$19*HLOOKUP(INDIRECT("Kalkylvärden!R163" & "C" & (Indata!E$83+1), FALSE),Kalkylvärden!$B$163:$H$175,10,FALSE)*1/1000) -> 0 | F172: =IF(OR(Indata!F$62=5, Indata!F$62=0),0, (F$13+F$14)*Kalkylvärden!$B$19*HLOOKUP(INDIRECT("Kalkylvärden!R163" & "C" & (Indata!F$83+1), FALSE),Kalkylvärden!$B$163:$H$175,10,FALSE)*1/1000) -> 0
A173: koldioxid, CO2 | B173: =IF(OR(Indata!B$62=5, Indata!B$62=0),0, (B$13+B$14)*Kalkylvärden!$B$19*HLOOKUP(INDIRECT("Kalkylvärden!R163" & "C" & (Indata!B$83+1), FALSE),Kalkylvärden!$B$163:$H$175,11,FALSE)*1/1000) -> 0 | C173: =IF(OR(Indata!C$62=5, Indata!C$62=0),0, (C$13+C$14)*Kalkylvärden!$B$19*HLOOKUP(INDIRECT("Kalkylvärden!R163" & "C" & (Indata!C$83+1), FALSE),Kalkylvärden!$B$163:$H$175,11,FALSE)*1/1000) -> 0 | D173: =IF(OR(Indata!D$62=5, Indata!D$62=0),0, (D$13+D$14)*Kalkylvärden!$B$19*HLOOKUP(INDIRECT("Kalkylvärden!R163" & "C" & (Indata!D$83+1), FALSE),Kalkylvärden!$B$163:$H$175,11,FALSE)*1/1000) -> 0 | E173: =IF(OR(Indata!E$62=5, Indata!E$62=0),0, (E$13+E$14)*Kalkylvärden!$B$19*HLOOKUP(INDIRECT("Kalkylvärden!R163" & "C" & (Indata!E$83+1), FALSE),Kalkylvärden!$B$163:$H$175,11,FALSE)*1/1000) -> 0 | F173: =IF(OR(Indata!F$62=5, Indata!F$62=0),0, (F$13+F$14)*Kalkylvärden!$B$19*HLOOKUP(INDIRECT("Kalkylvärden!R163" & "C" & (Indata!F$83+1), FALSE),Kalkylvärden!$B$163:$H$175,11,FALSE)*1/1000) -> 0
A174: avgaspartiklar, PM 3,5 | B174: =IF(OR(Indata!B$62=5, Indata!B$62=0),0, (B$13+B$14)*Kalkylvärden!$B$19*HLOOKUP(INDIRECT("Kalkylvärden!R163" & "C" & (Indata!B$83+1), FALSE),Kalkylvärden!$B$163:$H$175,12,FALSE)*1/1000) -> 0 | C174: =IF(OR(Indata!C$62=5, Indata!C$62=0),0, (C$13+C$14)*Kalkylvärden!$B$19*HLOOKUP(INDIRECT("Kalkylvärden!R163" & "C" & (Indata!C$83+1), FALSE),Kalkylvärden!$B$163:$H$175,12,FALSE)*1/1000) -> 0 | D174: =IF(OR(Indata!D$62=5, Indata!D$62=0),0, (D$13+D$14)*Kalkylvärden!$B$19*HLOOKUP(INDIRECT("Kalkylvärden!R163" & "C" & (Indata!D$83+1), FALSE),Kalkylvärden!$B$163:$H$175,12,FALSE)*1/1000) -> 0 | E174: =IF(OR(Indata!E$62=5, Indata!E$62=0),0, (E$13+E$14)*Kalkylvärden!$B$19*HLOOKUP(INDIRECT("Kalkylvärden!R163" & "C" & (Indata!E$83+1), FALSE),Kalkylvärden!$B$163:$H$175,12,FALSE)*1/1000) -> 0 | F174: =IF(OR(Indata!F$62=5, Indata!F$62=0),0, (F$13+F$14)*Kalkylvärden!$B$19*HLOOKUP(INDIRECT("Kalkylvärden!R163" & "C" & (Indata!F$83+1), FALSE),Kalkylvärden!$B$163:$H$175,12,FALSE)*1/1000) -> 0
A175: slitagepartiklar, PM 10 | B175: =IF(OR(Indata!B$62=5, Indata!B$62=0),0, (B$13+B$14)*Kalkylvärden!$B$19*HLOOKUP(INDIRECT("Kalkylvärden!R163" & "C" & (Indata!B$83+1), FALSE),Kalkylvärden!$B$163:$H$175,13,FALSE)*1/1000) -> 0 | C175: =IF(OR(Indata!C$62=5, Indata!C$62=0),0, (C$13+C$14)*Kalkylvärden!$B$19*HLOOKUP(INDIRECT("Kalkylvärden!R163" & "C" & (Indata!C$83+1), FALSE),Kalkylvärden!$B$163:$H$175,13,FALSE)*1/1000) -> 0 | D175: =IF(OR(Indata!D$62=5, Indata!D$62=0),0, (D$13+D$14)*Kalkylvärden!$B$19*HLOOKUP(INDIRECT("Kalkylvärden!R163" & "C" & (Indata!D$83+1), FALSE),Kalkylvärden!$B$163:$H$175,13,FALSE)*1/1000) -> 0 | E175: =IF(OR(Indata!E$62=5, Indata!E$62=0),0, (E$13+E$14)*Kalkylvärden!$B$19*HLOOKUP(INDIRECT("Kalkylvärden!R163" & "C" & (Indata!E$83+1), FALSE),Kalkylvärden!$B$163:$H$175,13,FALSE)*1/1000) -> 0 | F175: =IF(OR(Indata!F$62=5, Indata!F$62=0),0, (F$13+F$14)*Kalkylvärden!$B$19*HLOOKUP(INDIRECT("Kalkylvärden!R163" & "C" & (Indata!F$83+1), FALSE),Kalkylvärden!$B$163:$H$175,13,FALSE)*1/1000) -> 0
A176: Emissioner vid fri passage av korsning (kg per år)
A177: Personbil
A178: kväveoxider, NOx | B178: =(B$20+B$21)*Kalkylvärden!$B$19*(HLOOKUP(INDIRECT("Kalkylvärden!R163" & "C" & (Indata!B$83+1), FALSE),Kalkylvärden!$B$163:$H$175,3,FALSE)-HLOOKUP(INDIRECT("Kalkylvärden!R163" & "C" & (Indata!B$84+1), FALSE),Kalkylvärden!$B$163:$H$175,3,FALSE))*1/1000 -> 0 | C178: =(C$20+C$21)*Kalkylvärden!$B$19*(HLOOKUP(INDIRECT("Kalkylvärden!R163" & "C" & (Indata!C$83+1), FALSE),Kalkylvärden!$B$163:$H$175,3,FALSE)-HLOOKUP(INDIRECT("Kalkylvärden!R163" & "C" & (Indata!C$84+1), FALSE),Kalkylvärden!$B$163:$H$175,3,FALSE))*1/1000 -> 0 | D178: =(D$20+D$21)*Kalkylvärden!$B$19*(HLOOKUP(INDIRECT("Kalkylvärden!R163" & "C" & (Indata!D$83+1), FALSE),Kalkylvärden!$B$163:$H$175,3,FALSE)-HLOOKUP(INDIRECT("Kalkylvärden!R163" & "C" & (Indata!D$84+1), FALSE),Kalkylvärden!$B$163:$H$175,3,FALSE))*1/1000 -> 0 | E178: =(E$20+E$21)*Kalkylvärden!$B$19*(HLOOKUP(INDIRECT("Kalkylvärden!R163" & "C" & (Indata!E$83+1), FALSE),Kalkylvärden!$B$163:$H$175,3,FALSE)-HLOOKUP(INDIRECT("Kalkylvärden!R163" & "C" & (Indata!E$84+1), FALSE),Kalkylvärden!$B$163:$H$175,3,FALSE))*1/1000 -> 0 | F178: =(F$20+F$21)*Kalkylvärden!$B$19*(HLOOKUP(INDIRECT("Kalkylvärden!R163" & "C" & (Indata!F$83+1), FALSE),Kalkylvärden!$B$163:$H$175,3,FALSE)-HLOOKUP(INDIRECT("Kalkylvärden!R163" & "C" & (Indata!F$84+1), FALSE),Kalkylvärden!$B$163:$H$175,3,FALSE))*1/1000 -> 0
B179: =(B$20+B$21)*Kalkylvärden!$B$19*(HLOOKUP(INDIRECT("Kalkylvärden!R163" & "C" & (Indata!B$83+1), FALSE),Kalkylvärden!$B$163:$H$175,4,FALSE)-HLOOKUP(INDIRECT("Kalkylvärden!R163" & "C" & (Indata!B$84+1), FALSE),Kalkylvärden!$B$163:$H$175,4,FALSE))*1/1000 -> 0 | C179: =(C$20+C$21)*Kalkylvärden!$B$19*(HLOOKUP(INDIRECT("Kalkylvärden!R163" & "C" & (Indata!C$83+1), FALSE),Kalkylvärden!$B$163:$H$175,4,FALSE)-HLOOKUP(INDIRECT("Kalkylvärden!R163" & "C" & (Indata!C$84+1), FALSE),Kalkylvärden!$B$163:$H$175,4,FALSE))*1/1000 -> 0 | D179: =(D$20+D$21)*Kalkylvärden!$B$19*(HLOOKUP(INDIRECT("Kalkylvärden!R163" & "C" & (Indata!D$83+1), FALSE),Kalkylvärden!$B$163:$H$175,4,FALSE)-HLOOKUP(INDIRECT("Kalkylvärden!R163" & "C" & (Indata!D$84+1), FALSE),Kalkylvärden!$B$163:$H$175,4,FALSE))*1/1000 -> 0 | E179: =(E$20+E$21)*Kalkylvärden!$B$19*(HLOOKUP(INDIRECT("Kalkylvärden!R163" & "C" & (Indata!E$83+1), FALSE),Kalkylvärden!$B$163:$H$175,4,FALSE)-HLOOKUP(INDIRECT("Kalkylvärden!R163" & "C" & (Indata!E$84+1), FALSE),Kalkylvärden!$B$163:$H$175,4,FALSE))*1/1000 -> 0 | F179: =(F$20+F$21)*Kalkylvärden!$B$19*(HLOOKUP(INDIRECT("Kalkylvärden!R163" & "C" & (Indata!F$83+1), FALSE),Kalkylvärden!$B$163:$H$175,4,FALSE)-HLOOKUP(INDIRECT("Kalkylvärden!R163" & "C" & (Indata!F$84+1), FALSE),Kalkylvärden!$B$163:$H$175,4,FALSE))*1/1000 -> 0
A180: koldioxid, CO2 | B180: =(B$20+B$21)*Kalkylvärden!$B$19*(HLOOKUP(INDIRECT("Kalkylvärden!R163" & "C" & (Indata!B$83+1), FALSE),Kalkylvärden!$B$163:$H$175,5,FALSE)-HLOOKUP(INDIRECT("Kalkylvärden!R163" & "C" & (Indata!B$84+1), FALSE),Kalkylvärden!$B$163:$H$175,5,FALSE))*1/1000 -> 0 | C180: =(C$20+C$21)*Kalkylvärden!$B$19*(HLOOKUP(INDIRECT("Kalkylvärden!R163" & "C" & (Indata!C$83+1), FALSE),Kalkylvärden!$B$163:$H$175,5,FALSE)-HLOOKUP(INDIRECT("Kalkylvärden!R163" & "C" & (Indata!C$84+1), FALSE),Kalkylvärden!$B$163:$H$175,5,FALSE))*1/1000 -> 0 | D180: =(D$20+D$21)*Kalkylvärden!$B$19*(HLOOKUP(INDIRECT("Kalkylvärden!R163" & "C" & (Indata!D$83+1), FALSE),Kalkylvärden!$B$163:$H$175,5,FALSE)-HLOOKUP(INDIRECT("Kalkylvärden!R163" & "C" & (Indata!D$84+1), FALSE),Kalkylvärden!$B$163:$H$175,5,FALSE))*1/1000 -> 0 | E180: =(E$20+E$21)*Kalkylvärden!$B$19*(HLOOKUP(INDIRECT("Kalkylvärden!R163" & "C" & (Indata!E$83+1), FALSE),Kalkylvärden!$B$163:$H$175,5,FALSE)-HLOOKUP(INDIRECT("Kalkylvärden!R163" & "C" & (Indata!E$84+1), FALSE),Kalkylvärden!$B$163:$H$175,5,FALSE))*1/1000 -> 0 | F180: =(F$20+F$21)*Kalkylvärden!$B$19*(HLOOKUP(INDIRECT("Kalkylvärden!R163" & "C" & (Indata!F$83+1), FALSE),Kalkylvärden!$B$163:$H$175,5,FALSE)-HLOOKUP(INDIRECT("Kalkylvärden!R163" & "C" & (Indata!F$84+1), FALSE),Kalkylvärden!$B$163:$H$175,5,FALSE))*1/1000 -> 0
A181: avgaspartiklar, PM 3,5 | B181: =(B$20+B$21)*Kalkylvärden!$B$19*(HLOOKUP(INDIRECT("Kalkylvärden!R163" & "C" & (Indata!B$83+1), FALSE),Kalkylvärden!$B$163:$H$175,6,FALSE)-HLOOKUP(INDIRECT("Kalkylvärden!R163" & "C" & (Indata!B$84+1), FALSE),Kalkylvärden!$B$163:$H$175,6,FALSE))*1/1000 -> 0 | C181: =(C$20+C$21)*Kalkylvärden!$B$19*(HLOOKUP(INDIRECT("Kalkylvärden!R163" & "C" & (Indata!C$83+1), FALSE),Kalkylvärden!$B$163:$H$175,6,FALSE)-HLOOKUP(INDIRECT("Kalkylvärden!R163" & "C" & (Indata!C$84+1), FALSE),Kalkylvärden!$B$163:$H$175,6,FALSE))*1/1000 -> 0 | D181: =(D$20+D$21)*Kalkylvärden!$B$19*(HLOOKUP(INDIRECT("Kalkylvärden!R163" & "C" & (Indata!D$83+1), FALSE),Kalkylvärden!$B$163:$H$175,6,FALSE)-HLOOKUP(INDIRECT("Kalkylvärden!R163" & "C" & (Indata!D$84+1), FALSE),Kalkylvärden!$B$163:$H$175,6,FALSE))*1/1000 -> 0 | E181: =(E$20+E$21)*Kalkylvärden!$B$19*(HLOOKUP(INDIRECT("Kalkylvärden!R163" & "C" & (Indata!E$83+1), FALSE),Kalkylvärden!$B$163:$H$175,6,FALSE)-HLOOKUP(INDIRECT("Kalkylvärden!R163" & "C" & (Indata!E$84+1), FALSE),Kalkylvärden!$B$163:$H$175,6,FALSE))*1/1000 -> 0 | F181: =(F$20+F$21)*Kalkylvärden!$B$19*(HLOOKUP(INDIRECT("Kalkylvärden!R163" & "C" & (Indata!F$83+1), FALSE),Kalkylvärden!$B$163:$H$175,6,FALSE)-HLOOKUP(INDIRECT("Kalkylvärden!R163" & "C" & (Indata!F$84+1), FALSE),Kalkylvärden!$B$163:$H$175,6,FALSE))*1/1000 -> 0
A182: slitagepartiklar, PM 10 | B182: =(B$20+B$21)*Kalkylvärden!$B$19*(HLOOKUP(INDIRECT("Kalkylvärden!R163" & "C" & (Indata!B$83+1), FALSE),Kalkylvärden!$B$163:$H$175,7,FALSE)-HLOOKUP(INDIRECT("Kalkylvärden!R163" & "C" & (Indata!B$84+1), FALSE),Kalkylvärden!$B$163:$H$175,7,FALSE))*1/1000 -> 0 | C182: =(C$20+C$21)*Kalkylvärden!$B$19*(HLOOKUP(INDIRECT("Kalkylvärden!R163" & "C" & (Indata!C$83+1), FALSE),Kalkylvärden!$B$163:$H$175,7,FALSE)-HLOOKUP(INDIRECT("Kalkylvärden!R163" & "C" & (Indata!C$84+1), FALSE),Kalkylvärden!$B$163:$H$175,7,FALSE))*1/1000 -> 0 | D182: =(D$20+D$21)*Kalkylvärden!$B$19*(HLOOKUP(INDIRECT("Kalkylvärden!R163" & "C" & (Indata!D$83+1), FALSE),Kalkylvärden!$B$163:$H$175,7,FALSE)-HLOOKUP(INDIRECT("Kalkylvärden!R163" & "C" & (Indata!D$84+1), FALSE),Kalkylvärden!$B$163:$H$175,7,FALSE))*1/1000 -> 0 | E182: =(E$20+E$21)*Kalkylvärden!$B$19*(HLOOKUP(INDIRECT("Kalkylvärden!R163" & "C" & (Indata!E$83+1), FALSE),Kalkylvärden!$B$163:$H$175,7,FALSE)-HLOOKUP(INDIRECT("Kalkylvärden!R163" & "C" & (Indata!E$84+1), FALSE),Kalkylvärden!$B$163:$H$175,7,FALSE))*1/1000 -> 0 | F182: =(F$20+F$21)*Kalkylvärden!$B$19*(HLOOKUP(INDIRECT("Kalkylvärden!R163" & "C" & (Indata!F$83+1), FALSE),Kalkylvärden!$B$163:$H$175,7,FALSE)-HLOOKUP(INDIRECT("Kalkylvärden!R163" & "C" & (Indata!F$84+1), FALSE),Kalkylvärden!$B$163:$H$175,7,FALSE))*1/1000 -> 0
A183: Lastbil
A184: kväveoxider, NOx | B184: =(B$13+B$14)*Kalkylvärden!$B$19*(HLOOKUP(INDIRECT("Kalkylvärden!R163" & "C" & (Indata!B$83+1), FALSE),Kalkylvärden!$B$163:$H$175,9,FALSE)-HLOOKUP(INDIRECT("Kalkylvärden!R163" & "C" & (Indata!B$84+1), FALSE),Kalkylvärden!$B$163:$H$175,9,FALSE))*1/1000 -> 0 | C184: =(C$13+C$14)*Kalkylvärden!$B$19*(HLOOKUP(INDIRECT("Kalkylvärden!R163" & "C" & (Indata!C$83+1), FALSE),Kalkylvärden!$B$163:$H$175,9,FALSE)-HLOOKUP(INDIRECT("Kalkylvärden!R163" & "C" & (Indata!C$84+1), FALSE),Kalkylvärden!$B$163:$H$175,9,FALSE))*1/1000 -> 0 | D184: =(D$13+D$14)*Kalkylvärden!$B$19*(HLOOKUP(INDIRECT("Kalkylvärden!R163" & "C" & (Indata!D$83+1), FALSE),Kalkylvärden!$B$163:$H$175,9,FALSE)-HLOOKUP(INDIRECT("Kalkylvärden!R163" & "C" & (Indata!D$84+1), FALSE),Kalkylvärden!$B$163:$H$175,9,FALSE))*1/1000 -> 0 | E184: =(E$13+E$14)*Kalkylvärden!$B$19*(HLOOKUP(INDIRECT("Kalkylvärden!R163" & "C" & (Indata!E$83+1), FALSE),Kalkylvärden!$B$163:$H$175,9,FALSE)-HLOOKUP(INDIRECT("Kalkylvärden!R163" & "C" & (Indata!E$84+1), FALSE),Kalkylvärden!$B$163:$H$175,9,FALSE))*1/1000 -> 0 | F184: =(F$13+F$14)*Kalkylvärden!$B$19*(HLOOKUP(INDIRECT("Kalkylvärden!R163" & "C" & (Indata!F$83+1), FALSE),Kalkylvärden!$B$163:$H$175,9,FALSE)-HLOOKUP(INDIRECT("Kalkylvärden!R163" & "C" & (Indata!F$84+1), FALSE),Kalkylvärden!$B$163:$H$175,9,FALSE))*1/1000 -> 0
B185: =(C$13+C$14)*Kalkylvärden!$B$19*(HLOOKUP(INDIRECT("Kalkylvärden!R163" & "C" & (Indata!B$83+1), FALSE),Kalkylvärden!$B$163:$H$175,10,FALSE)-HLOOKUP(INDIRECT("Kalkylvärden!R163" & "C" & (Indata!B$84+1), FALSE),Kalkylvärden!$B$163:$H$175,10,FALSE))*1/1000 -> 0 | C185: =(D$13+D$14)*Kalkylvärden!$B$19*(HLOOKUP(INDIRECT("Kalkylvärden!R163" & "C" & (Indata!C$83+1), FALSE),Kalkylvärden!$B$163:$H$175,10,FALSE)-HLOOKUP(INDIRECT("Kalkylvärden!R163" & "C" & (Indata!C$84+1), FALSE),Kalkylvärden!$B$163:$H$175,10,FALSE))*1/1000 -> 0 | D185: =(E$13+E$14)*Kalkylvärden!$B$19*(HLOOKUP(INDIRECT("Kalkylvärden!R163" & "C" & (Indata!D$83+1), FALSE),Kalkylvärden!$B$163:$H$175,10,FALSE)-HLOOKUP(INDIRECT("Kalkylvärden!R163" & "C" & (Indata!D$84+1), FALSE),Kalkylvärden!$B$163:$H$175,10,FALSE))*1/1000 -> 0 | E185: =(F$13+F$14)*Kalkylvärden!$B$19*(HLOOKUP(INDIRECT("Kalkylvärden!R163" & "C" & (Indata!E$83+1), FALSE),Kalkylvärden!$B$163:$H$175,10,FALSE)-HLOOKUP(INDIRECT("Kalkylvärden!R163" & "C" & (Indata!E$84+1), FALSE),Kalkylvärden!$B$163:$H$175,10,FALSE))*1/1000 -> 0 | F185: =(G$13+G$14)*Kalkylvärden!$B$19*(HLOOKUP(INDIRECT("Kalkylvärden!R163" & "C" & (Indata!F$83+1), FALSE),Kalkylvärden!$B$163:$H$175,10,FALSE)-HLOOKUP(INDIRECT("Kalkylvärden!R163" & "C" & (Indata!F$84+1), FALSE),Kalkylvärden!$B$163:$H$175,10,FALSE))*1/1000 -> 0
A186: koldioxid, CO2 | B186: =(B$13+B$14)*Kalkylvärden!$B$19*(HLOOKUP(INDIRECT("Kalkylvärden!R163" & "C" & (Indata!B$83+1), FALSE),Kalkylvärden!$B$163:$H$175,11,FALSE)-HLOOKUP(INDIRECT("Kalkylvärden!R163" & "C" & (Indata!B$84+1), FALSE),Kalkylvärden!$B$163:$H$175,11,FALSE))*1/1000 -> 0 | C186: =(C$13+C$14)*Kalkylvärden!$B$19*(HLOOKUP(INDIRECT("Kalkylvärden!R163" & "C" & (Indata!C$83+1), FALSE),Kalkylvärden!$B$163:$H$175,11,FALSE)-HLOOKUP(INDIRECT("Kalkylvärden!R163" & "C" & (Indata!C$84+1), FALSE),Kalkylvärden!$B$163:$H$175,11,FALSE))*1/1000 -> 0 | D186: =(D$13+D$14)*Kalkylvärden!$B$19*(HLOOKUP(INDIRECT("Kalkylvärden!R163" & "C" & (Indata!D$83+1), FALSE),Kalkylvärden!$B$163:$H$175,11,FALSE)-HLOOKUP(INDIRECT("Kalkylvärden!R163" & "C" & (Indata!D$84+1), FALSE),Kalkylvärden!$B$163:$H$175,11,FALSE))*1/1000 -> 0 | E186: =(E$13+E$14)*Kalkylvärden!$B$19*(HLOOKUP(INDIRECT("Kalkylvärden!R163" & "C" & (Indata!E$83+1), FALSE),Kalkylvärden!$B$163:$H$175,11,FALSE)-HLOOKUP(INDIRECT("Kalkylvärden!R163" & "C" & (Indata!E$84+1), FALSE),Kalkylvärden!$B$163:$H$175,11,FALSE))*1/1000 -> 0 | F186: =(F$13+F$14)*Kalkylvärden!$B$19*(HLOOKUP(INDIRECT("Kalkylvärden!R163" & "C" & (Indata!F$83+1), FALSE),Kalkylvärden!$B$163:$H$175,11,FALSE)-HLOOKUP(INDIRECT("Kalkylvärden!R163" & "C" & (Indata!F$84+1), FALSE),Kalkylvärden!$B$163:$H$175,11,FALSE))*1/1000 -> 0
A187: avgaspartiklar, PM 3,5 | B187: =(B$13+B$14)*Kalkylvärden!$B$19*(HLOOKUP(INDIRECT("Kalkylvärden!R163" & "C" & (Indata!B$83+1), FALSE),Kalkylvärden!$B$163:$H$175,12,FALSE)-HLOOKUP(INDIRECT("Kalkylvärden!R163" & "C" & (Indata!B$84+1), FALSE),Kalkylvärden!$B$163:$H$175,12,FALSE))*1/1000 -> 0 | C187: =(C$13+C$14)*Kalkylvärden!$B$19*(HLOOKUP(INDIRECT("Kalkylvärden!R163" & "C" & (Indata!C$83+1), FALSE),Kalkylvärden!$B$163:$H$175,12,FALSE)-HLOOKUP(INDIRECT("Kalkylvärden!R163" & "C" & (Indata!C$84+1), FALSE),Kalkylvärden!$B$163:$H$175,12,FALSE))*1/1000 -> 0 | D187: =(D$13+D$14)*Kalkylvärden!$B$19*(HLOOKUP(INDIRECT("Kalkylvärden!R163" & "C" & (Indata!D$83+1), FALSE),Kalkylvärden!$B$163:$H$175,12,FALSE)-HLOOKUP(INDIRECT("Kalkylvärden!R163" & "C" & (Indata!D$84+1), FALSE),Kalkylvärden!$B$163:$H$175,12,FALSE))*1/1000 -> 0 | E187: =(E$13+E$14)*Kalkylvärden!$B$19*(HLOOKUP(INDIRECT("Kalkylvärden!R163" & "C" & (Indata!E$83+1), FALSE),Kalkylvärden!$B$163:$H$175,12,FALSE)-HLOOKUP(INDIRECT("Kalkylvärden!R163" & "C" & (Indata!E$84+1), FALSE),Kalkylvärden!$B$163:$H$175,12,FALSE))*1/1000 -> 0 | F187: =(F$13+F$14)*Kalkylvärden!$B$19*(HLOOKUP(INDIRECT("Kalkylvärden!R163" & "C" & (Indata!F$83+1), FALSE),Kalkylvärden!$B$163:$H$175,12,FALSE)-HLOOKUP(INDIRECT("Kalkylvärden!R163" & "C" & (Indata!F$84+1), FALSE),Kalkylvärden!$B$163:$H$175,12,FALSE))*1/1000 -> 0
A188: slitagepartiklar, PM 10 | B188: =(B$13+B$14)*Kalkylvärden!$B$19*(HLOOKUP(INDIRECT("Kalkylvärden!R163" & "C" & (Indata!B$83+1), FALSE),Kalkylvärden!$B$163:$H$175,13,FALSE)-HLOOKUP(INDIRECT("Kalkylvärden!R163" & "C" & (Indata!B$84+1), FALSE),Kalkylvärden!$B$163:$H$175,13,FALSE))*1/1000 -> 0 | C188: =(C$13+C$14)*Kalkylvärden!$B$19*(HLOOKUP(INDIRECT("Kalkylvärden!R163" & "C" & (Indata!C$83+1), FALSE),Kalkylvärden!$B$163:$H$175,13,FALSE)-HLOOKUP(INDIRECT("Kalkylvärden!R163" & "C" & (Indata!C$84+1), FALSE),Kalkylvärden!$B$163:$H$175,13,FALSE))*1/1000 -> 0 | D188: =(D$13+D$14)*Kalkylvärden!$B$19*(HLOOKUP(INDIRECT("Kalkylvärden!R163" & "C" & (Indata!D$83+1), FALSE),Kalkylvärden!$B$163:$H$175,13,FALSE)-HLOOKUP(INDIRECT("Kalkylvärden!R163" & "C" & (Indata!D$84+1), FALSE),Kalkylvärden!$B$163:$H$175,13,FALSE))*1/1000 -> 0 | E188: =(E$13+E$14)*Kalkylvärden!$B$19*(HLOOKUP(INDIRECT("Kalkylvärden!R163" & "C" & (Indata!E$83+1), FALSE),Kalkylvärden!$B$163:$H$175,13,FALSE)-HLOOKUP(INDIRECT("Kalkylvärden!R163" & "C" & (Indata!E$84+1), FALSE),Kalkylvärden!$B$163:$H$175,13,FALSE))*1/1000 -> 0 | F188: =(F$13+F$14)*Kalkylvärden!$B$19*(HLOOKUP(INDIRECT("Kalkylvärden!R163" & "C" & (Indata!F$83+1), FALSE),Kalkylvärden!$B$163:$H$175,13,FALSE)-HLOOKUP(INDIRECT("Kalkylvärden!R163" & "C" & (Indata!F$84+1), FALSE),Kalkylvärden!$B$163:$H$175,13,FALSE))*1/1000 -> 0
A190: Summa emissioner (kg per år) | B190: Summa JA | C190: Summa UA | D190: Skillnad (UA-JA)
A191: kväveoxider, NOx | B191: =B197+B203 -> 0 | C191: =C197+C203+B226 -> -99.07128625 | D191: =C191-B191 -> -99.07128625
B192: =B198+B204 -> 0 | C192: =C198+C204+B227 -> 0 | D192: =C192-B192 -> 0
A193: koldioxid, CO2 | B193: =B199+B205 -> 0 | C193: =C199+C205+B228 -> -50905.18125 | D193: =C193-B193 -> -50905.18125
A194: avgaspartiklar, PM 3,5 | B194: =B200+B206 -> 0 | C194: =C200+C206+B229 -> -0.62540779 | D194: =C194-B194 -> -0.62540779
A195: slitagepartiklar, PM 10 | B195: =B201+B207 -> 0 | C195: =C201+C207+B230 -> -90.06375 | D195: =C195-B195 -> -90.06375
A196: varav bakom bom
A197: kväveoxider, NOx | B197: =SUM(B165:D165)+SUM(B171:D171) -> 0 | C197: =SUM(E165:F165)+SUM(E171:F171) -> 0
B198: =SUM(B166:D166)+SUM(B172:D172) -> 0 | C198: =SUM(E166:F166)+SUM(E172:F172) -> 0
A199: koldioxid, CO2 | B199: =SUM(B167:D167)+SUM(B173:D173) -> 0 | C199: =SUM(E167:F167)+SUM(E173:F173) -> 0
A200: avgaspartiklar, PM 3,5 | B200: =SUM(B168:D168)+SUM(B174:D174) -> 0 | C200: =SUM(E168:F168)+SUM(E174:F174) -> 0
A201: slitagepartiklar, PM 10 | B201: =SUM(B169:D169)+SUM(B175:D175) -> 0 | C201: =SUM(E169:F169)+SUM(E175:F175) -> 0
A202: varav vid fri passage av korsning
A203: kväveoxider, NOx | B203: =SUM(B178:D178)+SUM(B184:D184) -> 0 | C203: =SUM(E178:F178)+SUM(E184:F184) -> 0
B204: =SUM(B179:D179)+SUM(B185:D185) -> 0 | C204: =SUM(E179:F179)+SUM(E185:F185) -> 0
A205: koldioxid, CO2 | B205: =SUM(B180:D180)+SUM(B186:D186) -> 0 | C205: =SUM(E180:F180)+SUM(E186:F186) -> 0
A206: avgaspartiklar, PM 3,5 | B206: =SUM(B181:D181)+SUM(B187:D187) -> 0 | C206: =SUM(E181:F181)+SUM(E187:F187) -> 0
A207: slitagepartiklar, PM 10 | B207: =SUM(B182:D182)+SUM(B188:D188) -> 0 | C207: =SUM(E182:F182)+SUM(E188:F188) -> 0
A209: Emissioner vid ev. omledning via annan korsning (kg per år)
A210: Från korsning | B210: =Indata!B102 -> a | C210: =Indata!C102 -> b
A211: Till korsning | B211: =Indata!B103 -> b | C211: =Indata!C103 -> c
A212: Personbil
A213: kväveoxider, NOx | B213: =((Indata!B105+Indata!B106)*Kalkylvärden!$B$19*Indata!B131*Kalkylvärden!$B$214+(Indata!B105+Indata!B106)*Kalkylvärden!$B$19*Indata!B132*Kalkylvärden!$D$214+(Indata!B105+Indata!B106)*Kalkylvärden!$B$19*Indata!B133*Kalkylvärden!$F$214+(Indata!B105+Indata!B106)*Kalkylvärden!$B$19*Indata!B134*Kalkylvärden!$H$214)*1/1000 -> -1.869373415 | C213: =((Indata!C105+Indata!C106)*Kalkylvärden!$B$19*Indata!C131*Kalkylvärden!$B$214+(Indata!C105+Indata!C106)*Kalkylvärden!$B$19*Indata!C132*Kalkylvärden!$D$214+(Indata!C105+Indata!C106)*Kalkylvärden!$B$19*Indata!C133*Kalkylvärden!$F$214+(Indata!C105+Indata!C106)*Kalkylvärden!$B$19*Indata!C134*Kalkylvärden!$H$214)*1/1000 -> -0.9346867075
B214: =((Indata!B105+Indata!B106)*Kalkylvärden!$B$19*Indata!B131*Kalkylvärden!$B$215+(Indata!B105+Indata!B106)*Kalkylvärden!$B$19*Indata!B132*Kalkylvärden!$D$215+(Indata!B105+Indata!B106)*Kalkylvärden!$B$19*Indata!B133*Kalkylvärden!$F$215+(Indata!B105+Indata!B106)*Kalkylvärden!$B$19*Indata!B134*Kalkylvärden!$H$215)*1/1000 -> 0 | C214: =((Indata!C105+Indata!C106)*Kalkylvärden!$B$19*Indata!C131*Kalkylvärden!$B$215+(Indata!C105+Indata!C106)*Kalkylvärden!$B$19*Indata!C132*Kalkylvärden!$D$215+(Indata!C105+Indata!C106)*Kalkylvärden!$B$19*Indata!C133*Kalkylvärden!$F$215+(Indata!C105+Indata!C106)*Kalkylvärden!$B$19*Indata!C134*Kalkylvärden!$H$215)*1/1000 -> 0
A215: koldioxid, CO2 | B215: =((Indata!B105+Indata!B106)*Kalkylvärden!$B$19*Indata!B131*Kalkylvärden!$B$216+(Indata!B105+Indata!B106)*Kalkylvärden!$B$19*Indata!B132*Kalkylvärden!$D$216+(Indata!B105+Indata!B106)*Kalkylvärden!$B$19*Indata!B133*Kalkylvärden!$F$216+(Indata!B105+Indata!B106)*Kalkylvärden!$B$19*Indata!B134*Kalkylvärden!$H$216)*1/1000 -> -2151.31 | C215: =((Indata!C105+Indata!C106)*Kalkylvärden!$B$19*Indata!C131*Kalkylvärden!$B$216+(Indata!C105+Indata!C106)*Kalkylvärden!$B$19*Indata!C132*Kalkylvärden!$D$216+(Indata!C105+Indata!C106)*Kalkylvärden!$B$19*Indata!C133*Kalkylvärden!$F$216+(Indata!C105+Indata!C106)*Kalkylvärden!$B$19*Indata!C134*Kalkylvärden!$H$216)*1/1000 -> -1075.655
A216: avgaspartiklar, PM 3,5 | B216: =((Indata!B105+Indata!B106)*Kalkylvärden!$B$19*Indata!B131*Kalkylvärden!$B$217+(Indata!B105+Indata!B106)*Kalkylvärden!$B$19*Indata!B132*Kalkylvärden!$D$217+(Indata!B105+Indata!B106)*Kalkylvärden!$B$19*Indata!B133*Kalkylvärden!$F$217+(Indata!B105+Indata!B106)*Kalkylvärden!$B$19*Indata!B134*Kalkylvärden!$H$217)*1/1000 -> -0.024075765 | C216: =((Indata!C105+Indata!C106)*Kalkylvärden!$B$19*Indata!C131*Kalkylvärden!$B$217+(Indata!C105+Indata!C106)*Kalkylvärden!$B$19*Indata!C132*Kalkylvärden!$D$217+(Indata!C105+Indata!C106)*Kalkylvärden!$B$19*Indata!C133*Kalkylvärden!$F$217+(Indata!C105+Indata!C106)*Kalkylvärden!$B$19*Indata!C134*Kalkylvärden!$H$217)*1/1000 -> -0.0120378825
A217: slitagepartiklar, PM 10 | B217: =((Indata!B105+Indata!B106)*Kalkylvärden!$B$19*Indata!B131*Kalkylvärden!$B$218+(Indata!B105+Indata!B106)*Kalkylvärden!$B$19*Indata!B132*Kalkylvärden!$D$218+(Indata!B105+Indata!B106)*Kalkylvärden!$B$19*Indata!B133*Kalkylvärden!$F$218+(Indata!B105+Indata!B106)*Kalkylvärden!$B$19*Indata!B134*Kalkylvärden!$H$218)*1/1000 -> -14.48685 | C217: =((Indata!C105+Indata!C106)*Kalkylvärden!$B$19*Indata!C131*Kalkylvärden!$B$218+(Indata!C105+Indata!C106)*Kalkylvärden!$B$19*Indata!C132*Kalkylvärden!$D$218+(Indata!C105+Indata!C106)*Kalkylvärden!$B$19*Indata!C133*Kalkylvärden!$F$218+(Indata!C105+Indata!C106)*Kalkylvärden!$B$19*Indata!C134*Kalkylvärden!$H$218)*1/1000 -> -7.243425
A218: Lastbil
A219: kväveoxider, NOx | B219: =((Indata!B108+Indata!B109)*Kalkylvärden!$B$19*Indata!B138*Kalkylvärden!$B$220+(Indata!B108+Indata!B109)*Kalkylvärden!$B$19*Indata!B139*Kalkylvärden!$D$220+(Indata!B108+Indata!B109)*Kalkylvärden!$B$19*Indata!B140*Kalkylvärden!$F$220+(Indata!B108+Indata!B109)*Kalkylvärden!$B$19*Indata!B141*Kalkylvärden!$H$220)*1/1000 -> -64.17815075 | C219: =((Indata!C108+Indata!C109)*Kalkylvärden!$B$19*Indata!C138*Kalkylvärden!$B$220+(Indata!C108+Indata!C109)*Kalkylvärden!$B$19*Indata!C139*Kalkylvärden!$D$220+(Indata!C108+Indata!C109)*Kalkylvärden!$B$19*Indata!C140*Kalkylvärden!$F$220+(Indata!C108+Indata!C109)*Kalkylvärden!$B$19*Indata!C141*Kalkylvärden!$H$220)*1/1000 -> -32.08907538
B220: =((Indata!B108+Indata!B109)*Kalkylvärden!$B$19*Indata!B138*Kalkylvärden!$B$221+(Indata!B108+Indata!B109)*Kalkylvärden!$B$19*Indata!B139*Kalkylvärden!$D$221+(Indata!B108+Indata!B109)*Kalkylvärden!$B$19*Indata!B140*Kalkylvärden!$F$221+(Indata!B108+Indata!B109)*Kalkylvärden!$B$19*Indata!B141*Kalkylvärden!$H$221)*1/1000 -> 0 | C220: =((Indata!C108+Indata!C109)*Kalkylvärden!$B$19*Indata!C138*Kalkylvärden!$B$221+(Indata!C108+Indata!C109)*Kalkylvärden!$B$19*Indata!C139*Kalkylvärden!$D$221+(Indata!C108+Indata!C109)*Kalkylvärden!$B$19*Indata!C140*Kalkylvärden!$F$221+(Indata!C108+Indata!C109)*Kalkylvärden!$B$19*Indata!C141*Kalkylvärden!$H$221)*1/1000 -> 0
A221: koldioxid, CO2 | B221: =((Indata!B108+Indata!B109)*Kalkylvärden!$B$19*Indata!B138*Kalkylvärden!$B$222+(Indata!B108+Indata!B109)*Kalkylvärden!$B$19*Indata!B139*Kalkylvärden!$D$222+(Indata!B108+Indata!B109)*Kalkylvärden!$B$19*Indata!B140*Kalkylvärden!$F$222+(Indata!B108+Indata!B109)*Kalkylvärden!$B$19*Indata!B141*Kalkylvärden!$H$222)*1/1000 -> -31785.4775 | C221: =((Indata!C108+Indata!C109)*Kalkylvärden!$B$19*Indata!C138*Kalkylvärden!$B$222+(Indata!C108+Indata!C109)*Kalkylvärden!$B$19*Indata!C139*Kalkylvärden!$D$222+(Indata!C108+Indata!C109)*Kalkylvärden!$B$19*Indata!C140*Kalkylvärden!$F$222+(Indata!C108+Indata!C109)*Kalkylvärden!$B$19*Indata!C141*Kalkylvärden!$H$222)*1/1000 -> -15892.73875
A222: avgaspartiklar, PM 3,5 | B222: =((Indata!B108+Indata!B109)*Kalkylvärden!$B$19*Indata!B138*Kalkylvärden!$B$223+(Indata!B108+Indata!B109)*Kalkylvärden!$B$19*Indata!B139*Kalkylvärden!$D$223+(Indata!B108+Indata!B109)*Kalkylvärden!$B$19*Indata!B140*Kalkylvärden!$F$223+(Indata!B108+Indata!B109)*Kalkylvärden!$B$19*Indata!B141*Kalkylvärden!$H$223)*1/1000 -> -0.601332025 | C222: =((Indata!C108+Indata!C109)*Kalkylvärden!$B$19*Indata!C138*Kalkylvärden!$B$223+(Indata!C108+Indata!C109)*Kalkylvärden!$B$19*Indata!C139*Kalkylvärden!$D$223+(Indata!C108+Indata!C109)*Kalkylvärden!$B$19*Indata!C140*Kalkylvärden!$F$223+(Indata!C108+Indata!C109)*Kalkylvärden!$B$19*Indata!C141*Kalkylvärden!$H$223)*1/1000 -> -0.3006660125
A223: slitagepartiklar, PM 10 | B223: =((Indata!B108+Indata!B109)*Kalkylvärden!$B$19*Indata!B138*Kalkylvärden!$B$224+(Indata!B108+Indata!B109)*Kalkylvärden!$B$19*Indata!B139*Kalkylvärden!$D$224+(Indata!B108+Indata!B109)*Kalkylvärden!$B$19*Indata!B140*Kalkylvärden!$F$224+(Indata!B108+Indata!B109)*Kalkylvärden!$B$19*Indata!B141*Kalkylvärden!$H$224)*1/1000 -> -75.5769 | C223: =((Indata!C108+Indata!C109)*Kalkylvärden!$B$19*Indata!C138*Kalkylvärden!$B$224+(Indata!C108+Indata!C109)*Kalkylvärden!$B$19*Indata!C139*Kalkylvärden!$D$224+(Indata!C108+Indata!C109)*Kalkylvärden!$B$19*Indata!C140*Kalkylvärden!$F$224+(Indata!C108+Indata!C109)*Kalkylvärden!$B$19*Indata!C141*Kalkylvärden!$H$224)*1/1000 -> -37.78845
A225: varav vid omledning | B225: Summa
... 43 more rows

Sheet Ekonomi
A1: Effekter i monetära termer (mkr/år för startåret)
A5: Trafiksäkerhet
A6: Ett positivt tal indikerar en nytta och ett negativt tal indikerar en ökad samhällskostnad (negativ nytta).
B11: JA1 | C11: JA2 | D11: JA3 | E11: UA1 | F11: UA2
A12: Korsningens namn: | B12: =Indata!B61 -> a | C12: =Indata!C61 -> b | D12: =Indata!D61 -> c | E12: =Indata!E61 -> b | F12: =Indata!F61 -> c
A13: I korsningen
A14: Dödade per år (mkr/år) | B14: =Kvantiteter!B36*Kalkylvärden!$D24*1/10^6 -> 0.03213870566 | C14: =Kvantiteter!C36*Kalkylvärden!$D24*1/10^6 -> 0.03518064077 | D14: =Kvantiteter!D36*Kalkylvärden!$D24*1/10^6 -> 0.03518064077 | E14: =Kvantiteter!E36*Kalkylvärden!$D24*1/10^6 -> 0.00388574145 | F14: =Kvantiteter!F36*Kalkylvärden!$D24*1/10^6 -> 0.00388574145
A15: Mycket allvarligt skadad (MAS) (mkr/år) | B15: =Kvantiteter!B37*Kalkylvärden!$D25*1/10^6 -> 0.000294897024 | C15: =Kvantiteter!C37*Kalkylvärden!$D25*1/10^6 -> 0.000322809088 | D15: =Kvantiteter!D37*Kalkylvärden!$D25*1/10^6 -> 0.000322809088 | E15: =Kvantiteter!E37*Kalkylvärden!$D25*1/10^6 -> 3.565462784e-05 | F15: =Kvantiteter!F37*Kalkylvärden!$D25*1/10^6 -> 3.565462784e-05
A16: Allvarligt skadad (AS-MAS) (mkr/år) | B16: =Kvantiteter!B38*Kalkylvärden!$D26*1/10^6 -> 0.0009754992 | C16: =Kvantiteter!C38*Kalkylvärden!$D26*1/10^6 -> 0.0010678304 | D16: =Kvantiteter!D38*Kalkylvärden!$D26*1/10^6 -> 0.0010678304 | E16: =Kvantiteter!E38*Kalkylvärden!$D26*1/10^6 -> 0.000117943072 | F16: =Kvantiteter!F38*Kalkylvärden!$D26*1/10^6 -> 0.000117943072
A17: Ej allvarligt skadad (EAS) (mkr/år) | B17: =Kvantiteter!B39*Kalkylvärden!$D27*1/10^6 -> 0.00032441472 | C17: =Kvantiteter!C39*Kalkylvärden!$D27*1/10^6 -> 0.00035512064 | D17: =Kvantiteter!D39*Kalkylvärden!$D27*1/10^6 -> 0.00035512064 | E17: =Kvantiteter!E39*Kalkylvärden!$D27*1/10^6 -> 3.92234752e-05 | F17: =Kvantiteter!F39*Kalkylvärden!$D27*1/10^6 -> 3.92234752e-05
A18: Olyckor med bara materiella skador per år (mkr/år) | B18: =Kvantiteter!B40*Kalkylvärden!$D28*1/10^6 -> 6.967296e-06 | C18: =Kvantiteter!C40*Kalkylvärden!$D28*1/10^6 -> 7.626752e-06 | D18: =Kvantiteter!D40*Kalkylvärden!$D28*1/10^6 -> 7.626752e-06
A20: Vid omledning
A21: Från korsning | B21: =Indata!B102 -> a | C21: =Indata!C102 -> b
A22: Till korsning | B22: =Indata!B103 -> b | C22: =Indata!C103 -> c
A23: Dödade per år (mkr/år) | B23: =(Kvantiteter!B69+Kvantiteter!B70)*Kalkylvärden!$D24*1/10^6 -> -0.04324555416 | C23: =(Kvantiteter!C69+Kvantiteter!C70)*Kalkylvärden!$D24*1/10^6 -> -0.02162277708
A24: Mycket allvarligt skadad (MAS) (mkr/år) | B24: =(Kvantiteter!B72+Kvantiteter!B73)*Kalkylvärden!$D25*1/10^6 -> -0.1216112553 | C24: =(Kvantiteter!C72+Kvantiteter!C73)*Kalkylvärden!$D25*1/10^6 -> -0.06080562763
A25: Allvarligt skadad (AS-MAS) (mkr/år) | B25: =(Kvantiteter!B75+Kvantiteter!B76)*Kalkylvärden!$D26*1/10^6 -> -0.4123187632 | C25: =(Kvantiteter!C75+Kvantiteter!C76)*Kalkylvärden!$D26*1/10^6 -> -0.2061593816
A26: Ej allvarligt skadad (EAS) (mkr/år) | B26: =(Kvantiteter!B78+Kvantiteter!B79)*Kalkylvärden!$D27*1/10^6 -> -0.1610709587 | C26: =(Kvantiteter!C78+Kvantiteter!C79)*Kalkylvärden!$D27*1/10^6 -> -0.08053547935
A27: Olyckor med bara materiella skador per år (mkr/år) | B27: =(Kvantiteter!B81+Kvantiteter!B82)*Kalkylvärden!$D28*1/10^6 -> -0.05410111834 | C27: =(Kvantiteter!C81+Kvantiteter!C82)*Kalkylvärden!$D28*1/10^6 -> -0.02705055917
A28: Cykelolyckor (mkr/år) | B28: =Kvantiteter!B84*Kalkylvärden!$B$78 -> -0.35925125 | C28: =Kvantiteter!C84*Kalkylvärden!$B$78 -> -0.179625625
A30: Totala effekter (nivå, mkr/år)
A31: Summa JA i korsning | B31: =SUM(B14:D19) -> 0.1076085392
A32: Summa UA i korsning | B32: =SUM(E14:F19) -> 0.008157125251
A33: Summa omledning för Pb/Lb (UA) | B33: =SUM(B23:C27) -> -1.188521475
A34: Summa omledning för G/C (UA) | B34: =SUM(B28:C28) -> -0.538876875
A35: SEK kostnader UA-JA (mkr/år) | B35: =B32+B33+B34-B31 -> -1.826849764 | D35: Positivt sluttal = Högre kostnad i UA än i JA!
A37: Extern kostnad för Trafiksäkerhetseffekterna
A41: Bil och lastbilsandelar
A42: Andel Pb av ÅDT | B42: =SUM(Indata!B65:'Indata'!D66)/SUM(Indata!B71:'Indata'!D72) -> 0.5
A43: Andel Lb av ÅDT | B43: =SUM(Indata!B68:'Indata'!D69)/SUM(Indata!B71:'Indata'!D72) -> 0.5
A44: Viktad internaliseringsgrad | B44: =B42*Kalkylvärden!$E$5+Ekonomi!B43*Kalkylvärden!$E$6 -> 1
A46: Summa JA i korsning | B46: =B31*B44 -> 0.1076085392 | C46: mkr/år
A47: Summa UA i korsning | B47: =B32*B44 -> 0.008157125251 | C47: mkr/år
A48: Summa omledning för Pb/Lb (UA) | B48: =B33*B44 -> -1.188521475 | C48: mkr/år
A49: Summa omledning för G/C (UA) | B49: =B34 -> -0.538876875
A50: SEK TS-kostnad, extern del (UA-JA) | B50: =(B47+B48+B49)-B46 -> -1.826849764 | C50: mkr/år
C52: Positivt sluttal = Högre kostnad i UA än i JA!
A53: Tidskostnader
A55: Tidskostnader för personer
A56: Här avses tidskostnader förchaufförer och passagerar i bilar/lastbilar samt för cyklister och gående. Antalet fordon per typ viktas ihop med antal personer per fordonstyp och tidsvärde per transportslag.
A58: I korsningen
B59: JA1 | C59: JA2 | D59: JA3 | E59: UA1 | F59: UA2
A60: Korsningens namn: | B60: =Indata!B61 -> a | C60: =Indata!C61 -> b | D60: =Indata!D61 -> c | E60: =Indata!E61 -> b | F60: =Indata!F61 -> c
A61: Bakom bom
A62: Personbilar (mkr/år) | B62: =(Kvantiteter!B98+Kvantiteter!B99)*Kalkylvärden!$B$109*Kalkylvärden!$D$45*1/10^6 -> 0 | C62: =(Kvantiteter!C98+Kvantiteter!C99)*Kalkylvärden!$B$109*Kalkylvärden!$D$45*1/10^6 -> 0.01901833767 | D62: =(Kvantiteter!D98+Kvantiteter!D99)*Kalkylvärden!$B$109*Kalkylvärden!$D$45*1/10^6 -> 0.01901833767 | E62: =(Kvantiteter!E98+Kvantiteter!E99)*Kalkylvärden!$B$109*Kalkylvärden!$D$45*1/10^6 -> 0.06418688965 | F62: =(Kvantiteter!F98+Kvantiteter!F99)*Kalkylvärden!$B$109*Kalkylvärden!$D$45*1/10^6 -> 0.06418688965
A63: Lastbilar (mkr/år) | B63: =(Kvantiteter!B100+Kvantiteter!B101)*Kalkylvärden!$B$112*Kalkylvärden!$B$54*1/10^6 -> 0 | C63: =(Kvantiteter!C100+Kvantiteter!C101)*Kalkylvärden!$B$112*Kalkylvärden!$B$54*1/10^6 -> 0.04321701389 | D63: =(Kvantiteter!D100+Kvantiteter!D101)*Kalkylvärden!$B$112*Kalkylvärden!$B$54*1/10^6 -> 0.04321701389 | E63: =(Kvantiteter!E100+Kvantiteter!E101)*Kalkylvärden!$B$112*Kalkylvärden!$B$54*1/10^6 -> 0.1458574219 | F63: =(Kvantiteter!F100+Kvantiteter!F101)*Kalkylvärden!$B$112*Kalkylvärden!$B$54*1/10^6 -> 0.1458574219
A64: Cyklar (mkr/år) | B64: =(Kvantiteter!B102+Kvantiteter!B103)*Kalkylvärden!$B$113*Kalkylvärden!$D$48*1/10^6 -> 0 | C64: =(Kvantiteter!C102+Kvantiteter!C103)*Kalkylvärden!$B$113*Kalkylvärden!$D$48*1/10^6 -> 0.004296354167 | D64: =(Kvantiteter!D102+Kvantiteter!D103)*Kalkylvärden!$B$113*Kalkylvärden!$D$48*1/10^6 -> 0.004296354167 | E64: =(Kvantiteter!E102+Kvantiteter!E103)*Kalkylvärden!$B$113*Kalkylvärden!$D$48*1/10^6 -> 0.01450019531 | F64: =(Kvantiteter!F102+Kvantiteter!F103)*Kalkylvärden!$B$113*Kalkylvärden!$D$48*1/10^6 -> 0.01450019531
A65: Gående (mkr/år) | B65: =(Kvantiteter!B104+Kvantiteter!B105)*Kalkylvärden!$D$53*1/10^6 -> 0 | C65: =(Kvantiteter!C104+Kvantiteter!C105)*Kalkylvärden!$D$53*1/10^6 -> 0.003001111111 | D65: =(Kvantiteter!D104+Kvantiteter!D105)*Kalkylvärden!$D$53*1/10^6 -> 0.003001111111 | E65: =(Kvantiteter!E104+Kvantiteter!E105)*Kalkylvärden!$D$53*1/10^6 -> 0.01012875 | F65: =(Kvantiteter!F104+Kvantiteter!F105)*Kalkylvärden!$D$53*1/10^6 -> 0.01012875
A66: Vid fri passage av korsningen
A67: Personbilar (mkr/år) | B67: =(Kvantiteter!B107+Kvantiteter!B108)*Kalkylvärden!$B$109*Kalkylvärden!$D$45*1/10^6 -> 0 | C67: =(Kvantiteter!C107+Kvantiteter!C108)*Kalkylvärden!$B$109*Kalkylvärden!$D$45*1/10^6 -> 0 | D67: =(Kvantiteter!D107+Kvantiteter!D108)*Kalkylvärden!$B$109*Kalkylvärden!$D$45*1/10^6 -> 0 | E67: =(Kvantiteter!E107+Kvantiteter!E108)*Kalkylvärden!$B$109*Kalkylvärden!$D$45*1/10^6 -> 0 | F67: =(Kvantiteter!F107+Kvantiteter!F108)*Kalkylvärden!$B$109*Kalkylvärden!$D$45*1/10^6 -> 0
A68: Lastbilar (mkr/år) | B68: =(Kvantiteter!B109+Kvantiteter!B110)*Kalkylvärden!$B$112*Kalkylvärden!$B$54*1/10^6 -> 0 | C68: =(Kvantiteter!C109+Kvantiteter!C110)*Kalkylvärden!$B$112*Kalkylvärden!$B$54*1/10^6 -> 0 | D68: =(Kvantiteter!D109+Kvantiteter!D110)*Kalkylvärden!$B$112*Kalkylvärden!$B$54*1/10^6 -> 0 | E68: =(Kvantiteter!E109+Kvantiteter!E110)*Kalkylvärden!$B$112*Kalkylvärden!$B$54*1/10^6 -> 0 | F68: =(Kvantiteter!F109+Kvantiteter!F110)*Kalkylvärden!$B$112*Kalkylvärden!$B$54*1/10^6 -> 0
A70: Vid omledning
A71: Från korsning | B71: =Kvantiteter!B125 -> a | C71: =Kvantiteter!C125 -> b
A72: Till korsning | B72: =Kvantiteter!B126 -> b | C72: =Kvantiteter!C126 -> c
A73: Personbilar | B73: =Kvantiteter!B127*Kalkylvärden!$B$109*Kalkylvärden!$D$45*1/10^6 -> -0.9172743984 | C73: =Kvantiteter!C127*Kalkylvärden!$B$109*Kalkylvärden!$D$45*1/10^6 -> -0.4586371992
A74: Lastbilar | B74: =Kvantiteter!B128*Kalkylvärden!$B$112*Kalkylvärden!$B$54*1/10^6 -> -2.084401965 | C74: =Kvantiteter!C128*Kalkylvärden!$B$112*Kalkylvärden!$B$54*1/10^6 -> -1.042200982
A75: Cyklister | B75: =Kvantiteter!B129*Kalkylvärden!$B$113*Kalkylvärden!$D$48*1/10^6 -> -0.41245 | C75: =Kvantiteter!C129*Kalkylvärden!$B$113*Kalkylvärden!$D$48*1/10^6 -> -0.206225
A76: Gående | B76: =Kvantiteter!B130*Kalkylvärden!$D$53*1/10^6 -> -0.86432 | C76: =Kvantiteter!C130*Kalkylvärden!$D$53*1/10^6 -> -0.43216
A78: Summa JA för Pb/Lb, i korsning | B78: =SUM(B62:D63)+SUM(B67:D68) -> 0.1244707031
A79: Summa JA för G/C, i korsning | B79: =SUM(B64:D65) -> 0.01459493056
A80: Summa UA för Pb/Lb, i korsning | B80: =SUM(E62:F63)+SUM(E67:F68) -> 0.420088623
A81: Summa UA för G/C, i korsning | B81: =SUM(E64:F65) -> 0.04925789063
A82: Summa omledning för Pb/Lb (UA) | B82: =SUM(B73:C74) -> -4.502514545
A83: Summa omledning för G/C (UA) | B83: =SUM(B75:C76) -> -1.915155
A84: SEK tidskostnad för personer (UA-JA) | B84: =B80+B81+B82+B83-B78-B79 -> -6.087388665 | E84: Positivt sluttal = Högre kostnad i UA än i JA!
A86: Tidskostnader för godset
A87: Här avses tidskostnaden för godset. Detta värde har via räntan en koppling till kapitalbindningen (varuvärdet) under själva transporten.
B88: JA1 | C88: JA2 | D88: JA3 | E88: UA1 | F88: UA2
A89: Korsningens namn: | B89: =Indata!B61 -> a | C89: =Indata!C61 -> b | D89: =Indata!D61 -> c | E89: =Indata!E61 -> b | F89: =Indata!F61 -> c
A90: Bakom bom
A91: Lastbil | B91: =(Kvantiteter!B100+Kvantiteter!B101)*Kalkylvärden!$B$251*Kalkylvärden!$D$61*1/10^6 -> 0 | C91: =(Kvantiteter!C100+Kvantiteter!C101)*Kalkylvärden!$B$251*Kalkylvärden!$D$61*1/10^6 -> 0.004022147917 | D91: =(Kvantiteter!D100+Kvantiteter!D101)*Kalkylvärden!$B$251*Kalkylvärden!$D$61*1/10^6 -> 0.004022147917 | E91: =(Kvantiteter!E100+Kvantiteter!E101)*Kalkylvärden!$B$251*Kalkylvärden!$D$61*1/10^6 -> 0.01357474922 | F91: =(Kvantiteter!F100+Kvantiteter!F101)*Kalkylvärden!$B$251*Kalkylvärden!$D$61*1/10^6 -> 0.01357474922
A92: Vid fri passage av korsningen
A93: Lastbil | B93: =(Kvantiteter!B109+Kvantiteter!B110)*Kalkylvärden!$B$251*Kalkylvärden!$D$61*1/10^6 -> 0 | C93: =(Kvantiteter!C109+Kvantiteter!C110)*Kalkylvärden!$B$251*Kalkylvärden!$D$61*1/10^6 -> 0 | D93: =(Kvantiteter!D109+Kvantiteter!D110)*Kalkylvärden!$B$251*Kalkylvärden!$D$61*1/10^6 -> 0 | E93: =(Kvantiteter!E109+Kvantiteter!E110)*Kalkylvärden!$B$251*Kalkylvärden!$D$61*1/10^6 -> 0 | F93: =(Kvantiteter!F109+Kvantiteter!F110)*Kalkylvärden!$B$251*Kalkylvärden!$D$61*1/10^6 -> 0
A94: Vid omledning
A95: Från korsning | B95: =Indata!B102 -> a | C95: =Indata!C102 -> b
A96: Till korsning | B96: =Indata!B103 -> b | C96: =Indata!C103 -> c
A97: Lastbil | B97: =Kvantiteter!B128*Kalkylvärden!$B$251*Kalkylvärden!$D$61*1/10^6 -> -0.1939924179 | C97: =Kvantiteter!C128*Kalkylvärden!$B$251*Kalkylvärden!$D$61*1/10^6 -> -0.09699620897
A99: Summa JA, i korsning | B99: =SUM(B91:D93) -> 0.008044295833
A100: Summa UA, i korsning | B100: =SUM(E91:F93) -> 0.02714949844
A101: Summa omledning (UA) | B101: =SUM(B97:C97) -> -0.2909886269
A102: SEK tidskostnad för gods (UA-JA) | B102: =(B100+B101)-B99 -> -0.2718834243
A106: Fordonskostnader
A107: Under denna rubrik beräknas alla rörliga (dvs köravståndsberoende) kostnader exklusive tidskostnaden för förare och passagerare. Blanda inte ihop termen köravståndsberoende med avståndsberoende kostnad, som ofta används vid samhällsekonomiska beräkningar.
A108: Ingår: Drivmedel, däckkostnad, reparation (arbetstid), komponentförslitning (dvs fordonsslitage), värdeminskning och kapitalkostnad.
B110: JA1 | C110: JA2 | D110: JA3 | E110: UA1 | F110: UA2
A111: Korsningens namn: | B111: =Indata!B61 -> a | C111: =Indata!C61 -> b | D111: =Indata!D61 -> c | E111: =Indata!E61 -> b | F111: =Indata!F61 -> c
A112: Bakom bom
A113: Personbilar | B113: =IF(OR(Indata!B62=0,Indata!B62=5),0,(Kvantiteter!B11+Kvantiteter!B12)*Kalkylvärden!$B$19*INDIRECT("Kalkylvärden!R158" & "C" & (Indata!B83 +1),FALSE)*1/10^6) -> 0 | C113: =IF(OR(Indata!C62=0,Indata!C62=5),0,(Kvantiteter!C11+Kvantiteter!C12)*Kalkylvärden!$B$19*INDIRECT("Kalkylvärden!R158" & "C" & (Indata!C83 +1),FALSE)*1/10^6) -> 0 | D113: =IF(OR(Indata!D62=0,Indata!D62=5),0,(Kvantiteter!D11+Kvantiteter!D12)*Kalkylvärden!$B$19*INDIRECT("Kalkylvärden!R158" & "C" & (Indata!D83 +1),FALSE)*1/10^6) -> 0 | E113: =IF(OR(Indata!E62=0,Indata!E62=5),0,(Kvantiteter!E11+Kvantiteter!E12)*Kalkylvärden!$B$19*INDIRECT("Kalkylvärden!R158" & "C" & (Indata!E83 +1),FALSE)*1/10^6) -> 0 | F113: =IF(OR(Indata!F62=0,Indata!F62=5),0,(Kvantiteter!F11+Kvantiteter!F12)*Kalkylvärden!$B$19*INDIRECT("Kalkylvärden!R158" & "C" & (Indata!F83 +1),FALSE)*1/10^6) -> 0
A114: Lastbilar | B114: =IF(OR(Indata!B62=0,Indata!B62=5),0,(Kvantiteter!B13+Kvantiteter!B14)*Kalkylvärden!$B$19*INDIRECT("Kalkylvärden!R159" & "C" & (Indata!B83 +1),FALSE)*1/10^6) -> 0 | C114: =IF(OR(Indata!C62=0,Indata!C62=5),0,(Kvantiteter!C13+Kvantiteter!C14)*Kalkylvärden!$B$19*INDIRECT("Kalkylvärden!R159" & "C" & (Indata!C83 +1),FALSE)*1/10^6) -> 0 | D114: =IF(OR(Indata!D62=0,Indata!D62=5),0,(Kvantiteter!D13+Kvantiteter!D14)*Kalkylvärden!$B$19*INDIRECT("Kalkylvärden!R159" & "C" & (Indata!D83 +1),FALSE)*1/10^6) -> 0 | E114: =IF(OR(Indata!E62=0,Indata!E62=5),0,(Kvantiteter!E13+Kvantiteter!E14)*Kalkylvärden!$B$19*INDIRECT("Kalkylvärden!R159" & "C" & (Indata!E83 +1),FALSE)*1/10^6) -> 0 | F114: =IF(OR(Indata!F62=0,Indata!F62=5),0,(Kvantiteter!F13+Kvantiteter!F14)*Kalkylvärden!$B$19*INDIRECT("Kalkylvärden!R159" & "C" & (Indata!F83 +1),FALSE)*1/10^6) -> 0
A115: Vid fri passage av korsningen
A116: Personbilar (mkr/år) | B116: =(Kvantiteter!B20+Kvantiteter!B21)*Kalkylvärden!$B$19*(INDIRECT("Kalkylvärden!R158C" & (Indata!B83+1),FALSE )-INDIRECT("kalkylvärden!R158C"&(Indata!B84+1),FALSE))*1/10^6 -> 0 | C116: =(Kvantiteter!C20+Kvantiteter!C21)*Kalkylvärden!$B$19*(INDIRECT("Kalkylvärden!R158C" & (Indata!C83+1),FALSE )-INDIRECT("kalkylvärden!R158C"&(Indata!C84+1),FALSE))*1/10^6 -> 0 | D116: =(Kvantiteter!D20+Kvantiteter!D21)*Kalkylvärden!$B$19*(INDIRECT("Kalkylvärden!R158C" & (Indata!D83+1),FALSE )-INDIRECT("kalkylvärden!R158C"&(Indata!D84+1),FALSE))*1/10^6 -> 0 | E116: =(Kvantiteter!E20+Kvantiteter!E21)*Kalkylvärden!$B$19*(INDIRECT("Kalkylvärden!R158C" & (Indata!E83+1),FALSE )-INDIRECT("kalkylvärden!R158C"&(Indata!E84+1),FALSE))*1/10^6 -> 0 | F116: =(Kvantiteter!F20+Kvantiteter!F21)*Kalkylvärden!$B$19*(INDIRECT("Kalkylvärden!R158C" & (Indata!F83+1),FALSE )-INDIRECT("kalkylvärden!R158C"&(Indata!F84+1),FALSE))*1/10^6 -> 0
A117: Lastbilar (mkr/år) | B117: =(Kvantiteter!B22+Kvantiteter!B23)*Kalkylvärden!$B$19*(INDIRECT("Kalkylvärden!R159C" & (Indata!B83+1),FALSE )-INDIRECT("kalkylvärden!R159C"&(Indata!B84+1),FALSE))*1/10^6 -> 0 | C117: =(Kvantiteter!C22+Kvantiteter!C23)*Kalkylvärden!$B$19*(INDIRECT("Kalkylvärden!R159C" & (Indata!C83+1),FALSE )-INDIRECT("kalkylvärden!R159C"&(Indata!C84+1),FALSE))*1/10^6 -> 0 | D117: =(Kvantiteter!D22+Kvantiteter!D23)*Kalkylvärden!$B$19*(INDIRECT("Kalkylvärden!R159C" & (Indata!D83+1),FALSE )-INDIRECT("kalkylvärden!R159C"&(Indata!D84+1),FALSE))*1/10^6 -> 0 | E117: =(Kvantiteter!E22+Kvantiteter!E23)*Kalkylvärden!$B$19*(INDIRECT("Kalkylvärden!R159C" & (Indata!E83+1),FALSE )-INDIRECT("kalkylvärden!R159C"&(Indata!E84+1),FALSE))*1/10^6 -> 0 | F117: =(Kvantiteter!F22+Kvantiteter!F23)*Kalkylvärden!$B$19*(INDIRECT("Kalkylvärden!R159C" & (Indata!F83+1),FALSE )-INDIRECT("kalkylvärden!R159C"&(Indata!F84+1),FALSE))*1/10^6 -> 0
A118: Vid omledning
A119: Från korsning | B119: =Indata!B102 -> a | C119: =Indata!C102 -> b
A120: Till korsning | B120: =Indata!B103 -> b | C120: =Indata!C103 -> c
A121: Personbilar (mkr/år) | B121: =((Indata!B105+Indata!B106)*Kalkylvärden!$B$19*Indata!B131*Kalkylvärden!$B$207+(Indata!B105+Indata!B106)*Kalkylvärden!$B$19*Indata!B132*Kalkylvärden!$D$207+(Indata!B105+Indata!B106)*Kalkylvärden!$B$19*Indata!B133*Kalkylvärden!$F$207+(Indata!B105+Indata!B106)*Kalkylvärden!$B$19*Indata!B134*Kalkylvärden!$H$207)*1/10^6 -> -0.2946641956 | C121: =((Indata!C105+Indata!C106)*Kalkylvärden!$B$19*Indata!C131*Kalkylvärden!$B$207+(Indata!C105+Indata!C106)*Kalkylvärden!$B$19*Indata!C132*Kalkylvärden!$D$207+(Indata!C105+Indata!C106)*Kalkylvärden!$B$19*Indata!C133*Kalkylvärden!$F$207+(Indata!C105+Indata!C106)*Kalkylvärden!$B$19*Indata!C134*Kalkylvärden!$H$207)*1/10^6 -> -0.1473320978
A122: Lastbilar (mkr/år) | B122: =((Indata!B108+Indata!B109)*Kalkylvärden!$B$19*Indata!B138*Kalkylvärden!$B$208+(Indata!B108+Indata!B109)*Kalkylvärden!$B$19*Indata!B139*Kalkylvärden!$D$208+(Indata!B108+Indata!B109)*Kalkylvärden!$B$19*Indata!B140*Kalkylvärden!$F$208+(Indata!B108+Indata!B109)*Kalkylvärden!$B$19*Indata!B141*Kalkylvärden!$H$208)*1/10^6 -> -2.043863851 | C122: =((Indata!C108+Indata!C109)*Kalkylvärden!$B$19*Indata!C138*Kalkylvärden!$B$208+(Indata!C108+Indata!C109)*Kalkylvärden!$B$19*Indata!C139*Kalkylvärden!$D$208+(Indata!C108+Indata!C109)*Kalkylvärden!$B$19*Indata!C140*Kalkylvärden!$F$208+(Indata!C108+Indata!C109)*Kalkylvärden!$B$19*Indata!C141*Kalkylvärden!$H$208)*1/10^6 -> -1.021931925
A123: Cyklar (mkr/år) | B123: =Indata!B145*(Indata!B114+Indata!B115)*Kalkylvärden!$B$19*Kalkylvärden!$B$73*1/10^6 -> -0.026645 | C123: =Indata!C145*(Indata!C114+Indata!C115)*Kalkylvärden!$B$19*Kalkylvärden!$B$73*1/10^6 -> -0.0133225
A125: Pb i korsning (UA-JA) | B125: =SUM(E113:F113,E116:F116)-SUM(B113:D113,B116:D116) -> 0
A126: Lb i korsning (UA-JA) | B126: =SUM(E114:F114,E117:F117)-SUM(B114:D114,B117:D117) -> 0
A127: Pb vid omledning (UA) | B127: =SUM(B121:C121) -> -0.4419962934
A128: Lb vid omledning (UA) | B128: =SUM(B122:C122) -> -3.065795776
A129: Cykel vid omledning (UA) | B129: =SUM(B123:C123) -> -0.0399675
A131: Summa JA, i korsning | B131: =SUM(B113:D117) -> 0
A132: Summa UA, i korsning | B132: =SUM(E113:F117) -> 0
A133: Summa omledning för Pb/Lb (UA) | B133: =SUM(B121:C122) -> -3.507792069
A134: SEK fordonskostnader (UA-JA) | B134: =(B133+B132+B129)-B131 -> -3.547759569
A137: Emissioner
B142: JA1 | C142: JA2 | D142: JA3 | E142: UA1 | F142: UA2
A143: Korsningens namn: | B143: =Indata!B61 -> a | C143: =Indata!C61 -> b | D143: =Indata!D61 -> c | E143: =Indata!E61 -> b | F143: =Indata!F61 -> c
A144: Bakom bom (mkr/år)
A145: Personbil
A146: kväveoxider, NOx | B146: =Kvantiteter!B165*Kalkylvärden!$B$32*1/10^6 -> 0 | C146: =Kvantiteter!C165*Kalkylvärden!$B$32*1/10^6 -> 0 | D146: =Kvantiteter!D165*Kalkylvärden!$B$32*1/10^6 -> 0 | E146: =Kvantiteter!E165*Kalkylvärden!$B$32*1/10^6 -> 0 | F146: =Kvantiteter!F165*Kalkylvärden!$B$32*1/10^6 -> 0
B147: =Kvantiteter!B166*Kalkylvärden!$B$33*1/10^6 -> 0 | C147: =Kvantiteter!C166*Kalkylvärden!$B$33*1/10^6 -> 0 | D147: =Kvantiteter!D166*Kalkylvärden!$B$33*1/10^6 -> 0 | E147: =Kvantiteter!E166*Kalkylvärden!$B$33*1/10^6 -> 0 | F147: =Kvantiteter!F166*Kalkylvärden!$B$33*1/10^6 -> 0
A148: koldioxid, CO2 | B148: =Kvantiteter!B167*Kalkylvärden!$B$34*1/10^6 -> 0 | C148: =Kvantiteter!C167*Kalkylvärden!$B$34*1/10^6 -> 0 | D148: =Kvantiteter!D167*Kalkylvärden!$B$34*1/10^6 -> 0 | E148: =Kvantiteter!E167*Kalkylvärden!$B$34*1/10^6 -> 0 | F148: =Kvantiteter!F167*Kalkylvärden!$B$34*1/10^6 -> 0
A149: avgaspartiklar, PM 3,5 | B149: =Kvantiteter!B168*Kalkylvärden!$B$35*1/10^6 -> 0 | C149: =Kvantiteter!C168*Kalkylvärden!$B$35*1/10^6 -> 0 | D149: =Kvantiteter!D168*Kalkylvärden!$B$35*1/10^6 -> 0 | E149: =Kvantiteter!E168*Kalkylvärden!$B$35*1/10^6 -> 0 | F149: =Kvantiteter!F168*Kalkylvärden!$B$35*1/10^6 -> 0
A150: slitagepartiklar, PM 10 | B150: =Kvantiteter!B169*Kalkylvärden!$B$36*1/10^6 -> 0 | C150: =Kvantiteter!C169*Kalkylvärden!$B$36*1/10^6 -> 0 | D150: =Kvantiteter!D169*Kalkylvärden!$B$36*1/10^6 -> 0 | E150: =Kvantiteter!E169*Kalkylvärden!$B$36*1/10^6 -> 0 | F150: =Kvantiteter!F169*Kalkylvärden!$B$36*1/10^6 -> 0
A151: Lastbil
A152: kväveoxider, NOx | B152: =Kvantiteter!B171*Kalkylvärden!$B$32*1/10^6 -> 0 | C152: =Kvantiteter!C171*Kalkylvärden!$B$32*1/10^6 -> 0 | D152: =Kvantiteter!D171*Kalkylvärden!$B$32*1/10^6 -> 0 | E152: =Kvantiteter!E171*Kalkylvärden!$B$32*1/10^6 -> 0 | F152: =Kvantiteter!F171*Kalkylvärden!$B$32*1/10^6 -> 0
B153: =Kvantiteter!B172*Kalkylvärden!$B$33*1/10^6 -> 0 | C153: =Kvantiteter!C172*Kalkylvärden!$B$33*1/10^6 -> 0 | D153: =Kvantiteter!D172*Kalkylvärden!$B$33*1/10^6 -> 0 | E153: =Kvantiteter!E172*Kalkylvärden!$B$33*1/10^6 -> 0 | F153: =Kvantiteter!F172*Kalkylvärden!$B$33*1/10^6 -> 0
A154: koldioxid, CO2 | B154: =Kvantiteter!B173*Kalkylvärden!$B$34*1/10^6 -> 0 | C154: =Kvantiteter!C173*Kalkylvärden!$B$34*1/10^6 -> 0 | D154: =Kvantiteter!D173*Kalkylvärden!$B$34*1/10^6 -> 0 | E154: =Kvantiteter!E173*Kalkylvärden!$B$34*1/10^6 -> 0 | F154: =Kvantiteter!F173*Kalkylvärden!$B$34*1/10^6 -> 0
A155: avgaspartiklar, PM 3,5 | B155: =Kvantiteter!B174*Kalkylvärden!$B$35*1/10^6 -> 0 | C155: =Kvantiteter!C174*Kalkylvärden!$B$35*1/10^6 -> 0 | D155: =Kvantiteter!D174*Kalkylvärden!$B$35*1/10^6 -> 0 | E155: =Kvantiteter!E174*Kalkylvärden!$B$35*1/10^6 -> 0 | F155: =Kvantiteter!F174*Kalkylvärden!$B$35*1/10^6 -> 0
A156: slitagepartiklar, PM 10 | B156: =Kvantiteter!B175*Kalkylvärden!$B$36*1/10^6 -> 0 | C156: =Kvantiteter!C175*Kalkylvärden!$B$36*1/10^6 -> 0 | D156: =Kvantiteter!D175*Kalkylvärden!$B$36*1/10^6 -> 0 | E156: =Kvantiteter!E175*Kalkylvärden!$B$36*1/10^6 -> 0 | F156: =Kvantiteter!F175*Kalkylvärden!$B$36*1/10^6 -> 0
A158: Vid fri passage av korsningen (mkr/år)
A159: Personbil
A160: kväveoxider, NOx | B160: =Kvantiteter!B178*Kalkylvärden!$B$32*1/10^6 -> 0 | C160: =Kvantiteter!C178*Kalkylvärden!$B$32*1/10^6 -> 0 | D160: =Kvantiteter!D178*Kalkylvärden!$B$32*1/10^6 -> 0 | E160: =Kvantiteter!E178*Kalkylvärden!$B$32*1/10^6 -> 0 | F160: =Kvantiteter!F178*Kalkylvärden!$B$32*1/10^6 -> 0
B161: =Kvantiteter!B179*Kalkylvärden!$B$33*1/10^6 -> 0 | C161: =Kvantiteter!C179*Kalkylvärden!$B$33*1/10^6 -> 0 | D161: =Kvantiteter!D179*Kalkylvärden!$B$33*1/10^6 -> 0 | E161: =Kvantiteter!E179*Kalkylvärden!$B$33*1/10^6 -> 0 | F161: =Kvantiteter!F179*Kalkylvärden!$B$33*1/10^6 -> 0
A162: koldioxid, CO2 | B162: =Kvantiteter!B180*Kalkylvärden!$B$34*1/10^6 -> 0 | C162: =Kvantiteter!C180*Kalkylvärden!$B$34*1/10^6 -> 0 | D162: =Kvantiteter!D180*Kalkylvärden!$B$34*1/10^6 -> 0 | E162: =Kvantiteter!E180*Kalkylvärden!$B$34*1/10^6 -> 0 | F162: =Kvantiteter!F180*Kalkylvärden!$B$34*1/10^6 -> 0
A163: avgaspartiklar, PM 3,5 | B163: =Kvantiteter!B181*Kalkylvärden!$B$35*1/10^6 -> 0 | C163: =Kvantiteter!C181*Kalkylvärden!$B$35*1/10^6 -> 0 | D163: =Kvantiteter!D181*Kalkylvärden!$B$35*1/10^6 -> 0 | E163: =Kvantiteter!E181*Kalkylvärden!$B$35*1/10^6 -> 0 | F163: =Kvantiteter!F181*Kalkylvärden!$B$35*1/10^6 -> 0
A164: slitagepartiklar, PM 10 | B164: =Kvantiteter!B182*Kalkylvärden!$B$36*1/10^6 -> 0 | C164: =Kvantiteter!C182*Kalkylvärden!$B$36*1/10^6 -> 0 | D164: =Kvantiteter!D182*Kalkylvärden!$B$36*1/10^6 -> 0 | E164: =Kvantiteter!E182*Kalkylvärden!$B$36*1/10^6 -> 0 | F164: =Kvantiteter!F182*Kalkylvärden!$B$36*1/10^6 -> 0
A165: Lastbil
A166: kväveoxider, NOx | B166: =Kvantiteter!B184*Kalkylvärden!$B$32*1/10^6 -> 0 | C166: =Kvantiteter!C184*Kalkylvärden!$B$32*1/10^6 -> 0 | D166: =Kvantiteter!D184*Kalkylvärden!$B$32*1/10^6 -> 0 | E166: =Kvantiteter!E184*Kalkylvärden!$B$32*1/10^6 -> 0 | F166: =Kvantiteter!F184*Kalkylvärden!$B$32*1/10^6 -> 0
B167: =Kvantiteter!B185*Kalkylvärden!$B$33*1/10^6 -> 0 | C167: =Kvantiteter!C185*Kalkylvärden!$B$33*1/10^6 -> 0 | D167: =Kvantiteter!D185*Kalkylvärden!$B$33*1/10^6 -> 0 | E167: =Kvantiteter!E185*Kalkylvärden!$B$33*1/10^6 -> 0 | F167: =Kvantiteter!F185*Kalkylvärden!$B$33*1/10^6 -> 0
A168: koldioxid, CO2 | B168: =Kvantiteter!B186*Kalkylvärden!$B$34*1/10^6 -> 0 | C168: =Kvantiteter!C186*Kalkylvärden!$B$34*1/10^6 -> 0 | D168: =Kvantiteter!D186*Kalkylvärden!$B$34*1/10^6 -> 0 | E168: =Kvantiteter!E186*Kalkylvärden!$B$34*1/10^6 -> 0 | F168: =Kvantiteter!F186*Kalkylvärden!$B$34*1/10^6 -> 0
A169: avgaspartiklar, PM 3,5 | B169: =Kvantiteter!B187*Kalkylvärden!$B$35*1/10^6 -> 0 | C169: =Kvantiteter!C187*Kalkylvärden!$B$35*1/10^6 -> 0 | D169: =Kvantiteter!D187*Kalkylvärden!$B$35*1/10^6 -> 0 | E169: =Kvantiteter!E187*Kalkylvärden!$B$35*1/10^6 -> 0 | F169: =Kvantiteter!F187*Kalkylvärden!$B$35*1/10^6 -> 0
A170: slitagepartiklar, PM 10 | B170: =Kvantiteter!B188*Kalkylvärden!$B$36*1/10^6 -> 0 | C170: =Kvantiteter!C188*Kalkylvärden!$B$36*1/10^6 -> 0 | D170: =Kvantiteter!D188*Kalkylvärden!$B$36*1/10^6 -> 0 | E170: =Kvantiteter!E188*Kalkylvärden!$B$36*1/10^6 -> 0 | F170: =Kvantiteter!F188*Kalkylvärden!$B$36*1/10^6 -> 0
A172: Från korsning | B172: =Indata!B102 -> a | C172: =Indata!C102 -> b
A173: Till korsning | B173: =Indata!B103 -> b | C173: =Indata!C103 -> c
A174: Vid omledning (mkr/år)
A175: Personbil
A176: kväveoxider, NOx | B176: =Kvantiteter!B213*Kalkylvärden!$B$32*1/10^6 -> -0.0002561041579 | C176: =Kvantiteter!C213*Kalkylvärden!$B$32*1/10^6 -> -0.0001280520789
B177: =Kvantiteter!B214*Kalkylvärden!$B$33*1/10^6 -> 0 | C177: =Kvantiteter!C214*Kalkylvärden!$B$33*1/10^6 -> 0
A178: koldioxid, CO2 | B178: =Kvantiteter!B215*Kalkylvärden!$B$34*1/10^6 -> -0.0029688078 | C178: =Kvantiteter!C215*Kalkylvärden!$B$34*1/10^6 -> -0.0014844039
A179: avgaspartiklar, PM 3,5 | B179: =Kvantiteter!B216*Kalkylvärden!$B$35*1/10^6 -> -0.0001789551612 | C179: =Kvantiteter!C216*Kalkylvärden!$B$35*1/10^6 -> -8.947758062e-05
A180: slitagepartiklar, PM 10 | B180: =Kvantiteter!B217*Kalkylvärden!$B$36*1/10^6 -> -0.02191860405 | C180: =Kvantiteter!C217*Kalkylvärden!$B$36*1/10^6 -> -0.01095930202
A181: Lastbil
A182: kväveoxider, NOx | B182: =Kvantiteter!B219*Kalkylvärden!$B$32*1/10^6 -> -0.008792406653 | C182: =Kvantiteter!C219*Kalkylvärden!$B$32*1/10^6 -> -0.004396203326
B183: =Kvantiteter!B220*Kalkylvärden!$B$33*1/10^6 -> 0 | C183: =Kvantiteter!C220*Kalkylvärden!$B$33*1/10^6 -> 0
A184: koldioxid, CO2 | B184: =Kvantiteter!B221*Kalkylvärden!$B$34*1/10^6 -> -0.04386395895 | C184: =Kvantiteter!C221*Kalkylvärden!$B$34*1/10^6 -> -0.02193197947
A185: avgaspartiklar, PM 3,5 | B185: =Kvantiteter!B222*Kalkylvärden!$B$35*1/10^6 -> -0.004469700942 | C185: =Kvantiteter!C222*Kalkylvärden!$B$35*1/10^6 -> -0.002234850471
A186: slitagepartiklar, PM 10 | B186: =Kvantiteter!B223*Kalkylvärden!$B$36*1/10^6 -> -0.1143478497 | C186: =Kvantiteter!C223*Kalkylvärden!$B$36*1/10^6 -> -0.05717392485
B189: Summa JA | C189: Summa UA
A190: Summa emissioner (mkr/år)
A191: kväveoxider, NOx | B191: =Kvantiteter!B191*Kalkylvärden!$B$32*1/10^6 -> 0 | C191: =Kvantiteter!C191*Kalkylvärden!$B$32*1/10^6 -> -0.01357276622
B192: =Kvantiteter!B192*Kalkylvärden!$B$33*1/10^6 -> 0 | C192: =Kvantiteter!C192*Kalkylvärden!$B$33*1/10^6 -> 0
A193: koldioxid, CO2 | B193: =Kvantiteter!B193*Kalkylvärden!$B$34*1/10^6 -> 0 | C193: =Kvantiteter!C193*Kalkylvärden!$B$34*1/10^6 -> -0.07024915012
A194: avgaspartiklar, PM 3,5 | B194: =Kvantiteter!B194*Kalkylvärden!$B$35*1/10^6 -> 0 | C194: =Kvantiteter!C194*Kalkylvärden!$B$35*1/10^6 -> -0.004648656103
A195: slitagepartiklar, PM 10 | B195: =Kvantiteter!B195*Kalkylvärden!$B$36*1/10^6 -> 0 | C195: =Kvantiteter!C195*Kalkylvärden!$B$36*1/10^6 -> -0.1362664537
A196: varav bakom bom
A197: kväveoxider, NOx | B197: =Kvantiteter!B197*Kalkylvärden!$B$32*1/10^6 -> 0 | C197: =Kvantiteter!C197*Kalkylvärden!$B$32*1/10^6 -> 0
B198: =Kvantiteter!B198*Kalkylvärden!$B$33*1/10^6 -> 0 | C198: =Kvantiteter!C198*Kalkylvärden!$B$33*1/10^6 -> 0
A199: koldioxid, CO2 | B199: =Kvantiteter!B199*Kalkylvärden!$B$34*1/10^6 -> 0 | C199: =Kvantiteter!C199*Kalkylvärden!$B$34*1/10^6 -> 0
A200: avgaspartiklar, PM 3,5 | B200: =Kvantiteter!B200*Kalkylvärden!$B$35*1/10^6 -> 0 | C200: =Kvantiteter!C200*Kalkylvärden!$B$35*1/10^6 -> 0
A201: slitagepartiklar, PM 10 | B201: =Kvantiteter!B201*Kalkylvärden!$B$36*1/10^6 -> 0 | C201: =Kvantiteter!C201*Kalkylvärden!$B$36*1/10^6 -> 0
A202: varav vid fri passage av korsning
A203: kväveoxider, NOx | B203: =Kvantiteter!B203*Kalkylvärden!$B$32*1/10^6 -> 0 | C203: =Kvantiteter!C203*Kalkylvärden!$B$32*1/10^6 -> 0
B204: =Kvantiteter!B204*Kalkylvärden!$B$33*1/10^6 -> 0 | C204: =Kvantiteter!C204*Kalkylvärden!$B$33*1/10^6 -> 0
A205: koldioxid, CO2 | B205: =Kvantiteter!B205*Kalkylvärden!$B$34*1/10^6 -> 0 | C205: =Kvantiteter!C205*Kalkylvärden!$B$34*1/10^6 -> 0
A206: avgaspartiklar, PM 3,5 | B206: =Kvantiteter!B206*Kalkylvärden!$B$35*1/10^6 -> 0 | C206: =Kvantiteter!C206*Kalkylvärden!$B$35*1/10^6 -> 0
A207: slitagepartiklar, PM 10 | B207: =Kvantiteter!B207*Kalkylvärden!$B$36*1/10^6 -> 0 | C207: =Kvantiteter!C207*Kalkylvärden!$B$36*1/10^6 -> 0
A208: varav vid omledning | B208: Summa omledningar
A209: kväveoxider, NOx | B209: =Kvantiteter!B226*Kalkylvärden!B32*1/10^6 -> -0.01357276622
B210: =Kvantiteter!B227*Kalkylvärden!B33*1/10^6 -> 0
A211: koldioxid, CO2 | B211: =Kvantiteter!B228*Kalkylvärden!B34*1/10^6 -> -0.07024915012
A212: avgaspartiklar, PM 3,5 | B212: =Kvantiteter!B229*Kalkylvärden!B35*1/10^6 -> -0.004648656103
A213: slitagepartiklar, PM 10 | B213: =Kvantiteter!B230*Kalkylvärden!B36*1/10^6 -> -0.1362664537
A215: Skillnad (UA-JA) mkr/år
A216: kväveoxider, NOx | B216: =Kvantiteter!D191*Kalkylvärden!B32*1/10^6 -> -0.01357276622
B217: =Kvantiteter!D192*Kalkylvärden!B33*1/10^6 -> 0
A218: koldioxid, CO2 | B218: =Kvantiteter!D193*Kalkylvärden!B34*1/10^6 -> -0.07024915012
A219: avgaspartiklar, PM 3,5 | B219: =Kvantiteter!D194*Kalkylvärden!B35*1/10^6 -> -0.004648656103
A220: slitagepartiklar, PM 10 | B220: =Kvantiteter!D195*Kalkylvärden!B36*1/10^6 -> -0.1362664537
A223: Extern kostnad för Emissionerna
A224: Nedan används inte. Kan inte tas bort för det påverkar modellen genom macron
A228: Bil och lastbilsandelar
A229: Andel Pb av ÅDT | B229: =B42 -> 0.5
A230: Andel Lb av ÅDT | B230: =B43 -> 0.5
A231: Andel extern effekt | B231: =B44 -> 1
B233: Summa JA | C233: Summa UA
A234: Summa emissioner (mkr/år)
A235: kväveoxider, NOx | B235: =B191*$B$231 -> 0 | C235: =C191*$B$231 -> -0.01357276622
B236: =B192*$B$231 -> 0 | C236: 0
A237: koldioxid, CO2 | B237: 0 | C237: =C193*$B$231 -> -0.07024915012
A238: avgaspartiklar, PM 3,5 | B238: 0 | C238: -0.004648656103
A239: slitagepartiklar, PM 10 | B239: 0 | C239: -0.1362664537
A240: varav bakom bom
A241: kväveoxider, NOx | B241: =B197*$B$231 -> 0 | C241: =C197*$B$231 -> 0
B242: 0 | C242: 0
A243: koldioxid, CO2 | B243: 0 | C243: 0
A244: avgaspartiklar, PM 3,5 | B244: 0 | C244: 0
... 28 more rows

Sheet Diskontering
A1: Diskontering av effekter till nuvärde
J2: Använda trafiktillväxter i modellen
E3: Trafikutvecklingstal vid känslighetsanalys | J3: Trafiksäkerhet
A4: TRAFIKTILLVÄXTER | E4: -0.2 | F4: 0.2 | J4: I korsning | N4: väg*jvg*real BNP
A5: Personbilar och lastbilar | B5: % per år huvudanalys | C5: Total trafikutveckling 2019-2045 huvudanalys | E5: % per år | F5: % per år | J5: Vid omledning | N5: (väg*real BNP) samt (GC*real BNP)
A6: Trafiktillväxt 2019-2045 | B6: =Indata!B27 -> 1.5 | C6: =(1+B6/100)^(Kalkylvärden!B$7-Kalkylvärden!B$3) -> 1.472709534 | E6: =(((C6*Kalkylvärden!B261)^(1/(Kalkylvärden!B$7-Kalkylvärden!B$3)))-1)*100 -> 0.6326093954 | F6: =(((C6*Kalkylvärden!B267)^(1/(Kalkylvärden!B$7-Kalkylvärden!B$3)))-1)*100 -> 2.214256697
A7: Trafiktillväxt 2046-2065 | B7: =Indata!B28 -> 0.5 | C7: =(1+B7/100)^(Kalkylvärden!B$7-Kalkylvärden!B$3) -> 1.138459553 | E7: =(((C7*Kalkylvärden!B262)^(1/(Kalkylvärden!B$7-Kalkylvärden!B$3)))-1)*100 -> 0.5 | F7: =(((C7*Kalkylvärden!B268)^(1/(Kalkylvärden!B$7-Kalkylvärden!B$3)))-1)*100 -> 0.5 | J7: Tidskostnader för: | N7: Gods | P7: Personer
A8: Tågtrafiken | J8: I korsning | N8: väg*jvg | P8: (väg*jvg) samt (GC*jvg)
A9: Trafiktillväxt 2024-2045 | B9: =(((Indata!B30/Indata!B29)^(1/(Kalkylvärden!B7-Kalkylvärden!B6)))-1)*100 -> 2.413759603 | C9: =(1+B9/100)^(Kalkylvärden!B$7-2024) -> 1.650154076 | E9: =(((C9*Kalkylvärden!B263)^(1/(Kalkylvärden!B$7-2024)))-1)*100 -> 1.331284249 | F9: =(((C9*Kalkylvärden!B269)^(1/(Kalkylvärden!B$7-2024)))-1)*100 -> 3.306784705 | J9: Vid omledning | N9: väg | P9: väg samt GC
A10: Trafiktillväxt 2046-2065 | B10: 0 | C10: =(1+B10/100)^(Kalkylvärden!B$7-2024) -> 1 | E10: =(((C10*Kalkylvärden!B264)^(1/(Kalkylvärden!B$7-2024)))-1)*100 -> 0 | F10: =(((C10*Kalkylvärden!B270)^(1/(Kalkylvärden!B$7-2024)))-1)*100 -> 0
A11: Gång- och cykeltrafik | J11: Fordonskostnader
A12: Trafiktillväxt 2019-2045 | B12: =Kalkylvärden!B97 -> 0 | C12: =(1+B12/100)^(Kalkylvärden!B$7-Kalkylvärden!B$3) -> 1 | E12: =B12 -> 0 | F12: =B12 -> 0 | J12: I korsning | N12: väg*jvg
A13: Trafiktillväxt 2046-2065 | B13: =Kalkylvärden!B98 -> 0 | C13: =(1+B13/100)^(Kalkylvärden!B$7-Kalkylvärden!B$3) -> 1 | E13: =B13 -> 0 | F13: =B13 -> 0 | J13: Vid omledning | N13: väg samt GC
A15: UPPRÄKNING MED "REAL BNP" | B15: % per år | J15: Trafiksäkerhetskostnader, extern kostnad
A16: Uppräkningsfaktor för betalningsviljepåverkade värden | B16: =Kalkylvärden!B13 -> 1.15 | J16: I korsning | N16: väg*jvg*real BNP
A18: UPPRÄKNING MED "Investeringsindex bana" | B18: % per år
A19: Uppräkningsfaktor för reala kostnadsökningar | B19: =Kalkylvärden!E12 -> 1.019413222
A20: UPPRÄKNING MED "Driftsindex bana" | B20: % per år
A21: Uppräkningsfaktor för reala kostnadsökningar | B21: =Kalkylvärden!E13 -> 1.009
A22: UPPRÄKNING MED "Driftsindex väg" | B22: % per år
A23: Uppräkningsfaktor för reala kostnadsökningar | B23: =Kalkylvärden!E14 -> 1.012
J25: Vid omledning | N25: (väg*real BNP) samt (GC*real BNP)
J27: Emissioner, extern kostnad
J28: Bakom bom | N28: väg*jvg*real BNP
J29: Vid fri passage av korsning | N29: väg*real BNP
J30: vid omledning | N30: väg*real BNP
J32: Vägslitage, extern kostnad
A33: Diskontering av anläggningskostnader och reinvesteringar | J33: Vid omledning | N33: väg
A35: År | B35: =Indata!B23 -> 2028 | C35: =B35+1 -> 2029 | D35: =C35+1 -> 2030 | E35: 2031 | F35: 2032 | G35: 2033 | H35: 2034 | I35: 2035 | J35: 2036 | K35: 2037 | L35: 2038 | M35: 2039 | N35: 2040 | O35: 2041 | P35: 2042 | Q35: 2043 | R35: 2044 | S35: 2045 | T35: 2046 | U35: 2047 | V35: 2048 | W35: 2049 | X35: 2050 | Y35: 2051 | Z35: 2052 | AA35: 2053 | AB35: 2054 | AC35: 2055 | AD35: 2056 | AE35: 2057 | AF35: 2058 | AG35: 2059 | AH35: 2060 | AI35: 2061 | AJ35: 2062 | AK35: 2063 | AL35: 2064 | AM35: 2065 | AN35: 2066 | AO35: 2067 | AP35: 2068 | AQ35: 2069 | AR35: 2070 | AS35: 2071 | AT35: 2072 | AU35: 2073 | AV35: 2074 | AW35: 2075 | AX35: 2076 | AY35: 2077 | AZ35: 2078 | BA35: 2079 | BB35: 2080 | BC35: 2081 | BD35: 2082 | BE35: 2083 | BF35: 2084 | BG35: 2085 | BH35: 2086 | BI35: 2087 | BJ35: 2088 | BK35: 2089 | BL35: 2090 | BM35: 2091 | BN35: 2092 | BO35: 2093 | BP35: =BO35+1 -> 2094 | BQ35: 2095 | BR35: 2096 | BS35: 2097
A36: År (nr) | B36: 1 | C36: =B36+1 -> 2 | D36: 3 | E36: 4 | F36: 5 | G36: 6 | H36: 7 | I36: 8 | J36: 9 | K36: 10 | L36: 11 | M36: 12 | N36: 13 | O36: 14 | P36: 15 | Q36: 16 | R36: 17 | S36: 18 | T36: 19 | U36: 20 | V36: 21 | W36: 22 | X36: 23 | Y36: 24 | Z36: 25 | AA36: 26 | AB36: 27 | AC36: 28 | AD36: 29 | AE36: 30 | AF36: 31 | AG36: 32 | AH36: 33 | AI36: 34 | AJ36: 35 | AK36: 36 | AL36: 37 | AM36: 38 | AN36: 39 | AO36: 40 | AP36: 41 | AQ36: 42 | AR36: 43 | AS36: 44 | AT36: 45 | AU36: 46 | AV36: 47 | AW36: 48 | AX36: 49 | AY36: 50 | AZ36: 51 | BA36: 52 | BB36: 53 | BC36: 54 | BD36: 55 | BE36: 56 | BF36: 57 | BG36: 58 | BH36: 59 | BI36: 60 | BJ36: 61 | BK36: 62 | BL36: 63 | BM36: 64 | BN36: 65 | BO36: 66 | BP36: 67 | BQ36: 68 | BR36: 69 | BS36: 70
A37: Diskonteringsfaktor | B37: =(1+Kalkylvärden!$B$4/100)^(Diskontering!B36-1) -> 1 | C37: =(1+Kalkylvärden!$B$4/100)^(Diskontering!C36-1) -> 1.035 | D37: =(1+Kalkylvärden!$B$4/100)^(Diskontering!D36-1) -> 1.071225 | E37: =(1+Kalkylvärden!$B$4/100)^(Diskontering!E36-1) -> 1.108717875 | F37: =(1+Kalkylvärden!$B$4/100)^(Diskontering!F36-1) -> 1.147523001 | G37: =(1+Kalkylvärden!$B$4/100)^(Diskontering!G36-1) -> 1.187686306 | H37: =(1+Kalkylvärden!$B$4/100)^(Diskontering!H36-1) -> 1.229255326 | I37: =(1+Kalkylvärden!$B$4/100)^(Diskontering!I36-1) -> 1.272279263 | J37: =(1+Kalkylvärden!$B$4/100)^(Diskontering!J36-1) -> 1.316809037 | K37: =(1+Kalkylvärden!$B$4/100)^(Diskontering!K36-1) -> 1.362897353 | L37: =(1+Kalkylvärden!$B$4/100)^(Diskontering!L36-1) -> 1.410598761 | M37: =(1+Kalkylvärden!$B$4/100)^(Diskontering!M36-1) -> 1.459969717 | N37: =(1+Kalkylvärden!$B$4/100)^(Diskontering!N36-1) -> 1.511068657 | O37: =(1+Kalkylvärden!$B$4/100)^(Diskontering!O36-1) -> 1.56395606 | P37: =(1+Kalkylvärden!$B$4/100)^(Diskontering!P36-1) -> 1.618694522 | Q37: =(1+Kalkylvärden!$B$4/100)^(Diskontering!Q36-1) -> 1.675348831 | R37: =(1+Kalkylvärden!$B$4/100)^(Diskontering!R36-1) -> 1.73398604 | S37: =(1+Kalkylvärden!$B$4/100)^(Diskontering!S36-1) -> 1.794675551 | T37: =(1+Kalkylvärden!$B$4/100)^(Diskontering!T36-1) -> 1.857489196 | U37: =(1+Kalkylvärden!$B$4/100)^(Diskontering!U36-1) -> 1.922501317 | V37: =(1+Kalkylvärden!$B$4/100)^(Diskontering!V36-1) -> 1.989788863 | W37: =(1+Kalkylvärden!$B$4/100)^(Diskontering!W36-1) -> 2.059431474 | X37: =(1+Kalkylvärden!$B$4/100)^(Diskontering!X36-1) -> 2.131511575 | Y37: =(1+Kalkylvärden!$B$4/100)^(Diskontering!Y36-1) -> 2.20611448 | Z37: =(1+Kalkylvärden!$B$4/100)^(Diskontering!Z36-1) -> 2.283328487 | AA37: =(1+Kalkylvärden!$B$4/100)^(Diskontering!AA36-1) -> 2.363244984 | AB37: =(1+Kalkylvärden!$B$4/100)^(Diskontering!AB36-1) -> 2.445958559 | AC37: =(1+Kalkylvärden!$B$4/100)^(Diskontering!AC36-1) -> 2.531567108 | AD37: =(1+Kalkylvärden!$B$4/100)^(Diskontering!AD36-1) -> 2.620171957 | AE37: =(1+Kalkylvärden!$B$4/100)^(Diskontering!AE36-1) -> 2.711877976 | AF37: =(1+Kalkylvärden!$B$4/100)^(Diskontering!AF36-1) -> 2.806793705 | AG37: =(1+Kalkylvärden!$B$4/100)^(Diskontering!AG36-1) -> 2.905031484 | AH37: =(1+Kalkylvärden!$B$4/100)^(Diskontering!AH36-1) -> 3.006707586 | AI37: =(1+Kalkylvärden!$B$4/100)^(Diskontering!AI36-1) -> 3.111942352 | AJ37: =(1+Kalkylvärden!$B$4/100)^(Diskontering!AJ36-1) -> 3.220860334 | AK37: =(1+Kalkylvärden!$B$4/100)^(Diskontering!AK36-1) -> 3.333590446 | AL37: =(1+Kalkylvärden!$B$4/100)^(Diskontering!AL36-1) -> 3.450266111 | AM37: =(1+Kalkylvärden!$B$4/100)^(Diskontering!AM36-1) -> 3.571025425 | AN37: =(1+Kalkylvärden!$B$4/100)^(Diskontering!AN36-1) -> 3.696011315 | AO37: =(1+Kalkylvärden!$B$4/100)^(Diskontering!AO36-1) -> 3.825371711 | AP37: =(1+Kalkylvärden!$B$4/100)^(Diskontering!AP36-1) -> 3.959259721 | AQ37: =(1+Kalkylvärden!$B$4/100)^(Diskontering!AQ36-1) -> 4.097833811 | AR37: =(1+Kalkylvärden!$B$4/100)^(Diskontering!AR36-1) -> 4.241257995 | AS37: =(1+Kalkylvärden!$B$4/100)^(Diskontering!AS36-1) -> 4.389702025 | AT37: =(1+Kalkylvärden!$B$4/100)^(Diskontering!AT36-1) -> 4.543341595 | AU37: =(1+Kalkylvärden!$B$4/100)^(Diskontering!AU36-1) -> 4.702358551 | AV37: =(1+Kalkylvärden!$B$4/100)^(Diskontering!AV36-1) -> 4.866941101 | AW37: =(1+Kalkylvärden!$B$4/100)^(Diskontering!AW36-1) -> 5.037284039 | AX37: =(1+Kalkylvärden!$B$4/100)^(Diskontering!AX36-1) -> 5.213588981 | AY37: =(1+Kalkylvärden!$B$4/100)^(Diskontering!AY36-1) -> 5.396064595 | AZ37: =(1+Kalkylvärden!$B$4/100)^(Diskontering!AZ36-1) -> 5.584926856 | BA37: =(1+Kalkylvärden!$B$4/100)^(Diskontering!BA36-1) -> 5.780399296 | BB37: =(1+Kalkylvärden!$B$4/100)^(Diskontering!BB36-1) -> 5.982713271 | BC37: =(1+Kalkylvärden!$B$4/100)^(Diskontering!BC36-1) -> 6.192108235 | BD37: =(1+Kalkylvärden!$B$4/100)^(Diskontering!BD36-1) -> 6.408832024 | BE37: =(1+Kalkylvärden!$B$4/100)^(Diskontering!BE36-1) -> 6.633141145 | BF37: =(1+Kalkylvärden!$B$4/100)^(Diskontering!BF36-1) -> 6.865301085 | BG37: =(1+Kalkylvärden!$B$4/100)^(Diskontering!BG36-1) -> 7.105586623 | BH37: =(1+Kalkylvärden!$B$4/100)^(Diskontering!BH36-1) -> 7.354282154 | BI37: =(1+Kalkylvärden!$B$4/100)^(Diskontering!BI36-1) -> 7.61168203 | BJ37: =(1+Kalkylvärden!$B$4/100)^(Diskontering!BJ36-1) -> 7.878090901 | BK37: =(1+Kalkylvärden!$B$4/100)^(Diskontering!BK36-1) -> 8.153824082 | BL37: =(1+Kalkylvärden!$B$4/100)^(Diskontering!BL36-1) -> 8.439207925 | BM37: =(1+Kalkylvärden!$B$4/100)^(Diskontering!BM36-1) -> 8.734580203 | BN37: =(1+Kalkylvärden!$B$4/100)^(Diskontering!BN36-1) -> 9.04029051 | BO37: =(1+Kalkylvärden!$B$4/100)^(Diskontering!BO36-1) -> 9.356700677 | BP37: =(1+Kalkylvärden!$B$4/100)^(Diskontering!BP36-1) -> 9.684185201 | BQ37: =(1+Kalkylvärden!$B$4/100)^(Diskontering!BQ36-1) -> 10.02313168 | BR37: =(1+Kalkylvärden!$B$4/100)^(Diskontering!BR36-1) -> 10.37394129 | BS37: =(1+Kalkylvärden!$B$4/100)^(Diskontering!BS36-1) -> 10.73702924
A40: Uppräkningsfaktor för anläggningskostnader bana | B40: =($B19)^(Diskontering!B36-1) -> 1 | C40: =($B19)^(Diskontering!C36-1) -> 1.019413222 | D40: =($B19)^(Diskontering!D36-1) -> 1.039203316 | E40: =($B19)^(Diskontering!E36-1) -> 1.0593776 | F40: =($B19)^(Diskontering!F36-1) -> 1.079943533 | G40: =($B19)^(Diskontering!G36-1) -> 1.100908716 | H40: =($B19)^(Diskontering!H36-1) -> 1.1222809 | I40: =($B19)^(Diskontering!I36-1) -> 1.144067988 | J40: =($B19)^(Diskontering!J36-1) -> 1.166278033 | K40: =($B19)^(Diskontering!K36-1) -> 1.188919247 | L40: =($B19)^(Diskontering!L36-1) -> 1.212 | M40: =($B19)^(Diskontering!M36-1) -> 1.235528825 | N40: =($B19)^(Diskontering!N36-1) -> 1.259514419 | O40: =($B19)^(Diskontering!O36-1) -> 1.283965652 | P40: =($B19)^(Diskontering!P36-1) -> 1.308891561 | Q40: =($B19)^(Diskontering!Q36-1) -> 1.334301363 | R40: =($B19)^(Diskontering!R36-1) -> 1.360204451 | S40: =($B19)^(Diskontering!S36-1) -> 1.386610402 | T40: =($B19)^(Diskontering!T36-1) -> 1.413528977 | U40: =($B19)^(Diskontering!U36-1) -> 1.440970128 | V40: =($B19)^(Diskontering!V36-1) -> 1.468944 | W40: =($B19)^(Diskontering!W36-1) -> 1.497460935 | X40: =($B19)^(Diskontering!X36-1) -> 1.526531476 | Y40: =($B19)^(Diskontering!Y36-1) -> 1.55616637 | Z40: =($B19)^(Diskontering!Z36-1) -> 1.586376572 | AA40: =($B19)^(Diskontering!AA36-1) -> 1.617173252 | AB40: =($B19)^(Diskontering!AB36-1) -> 1.648567795 | AC40: =($B19)^(Diskontering!AC36-1) -> 1.680571807 | AD40: =($B19)^(Diskontering!AD36-1) -> 1.71319712 | AE40: =($B19)^(Diskontering!AE36-1) -> 1.746455795 | AF40: =($B19)^(Diskontering!AF36-1) -> 1.780360128 | AG40: =($B19)^(Diskontering!AG36-1) -> 1.814922654 | AH40: =($B19)^(Diskontering!AH36-1) -> 1.850156149 | AI40: =($B19)^(Diskontering!AI36-1) -> 1.88607364 | AJ40: =($B19)^(Diskontering!AJ36-1) -> 1.922688406 | AK40: =($B19)^(Diskontering!AK36-1) -> 1.960013982 | AL40: =($B19)^(Diskontering!AL36-1) -> 1.998064167 | AM40: =($B19)^(Diskontering!AM36-1) -> 2.03685303 | AN40: =($B19)^(Diskontering!AN36-1) -> 2.076394909 | AO40: =($B19)^(Diskontering!AO36-1) -> 2.116704423 | AP40: =($B19)^(Diskontering!AP36-1) -> 2.157796475 | AQ40: =($B19)^(Diskontering!AQ36-1) -> 2.199686256 | AR40: =($B19)^(Diskontering!AR36-1) -> 2.242389253 | AS40: =($B19)^(Diskontering!AS36-1) -> 2.285921252 | AT40: =($B19)^(Diskontering!AT36-1) -> 2.330298348 | AU40: =($B19)^(Diskontering!AU36-1) -> 2.375536946 | AV40: =($B19)^(Diskontering!AV36-1) -> 2.421653771 | AW40: =($B19)^(Diskontering!AW36-1) -> 2.468665872 | AX40: =($B19)^(Diskontering!AX36-1) -> 2.51659063 | AY40: =($B19)^(Diskontering!AY36-1) -> 2.565445761 | AZ40: =($B19)^(Diskontering!AZ36-1) -> 2.615249328 | BA40: =($B19)^(Diskontering!BA36-1) -> 2.666019742 | BB40: =($B19)^(Diskontering!BB36-1) -> 2.717775774 | BC40: =($B19)^(Diskontering!BC36-1) -> 2.770536558 | BD40: =($B19)^(Diskontering!BD36-1) -> 2.824321598 | BE40: =($B19)^(Diskontering!BE36-1) -> 2.879150778 | BF40: =($B19)^(Diskontering!BF36-1) -> 2.93504437 | BG40: =($B19)^(Diskontering!BG36-1) -> 2.992023037 | BH40: =($B19)^(Diskontering!BH36-1) -> 3.050107843 | BI40: =($B19)^(Diskontering!BI36-1) -> 3.109320262 | BJ40: =($B19)^(Diskontering!BJ36-1) -> 3.169682185 | BK40: =($B19)^(Diskontering!BK36-1) -> 3.231215928 | BL40: =($B19)^(Diskontering!BL36-1) -> 3.293944239 | BM40: =($B19)^(Diskontering!BM36-1) -> 3.357890308 | BN40: =($B19)^(Diskontering!BN36-1) -> 3.423077776 | BO40: =($B19)^(Diskontering!BO36-1) -> 3.489530743 | BP40: =($B19)^(Diskontering!BP36-1) -> 3.557273777 | BQ40: =($B19)^(Diskontering!BQ36-1) -> 3.626331921 | BR40: =($B19)^(Diskontering!BR36-1) -> 3.696730706 | BS40: =($B19)^(Diskontering!BS36-1) -> 3.768496158
A41: Uppräkningsfaktor för reinvkostnader bana | B41: =IF(Diskontering!B35>Kalkylvärden!$B7,A41*(1+$C21/100),(1+$B21/100)^(B35-Kalkylvärden!$B6)) -> 1 | C41: =IF(Diskontering!C35>Kalkylvärden!$B7,B41*(1+$C21/100),(1+$B21/100)^(C35-Kalkylvärden!$B6)) -> 1.01009 | D41: =IF(Diskontering!D35>Kalkylvärden!$B7,C41*(1+$C21/100),(1+$B21/100)^(D35-Kalkylvärden!$B6)) -> 1.020281808 | E41: =IF(Diskontering!E35>Kalkylvärden!$B7,D41*(1+$C21/100),(1+$B21/100)^(E35-Kalkylvärden!$B6)) -> 1.030576452 | F41: =IF(Diskontering!F35>Kalkylvärden!$B7,E41*(1+$C21/100),(1+$B21/100)^(F35-Kalkylvärden!$B6)) -> 1.040974968 | G41: =IF(Diskontering!G35>Kalkylvärden!$B7,F41*(1+$C21/100),(1+$B21/100)^(G35-Kalkylvärden!$B6)) -> 1.051478405 | H41: =IF(Diskontering!H35>Kalkylvärden!$B7,G41*(1+$C21/100),(1+$B21/100)^(H35-Kalkylvärden!$B6)) -> 1.062087822 | I41: =IF(Diskontering!I35>Kalkylvärden!$B7,H41*(1+$C21/100),(1+$B21/100)^(I35-Kalkylvärden!$B6)) -> 1.072804289 | J41: =IF(Diskontering!J35>Kalkylvärden!$B7,I41*(1+$C21/100),(1+$B21/100)^(J35-Kalkylvärden!$B6)) -> 1.083628884 | K41: =IF(Diskontering!K35>Kalkylvärden!$B7,J41*(1+$C21/100),(1+$B21/100)^(K35-Kalkylvärden!$B6)) -> 1.094562699 | L41: =IF(Diskontering!L35>Kalkylvärden!$B7,K41*(1+$C21/100),(1+$B21/100)^(L35-Kalkylvärden!$B6)) -> 1.105606837 | M41: =IF(Diskontering!M35>Kalkylvärden!$B7,L41*(1+$C21/100),(1+$B21/100)^(M35-Kalkylvärden!$B6)) -> 1.11676241 | N41: =IF(Diskontering!N35>Kalkylvärden!$B7,M41*(1+$C21/100),(1+$B21/100)^(N35-Kalkylvärden!$B6)) -> 1.128030543 | O41: =IF(Diskontering!O35>Kalkylvärden!$B7,N41*(1+$C21/100),(1+$B21/100)^(O35-Kalkylvärden!$B6)) -> 1.139412371 | P41: =IF(Diskontering!P35>Kalkylvärden!$B7,O41*(1+$C21/100),(1+$B21/100)^(P35-Kalkylvärden!$B6)) -> 1.150909042 | Q41: =IF(Diskontering!Q35>Kalkylvärden!$B7,P41*(1+$C21/100),(1+$B21/100)^(Q35-Kalkylvärden!$B6)) -> 1.162521714 | R41: =IF(Diskontering!R35>Kalkylvärden!$B7,Q41*(1+$C21/100),(1+$B21/100)^(R35-Kalkylvärden!$B6)) -> 1.174251558 | S41: =IF(Diskontering!S35>Kalkylvärden!$B7,R41*(1+$C21/100),(1+$B21/100)^(S35-Kalkylvärden!$B6)) -> 1.186099756 | T41: =IF(Diskontering!T35>Kalkylvärden!$B7,S41*(1+$C21/100),(1+$B21/100)^(T35-Kalkylvärden!$B6)) -> 1.186099756 | U41: =IF(Diskontering!U35>Kalkylvärden!$B7,T41*(1+$C21/100),(1+$B21/100)^(U35-Kalkylvärden!$B6)) -> 1.186099756 | V41: =IF(Diskontering!V35>Kalkylvärden!$B7,U41*(1+$C21/100),(1+$B21/100)^(V35-Kalkylvärden!$B6)) -> 1.186099756 | W41: =IF(Diskontering!W35>Kalkylvärden!$B7,V41*(1+$C21/100),(1+$B21/100)^(W35-Kalkylvärden!$B6)) -> 1.186099756 | X41: =IF(Diskontering!X35>Kalkylvärden!$B7,W41*(1+$C21/100),(1+$B21/100)^(X35-Kalkylvärden!$B6)) -> 1.186099756 | Y41: =IF(Diskontering!Y35>Kalkylvärden!$B7,X41*(1+$C21/100),(1+$B21/100)^(Y35-Kalkylvärden!$B6)) -> 1.186099756 | Z41: =IF(Diskontering!Z35>Kalkylvärden!$B7,Y41*(1+$C21/100),(1+$B21/100)^(Z35-Kalkylvärden!$B6)) -> 1.186099756 | AA41: =IF(Diskontering!AA35>Kalkylvärden!$B7,Z41*(1+$C21/100),(1+$B21/100)^(AA35-Kalkylvärden!$B6)) -> 1.186099756 | AB41: =IF(Diskontering!AB35>Kalkylvärden!$B7,AA41*(1+$C21/100),(1+$B21/100)^(AB35-Kalkylvärden!$B6)) -> 1.186099756 | AC41: =IF(Diskontering!AC35>Kalkylvärden!$B7,AB41*(1+$C21/100),(1+$B21/100)^(AC35-Kalkylvärden!$B6)) -> 1.186099756 | AD41: =IF(Diskontering!AD35>Kalkylvärden!$B7,AC41*(1+$C21/100),(1+$B21/100)^(AD35-Kalkylvärden!$B6)) -> 1.186099756 | AE41: =IF(Diskontering!AE35>Kalkylvärden!$B7,AD41*(1+$C21/100),(1+$B21/100)^(AE35-Kalkylvärden!$B6)) -> 1.186099756 | AF41: =IF(Diskontering!AF35>Kalkylvärden!$B7,AE41*(1+$C21/100),(1+$B21/100)^(AF35-Kalkylvärden!$B6)) -> 1.186099756 | AG41: =IF(Diskontering!AG35>Kalkylvärden!$B7,AF41*(1+$C21/100),(1+$B21/100)^(AG35-Kalkylvärden!$B6)) -> 1.186099756 | AH41: =IF(Diskontering!AH35>Kalkylvärden!$B7,AG41*(1+$C21/100),(1+$B21/100)^(AH35-Kalkylvärden!$B6)) -> 1.186099756 | AI41: =IF(Diskontering!AI35>Kalkylvärden!$B7,AH41*(1+$C21/100),(1+$B21/100)^(AI35-Kalkylvärden!$B6)) -> 1.186099756 | AJ41: =IF(Diskontering!AJ35>Kalkylvärden!$B7,AI41*(1+$C21/100),(1+$B21/100)^(AJ35-Kalkylvärden!$B6)) -> 1.186099756 | AK41: =IF(Diskontering!AK35>Kalkylvärden!$B7,AJ41*(1+$C21/100),(1+$B21/100)^(AK35-Kalkylvärden!$B6)) -> 1.186099756 | AL41: =IF(Diskontering!AL35>Kalkylvärden!$B7,AK41*(1+$C21/100),(1+$B21/100)^(AL35-Kalkylvärden!$B6)) -> 1.186099756 | AM41: =IF(Diskontering!AM35>Kalkylvärden!$B7,AL41*(1+$C21/100),(1+$B21/100)^(AM35-Kalkylvärden!$B6)) -> 1.186099756 | AN41: =IF(Diskontering!AN35>Kalkylvärden!$B7,AM41*(1+$C21/100),(1+$B21/100)^(AN35-Kalkylvärden!$B6)) -> 1.186099756 | AO41: =IF(Diskontering!AO35>Kalkylvärden!$B7,AN41*(1+$C21/100),(1+$B21/100)^(AO35-Kalkylvärden!$B6)) -> 1.186099756 | AP41: =IF(Diskontering!AP35>Kalkylvärden!$B7,AO41*(1+$C21/100),(1+$B21/100)^(AP35-Kalkylvärden!$B6)) -> 1.186099756 | AQ41: =IF(Diskontering!AQ35>Kalkylvärden!$B7,AP41*(1+$C21/100),(1+$B21/100)^(AQ35-Kalkylvärden!$B6)) -> 1.186099756 | AR41: =IF(Diskontering!AR35>Kalkylvärden!$B7,AQ41*(1+$C21/100),(1+$B21/100)^(AR35-Kalkylvärden!$B6)) -> 1.186099756 | AS41: =IF(Diskontering!AS35>Kalkylvärden!$B7,AR41*(1+$C21/100),(1+$B21/100)^(AS35-Kalkylvärden!$B6)) -> 1.186099756 | AT41: =IF(Diskontering!AT35>Kalkylvärden!$B7,AS41*(1+$C21/100),(1+$B21/100)^(AT35-Kalkylvärden!$B6)) -> 1.186099756 | AU41: =IF(Diskontering!AU35>Kalkylvärden!$B7,AT41*(1+$C21/100),(1+$B21/100)^(AU35-Kalkylvärden!$B6)) -> 1.186099756 | AV41: =IF(Diskontering!AV35>Kalkylvärden!$B7,AU41*(1+$C21/100),(1+$B21/100)^(AV35-Kalkylvärden!$B6)) -> 1.186099756 | AW41: =IF(Diskontering!AW35>Kalkylvärden!$B7,AV41*(1+$C21/100),(1+$B21/100)^(AW35-Kalkylvärden!$B6)) -> 1.186099756 | AX41: =IF(Diskontering!AX35>Kalkylvärden!$B7,AW41*(1+$C21/100),(1+$B21/100)^(AX35-Kalkylvärden!$B6)) -> 1.186099756 | AY41: =IF(Diskontering!AY35>Kalkylvärden!$B7,AX41*(1+$C21/100),(1+$B21/100)^(AY35-Kalkylvärden!$B6)) -> 1.186099756 | AZ41: =IF(Diskontering!AZ35>Kalkylvärden!$B7,AY41*(1+$C21/100),(1+$B21/100)^(AZ35-Kalkylvärden!$B6)) -> 1.186099756 | BA41: =IF(Diskontering!BA35>Kalkylvärden!$B7,AZ41*(1+$C21/100),(1+$B21/100)^(BA35-Kalkylvärden!$B6)) -> 1.186099756 | BB41: =IF(Diskontering!BB35>Kalkylvärden!$B7,BA41*(1+$C21/100),(1+$B21/100)^(BB35-Kalkylvärden!$B6)) -> 1.186099756 | BC41: =IF(Diskontering!BC35>Kalkylvärden!$B7,BB41*(1+$C21/100),(1+$B21/100)^(BC35-Kalkylvärden!$B6)) -> 1.186099756 | BD41: =IF(Diskontering!BD35>Kalkylvärden!$B7,BC41*(1+$C21/100),(1+$B21/100)^(BD35-Kalkylvärden!$B6)) -> 1.186099756 | BE41: =IF(Diskontering!BE35>Kalkylvärden!$B7,BD41*(1+$C21/100),(1+$B21/100)^(BE35-Kalkylvärden!$B6)) -> 1.186099756 | BF41: =IF(Diskontering!BF35>Kalkylvärden!$B7,BE41*(1+$C21/100),(1+$B21/100)^(BF35-Kalkylvärden!$B6)) -> 1.186099756 | BG41: =IF(Diskontering!BG35>Kalkylvärden!$B7,BF41*(1+$C21/100),(1+$B21/100)^(BG35-Kalkylvärden!$B6)) -> 1.186099756 | BH41: =IF(Diskontering!BH35>Kalkylvärden!$B7,BG41*(1+$C21/100),(1+$B21/100)^(BH35-Kalkylvärden!$B6)) -> 1.186099756 | BI41: =IF(Diskontering!BI35>Kalkylvärden!$B7,BH41*(1+$C21/100),(1+$B21/100)^(BI35-Kalkylvärden!$B6)) -> 1.186099756 | BJ41: =IF(Diskontering!BJ35>Kalkylvärden!$B7,BI41*(1+$C21/100),(1+$B21/100)^(BJ35-Kalkylvärden!$B6)) -> 1.186099756 | BK41: =IF(Diskontering!BK35>Kalkylvärden!$B7,BJ41*(1+$C21/100),(1+$B21/100)^(BK35-Kalkylvärden!$B6)) -> 1.186099756 | BL41: =IF(Diskontering!BL35>Kalkylvärden!$B7,BK41*(1+$C21/100),(1+$B21/100)^(BL35-Kalkylvärden!$B6)) -> 1.186099756 | BM41: =IF(Diskontering!BM35>Kalkylvärden!$B7,BL41*(1+$C21/100),(1+$B21/100)^(BM35-Kalkylvärden!$B6)) -> 1.186099756 | BN41: =IF(Diskontering!BN35>Kalkylvärden!$B7,BM41*(1+$C21/100),(1+$B21/100)^(BN35-Kalkylvärden!$B6)) -> 1.186099756 | BO41: =IF(Diskontering!BO35>Kalkylvärden!$B7,BN41*(1+$C21/100),(1+$B21/100)^(BO35-Kalkylvärden!$B6)) -> 1.186099756 | BP41: =IF(Diskontering!BP35>Kalkylvärden!$B7,BO41*(1+$C21/100),(1+$B21/100)^(BP35-Kalkylvärden!$B6)) -> 1.186099756 | BQ41: =IF(Diskontering!BQ35>Kalkylvärden!$B7,BP41*(1+$C21/100),(1+$B21/100)^(BQ35-Kalkylvärden!$B6)) -> 1.186099756 | BR41: =IF(Diskontering!BR35>Kalkylvärden!$B7,BQ41*(1+$C21/100),(1+$B21/100)^(BR35-Kalkylvärden!$B6)) -> 1.186099756 | BS41: =IF(Diskontering!BS35>Kalkylvärden!$B7,BR41*(1+$C21/100),(1+$B21/100)^(BS35-Kalkylvärden!$B6)) -> 1.186099756
A44: Diskonteringsnuvärde MED uppräkningsfaktor för kostnader
A45: Diskonteringsnuvärde (Investering) | B45: =(B40)/B37 -> 1 | C45: =(C40)/C37 -> 0.9849403107 | D45: =(D40)/D37 -> 0.9701074156 | E45: 0.9554978993 | F45: 0.9411083978 | G45: 0.9269355977 | H45: 0.9129762355 | I45: 0.8992270971 | J45: 0.8856850163 | K45: 0.8723468751 | L45: 0.8592096022 | M45: 0.8462701725 | N45: 0.8335256066 | O45: 0.82097297 | P45: 0.8086093721 | Q45: 0.7964319661 | R45: 0.7844379482 | S45: 0.7726245564 | T45: 0.7609890706 | U45: 0.7495288116 | V45: 0.7382411405 | W45: 0.7271234583 | X45: 0.7161732049 | Y45: 0.705387859 | Z45: 0.6947649369 | AA45: 0.6843019928 | AB45: 0.6739966174 | AC45: 0.6638464377 | AD45: 0.6538491166 | AE45: 0.6440023521 | AF45: 0.6343038767 | AG45: 0.6247514574 | AH45: =(AH40)/AH37 -> 0.6153428945 | AI45: 0.6060760217 | AJ45: 0.5969487051 | AK45: 0.5879588431 | AL45: 0.5791043655 | AM45: 0.5703832337 | AN45: 0.5617934394 | AO45: 0.5533330047 | AP45: 0.5449999816 | AQ45: 0.5367924512 | AR45: 0.5287085236 | AS45: 0.5207463375 | AT45: 0.5129040595 | AU45: 0.5051798837 | AV45: 0.4975720316 | AW45: 0.4900787513 | AX45: 0.4826983176 | AY45: 0.4754290309 | AZ45: 0.4682692174 | BA45: 0.4612172284 | BB45: 0.4542714403 | BC45: 0.4474302535 | BD45: 0.4406920929 | BE45: 0.4340554069 | BF45: 0.4275186673 | BG45: 0.421080369 | BH45: 0.4147390295 | BI45: 0.4084931885 | BJ45: 0.402341408 | BK45: 0.3962822714 | BL45: 0.3903143835 | BM45: 0.3844363701 | BN45: 0.3786468778 | BO45: 0.3729445735 | BP45: 0.3673281441 | BQ45: 0.3617962963 | BR45: 0.3563477565
A46: Diskonteringsnuvärde (Reinv) | B46: =(B41)/B37 -> 1 | C46: 0.9759323671 | D46: 0.9524439853 | E46: 0.9295209131 | F46: 0.907149545 | G46: 0.8853166028 | H46: 0.8640091279 | I46: 0.8432144734 | J46: 0.8229202971 | K46: 0.8031145535 | L46: 0.7837854873 | M46: 0.7649216259 | N46: 0.7465117731 | O46: 0.7285450018 | P46: 0.7110106482 | Q46: 0.693898305 | R46: 0.6771978153 | S46: 0.6608992669 | T46: 0.6385500164 | U46: 0.6169565376 | V46: 0.596093273 | W46: 0.5759355295 | X46: 0.5564594488 | Y46: 0.5376419795 | Z46: 0.5194608497 | AA46: 0.5018945408 | AB46: 0.4849222616 | AC46: 0.4685239243 | AD46: 0.4526801201 | AE46: 0.4373720967 | AF46: 0.422581736 | AG46: 0.4082915323 | AH46: =(AH41)/AH37 -> 0.3944845723 | AI46: 0.3811445143 | AJ46: 0.3682555694 | AK46: 0.3558024825 | AL46: 0.3437705145 | AM46: 0.3321454246 | AN46: 0.3209134537 | AO46: 0.3100613079 | AP46: 0.2995761429 | AQ46: 0.2894455487 | AR46: 0.279657535 | AS46: 0.2702005169 | AT46: 0.2610633014 | AU46: 0.2522350738 | AV46: 0.2437053853 | AW46: 0.2354641404 | AX46: 0.2275015849 | AY46: 0.2198082946 | AZ46: 0.2123751639 | BA46: 0.205193395 | BB46: 0.198254488 | BC46: 0.1915502299 | BD46: 0.1850726859 | BE46: 0.1788141893 | BF46: 0.1727673326 | BG46: 0.1669249591 | BH46: 0.1612801537 | BI46: 0.1558262355 | BJ46: 0.1505567492 | BK46: 0.1454654582 | BL46: 0.1405463364 | BM46: 0.1357935618 | BN46: 0.1312015089 | BO46: 0.1267647429 | BP46: 0.1224780125 | BQ46: 0.118336244 | BR46: 0.1143345352
A48: KALKYLRESULTAT (DISKONTERINGAR)
A50: Investeringskostnader
A51: År | B51: =Indata!B11 -> 2028 | C51: =B51+1 -> 2029 | D51: 2030 | E51: 2031 | F51: 2032 | G51: 2033 | H51: =Indata!H11 -> 2034 | I51: 2035 | J51: 2036 | K51: 2037 | L51: 2038 | M51: 2039 | N51: 2040 | O51: 2041 | P51: 2042 | Q51: 2043 | R51: 2044 | S51: 2045 | T51: 2046 | U51: 2047 | V51: 2048 | W51: 2049 | X51: 2050 | Y51: 2051 | Z51: 2052 | AA51: 2053 | AB51: 2054 | AC51: 2055 | AD51: 2056 | AE51: 2057 | AF51: 2058 | AG51: 2059 | AH51: 2060 | AI51: 2061 | AJ51: 2062 | AK51: 2063 | AL51: 2064 | AM51: 2065 | AN51: 2066 | AO51: 2067 | AP51: 2068 | AQ51: 2069 | AR51: 2070 | AS51: 2071 | AT51: 2072 | AU51: 2073 | AV51: 2074 | AW51: 2075 | AX51: 2076 | AY51: 2077 | AZ51: 2078 | BA51: 2079 | BB51: 2080 | BC51: 2081 | BD51: 2082 | BE51: 2083 | BF51: 2084 | BG51: 2085 | BH51: 2086 | BI51: 2087 | BJ51: 2088 | BK51: 2089 | BL51: 2090 | BM51: 2091 | BN51: 2092 | BO51: =BN51+1 -> 2093 | BP51: =BO51+1 -> 2094 | BQ51: =BP51+1 -> 2095 | BR51: =BQ51+1 -> 2096 | BS51: =BR51+1 -> 2097
A52: Anläggningskostnader UA (prisnivå 2019) | B52: =Indata!B12 -> 10 | C52: =Indata!C12 -> 20 | D52: =Indata!D12 -> 10 | E52: =Indata!E12 -> 0 | F52: =Indata!F12 -> 0 | G52: =Indata!G12 -> 0 | H52: =Indata!H12 -> 0 | I52: =Indata!I12 -> 0 | J52: =Indata!J12 -> 0 | K52: =Indata!K12 -> 0 | L52: =Indata!L12 -> 0 | M52: =Indata!M12 -> 0 | N52: =Indata!N12 -> 0 | O52: =Indata!O12 -> 0 | P52: =Indata!P12 -> 0 | Q52: =Indata!Q12 -> 0 | R52: =Indata!R12 -> 0 | S52: =Indata!S12 -> 0 | T52: =Indata!T12 -> 0 | U52: =Indata!U12 -> 0 | V52: =Indata!V12 -> 0 | W52: =Indata!W12 -> 0 | X52: =Indata!X12 -> 0 | Y52: =Indata!Y12 -> 0 | Z52: =Indata!Z12 -> 0 | AA52: =Indata!AA12 -> 0 | AB52: =Indata!AB12 -> 0 | AC52: =Indata!AC12 -> 0 | AD52: =Indata!AD12 -> 0 | AE52: =Indata!AE12 -> 0 | AF52: =Indata!AF12 -> 0 | AG52: =Indata!AG12 -> 0 | AH52: =Indata!AH12 -> 0 | AI52: =Indata!AI12 -> 0 | AJ52: =Indata!AJ12 -> 0 | AK52: =Indata!AK12 -> 0 | AL52: =Indata!AL12 -> 0 | AM52: =Indata!AM12 -> 0 | AN52: =Indata!AN12 -> 0 | AO52: =Indata!AO12 -> 0 | AP52: =Indata!AP12 -> 0 | AQ52: =Indata!AQ12 -> 0 | AR52: =Indata!AR12 -> 0 | AS52: =Indata!AS12 -> 0 | AT52: =Indata!AT12 -> 0 | AU52: =Indata!AU12 -> 0 | AV52: =Indata!AV12 -> 0 | AW52: =Indata!AW12 -> 0 | AX52: =Indata!AX12 -> 0 | AY52: =Indata!AY12 -> 0 | AZ52: =Indata!AZ12 -> 0 | BA52: =Indata!BA12 -> 0 | BB52: =Indata!BB12 -> 0 | BC52: =Indata!BC12 -> 0 | BD52: =Indata!BD12 -> 0 | BE52: =Indata!BE12 -> 0 | BF52: =Indata!BF12 -> 0 | BG52: =Indata!BG12 -> 0 | BH52: =Indata!BH12 -> 0 | BI52: =Indata!BI12 -> 0 | BJ52: =Indata!BJ12 -> 0 | BK52: =Indata!BK12 -> 0 | BL52: =Indata!BL12 -> 0 | BM52: =Indata!BM12 -> 0 | BN52: =Indata!BN12 -> 0 | BO52: =Indata!BO12 -> 0 | BP52: =Indata!BP12 -> 0 | BQ52: =Indata!BQ12 -> 0 | BR52: =Indata!BR12 -> 0 | BS52: =Indata!BS12 -> 0
A53: Anläggningskostnader JA (prisnivå 2019) | B53: =Indata!B13 -> 0 | C53: =Indata!C13 -> 0 | D53: =Indata!D13 -> 0 | E53: =Indata!E13 -> 0 | F53: =Indata!F13 -> 0 | G53: =Indata!G13 -> 0 | H53: =Indata!H13 -> 0 | I53: =Indata!I13 -> 0 | J53: =Indata!J13 -> 0 | K53: =Indata!K13 -> 0 | L53: =Indata!L13 -> 0 | M53: =Indata!M13 -> 0 | N53: =Indata!N13 -> 0 | O53: =Indata!O13 -> 0 | P53: =Indata!P13 -> 0 | Q53: =Indata!Q13 -> 0 | R53: =Indata!R13 -> 0 | S53: =Indata!S13 -> 0 | T53: =Indata!T13 -> 0 | U53: =Indata!U13 -> 0 | V53: =Indata!V13 -> 0 | W53: =Indata!W13 -> 0 | X53: =Indata!X13 -> 0 | Y53: =Indata!Y13 -> 0 | Z53: =Indata!Z13 -> 0 | AA53: =Indata!AA13 -> 0 | AB53: =Indata!AB13 -> 0 | AC53: =Indata!AC13 -> 0 | AD53: =Indata!AD13 -> 0 | AE53: =Indata!AE13 -> 0 | AF53: =Indata!AF13 -> 0 | AG53: =Indata!AG13 -> 0 | AH53: =Indata!AH13 -> 0 | AI53: =Indata!AI13 -> 0 | AJ53: =Indata!AJ13 -> 0 | AK53: =Indata!AK13 -> 0 | AL53: =Indata!AL13 -> 0 | AM53: =Indata!AM13 -> 0 | AN53: =Indata!AN13 -> 0 | AO53: =Indata!AO13 -> 0 | AP53: =Indata!AP13 -> 0 | AQ53: =Indata!AQ13 -> 0 | AR53: =Indata!AR13 -> 0 | AS53: =Indata!AS13 -> 0 | AT53: =Indata!AT13 -> 0 | AU53: =Indata!AU13 -> 0 | AV53: =Indata!AV13 -> 0 | AW53: =Indata!AW13 -> 0 | AX53: =Indata!AX13 -> 0 | AY53: =Indata!AY13 -> 0 | AZ53: =Indata!AZ13 -> 0 | BA53: =Indata!BA13 -> 0 | BB53: =Indata!BB13 -> 0 | BC53: =Indata!BC13 -> 0 | BD53: =Indata!BD13 -> 0 | BE53: =Indata!BE13 -> 0 | BF53: =Indata!BF13 -> 0 | BG53: =Indata!BG13 -> 0 | BH53: =Indata!BH13 -> 0 | BI53: =Indata!BI13 -> 0 | BJ53: =Indata!BJ13 -> 0 | BK53: =Indata!BK13 -> 0 | BL53: =Indata!BL13 -> 0 | BM53: =Indata!BM13 -> 0 | BN53: =Indata!BN13 -> 0 | BO53: =Indata!BO13 -> 0 | BP53: =Indata!BP13 -> 0 | BQ53: =Indata!BQ13 -> 0 | BR53: =Indata!BR13 -> 0 | BS53: =Indata!BS13 -> 0
A54: SEK anl.kostn. UA | B54: =B52 -> 10 | C54: =C52 -> 20 | D54: 10 | E54: 0 | F54: 0 | G54: 0 | H54: 0 | I54: 0 | J54: 0 | K54: 0 | L54: 0 | M54: 0 | N54: 0 | O54: 0 | P54: 0 | Q54: 0 | R54: 0 | S54: 0 | T54: 0 | U54: 0 | V54: 0 | W54: 0 | X54: 0 | Y54: 0 | Z54: 0 | AA54: 0 | AB54: 0 | AC54: 0 | AD54: 0 | AE54: 0 | AF54: 0 | AG54: 0 | AH54: 0 | AI54: 0 | AJ54: 0 | AK54: 0 | AL54: 0 | AM54: 0 | AN54: 0 | AO54: 0 | AP54: 0 | AQ54: 0 | AR54: 0 | AS54: 0 | AT54: 0 | AU54: 0 | AV54: 0 | AW54: 0 | AX54: 0 | AY54: 0 | AZ54: 0 | BA54: 0 | BB54: 0 | BC54: 0 | BD54: 0 | BE54: 0 | BF54: 0 | BG54: 0 | BH54: 0 | BI54: 0 | BJ54: 0 | BK54: 0 | BL54: 0 | BM54: 0 | BN54: 0 | BO54: =BO52 -> 0 | BP54: 0 | BQ54: 0 | BR54: 0 | BS54: 0
A55: SEK anl.kostn. JA | B55: =B53 -> 0 | C55: =C53 -> 0 | D55: 0 | E55: 0 | F55: 0 | G55: 0 | H55: 0 | I55: 0 | J55: 0 | K55: 0 | L55: 0 | M55: 0 | N55: 0 | O55: 0 | P55: 0 | Q55: 0 | R55: 0 | S55: 0 | T55: 0 | U55: 0 | V55: 0 | W55: 0 | X55: 0 | Y55: 0 | Z55: 0 | AA55: 0 | AB55: 0 | AC55: 0 | AD55: 0 | AE55: 0 | AF55: 0 | AG55: 0 | AH55: 0 | AI55: 0 | AJ55: 0 | AK55: 0 | AL55: 0 | AM55: 0 | AN55: 0 | AO55: 0 | AP55: 0 | AQ55: 0 | AR55: 0 | AS55: 0 | AT55: 0 | AU55: 0 | AV55: 0 | AW55: 0 | AX55: 0 | AY55: 0 | AZ55: 0 | BA55: 0 | BB55: 0 | BC55: 0 | BD55: 0 | BE55: 0 | BF55: 0 | BG55: 0 | BH55: 0 | BI55: 0 | BJ55: 0 | BK55: 0 | BL55: 0 | BM55: 0 | BN55: 0 | BO55: =BO53 -> 0 | BP55: 0 | BQ55: 0 | BR55: 0 | BS55: 0
A56: Nuvärde SEK anl.kostn. UA | B56: =B54*B45 -> 10 | C56: =C54*C45 -> 19.69880621 | D56: 9.701074156 | E56: 0 | F56: 0 | G56: 0 | H56: 0 | I56: 0 | J56: 0 | K56: 0 | L56: 0 | M56: 0 | N56: 0 | O56: 0 | P56: 0 | Q56: 0 | R56: 0 | S56: 0 | T56: 0 | U56: 0 | V56: 0 | W56: 0 | X56: 0 | Y56: 0 | Z56: 0 | AA56: 0 | AB56: 0 | AC56: 0 | AD56: 0 | AE56: 0 | AF56: 0 | AG56: 0 | AH56: =AH54*AH45 -> 0 | AI56: 0 | AJ56: 0 | AK56: 0 | AL56: 0 | AM56: 0 | AN56: 0 | AO56: 0 | AP56: 0 | AQ56: 0 | AR56: 0 | AS56: 0 | AT56: 0 | AU56: 0 | AV56: 0 | AW56: 0 | AX56: 0 | AY56: 0 | AZ56: 0 | BA56: 0 | BB56: 0 | BC56: 0 | BD56: 0 | BE56: 0 | BF56: 0 | BG56: 0 | BH56: 0 | BI56: 0 | BJ56: 0 | BK56: 0 | BL56: 0 | BM56: 0 | BN56: =BN54*BN45 -> 0 | BO56: 0 | BP56: 0 | BQ56: 0 | BR56: 0 | BS56: 0
A57: Nuvärde SEK anl.kostn. JA | B57: =B55*B45 -> 0 | C57: 0 | D57: 0 | E57: 0 | F57: 0 | G57: 0 | H57: 0 | I57: 0 | J57: 0 | K57: 0 | L57: 0 | M57: 0 | N57: 0 | O57: 0 | P57: 0 | Q57: 0 | R57: 0 | S57: 0 | T57: 0 | U57: 0 | V57: 0 | W57: 0 | X57: 0 | Y57: 0 | Z57: 0 | AA57: 0 | AB57: 0 | AC57: 0 | AD57: 0 | AE57: 0 | AF57: 0 | AG57: 0 | AH57: =AH55*AH45 -> 0 | AI57: 0 | AJ57: 0 | AK57: 0 | AL57: 0 | AM57: 0 | AN57: 0 | AO57: 0 | AP57: 0 | AQ57: 0 | AR57: 0 | AS57: 0 | AT57: 0 | AU57: 0 | AV57: 0 | AW57: 0 | AX57: 0 | AY57: 0 | AZ57: 0 | BA57: 0 | BB57: 0 | BC57: 0 | BD57: 0 | BE57: 0 | BF57: 0 | BG57: 0 | BH57: 0 | BI57: 0 | BJ57: 0 | BK57: 0 | BL57: 0 | BM57: 0 | BN57: =BN55*BN45 -> 0 | BO57: 0 | BP57: 0 | BQ57: 0 | BR57: 0 | BS57: 0
A58: Nuvärde SEK anl.kostn. UA-JA | B58: =IF(B51<=(Kalkylvärden!$B$6+Indata!$B$24),B56-B57,"") -> 10 | C58: =IF(C51<=(Kalkylvärden!$B$6+Indata!$B$24),C56-C57,"") -> 19.69880621 | D58: =IF(D51<=(Kalkylvärden!$B$6+Indata!$B$24),D56-D57,"") -> 9.701074156 | E58: =IF(E51<=(Kalkylvärden!$B$6+Indata!$B$24),E56-E57,"") -> 0 | F58: =IF(F51<=(Kalkylvärden!$B$6+Indata!$B$24),F56-F57,"") -> 0 | G58: =IF(G51<=(Kalkylvärden!$B$6+Indata!$B$24),G56-G57,"") -> 0 | H58: =IF(H51<=(Kalkylvärden!$B$6+Indata!$B$24),H56-H57,"") -> 0 | I58: =IF(I51<=(Kalkylvärden!$B$6+Indata!$B$24),I56-I57,"") -> 0 | J58: =IF(J51<=(Kalkylvärden!$B$6+Indata!$B$24),J56-J57,"") -> 0 | K58: =IF(K51<=(Kalkylvärden!$B$6+Indata!$B$24),K56-K57,"") -> 0 | L58: =IF(L51<=(Kalkylvärden!$B$6+Indata!$B$24),L56-L57,"") -> 0 | M58: =IF(M51<=(Kalkylvärden!$B$6+Indata!$B$24),M56-M57,"") -> 0 | N58: =IF(N51<=(Kalkylvärden!$B$6+Indata!$B$24),N56-N57,"") -> 0 | O58: =IF(O51<=(Kalkylvärden!$B$6+Indata!$B$24),O56-O57,"") -> 0 | P58: =IF(P51<=(Kalkylvärden!$B$6+Indata!$B$24),P56-P57,"") -> 0 | Q58: =IF(Q51<=(Kalkylvärden!$B$6+Indata!$B$24),Q56-Q57,"") -> 0 | R58: =IF(R51<=(Kalkylvärden!$B$6+Indata!$B$24),R56-R57,"") -> 0 | S58: =IF(S51<=(Kalkylvärden!$B$6+Indata!$B$24),S56-S57,"") -> 0 | T58: =IF(T51<=(Kalkylvärden!$B$6+Indata!$B$24),T56-T57,"") -> 0 | U58: =IF(U51<=(Kalkylvärden!$B$6+Indata!$B$24),U56-U57,"") -> 0 | V58: =IF(V51<=(Kalkylvärden!$B$6+Indata!$B$24),V56-V57,"") -> 0 | W58: =IF(W51<=(Kalkylvärden!$B$6+Indata!$B$24),W56-W57,"") -> 0 | X58: =IF(X51<=(Kalkylvärden!$B$6+Indata!$B$24),X56-X57,"") -> 0 | Y58: =IF(Y51<=(Kalkylvärden!$B$6+Indata!$B$24),Y56-Y57,"") -> 0 | Z58: =IF(Z51<=(Kalkylvärden!$B$6+Indata!$B$24),Z56-Z57,"") -> 0 | AA58: =IF(AA51<=(Kalkylvärden!$B$6+Indata!$B$24),AA56-AA57,"") -> 0 | AB58: =IF(AB51<=(Kalkylvärden!$B$6+Indata!$B$24),AB56-AB57,"") -> 0 | AC58: =IF(AC51<=(Kalkylvärden!$B$6+Indata!$B$24),AC56-AC57,"") -> 0 | AD58: =IF(AD51<=(Kalkylvärden!$B$6+Indata!$B$24),AD56-AD57,"") -> 0 | AE58: =IF(AE51<=(Kalkylvärden!$B$6+Indata!$B$24),AE56-AE57,"") -> 0 | AF58: =IF(AF51<=(Kalkylvärden!$B$6+Indata!$B$24),AF56-AF57,"") -> 0 | AG58: =IF(AG51<=(Kalkylvärden!$B$6+Indata!$B$24),AG56-AG57,"") -> 0 | AH58: =IF(AH51<=(Kalkylvärden!$B$6+Indata!$B$24),AH56-AH57,"") -> 0 | AI58: =IF(AI51<=(Kalkylvärden!$B$6+Indata!$B$24),AI56-AI57,"") -> 0 | AJ58: =IF(AJ51<=(Kalkylvärden!$B$6+Indata!$B$24),AJ56-AJ57,"") -> 0 | AK58: =IF(AK51<=(Kalkylvärden!$B$6+Indata!$B$24),AK56-AK57,"") -> 0 | AL58: =IF(AL51<=(Kalkylvärden!$B$6+Indata!$B$24),AL56-AL57,"") -> 0 | AM58: =IF(AM51<=(Kalkylvärden!$B$6+Indata!$B$24),AM56-AM57,"") -> 0 | AN58: =IF(AN51<=(Kalkylvärden!$B$6+Indata!$B$24),AN56-AN57,"") -> 0 | AO58: =IF(AO51<=(Kalkylvärden!$B$6+Indata!$B$24),AO56-AO57,"") -> 0 | AP58: =IF(AP51<=(Kalkylvärden!$B$6+Indata!$B$24),AP56-AP57,"") -> 0 | AQ58: =IF(AQ51<=(Kalkylvärden!$B$6+Indata!$B$24),AQ56-AQ57,"") ->  | AR58: =IF(AR51<=(Kalkylvärden!$B$6+Indata!$B$24),AR56-AR57,"") ->  | AS58: =IF(AS51<=(Kalkylvärden!$B$6+Indata!$B$24),AS56-AS57,"") ->  | AT58: =IF(AT51<=(Kalkylvärden!$B$6+Indata!$B$24),AT56-AT57,"") ->  | AU58: =IF(AU51<=(Kalkylvärden!$B$6+Indata!$B$24),AU56-AU57,"") ->  | AV58: =IF(AV51<=(Kalkylvärden!$B$6+Indata!$B$24),AV56-AV57,"") ->  | AW58: =IF(AW51<=(Kalkylvärden!$B$6+Indata!$B$24),AW56-AW57,"") ->  | AX58: =IF(AX51<=(Kalkylvärden!$B$6+Indata!$B$24),AX56-AX57,"") ->  | AY58: =IF(AY51<=(Kalkylvärden!$B$6+Indata!$B$24),AY56-AY57,"") ->  | AZ58: =IF(AZ51<=(Kalkylvärden!$B$6+Indata!$B$24),AZ56-AZ57,"") ->  | BA58: =IF(BA51<=(Kalkylvärden!$B$6+Indata!$B$24),BA56-BA57,"") ->  | BB58: =IF(BB51<=(Kalkylvärden!$B$6+Indata!$B$24),BB56-BB57,"") ->  | BC58: =IF(BC51<=(Kalkylvärden!$B$6+Indata!$B$24),BC56-BC57,"") ->  | BD58: =IF(BD51<=(Kalkylvärden!$B$6+Indata!$B$24),BD56-BD57,"") ->  | BE58: =IF(BE51<=(Kalkylvärden!$B$6+Indata!$B$24),BE56-BE57,"") ->  | BF58: =IF(BF51<=(Kalkylvärden!$B$6+Indata!$B$24),BF56-BF57,"") ->  | BG58: =IF(BG51<=(Kalkylvärden!$B$6+Indata!$B$24),BG56-BG57,"") ->  | BH58: =IF(BH51<=(Kalkylvärden!$B$6+Indata!$B$24),BH56-BH57,"") ->  | BI58: =IF(BI51<=(Kalkylvärden!$B$6+Indata!$B$24),BI56-BI57,"") ->  | BJ58: =IF(BJ51<=(Kalkylvärden!$B$6+Indata!$B$24),BJ56-BJ57,"") ->  | BK58: =IF(BK51<=(Kalkylvärden!$B$6+Indata!$B$24),BK56-BK57,"") ->  | BL58: =IF(BL51<=(Kalkylvärden!$B$6+Indata!$B$24),BL56-BL57,"") ->  | BM58: =IF(BM51<=(Kalkylvärden!$B$6+Indata!$B$24),BM56-BM57,"") ->  | BN58: =IF(BN51<=(Kalkylvärden!$B$6+Indata!$B$24),BN56-BN57,"") ->  | BO58: =IF(BO51<=(Kalkylvärden!$B$6+Indata!$B$24),BO56-BO57,"") ->  | BP58: =IF(BP51<=(Kalkylvärden!$B$6+Indata!$B$24),BP56-BP57,"") ->  | BQ58: =IF(BQ51<=(Kalkylvärden!$B$6+Indata!$B$24),BQ56-BQ57,"") ->  | BR58: =IF(BR51<=(Kalkylvärden!$B$6+Indata!$B$24),BR56-BR57,"") ->  | BS58: =IF(BS51<=(Kalkylvärden!$B$6+Indata!$B$24),BS56-BS57,"") -> 
A59: Summa nuvärde SEK anläggningskostnader (mkr) | B59: =SUM(B58:BS58) -> 39.39988037
A62: Skattefinansieringskostnad investering
A64: Anläggningskostnader UA (prisnivå 2019) | B64: =Indata!B12 -> 10 | C64: =Indata!C12 -> 20 | D64: =Indata!D12 -> 10 | E64: =Indata!E12 -> 0 | F64: =Indata!F12 -> 0 | G64: =Indata!G12 -> 0 | H64: =Indata!H12 -> 0 | I64: =Indata!I12 -> 0 | J64: =Indata!J12 -> 0 | K64: =Indata!K12 -> 0 | L64: =Indata!L12 -> 0 | M64: =Indata!M12 -> 0 | N64: =Indata!N12 -> 0 | O64: =Indata!O12 -> 0 | P64: =Indata!P12 -> 0 | Q64: =Indata!Q12 -> 0 | R64: =Indata!R12 -> 0 | S64: =Indata!S12 -> 0 | T64: =Indata!T12 -> 0 | U64: =Indata!U12 -> 0 | V64: =Indata!V12 -> 0 | W64: =Indata!W12 -> 0 | X64: =Indata!X12 -> 0 | Y64: =Indata!Y12 -> 0 | Z64: =Indata!Z12 -> 0 | AA64: =Indata!AA12 -> 0 | AB64: =Indata!AB12 -> 0 | AC64: =Indata!AC12 -> 0 | AD64: =Indata!AD12 -> 0 | AE64: =Indata!AE12 -> 0 | AF64: =Indata!AF12 -> 0 | AG64: =Indata!AG12 -> 0 | AH64: =Indata!AH12 -> 0 | AI64: =Indata!AI12 -> 0 | AJ64: =Indata!AJ12 -> 0 | AK64: =Indata!AK12 -> 0 | AL64: =Indata!AL12 -> 0 | AM64: =Indata!AM12 -> 0 | AN64: =Indata!AN12 -> 0 | AO64: =Indata!AO12 -> 0 | AP64: =Indata!AP12 -> 0 | AQ64: =Indata!AQ12 -> 0 | AR64: =Indata!AR12 -> 0 | AS64: =Indata!AS12 -> 0 | AT64: =Indata!AT12 -> 0 | AU64: =Indata!AU12 -> 0 | AV64: =Indata!AV12 -> 0 | AW64: =Indata!AW12 -> 0 | AX64: =Indata!AX12 -> 0 | AY64: =Indata!AY12 -> 0 | AZ64: =Indata!AZ12 -> 0 | BA64: =Indata!BA12 -> 0 | BB64: =Indata!BB12 -> 0 | BC64: =Indata!BC12 -> 0 | BD64: =Indata!BD12 -> 0 | BE64: =Indata!BE12 -> 0 | BF64: =Indata!BF12 -> 0 | BG64: =Indata!BG12 -> 0 | BH64: =Indata!BH12 -> 0 | BI64: =Indata!BI12 -> 0 | BJ64: =Indata!BJ12 -> 0 | BK64: =Indata!BK12 -> 0 | BL64: =Indata!BL12 -> 0 | BM64: =Indata!BM12 -> 0 | BN64: =Indata!BN12 -> 0 | BO64: =Indata!BO12 -> 0 | BP64: =Indata!BP12 -> 0 | BQ64: =Indata!BQ12 -> 0 | BR64: =Indata!BR12 -> 0 | BS64: =Indata!BS12 -> 0
A65: Anläggningskostnader JA (prisnivå 2019) | B65: =Indata!B13 -> 0 | C65: =Indata!C13 -> 0 | D65: =Indata!D13 -> 0 | E65: =Indata!E13 -> 0 | F65: =Indata!F13 -> 0 | G65: =Indata!G13 -> 0 | H65: =Indata!H13 -> 0 | I65: =Indata!I13 -> 0 | J65: =Indata!J13 -> 0 | K65: =Indata!K13 -> 0 | L65: =Indata!L13 -> 0 | M65: =Indata!M13 -> 0 | N65: =Indata!N13 -> 0 | O65: =Indata!O13 -> 0 | P65: =Indata!P13 -> 0 | Q65: =Indata!Q13 -> 0 | R65: =Indata!R13 -> 0 | S65: =Indata!S13 -> 0 | T65: =Indata!T13 -> 0 | U65: =Indata!U13 -> 0 | V65: =Indata!V13 -> 0 | W65: =Indata!W13 -> 0 | X65: =Indata!X13 -> 0 | Y65: =Indata!Y13 -> 0 | Z65: =Indata!Z13 -> 0 | AA65: =Indata!AA13 -> 0 | AB65: =Indata!AB13 -> 0 | AC65: =Indata!AC13 -> 0 | AD65: =Indata!AD13 -> 0 | AE65: =Indata!AE13 -> 0 | AF65: =Indata!AF13 -> 0 | AG65: =Indata!AG13 -> 0 | AH65: =Indata!AH13 -> 0 | AI65: =Indata!AI13 -> 0 | AJ65: =Indata!AJ13 -> 0 | AK65: =Indata!AK13 -> 0 | AL65: =Indata!AL13 -> 0 | AM65: =Indata!AM13 -> 0 | AN65: =Indata!AN13 -> 0 | AO65: =Indata!AO13 -> 0 | AP65: =Indata!AP13 -> 0 | AQ65: =Indata!AQ13 -> 0 | AR65: =Indata!AR13 -> 0 | AS65: =Indata!AS13 -> 0 | AT65: =Indata!AT13 -> 0 | AU65: =Indata!AU13 -> 0 | AV65: =Indata!AV13 -> 0 | AW65: =Indata!AW13 -> 0 | AX65: =Indata!AX13 -> 0 | AY65: =Indata!AY13 -> 0 | AZ65: =Indata!AZ13 -> 0 | BA65: =Indata!BA13 -> 0 | BB65: =Indata!BB13 -> 0 | BC65: =Indata!BC13 -> 0 | BD65: =Indata!BD13 -> 0 | BE65: =Indata!BE13 -> 0 | BF65: =Indata!BF13 -> 0 | BG65: =Indata!BG13 -> 0 | BH65: =Indata!BH13 -> 0 | BI65: =Indata!BI13 -> 0 | BJ65: =Indata!BJ13 -> 0 | BK65: =Indata!BK13 -> 0 | BL65: =Indata!BL13 -> 0 | BM65: =Indata!BM13 -> 0 | BN65: =Indata!BN13 -> 0 | BO65: =Indata!BO13 -> 0 | BP65: =Indata!BP13 -> 0 | BQ65: =Indata!BQ13 -> 0 | BR65: =Indata!BR13 -> 0 | BS65: =Indata!BS13 -> 0
A66: SEK anl.kostn. UA | B66: =B64*(Kalkylvärden!$B$5-1) -> 2 | C66: =C64*(Kalkylvärden!$B$5-1) -> 4 | D66: =D64*(Kalkylvärden!$B$5-1) -> 2 | E66: =E64*(Kalkylvärden!$B$5-1) -> 0 | F66: =F64*(Kalkylvärden!$B$5-1) -> 0 | G66: =G64*(Kalkylvärden!$B$5-1) -> 0 | H66: =H64*(Kalkylvärden!$B$5-1) -> 0 | I66: =I64*(Kalkylvärden!$B$5-1) -> 0 | J66: =J64*(Kalkylvärden!$B$5-1) -> 0 | K66: =K64*(Kalkylvärden!$B$5-1) -> 0 | L66: =L64*(Kalkylvärden!$B$5-1) -> 0 | M66: =M64*(Kalkylvärden!$B$5-1) -> 0 | N66: =N64*(Kalkylvärden!$B$5-1) -> 0 | O66: =O64*(Kalkylvärden!$B$5-1) -> 0 | P66: =P64*(Kalkylvärden!$B$5-1) -> 0 | Q66: =Q64*(Kalkylvärden!$B$5-1) -> 0 | R66: =R64*(Kalkylvärden!$B$5-1) -> 0 | S66: =S64*(Kalkylvärden!$B$5-1) -> 0 | T66: =T64*(Kalkylvärden!$B$5-1) -> 0 | U66: =U64*(Kalkylvärden!$B$5-1) -> 0 | V66: =V64*(Kalkylvärden!$B$5-1) -> 0 | W66: =W64*(Kalkylvärden!$B$5-1) -> 0 | X66: =X64*(Kalkylvärden!$B$5-1) -> 0 | Y66: =Y64*(Kalkylvärden!$B$5-1) -> 0 | Z66: =Z64*(Kalkylvärden!$B$5-1) -> 0 | AA66: =AA64*(Kalkylvärden!$B$5-1) -> 0 | AB66: =AB64*(Kalkylvärden!$B$5-1) -> 0 | AC66: =AC64*(Kalkylvärden!$B$5-1) -> 0 | AD66: =AD64*(Kalkylvärden!$B$5-1) -> 0 | AE66: =AE64*(Kalkylvärden!$B$5-1) -> 0 | AF66: =AF64*(Kalkylvärden!$B$5-1) -> 0 | AG66: =AG64*(Kalkylvärden!$B$5-1) -> 0 | AH66: =AH64*(Kalkylvärden!$B$5-1) -> 0 | AI66: =AI64*(Kalkylvärden!$B$5-1) -> 0 | AJ66: =AJ64*(Kalkylvärden!$B$5-1) -> 0 | AK66: =AK64*(Kalkylvärden!$B$5-1) -> 0 | AL66: =AL64*(Kalkylvärden!$B$5-1) -> 0 | AM66: =AM64*(Kalkylvärden!$B$5-1) -> 0 | AN66: =AN64*(Kalkylvärden!$B$5-1) -> 0 | AO66: =AO64*(Kalkylvärden!$B$5-1) -> 0 | AP66: =AP64*(Kalkylvärden!$B$5-1) -> 0 | AQ66: =AQ64*(Kalkylvärden!$B$5-1) -> 0 | AR66: =AR64*(Kalkylvärden!$B$5-1) -> 0 | AS66: =AS64*(Kalkylvärden!$B$5-1) -> 0 | AT66: =AT64*(Kalkylvärden!$B$5-1) -> 0 | AU66: =AU64*(Kalkylvärden!$B$5-1) -> 0 | AV66: =AV64*(Kalkylvärden!$B$5-1) -> 0 | AW66: =AW64*(Kalkylvärden!$B$5-1) -> 0 | AX66: =AX64*(Kalkylvärden!$B$5-1) -> 0 | AY66: =AY64*(Kalkylvärden!$B$5-1) -> 0 | AZ66: =AZ64*(Kalkylvärden!$B$5-1) -> 0 | BA66: =BA64*(Kalkylvärden!$B$5-1) -> 0 | BB66: =BB64*(Kalkylvärden!$B$5-1) -> 0 | BC66: =BC64*(Kalkylvärden!$B$5-1) -> 0 | BD66: =BD64*(Kalkylvärden!$B$5-1) -> 0 | BE66: =BE64*(Kalkylvärden!$B$5-1) -> 0 | BF66: =BF64*(Kalkylvärden!$B$5-1) -> 0 | BG66: =BG64*(Kalkylvärden!$B$5-1) -> 0 | BH66: =BH64*(Kalkylvärden!$B$5-1) -> 0 | BI66: =BI64*(Kalkylvärden!$B$5-1) -> 0 | BJ66: =BJ64*(Kalkylvärden!$B$5-1) -> 0 | BK66: =BK64*(Kalkylvärden!$B$5-1) -> 0 | BL66: =BL64*(Kalkylvärden!$B$5-1) -> 0 | BM66: =BM64*(Kalkylvärden!$B$5-1) -> 0 | BN66: =BN64*(Kalkylvärden!$B$5-1) -> 0 | BO66: =BO64*(Kalkylvärden!$B$5-1) -> 0 | BP66: =BP64*(Kalkylvärden!$B$5-1) -> 0 | BQ66: =BQ64*(Kalkylvärden!$B$5-1) -> 0 | BR66: =BR64*(Kalkylvärden!$B$5-1) -> 0 | BS66: =BS64*(Kalkylvärden!$B$5-1) -> 0
A67: SEK anl.kostn. JA | B67: =B65*(Kalkylvärden!$B$5-1) -> 0 | C67: =C65*(Kalkylvärden!$B$5-1) -> 0 | D67: =D65*(Kalkylvärden!$B$5-1) -> 0 | E67: =E65*(Kalkylvärden!$B$5-1) -> 0 | F67: =F65*(Kalkylvärden!$B$5-1) -> 0 | G67: =G65*(Kalkylvärden!$B$5-1) -> 0 | H67: =H65*(Kalkylvärden!$B$5-1) -> 0 | I67: =I65*(Kalkylvärden!$B$5-1) -> 0 | J67: =J65*(Kalkylvärden!$B$5-1) -> 0 | K67: =K65*(Kalkylvärden!$B$5-1) -> 0 | L67: =L65*(Kalkylvärden!$B$5-1) -> 0 | M67: =M65*(Kalkylvärden!$B$5-1) -> 0 | N67: =N65*(Kalkylvärden!$B$5-1) -> 0 | O67: =O65*(Kalkylvärden!$B$5-1) -> 0 | P67: =P65*(Kalkylvärden!$B$5-1) -> 0 | Q67: =Q65*(Kalkylvärden!$B$5-1) -> 0 | R67: =R65*(Kalkylvärden!$B$5-1) -> 0 | S67: =S65*(Kalkylvärden!$B$5-1) -> 0 | T67: =T65*(Kalkylvärden!$B$5-1) -> 0 | U67: =U65*(Kalkylvärden!$B$5-1) -> 0 | V67: =V65*(Kalkylvärden!$B$5-1) -> 0 | W67: =W65*(Kalkylvärden!$B$5-1) -> 0 | X67: =X65*(Kalkylvärden!$B$5-1) -> 0 | Y67: =Y65*(Kalkylvärden!$B$5-1) -> 0 | Z67: =Z65*(Kalkylvärden!$B$5-1) -> 0 | AA67: =AA65*(Kalkylvärden!$B$5-1) -> 0 | AB67: =AB65*(Kalkylvärden!$B$5-1) -> 0 | AC67: =AC65*(Kalkylvärden!$B$5-1) -> 0 | AD67: =AD65*(Kalkylvärden!$B$5-1) -> 0 | AE67: =AE65*(Kalkylvärden!$B$5-1) -> 0 | AF67: =AF65*(Kalkylvärden!$B$5-1) -> 0 | AG67: =AG65*(Kalkylvärden!$B$5-1) -> 0 | AH67: =AH65*(Kalkylvärden!$B$5-1) -> 0 | AI67: =AI65*(Kalkylvärden!$B$5-1) -> 0 | AJ67: =AJ65*(Kalkylvärden!$B$5-1) -> 0 | AK67: =AK65*(Kalkylvärden!$B$5-1) -> 0 | AL67: =AL65*(Kalkylvärden!$B$5-1) -> 0 | AM67: =AM65*(Kalkylvärden!$B$5-1) -> 0 | AN67: =AN65*(Kalkylvärden!$B$5-1) -> 0 | AO67: =AO65*(Kalkylvärden!$B$5-1) -> 0 | AP67: =AP65*(Kalkylvärden!$B$5-1) -> 0 | AQ67: =AQ65*(Kalkylvärden!$B$5-1) -> 0 | AR67: =AR65*(Kalkylvärden!$B$5-1) -> 0 | AS67: =AS65*(Kalkylvärden!$B$5-1) -> 0 | AT67: =AT65*(Kalkylvärden!$B$5-1) -> 0 | AU67: =AU65*(Kalkylvärden!$B$5-1) -> 0 | AV67: =AV65*(Kalkylvärden!$B$5-1) -> 0 | AW67: =AW65*(Kalkylvärden!$B$5-1) -> 0 | AX67: =AX65*(Kalkylvärden!$B$5-1) -> 0 | AY67: =AY65*(Kalkylvärden!$B$5-1) -> 0 | AZ67: =AZ65*(Kalkylvärden!$B$5-1) -> 0 | BA67: =BA65*(Kalkylvärden!$B$5-1) -> 0 | BB67: =BB65*(Kalkylvärden!$B$5-1) -> 0 | BC67: =BC65*(Kalkylvärden!$B$5-1) -> 0 | BD67: =BD65*(Kalkylvärden!$B$5-1) -> 0 | BE67: =BE65*(Kalkylvärden!$B$5-1) -> 0 | BF67: =BF65*(Kalkylvärden!$B$5-1) -> 0 | BG67: =BG65*(Kalkylvärden!$B$5-1) -> 0 | BH67: =BH65*(Kalkylvärden!$B$5-1) -> 0 | BI67: =BI65*(Kalkylvärden!$B$5-1) -> 0 | BJ67: =BJ65*(Kalkylvärden!$B$5-1) -> 0 | BK67: =BK65*(Kalkylvärden!$B$5-1) -> 0 | BL67: =BL65*(Kalkylvärden!$B$5-1) -> 0 | BM67: =BM65*(Kalkylvärden!$B$5-1) -> 0 | BN67: =BN65*(Kalkylvärden!$B$5-1) -> 0 | BO67: =BO65*(Kalkylvärden!$B$5-1) -> 0 | BP67: =BP65*(Kalkylvärden!$B$5-1) -> 0 | BQ67: =BQ65*(Kalkylvärden!$B$5-1) -> 0 | BR67: =BR65*(Kalkylvärden!$B$5-1) -> 0 | BS67: =BS65*(Kalkylvärden!$B$5-1) -> 0
A68: Nuvärde SEK anl.kostn. UA | B68: =B66*B45 -> 2 | C68: =C66*C45 -> 3.939761243 | D68: 1.940214831 | E68: 0 | F68: 0 | G68: 0 | H68: 0 | I68: 0 | J68: 0 | K68: 0 | L68: 0 | M68: 0 | N68: 0 | O68: 0 | P68: 0 | Q68: 0 | R68: 0 | S68: 0 | T68: 0 | U68: 0 | V68: 0 | W68: 0 | X68: 0 | Y68: 0 | Z68: 0 | AA68: 0 | AB68: 0 | AC68: 0 | AD68: 0 | AE68: 0 | AF68: 0 | AG68: 0 | AH68: 0 | AI68: 0 | AJ68: 0 | AK68: 0 | AL68: 0 | AM68: 0 | AN68: 0 | AO68: 0 | AP68: 0 | AQ68: 0 | AR68: 0 | AS68: 0 | AT68: 0 | AU68: 0 | AV68: 0 | AW68: 0 | AX68: 0 | AY68: 0 | AZ68: 0 | BA68: 0 | BB68: 0 | BC68: 0 | BD68: 0 | BE68: 0 | BF68: 0 | BG68: 0 | BH68: 0 | BI68: 0 | BJ68: 0 | BK68: 0 | BL68: 0 | BM68: 0 | BN68: 0 | BO68: =BO66*BO45 -> 0 | BP68: 0 | BQ68: 0 | BR68: 0 | BS68: 0
A69: Nuvärde SEK anl.kostn. JA | B69: =B67*B45 -> 0 | C69: =C67*C45 -> 0 | D69: 0 | E69: 0 | F69: 0 | G69: 0 | H69: 0 | I69: 0 | J69: 0 | K69: 0 | L69: 0 | M69: 0 | N69: 0 | O69: 0 | P69: 0 | Q69: 0 | R69: 0 | S69: 0 | T69: 0 | U69: 0 | V69: 0 | W69: 0 | X69: 0 | Y69: 0 | Z69: 0 | AA69: 0 | AB69: 0 | AC69: 0 | AD69: 0 | AE69: 0 | AF69: 0 | AG69: 0 | AH69: 0 | AI69: 0 | AJ69: 0 | AK69: 0 | AL69: 0 | AM69: 0 | AN69: 0 | AO69: 0 | AP69: 0 | AQ69: 0 | AR69: 0 | AS69: 0 | AT69: 0 | AU69: 0 | AV69: 0 | AW69: 0 | AX69: 0 | AY69: 0 | AZ69: 0 | BA69: 0 | BB69: 0 | BC69: 0 | BD69: 0 | BE69: 0 | BF69: 0 | BG69: 0 | BH69: 0 | BI69: 0 | BJ69: 0 | BK69: 0 | BL69: 0 | BM69: 0 | BN69: 0 | BO69: =BO67*BO45 -> 0 | BP69: 0 | BQ69: 0 | BR69: 0 | BS69: 0
A70: Nuvärde SEK anl.kostn. UA-JA | B70: =IF(B51<=(Kalkylvärden!$B$6+Indata!$B$24),B68-B69,"") -> 2 | C70: =IF(C51<=(Kalkylvärden!$B$6+Indata!$B$24),C68-C69,"") -> 3.939761243 | D70: =IF(D51<=(Kalkylvärden!$B$6+Indata!$B$24),D68-D69,"") -> 1.940214831 | E70: =IF(E51<=(Kalkylvärden!$B$6+Indata!$B$24),E68-E69,"") -> 0 | F70: =IF(F51<=(Kalkylvärden!$B$6+Indata!$B$24),F68-F69,"") -> 0 | G70: =IF(G51<=(Kalkylvärden!$B$6+Indata!$B$24),G68-G69,"") -> 0 | H70: =IF(H51<=(Kalkylvärden!$B$6+Indata!$B$24),H68-H69,"") -> 0 | I70: =IF(I51<=(Kalkylvärden!$B$6+Indata!$B$24),I68-I69,"") -> 0 | J70: =IF(J51<=(Kalkylvärden!$B$6+Indata!$B$24),J68-J69,"") -> 0 | K70: =IF(K51<=(Kalkylvärden!$B$6+Indata!$B$24),K68-K69,"") -> 0 | L70: =IF(L51<=(Kalkylvärden!$B$6+Indata!$B$24),L68-L69,"") -> 0 | M70: =IF(M51<=(Kalkylvärden!$B$6+Indata!$B$24),M68-M69,"") -> 0 | N70: =IF(N51<=(Kalkylvärden!$B$6+Indata!$B$24),N68-N69,"") -> 0 | O70: =IF(O51<=(Kalkylvärden!$B$6+Indata!$B$24),O68-O69,"") -> 0 | P70: =IF(P51<=(Kalkylvärden!$B$6+Indata!$B$24),P68-P69,"") -> 0 | Q70: =IF(Q51<=(Kalkylvärden!$B$6+Indata!$B$24),Q68-Q69,"") -> 0 | R70: =IF(R51<=(Kalkylvärden!$B$6+Indata!$B$24),R68-R69,"") -> 0 | S70: =IF(S51<=(Kalkylvärden!$B$6+Indata!$B$24),S68-S69,"") -> 0 | T70: =IF(T51<=(Kalkylvärden!$B$6+Indata!$B$24),T68-T69,"") -> 0 | U70: =IF(U51<=(Kalkylvärden!$B$6+Indata!$B$24),U68-U69,"") -> 0 | V70: =IF(V51<=(Kalkylvärden!$B$6+Indata!$B$24),V68-V69,"") -> 0 | W70: =IF(W51<=(Kalkylvärden!$B$6+Indata!$B$24),W68-W69,"") -> 0 | X70: =IF(X51<=(Kalkylvärden!$B$6+Indata!$B$24),X68-X69,"") -> 0 | Y70: =IF(Y51<=(Kalkylvärden!$B$6+Indata!$B$24),Y68-Y69,"") -> 0 | Z70: =IF(Z51<=(Kalkylvärden!$B$6+Indata!$B$24),Z68-Z69,"") -> 0 | AA70: =IF(AA51<=(Kalkylvärden!$B$6+Indata!$B$24),AA68-AA69,"") -> 0 | AB70: =IF(AB51<=(Kalkylvärden!$B$6+Indata!$B$24),AB68-AB69,"") -> 0 | AC70: =IF(AC51<=(Kalkylvärden!$B$6+Indata!$B$24),AC68-AC69,"") -> 0 | AD70: =IF(AD51<=(Kalkylvärden!$B$6+Indata!$B$24),AD68-AD69,"") -> 0 | AE70: =IF(AE51<=(Kalkylvärden!$B$6+Indata!$B$24),AE68-AE69,"") -> 0 | AF70: =IF(AF51<=(Kalkylvärden!$B$6+Indata!$B$24),AF68-AF69,"") -> 0 | AG70: =IF(AG51<=(Kalkylvärden!$B$6+Indata!$B$24),AG68-AG69,"") -> 0 | AH70: =IF(AH51<=(Kalkylvärden!$B$6+Indata!$B$24),AH68-AH69,"") -> 0 | AI70: =IF(AI51<=(Kalkylvärden!$B$6+Indata!$B$24),AI68-AI69,"") -> 0 | AJ70: =IF(AJ51<=(Kalkylvärden!$B$6+Indata!$B$24),AJ68-AJ69,"") -> 0 | AK70: =IF(AK51<=(Kalkylvärden!$B$6+Indata!$B$24),AK68-AK69,"") -> 0 | AL70: =IF(AL51<=(Kalkylvärden!$B$6+Indata!$B$24),AL68-AL69,"") -> 0 | AM70: =IF(AM51<=(Kalkylvärden!$B$6+Indata!$B$24),AM68-AM69,"") -> 0 | AN70: =IF(AN51<=(Kalkylvärden!$B$6+Indata!$B$24),AN68-AN69,"") -> 0 | AO70: =IF(AO51<=(Kalkylvärden!$B$6+Indata!$B$24),AO68-AO69,"") -> 0 | AP70: =IF(AP51<=(Kalkylvärden!$B$6+Indata!$B$24),AP68-AP69,"") -> 0 | AQ70: =IF(AQ51<=(Kalkylvärden!$B$6+Indata!$B$24),AQ68-AQ69,"") ->  | AR70: =IF(AR51<=(Kalkylvärden!$B$6+Indata!$B$24),AR68-AR69,"") ->  | AS70: =IF(AS51<=(Kalkylvärden!$B$6+Indata!$B$24),AS68-AS69,"") ->  | AT70: =IF(AT51<=(Kalkylvärden!$B$6+Indata!$B$24),AT68-AT69,"") ->  | AU70: =IF(AU51<=(Kalkylvärden!$B$6+Indata!$B$24),AU68-AU69,"") ->  | AV70: =IF(AV51<=(Kalkylvärden!$B$6+Indata!$B$24),AV68-AV69,"") ->  | AW70: =IF(AW51<=(Kalkylvärden!$B$6+Indata!$B$24),AW68-AW69,"") ->  | AX70: =IF(AX51<=(Kalkylvärden!$B$6+Indata!$B$24),AX68-AX69,"") ->  | AY70: =IF(AY51<=(Kalkylvärden!$B$6+Indata!$B$24),AY68-AY69,"") ->  | AZ70: =IF(AZ51<=(Kalkylvärden!$B$6+Indata!$B$24),AZ68-AZ69,"") ->  | BA70: =IF(BA51<=(Kalkylvärden!$B$6+Indata!$B$24),BA68-BA69,"") ->  | BB70: =IF(BB51<=(Kalkylvärden!$B$6+Indata!$B$24),BB68-BB69,"") ->  | BC70: =IF(BC51<=(Kalkylvärden!$B$6+Indata!$B$24),BC68-BC69,"") ->  | BD70: =IF(BD51<=(Kalkylvärden!$B$6+Indata!$B$24),BD68-BD69,"") ->  | BE70: =IF(BE51<=(Kalkylvärden!$B$6+Indata!$B$24),BE68-BE69,"") ->  | BF70: =IF(BF51<=(Kalkylvärden!$B$6+Indata!$B$24),BF68-BF69,"") ->  | BG70: =IF(BG51<=(Kalkylvärden!$B$6+Indata!$B$24),BG68-BG69,"") ->  | BH70: =IF(BH51<=(Kalkylvärden!$B$6+Indata!$B$24),BH68-BH69,"") ->  | BI70: =IF(BI51<=(Kalkylvärden!$B$6+Indata!$B$24),BI68-BI69,"") ->  | BJ70: =IF(BJ51<=(Kalkylvärden!$B$6+Indata!$B$24),BJ68-BJ69,"") ->  | BK70: =IF(BK51<=(Kalkylvärden!$B$6+Indata!$B$24),BK68-BK69,"") ->  | BL70: =IF(BL51<=(Kalkylvärden!$B$6+Indata!$B$24),BL68-BL69,"") ->  | BM70: =IF(BM51<=(Kalkylvärden!$B$6+Indata!$B$24),BM68-BM69,"") ->  | BN70: =IF(BN51<=(Kalkylvärden!$B$6+Indata!$B$24),BN68-BN69,"") ->  | BO70: =IF(BO51<=(Kalkylvärden!$B$6+Indata!$B$24),BO68-BO69,"") ->  | BP70: =IF(BP51<=(Kalkylvärden!$B$6+Indata!$B$24),BP68-BP69,"") ->  | BQ70: =IF(BQ51<=(Kalkylvärden!$B$6+Indata!$B$24),BQ68-BQ69,"") ->  | BR70: =IF(BR51<=(Kalkylvärden!$B$6+Indata!$B$24),BR68-BR69,"") ->  | BS70: =IF(BS51<=(Kalkylvärden!$B$6+Indata!$B$24),BS68-BS69,"") -> 
A71: Summa nuvärde SEK anläggningskostnader (mkr) | B71: =SUM(B70:BS70) -> 7.879976074
A80: Reinvesteringskostnader
A81: År | B81: =Indata!B17 -> 2028 | C81: =B81+1 -> 2029 | D81: =C81+1 -> 2030 | E81: =D81+1 -> 2031 | F81: =E81+1 -> 2032 | G81: =F81+1 -> 2033 | H81: =Indata!H17 -> 2034 | I81: =H81+1 -> 2035 | J81: 2036 | K81: 2037 | L81: 2038 | M81: 2039 | N81: 2040 | O81: 2041 | P81: 2042 | Q81: 2043 | R81: 2044 | S81: 2045 | T81: 2046 | U81: 2047 | V81: 2048 | W81: 2049 | X81: 2050 | Y81: 2051 | Z81: 2052 | AA81: 2053 | AB81: 2054 | AC81: 2055 | AD81: 2056 | AE81: 2057 | AF81: 2058 | AG81: 2059 | AH81: 2060 | AI81: 2061 | AJ81: 2062 | AK81: 2063 | AL81: 2064 | AM81: 2065 | AN81: 2066 | AO81: =AN81+1 -> 2067 | AP81: 2068 | AQ81: 2069 | AR81: 2070 | AS81: 2071 | AT81: 2072 | AU81: 2073 | AV81: 2074 | AW81: 2075 | AX81: 2076 | AY81: 2077 | AZ81: 2078 | BA81: 2079 | BB81: 2080 | BC81: 2081 | BD81: 2082 | BE81: 2083 | BF81: 2084 | BG81: 2085 | BH81: 2086 | BI81: 2087 | BJ81: 2088 | BK81: 2089 | BL81: 2090 | BM81: 2091 | BN81: 2092 | BO81: 2093 | BP81: 2094 | BQ81: 2095 | BR81: 2096 | BS81: 2097
A82: Reinvkostnader UA (prisnivå 2019) | B82: =Indata!B18 -> 0 | C82: =Indata!C18 -> 0 | D82: =Indata!D18 -> 0 | E82: =Indata!E18 -> 2 | F82: =Indata!F18 -> 2 | G82: =Indata!G18 -> 2 | H82: =Indata!H18 -> 0 | I82: =Indata!I18 -> 0 | J82: =Indata!J18 -> 0 | K82: =Indata!K18 -> 0 | L82: =Indata!L18 -> 0 | M82: =Indata!M18 -> 0 | N82: =Indata!N18 -> 0 | O82: =Indata!O18 -> 0 | P82: =Indata!P18 -> 0 | Q82: =Indata!Q18 -> 0 | R82: =Indata!R18 -> 0 | S82: =Indata!S18 -> 0 | T82: =Indata!T18 -> 0 | U82: =Indata!U18 -> 0 | V82: =Indata!V18 -> 0 | W82: =Indata!W18 -> 0 | X82: =Indata!X18 -> 0 | Y82: =Indata!Y18 -> 0 | Z82: =Indata!Z18 -> 0 | AA82: =Indata!AA18 -> 0 | AB82: =Indata!AB18 -> 0 | AC82: =Indata!AC18 -> 0 | AD82: =Indata!AD18 -> 0 | AE82: =Indata!AE18 -> 0 | AF82: =Indata!AF18 -> 0 | AG82: =Indata!AG18 -> 0 | AH82: =Indata!AH18 -> 0 | AI82: =Indata!AI18 -> 0 | AJ82: =Indata!AJ18 -> 0 | AK82: =Indata!AK18 -> 0 | AL82: =Indata!AL18 -> 0 | AM82: =Indata!AM18 -> 0 | AN82: =Indata!AN18 -> 0 | AO82: =Indata!AO18 -> 0 | AP82: =Indata!AP18 -> 0 | AQ82: =Indata!AQ18 -> 0 | AR82: =Indata!AR18 -> 0 | AS82: =Indata!AS18 -> 0 | AT82: =Indata!AT18 -> 0 | AU82: =Indata!AU18 -> 0 | AV82: =Indata!AV18 -> 0 | AW82: =Indata!AW18 -> 0 | AX82: =Indata!AX18 -> 0 | AY82: =Indata!AY18 -> 0 | AZ82: =Indata!AZ18 -> 0 | BA82: =Indata!BA18 -> 0 | BB82: =Indata!BB18 -> 0 | BC82: =Indata!BC18 -> 0 | BD82: =Indata!BD18 -> 0 | BE82: =Indata!BE18 -> 0 | BF82: =Indata!BF18 -> 0 | BG82: =Indata!BG18 -> 0 | BH82: =Indata!BH18 -> 0 | BI82: =Indata!BI18 -> 0 | BJ82: =Indata!BJ18 -> 0 | BK82: =Indata!BK18 -> 0 | BL82: =Indata!BL18 -> 0 | BM82: =Indata!BM18 -> 0 | BN82: =Indata!BN18 -> 0 | BO82: =Indata!BO18 -> 0 | BP82: =Indata!BP18 -> 0 | BQ82: =Indata!BQ18 -> 0 | BR82: =Indata!BR18 -> 0 | BS82: =Indata!BS18 -> 0
A83: Reinvkostnader JA (prisnivå 2019) | B83: =Indata!B19 -> 0 | C83: =Indata!C19 -> 0 | D83: =Indata!D19 -> 0 | E83: =Indata!E19 -> 1 | F83: =Indata!F19 -> 1 | G83: =Indata!G19 -> 1 | H83: =Indata!H19 -> 0 | I83: =Indata!I19 -> 0 | J83: =Indata!J19 -> 0 | K83: =Indata!K19 -> 0 | L83: =Indata!L19 -> 0 | M83: =Indata!M19 -> 0 | N83: =Indata!N19 -> 0 | O83: =Indata!O19 -> 0 | P83: =Indata!P19 -> 0 | Q83: =Indata!Q19 -> 0 | R83: =Indata!R19 -> 0 | S83: =Indata!S19 -> 0 | T83: =Indata!T19 -> 0 | U83: =Indata!U19 -> 0 | V83: =Indata!V19 -> 0 | W83: =Indata!W19 -> 0 | X83: =Indata!X19 -> 0 | Y83: =Indata!Y19 -> 0 | Z83: =Indata!Z19 -> 0 | AA83: =Indata!AA19 -> 0 | AB83: =Indata!AB19 -> 0 | AC83: =Indata!AC19 -> 0 | AD83: =Indata!AD19 -> 0 | AE83: =Indata!AE19 -> 0 | AF83: =Indata!AF19 -> 0 | AG83: =Indata!AG19 -> 0 | AH83: =Indata!AH19 -> 0 | AI83: =Indata!AI19 -> 0 | AJ83: =Indata!AJ19 -> 0 | AK83: =Indata!AK19 -> 0 | AL83: =Indata!AL19 -> 0 | AM83: =Indata!AM19 -> 0 | AN83: =Indata!AN19 -> 0 | AO83: =Indata!AO19 -> 0 | AP83: =Indata!AP19 -> 0 | AQ83: =Indata!AQ19 -> 0 | AR83: =Indata!AR19 -> 0 | AS83: =Indata!AS19 -> 0 | AT83: =Indata!AT19 -> 0 | AU83: =Indata!AU19 -> 0 | AV83: =Indata!AV19 -> 0 | AW83: =Indata!AW19 -> 0 | AX83: =Indata!AX19 -> 0 | AY83: =Indata!AY19 -> 0 | AZ83: =Indata!AZ19 -> 0 | BA83: =Indata!BA19 -> 0 | BB83: =Indata!BB19 -> 0 | BC83: =Indata!BC19 -> 0 | BD83: =Indata!BD19 -> 0 | BE83: =Indata!BE19 -> 0 | BF83: =Indata!BF19 -> 0 | BG83: =Indata!BG19 -> 0 | BH83: =Indata!BH19 -> 0 | BI83: =Indata!BI19 -> 0 | BJ83: =Indata!BJ19 -> 0 | BK83: =Indata!BK19 -> 0 | BL83: =Indata!BL19 -> 0 | BM83: =Indata!BM19 -> 0 | BN83: =Indata!BN19 -> 0 | BO83: =Indata!BO19 -> 0 | BP83: =Indata!BP19 -> 0 | BQ83: =Indata!BQ19 -> 0 | BR83: =Indata!BR19 -> 0 | BS83: =Indata!BS19 -> 0
A84: SEK reinv.kostn. UA | B84: =B82 -> 0 | C84: =C82 -> 0 | D84: 0 | E84: 2 | F84: 2 | G84: 2 | H84: 0 | I84: 0 | J84: 0 | K84: 0 | L84: 0 | M84: 0 | N84: 0 | O84: 0 | P84: 0 | Q84: 0 | R84: 0 | S84: 0 | T84: 0 | U84: 0 | V84: 0 | W84: 0 | X84: 0 | Y84: 0 | Z84: 0 | AA84: 0 | AB84: 0 | AC84: 0 | AD84: 0 | AE84: 0 | AF84: 0 | AG84: 0 | AH84: 0 | AI84: 0 | AJ84: 0 | AK84: 0 | AL84: 0 | AM84: 0 | AN84: 0 | AO84: 0 | AP84: 0 | AQ84: 0 | AR84: 0 | AS84: 0 | AT84: 0 | AU84: 0 | AV84: 0 | AW84: 0 | AX84: 0 | AY84: 0 | AZ84: 0 | BA84: 0 | BB84: 0 | BC84: 0 | BD84: 0 | BE84: 0 | BF84: 0 | BG84: 0 | BH84: 0 | BI84: 0 | BJ84: 0 | BK84: 0 | BL84: 0 | BM84: 0 | BN84: 0 | BO84: =BO82 -> 0 | BP84: 0 | BQ84: 0 | BR84: 0 | BS84: 0
A85: SEK reinv.kostn. JA | B85: =B83 -> 0 | C85: =C83 -> 0 | D85: 0 | E85: 1 | F85: 1 | G85: 1 | H85: 0 | I85: 0 | J85: 0 | K85: 0 | L85: 0 | M85: 0 | N85: 0 | O85: 0 | P85: 0 | Q85: 0 | R85: 0 | S85: 0 | T85: 0 | U85: 0 | V85: 0 | W85: 0 | X85: 0 | Y85: 0 | Z85: 0 | AA85: 0 | AB85: 0 | AC85: 0 | AD85: 0 | AE85: 0 | AF85: 0 | AG85: 0 | AH85: 0 | AI85: 0 | AJ85: 0 | AK85: 0 | AL85: 0 | AM85: 0 | AN85: 0 | AO85: 0 | AP85: 0 | AQ85: 0 | AR85: 0 | AS85: 0 | AT85: 0 | AU85: 0 | AV85: 0 | AW85: 0 | AX85: 0 | AY85: 0 | AZ85: 0 | BA85: 0 | BB85: 0 | BC85: 0 | BD85: 0 | BE85: 0 | BF85: 0 | BG85: 0 | BH85: 0 | BI85: 0 | BJ85: 0 | BK85: 0 | BL85: 0 | BM85: 0 | BN85: 0 | BO85: =BO83 -> 0 | BP85: 0 | BQ85: 0 | BR85: 0 | BS85: 0
A86: Nuvärde SEK reinv.kostn. UA | B86: =B84*B46 -> 0 | C86: 0 | D86: 0 | E86: 1.859041826 | F86: 1.81429909 | G86: 1.770633206 | H86: 0 | I86: 0 | J86: 0 | K86: 0 | L86: 0 | M86: 0 | N86: 0 | O86: 0 | P86: 0 | Q86: 0 | R86: 0 | S86: 0 | T86: 0 | U86: 0 | V86: 0 | W86: 0 | X86: 0 | Y86: 0 | Z86: 0 | AA86: 0 | AB86: 0 | AC86: 0 | AD86: 0 | AE86: 0 | AF86: 0 | AG86: 0 | AH86: =AH84*AH46 -> 0 | AI86: 0 | AJ86: 0 | AK86: 0 | AL86: 0 | AM86: 0 | AN86: 0 | AO86: 0 | AP86: 0 | AQ86: 0 | AR86: 0 | AS86: 0 | AT86: 0 | AU86: 0 | AV86: 0 | AW86: 0 | AX86: 0 | AY86: 0 | AZ86: 0 | BA86: 0 | BB86: 0 | BC86: 0 | BD86: 0 | BE86: 0 | BF86: 0 | BG86: 0 | BH86: 0 | BI86: 0 | BJ86: 0 | BK86: 0 | BL86: 0 | BM86: 0 | BN86: =BN84*BN46 -> 0 | BO86: 0 | BP86: 0 | BQ86: 0 | BR86: 0 | BS86: 0
A87: Nuvärde SEK reinv.kostn. JA | B87: =B85*B46 -> 0 | C87: =C85*C46 -> 0 | D87: 0 | E87: 0.9295209131 | F87: 0.907149545 | G87: 0.8853166028 | H87: 0 | I87: 0 | J87: 0 | K87: 0 | L87: 0 | M87: 0 | N87: 0 | O87: 0 | P87: 0 | Q87: 0 | R87: 0 | S87: 0 | T87: 0 | U87: 0 | V87: 0 | W87: 0 | X87: 0 | Y87: 0 | Z87: 0 | AA87: 0 | AB87: 0 | AC87: 0 | AD87: 0 | AE87: 0 | AF87: 0 | AG87: 0 | AH87: =AH85*AH46 -> 0 | AI87: 0 | AJ87: 0 | AK87: 0 | AL87: 0 | AM87: 0 | AN87: 0 | AO87: 0 | AP87: 0 | AQ87: 0 | AR87: 0 | AS87: 0 | AT87: 0 | AU87: 0 | AV87: 0 | AW87: 0 | AX87: 0 | AY87: 0 | AZ87: 0 | BA87: 0 | BB87: 0 | BC87: 0 | BD87: 0 | BE87: 0 | BF87: 0 | BG87: 0 | BH87: 0 | BI87: 0 | BJ87: 0 | BK87: 0 | BL87: 0 | BM87: 0 | BN87: =BN85*BN46 -> 0 | BO87: 0 | BP87: 0 | BQ87: 0 | BR87: 0 | BS87: 0
A88: Nuvärde SEK reinv.kostn. UA-JA | B88: =IF(B81<=(Indata!$B$26+Indata!$B$24),B86-B87,"") -> 0 | C88: =IF(C81<=(Indata!$B$26+Indata!$B$24),C86-C87,"") -> 0 | D88: =IF(D81<=(Indata!$B$26+Indata!$B$24),D86-D87,"") -> 0 | E88: =IF(E81<=(Indata!$B$26+Indata!$B$24),E86-E87,"") -> 0.9295209131 | F88: =IF(F81<=(Indata!$B$26+Indata!$B$24),F86-F87,"") -> 0.907149545 | G88: =IF(G81<=(Indata!$B$26+Indata!$B$24),G86-G87,"") -> 0.8853166028 | H88: =IF(H81<=(Indata!$B$26+Indata!$B$24),H86-H87,"") -> 0 | I88: =IF(I81<=(Indata!$B$26+Indata!$B$24),I86-I87,"") -> 0 | J88: =IF(J81<=(Indata!$B$26+Indata!$B$24),J86-J87,"") -> 0 | K88: =IF(K81<=(Indata!$B$26+Indata!$B$24),K86-K87,"") -> 0 | L88: =IF(L81<=(Indata!$B$26+Indata!$B$24),L86-L87,"") -> 0 | M88: =IF(M81<=(Indata!$B$26+Indata!$B$24),M86-M87,"") -> 0 | N88: =IF(N81<=(Indata!$B$26+Indata!$B$24),N86-N87,"") -> 0 | O88: =IF(O81<=(Indata!$B$26+Indata!$B$24),O86-O87,"") -> 0 | P88: =IF(P81<=(Indata!$B$26+Indata!$B$24),P86-P87,"") -> 0 | Q88: =IF(Q81<=(Indata!$B$26+Indata!$B$24),Q86-Q87,"") -> 0 | R88: =IF(R81<=(Indata!$B$26+Indata!$B$24),R86-R87,"") -> 0 | S88: =IF(S81<=(Indata!$B$26+Indata!$B$24),S86-S87,"") -> 0 | T88: =IF(T81<=(Indata!$B$26+Indata!$B$24),T86-T87,"") -> 0 | U88: =IF(U81<=(Indata!$B$26+Indata!$B$24),U86-U87,"") -> 0 | V88: =IF(V81<=(Indata!$B$26+Indata!$B$24),V86-V87,"") -> 0 | W88: =IF(W81<=(Indata!$B$26+Indata!$B$24),W86-W87,"") -> 0 | X88: =IF(X81<=(Indata!$B$26+Indata!$B$24),X86-X87,"") -> 0 | Y88: =IF(Y81<=(Indata!$B$26+Indata!$B$24),Y86-Y87,"") -> 0 | Z88: =IF(Z81<=(Indata!$B$26+Indata!$B$24),Z86-Z87,"") -> 0 | AA88: =IF(AA81<=(Indata!$B$26+Indata!$B$24),AA86-AA87,"") -> 0 | AB88: =IF(AB81<=(Indata!$B$26+Indata!$B$24),AB86-AB87,"") -> 0 | AC88: =IF(AC81<=(Indata!$B$26+Indata!$B$24),AC86-AC87,"") -> 0 | AD88: =IF(AD81<=(Indata!$B$26+Indata!$B$24),AD86-AD87,"") -> 0 | AE88: =IF(AE81<=(Indata!$B$26+Indata!$B$24),AE86-AE87,"") -> 0 | AF88: =IF(AF81<=(Indata!$B$26+Indata!$B$24),AF86-AF87,"") -> 0 | AG88: =IF(AG81<=(Indata!$B$26+Indata!$B$24),AG86-AG87,"") -> 0 | AH88: =IF(AH81<=(Indata!$B$26+Indata!$B$24),AH86-AH87,"") -> 0 | AI88: =IF(AI81<=(Indata!$B$26+Indata!$B$24),AI86-AI87,"") -> 0 | AJ88: =IF(AJ81<=(Indata!$B$26+Indata!$B$24),AJ86-AJ87,"") -> 0 | AK88: =IF(AK81<=(Indata!$B$26+Indata!$B$24),AK86-AK87,"") -> 0 | AL88: =IF(AL81<=(Indata!$B$26+Indata!$B$24),AL86-AL87,"") -> 0 | AM88: =IF(AM81<=(Indata!$B$26+Indata!$B$24),AM86-AM87,"") -> 0 | AN88: =IF(AN81<=(Indata!$B$26+Indata!$B$24),AN86-AN87,"") -> 0 | AO88: =IF(AO81<=(Indata!$B$26+Indata!$B$24),AO86-AO87,"") -> 0 | AP88: =IF(AP81<=(Indata!$B$26+Indata!$B$24),AP86-AP87,"") -> 0 | AQ88: =IF(AQ81<=(Indata!$B$26+Indata!$B$24),AQ86-AQ87,"") -> 0 | AR88: =IF(AR81<=(Indata!$B$26+Indata!$B$24),AR86-AR87,"") -> 0 | AS88: =IF(AS81<=(Indata!$B$26+Indata!$B$24),AS86-AS87,"") -> 0 | AT88: =IF(AT81<=(Indata!$B$26+Indata!$B$24),AT86-AT87,"") ->  | AU88: =IF(AU81<=(Indata!$B$26+Indata!$B$24),AU86-AU87,"") ->  | AV88: =IF(AV81<=(Indata!$B$26+Indata!$B$24),AV86-AV87,"") ->  | AW88: =IF(AW81<=(Indata!$B$26+Indata!$B$24),AW86-AW87,"") ->  | AX88: =IF(AX81<=(Indata!$B$26+Indata!$B$24),AX86-AX87,"") ->  | AY88: =IF(AY81<=(Indata!$B$26+Indata!$B$24),AY86-AY87,"") ->  | AZ88: =IF(AZ81<=(Indata!$B$26+Indata!$B$24),AZ86-AZ87,"") ->  | BA88: =IF(BA81<=(Indata!$B$26+Indata!$B$24),BA86-BA87,"") ->  | BB88: =IF(BB81<=(Indata!$B$26+Indata!$B$24),BB86-BB87,"") ->  | BC88: =IF(BC81<=(Indata!$B$26+Indata!$B$24),BC86-BC87,"") ->  | BD88: =IF(BD81<=(Indata!$B$26+Indata!$B$24),BD86-BD87,"") ->  | BE88: =IF(BE81<=(Indata!$B$26+Indata!$B$24),BE86-BE87,"") ->  | BF88: =IF(BF81<=(Indata!$B$26+Indata!$B$24),BF86-BF87,"") ->  | BG88: =IF(BG81<=(Indata!$B$26+Indata!$B$24),BG86-BG87,"") ->  | BH88: =IF(BH81<=(Indata!$B$26+Indata!$B$24),BH86-BH87,"") ->  | BI88: =IF(BI81<=(Indata!$B$26+Indata!$B$24),BI86-BI87,"") ->  | BJ88: =IF(BJ81<=(Indata!$B$26+Indata!$B$24),BJ86-BJ87,"") ->  | BK88: =IF(BK81<=(Indata!$B$26+Indata!$B$24),BK86-BK87,"") ->  | BL88: =IF(BL81<=(Indata!$B$26+Indata!$B$24),BL86-BL87,"") ->  | BM88: =IF(BM81<=(Indata!$B$26+Indata!$B$24),BM86-BM87,"") ->  | BN88: =IF(BN81<=(Indata!$B$26+Indata!$B$24),BN86-BN87,"") ->  | BO88: =IF(BO81<=(Indata!$B$26+Indata!$B$24),BO86-BO87,"") ->  | BP88: =IF(BP81<=(Indata!$B$26+Indata!$B$24),BP86-BP87,"") ->  | BQ88: =IF(BQ81<=(Indata!$B$26+Indata!$B$24),BQ86-BQ87,"") ->  | BR88: =IF(BR81<=(Indata!$B$26+Indata!$B$24),BR86-BR87,"") ->  | BS88: =IF(BS81<=(Indata!$B$26+Indata!$B$24),BS86-BS87,"") -> 
A89: Summa nuvärde SEK reinvkostnader (mkr) | B89: =SUM(B88:BS88) -> 2.721987061
A91: Skattefinansieringskostnad reinvesteringskostnader
A93: Reinvkostnader UA (prisnivå 2019) | B93: =Indata!B18 -> 0 | C93: =Indata!C18 -> 0 | D93: =Indata!D18 -> 0 | E93: =Indata!E18 -> 2 | F93: =Indata!F18 -> 2 | G93: =Indata!G18 -> 2 | H93: =Indata!H18 -> 0 | I93: =Indata!I18 -> 0 | J93: =Indata!J18 -> 0 | K93: =Indata!K18 -> 0 | L93: =Indata!L18 -> 0 | M93: =Indata!M18 -> 0 | N93: =Indata!N18 -> 0 | O93: =Indata!O18 -> 0 | P93: =Indata!P18 -> 0 | Q93: =Indata!Q18 -> 0 | R93: =Indata!R18 -> 0 | S93: =Indata!S18 -> 0 | T93: =Indata!T18 -> 0 | U93: =Indata!U18 -> 0 | V93: =Indata!V18 -> 0 | W93: =Indata!W18 -> 0 | X93: =Indata!X18 -> 0 | Y93: =Indata!Y18 -> 0 | Z93: =Indata!Z18 -> 0 | AA93: =Indata!AA18 -> 0 | AB93: =Indata!AB18 -> 0 | AC93: =Indata!AC18 -> 0 | AD93: =Indata!AD18 -> 0 | AE93: =Indata!AE18 -> 0 | AF93: =Indata!AF18 -> 0 | AG93: =Indata!AG18 -> 0 | AH93: =Indata!AH18 -> 0 | AI93: =Indata!AI18 -> 0 | AJ93: =Indata!AJ18 -> 0 | AK93: =Indata!AK18 -> 0 | AL93: =Indata!AL18 -> 0 | AM93: =Indata!AM18 -> 0 | AN93: =Indata!AN18 -> 0 | AO93: =Indata!AO18 -> 0 | AP93: =Indata!AP18 -> 0 | AQ93: =Indata!AQ18 -> 0 | AR93: =Indata!AR18 -> 0 | AS93: =Indata!AS18 -> 0 | AT93: =Indata!AT18 -> 0 | AU93: =Indata!AU18 -> 0 | AV93: =Indata!AV18 -> 0 | AW93: =Indata!AW18 -> 0 | AX93: =Indata!AX18 -> 0 | AY93: =Indata!AY18 -> 0 | AZ93: =Indata!AZ18 -> 0 | BA93: =Indata!BA18 -> 0 | BB93: =Indata!BB18 -> 0 | BC93: =Indata!BC18 -> 0 | BD93: =Indata!BD18 -> 0 | BE93: =Indata!BE18 -> 0 | BF93: =Indata!BF18 -> 0 | BG93: =Indata!BG18 -> 0 | BH93: =Indata!BH18 -> 0 | BI93: =Indata!BI18 -> 0 | BJ93: =Indata!BJ18 -> 0 | BK93: =Indata!BK18 -> 0 | BL93: =Indata!BL18 -> 0 | BM93: =Indata!BM18 -> 0 | BN93: =Indata!BN18 -> 0 | BO93: =Indata!BO18 -> 0 | BP93: =Indata!BP18 -> 0 | BQ93: =Indata!BQ18 -> 0 | BR93: =Indata!BR18 -> 0 | BS93: =Indata!BS18 -> 0
A94: Reinvkostnader JA (prisnivå 2019) | B94: =Indata!B19 -> 0 | C94: =Indata!C19 -> 0 | D94: =Indata!D19 -> 0 | E94: =Indata!E19 -> 1 | F94: =Indata!F19 -> 1 | G94: =Indata!G19 -> 1 | H94: =Indata!H19 -> 0 | I94: =Indata!I19 -> 0 | J94: =Indata!J19 -> 0 | K94: =Indata!K19 -> 0 | L94: =Indata!L19 -> 0 | M94: =Indata!M19 -> 0 | N94: =Indata!N19 -> 0 | O94: =Indata!O19 -> 0 | P94: =Indata!P19 -> 0 | Q94: =Indata!Q19 -> 0 | R94: =Indata!R19 -> 0 | S94: =Indata!S19 -> 0 | T94: =Indata!T19 -> 0 | U94: =Indata!U19 -> 0 | V94: =Indata!V19 -> 0 | W94: =Indata!W19 -> 0 | X94: =Indata!X19 -> 0 | Y94: =Indata!Y19 -> 0 | Z94: =Indata!Z19 -> 0 | AA94: =Indata!AA19 -> 0 | AB94: =Indata!AB19 -> 0 | AC94: =Indata!AC19 -> 0 | AD94: =Indata!AD19 -> 0 | AE94: =Indata!AE19 -> 0 | AF94: =Indata!AF19 -> 0 | AG94: =Indata!AG19 -> 0 | AH94: =Indata!AH19 -> 0 | AI94: =Indata!AI19 -> 0 | AJ94: =Indata!AJ19 -> 0 | AK94: =Indata!AK19 -> 0 | AL94: =Indata!AL19 -> 0 | AM94: =Indata!AM19 -> 0 | AN94: =Indata!AN19 -> 0 | AO94: =Indata!AO19 -> 0 | AP94: =Indata!AP19 -> 0 | AQ94: =Indata!AQ19 -> 0 | AR94: =Indata!AR19 -> 0 | AS94: =Indata!AS19 -> 0 | AT94: =Indata!AT19 -> 0 | AU94: =Indata!AU19 -> 0 | AV94: =Indata!AV19 -> 0 | AW94: =Indata!AW19 -> 0 | AX94: =Indata!AX19 -> 0 | AY94: =Indata!AY19 -> 0 | AZ94: =Indata!AZ19 -> 0 | BA94: =Indata!BA19 -> 0 | BB94: =Indata!BB19 -> 0 | BC94: =Indata!BC19 -> 0 | BD94: =Indata!BD19 -> 0 | BE94: =Indata!BE19 -> 0 | BF94: =Indata!BF19 -> 0 | BG94: =Indata!BG19 -> 0 | BH94: =Indata!BH19 -> 0 | BI94: =Indata!BI19 -> 0 | BJ94: =Indata!BJ19 -> 0 | BK94: =Indata!BK19 -> 0 | BL94: =Indata!BL19 -> 0 | BM94: =Indata!BM19 -> 0 | BN94: =Indata!BN19 -> 0 | BO94: =Indata!BO19 -> 0 | BP94: =Indata!BP19 -> 0 | BQ94: =Indata!BQ19 -> 0 | BR94: =Indata!BR19 -> 0 | BS94: =Indata!BS19 -> 0
A95: SEK reinv.kostn. UA | B95: =B93*(Kalkylvärden!$B$5-1) -> 0 | C95: =C93*(Kalkylvärden!$B$5-1) -> 0 | D95: =D93*(Kalkylvärden!$B$5-1) -> 0 | E95: =E93*(Kalkylvärden!$B$5-1) -> 0.4 | F95: =F93*(Kalkylvärden!$B$5-1) -> 0.4 | G95: =G93*(Kalkylvärden!$B$5-1) -> 0.4 | H95: =H93*(Kalkylvärden!$B$5-1) -> 0 | I95: =I93*(Kalkylvärden!$B$5-1) -> 0 | J95: =J93*(Kalkylvärden!$B$5-1) -> 0 | K95: =K93*(Kalkylvärden!$B$5-1) -> 0 | L95: =L93*(Kalkylvärden!$B$5-1) -> 0 | M95: =M93*(Kalkylvärden!$B$5-1) -> 0 | N95: =N93*(Kalkylvärden!$B$5-1) -> 0 | O95: =O93*(Kalkylvärden!$B$5-1) -> 0 | P95: =P93*(Kalkylvärden!$B$5-1) -> 0 | Q95: =Q93*(Kalkylvärden!$B$5-1) -> 0 | R95: =R93*(Kalkylvärden!$B$5-1) -> 0 | S95: =S93*(Kalkylvärden!$B$5-1) -> 0 | T95: =T93*(Kalkylvärden!$B$5-1) -> 0 | U95: =U93*(Kalkylvärden!$B$5-1) -> 0 | V95: =V93*(Kalkylvärden!$B$5-1) -> 0 | W95: =W93*(Kalkylvärden!$B$5-1) -> 0 | X95: =X93*(Kalkylvärden!$B$5-1) -> 0 | Y95: =Y93*(Kalkylvärden!$B$5-1) -> 0 | Z95: =Z93*(Kalkylvärden!$B$5-1) -> 0 | AA95: =AA93*(Kalkylvärden!$B$5-1) -> 0 | AB95: =AB93*(Kalkylvärden!$B$5-1) -> 0 | AC95: =AC93*(Kalkylvärden!$B$5-1) -> 0 | AD95: =AD93*(Kalkylvärden!$B$5-1) -> 0 | AE95: =AE93*(Kalkylvärden!$B$5-1) -> 0 | AF95: =AF93*(Kalkylvärden!$B$5-1) -> 0 | AG95: =AG93*(Kalkylvärden!$B$5-1) -> 0 | AH95: =AH93*(Kalkylvärden!$B$5-1) -> 0 | AI95: =AI93*(Kalkylvärden!$B$5-1) -> 0 | AJ95: =AJ93*(Kalkylvärden!$B$5-1) -> 0 | AK95: =AK93*(Kalkylvärden!$B$5-1) -> 0 | AL95: =AL93*(Kalkylvärden!$B$5-1) -> 0 | AM95: =AM93*(Kalkylvärden!$B$5-1) -> 0 | AN95: =AN93*(Kalkylvärden!$B$5-1) -> 0 | AO95: =AO93*(Kalkylvärden!$B$5-1) -> 0 | AP95: =AP93*(Kalkylvärden!$B$5-1) -> 0 | AQ95: =AQ93*(Kalkylvärden!$B$5-1) -> 0 | AR95: =AR93*(Kalkylvärden!$B$5-1) -> 0 | AS95: =AS93*(Kalkylvärden!$B$5-1) -> 0 | AT95: =AT93*(Kalkylvärden!$B$5-1) -> 0 | AU95: =AU93*(Kalkylvärden!$B$5-1) -> 0 | AV95: =AV93*(Kalkylvärden!$B$5-1) -> 0 | AW95: =AW93*(Kalkylvärden!$B$5-1) -> 0 | AX95: =AX93*(Kalkylvärden!$B$5-1) -> 0 | AY95: =AY93*(Kalkylvärden!$B$5-1) -> 0 | AZ95: =AZ93*(Kalkylvärden!$B$5-1) -> 0 | BA95: =BA93*(Kalkylvärden!$B$5-1) -> 0 | BB95: =BB93*(Kalkylvärden!$B$5-1) -> 0 | BC95: =BC93*(Kalkylvärden!$B$5-1) -> 0 | BD95: =BD93*(Kalkylvärden!$B$5-1) -> 0 | BE95: =BE93*(Kalkylvärden!$B$5-1) -> 0 | BF95: =BF93*(Kalkylvärden!$B$5-1) -> 0 | BG95: =BG93*(Kalkylvärden!$B$5-1) -> 0 | BH95: =BH93*(Kalkylvärden!$B$5-1) -> 0 | BI95: =BI93*(Kalkylvärden!$B$5-1) -> 0 | BJ95: =BJ93*(Kalkylvärden!$B$5-1) -> 0 | BK95: =BK93*(Kalkylvärden!$B$5-1) -> 0 | BL95: =BL93*(Kalkylvärden!$B$5-1) -> 0 | BM95: =BM93*(Kalkylvärden!$B$5-1) -> 0 | BN95: =BN93*(Kalkylvärden!$B$5-1) -> 0 | BO95: =BO93*(Kalkylvärden!$B$5-1) -> 0 | BP95: =BP93*(Kalkylvärden!$B$5-1) -> 0 | BQ95: =BQ93*(Kalkylvärden!$B$5-1) -> 0 | BR95: =BR93*(Kalkylvärden!$B$5-1) -> 0 | BS95: =BS93*(Kalkylvärden!$B$5-1) -> 0
A96: SEK reinv.kostn. JA | B96: =B94*(Kalkylvärden!$B$5-1) -> 0 | C96: =C94*(Kalkylvärden!$B$5-1) -> 0 | D96: =D94*(Kalkylvärden!$B$5-1) -> 0 | E96: =E94*(Kalkylvärden!$B$5-1) -> 0.2 | F96: =F94*(Kalkylvärden!$B$5-1) -> 0.2 | G96: =G94*(Kalkylvärden!$B$5-1) -> 0.2 | H96: =H94*(Kalkylvärden!$B$5-1) -> 0 | I96: =I94*(Kalkylvärden!$B$5-1) -> 0 | J96: =J94*(Kalkylvärden!$B$5-1) -> 0 | K96: =K94*(Kalkylvärden!$B$5-1) -> 0 | L96: =L94*(Kalkylvärden!$B$5-1) -> 0 | M96: =M94*(Kalkylvärden!$B$5-1) -> 0 | N96: =N94*(Kalkylvärden!$B$5-1) -> 0 | O96: =O94*(Kalkylvärden!$B$5-1) -> 0 | P96: =P94*(Kalkylvärden!$B$5-1) -> 0 | Q96: =Q94*(Kalkylvärden!$B$5-1) -> 0 | R96: =R94*(Kalkylvärden!$B$5-1) -> 0 | S96: =S94*(Kalkylvärden!$B$5-1) -> 0 | T96: =T94*(Kalkylvärden!$B$5-1) -> 0 | U96: =U94*(Kalkylvärden!$B$5-1) -> 0 | V96: =V94*(Kalkylvärden!$B$5-1) -> 0 | W96: =W94*(Kalkylvärden!$B$5-1) -> 0 | X96: =X94*(Kalkylvärden!$B$5-1) -> 0 | Y96: =Y94*(Kalkylvärden!$B$5-1) -> 0 | Z96: =Z94*(Kalkylvärden!$B$5-1) -> 0 | AA96: =AA94*(Kalkylvärden!$B$5-1) -> 0 | AB96: =AB94*(Kalkylvärden!$B$5-1) -> 0 | AC96: =AC94*(Kalkylvärden!$B$5-1) -> 0 | AD96: =AD94*(Kalkylvärden!$B$5-1) -> 0 | AE96: =AE94*(Kalkylvärden!$B$5-1) -> 0 | AF96: =AF94*(Kalkylvärden!$B$5-1) -> 0 | AG96: =AG94*(Kalkylvärden!$B$5-1) -> 0 | AH96: =AH94*(Kalkylvärden!$B$5-1) -> 0 | AI96: =AI94*(Kalkylvärden!$B$5-1) -> 0 | AJ96: =AJ94*(Kalkylvärden!$B$5-1) -> 0 | AK96: =AK94*(Kalkylvärden!$B$5-1) -> 0 | AL96: =AL94*(Kalkylvärden!$B$5-1) -> 0 | AM96: =AM94*(Kalkylvärden!$B$5-1) -> 0 | AN96: =AN94*(Kalkylvärden!$B$5-1) -> 0 | AO96: =AO94*(Kalkylvärden!$B$5-1) -> 0 | AP96: =AP94*(Kalkylvärden!$B$5-1) -> 0 | AQ96: =AQ94*(Kalkylvärden!$B$5-1) -> 0 | AR96: =AR94*(Kalkylvärden!$B$5-1) -> 0 | AS96: =AS94*(Kalkylvärden!$B$5-1) -> 0 | AT96: =AT94*(Kalkylvärden!$B$5-1) -> 0 | AU96: =AU94*(Kalkylvärden!$B$5-1) -> 0 | AV96: =AV94*(Kalkylvärden!$B$5-1) -> 0 | AW96: =AW94*(Kalkylvärden!$B$5-1) -> 0 | AX96: =AX94*(Kalkylvärden!$B$5-1) -> 0 | AY96: =AY94*(Kalkylvärden!$B$5-1) -> 0 | AZ96: =AZ94*(Kalkylvärden!$B$5-1) -> 0 | BA96: =BA94*(Kalkylvärden!$B$5-1) -> 0 | BB96: =BB94*(Kalkylvärden!$B$5-1) -> 0 | BC96: =BC94*(Kalkylvärden!$B$5-1) -> 0 | BD96: =BD94*(Kalkylvärden!$B$5-1) -> 0 | BE96: =BE94*(Kalkylvärden!$B$5-1) -> 0 | BF96: =BF94*(Kalkylvärden!$B$5-1) -> 0 | BG96: =BG94*(Kalkylvärden!$B$5-1) -> 0 | BH96: =BH94*(Kalkylvärden!$B$5-1) -> 0 | BI96: =BI94*(Kalkylvärden!$B$5-1) -> 0 | BJ96: =BJ94*(Kalkylvärden!$B$5-1) -> 0 | BK96: =BK94*(Kalkylvärden!$B$5-1) -> 0 | BL96: =BL94*(Kalkylvärden!$B$5-1) -> 0 | BM96: =BM94*(Kalkylvärden!$B$5-1) -> 0 | BN96: =BN94*(Kalkylvärden!$B$5-1) -> 0 | BO96: =BO94*(Kalkylvärden!$B$5-1) -> 0 | BP96: =BP94*(Kalkylvärden!$B$5-1) -> 0 | BQ96: =BQ94*(Kalkylvärden!$B$5-1) -> 0 | BR96: =BR94*(Kalkylvärden!$B$5-1) -> 0 | BS96: =BS94*(Kalkylvärden!$B$5-1) -> 0
A97: Nuvärde SEK reinv.kostn. UA | B97: =B95*B46 -> 0 | C97: =C95*C46 -> 0 | D97: 0 | E97: 0.3718083652 | F97: 0.362859818 | G97: 0.3541266411 | H97: 0 | I97: 0 | J97: 0 | K97: 0 | L97: 0 | M97: 0 | N97: 0 | O97: 0 | P97: 0 | Q97: 0 | R97: 0 | S97: 0 | T97: 0 | U97: 0 | V97: 0 | W97: 0 | X97: 0 | Y97: 0 | Z97: 0 | AA97: 0 | AB97: 0 | AC97: 0 | AD97: 0 | AE97: 0 | AF97: 0 | AG97: 0 | AH97: 0 | AI97: 0 | AJ97: 0 | AK97: 0 | AL97: 0 | AM97: 0 | AN97: 0 | AO97: 0 | AP97: 0 | AQ97: 0 | AR97: 0 | AS97: 0 | AT97: 0 | AU97: 0 | AV97: 0 | AW97: 0 | AX97: 0 | AY97: 0 | AZ97: 0 | BA97: 0 | BB97: 0 | BC97: 0 | BD97: 0 | BE97: 0 | BF97: 0 | BG97: 0 | BH97: 0 | BI97: 0 | BJ97: 0 | BK97: 0 | BL97: 0 | BM97: 0 | BN97: 0 | BO97: =BO95*BO46 -> 0 | BP97: 0 | BQ97: 0 | BR97: 0 | BS97: 0
A98: Nuvärde SEK reinv.kostn. JA | B98: =B96*B46 -> 0 | C98: =C96*C46 -> 0 | D98: 0 | E98: 0.1859041826 | F98: 0.181429909 | G98: 0.1770633206 | H98: 0 | I98: 0 | J98: 0 | K98: 0 | L98: 0 | M98: 0 | N98: 0 | O98: 0 | P98: 0 | Q98: 0 | R98: 0 | S98: 0 | T98: 0 | U98: 0 | V98: 0 | W98: 0 | X98: 0 | Y98: 0 | Z98: 0 | AA98: 0 | AB98: 0 | AC98: 0 | AD98: 0 | AE98: 0 | AF98: 0 | AG98: 0 | AH98: 0 | AI98: 0 | AJ98: 0 | AK98: 0 | AL98: 0 | AM98: 0 | AN98: 0 | AO98: 0 | AP98: 0 | AQ98: 0 | AR98: 0 | AS98: 0 | AT98: 0 | AU98: 0 | AV98: 0 | AW98: 0 | AX98: 0 | AY98: 0 | AZ98: 0 | BA98: 0 | BB98: 0 | BC98: 0 | BD98: 0 | BE98: 0 | BF98: 0 | BG98: 0 | BH98: 0 | BI98: 0 | BJ98: 0 | BK98: 0 | BL98: 0 | BM98: 0 | BN98: 0 | BO98: =BO96*BO46 -> 0 | BP98: 0 | BQ98: 0 | BR98: 0 | BS98: 0
A99: Nuvärde SEK reinv.kostn. UA-JA | B99: =IF(B81<=(Indata!$B$26+Indata!$B$24),B97-B98,"") -> 0 | C99: =IF(C81<=(Indata!$B$26+Indata!$B$24),C97-C98,"") -> 0 | D99: =IF(D81<=(Indata!$B$26+Indata!$B$24),D97-D98,"") -> 0 | E99: =IF(E81<=(Indata!$B$26+Indata!$B$24),E97-E98,"") -> 0.1859041826 | F99: =IF(F81<=(Indata!$B$26+Indata!$B$24),F97-F98,"") -> 0.181429909 | G99: =IF(G81<=(Indata!$B$26+Indata!$B$24),G97-G98,"") -> 0.1770633206 | H99: =IF(H81<=(Indata!$B$26+Indata!$B$24),H97-H98,"") -> 0 | I99: =IF(I81<=(Indata!$B$26+Indata!$B$24),I97-I98,"") -> 0 | J99: =IF(J81<=(Indata!$B$26+Indata!$B$24),J97-J98,"") -> 0 | K99: =IF(K81<=(Indata!$B$26+Indata!$B$24),K97-K98,"") -> 0 | L99: =IF(L81<=(Indata!$B$26+Indata!$B$24),L97-L98,"") -> 0 | M99: =IF(M81<=(Indata!$B$26+Indata!$B$24),M97-M98,"") -> 0 | N99: =IF(N81<=(Indata!$B$26+Indata!$B$24),N97-N98,"") -> 0 | O99: =IF(O81<=(Indata!$B$26+Indata!$B$24),O97-O98,"") -> 0 | P99: =IF(P81<=(Indata!$B$26+Indata!$B$24),P97-P98,"") -> 0 | Q99: =IF(Q81<=(Indata!$B$26+Indata!$B$24),Q97-Q98,"") -> 0 | R99: =IF(R81<=(Indata!$B$26+Indata!$B$24),R97-R98,"") -> 0 | S99: =IF(S81<=(Indata!$B$26+Indata!$B$24),S97-S98,"") -> 0 | T99: =IF(T81<=(Indata!$B$26+Indata!$B$24),T97-T98,"") -> 0 | U99: =IF(U81<=(Indata!$B$26+Indata!$B$24),U97-U98,"") -> 0 | V99: =IF(V81<=(Indata!$B$26+Indata!$B$24),V97-V98,"") -> 0 | W99: =IF(W81<=(Indata!$B$26+Indata!$B$24),W97-W98,"") -> 0 | X99: =IF(X81<=(Indata!$B$26+Indata!$B$24),X97-X98,"") -> 0 | Y99: =IF(Y81<=(Indata!$B$26+Indata!$B$24),Y97-Y98,"") -> 0 | Z99: =IF(Z81<=(Indata!$B$26+Indata!$B$24),Z97-Z98,"") -> 0 | AA99: =IF(AA81<=(Indata!$B$26+Indata!$B$24),AA97-AA98,"") -> 0 | AB99: =IF(AB81<=(Indata!$B$26+Indata!$B$24),AB97-AB98,"") -> 0 | AC99: =IF(AC81<=(Indata!$B$26+Indata!$B$24),AC97-AC98,"") -> 0 | AD99: =IF(AD81<=(Indata!$B$26+Indata!$B$24),AD97-AD98,"") -> 0 | AE99: =IF(AE81<=(Indata!$B$26+Indata!$B$24),AE97-AE98,"") -> 0 | AF99: =IF(AF81<=(Indata!$B$26+Indata!$B$24),AF97-AF98,"") -> 0 | AG99: =IF(AG81<=(Indata!$B$26+Indata!$B$24),AG97-AG98,"") -> 0 | AH99: =IF(AH81<=(Indata!$B$26+Indata!$B$24),AH97-AH98,"") -> 0 | AI99: =IF(AI81<=(Indata!$B$26+Indata!$B$24),AI97-AI98,"") -> 0 | AJ99: =IF(AJ81<=(Indata!$B$26+Indata!$B$24),AJ97-AJ98,"") -> 0 | AK99: =IF(AK81<=(Indata!$B$26+Indata!$B$24),AK97-AK98,"") -> 0 | AL99: =IF(AL81<=(Indata!$B$26+Indata!$B$24),AL97-AL98,"") -> 0 | AM99: =IF(AM81<=(Indata!$B$26+Indata!$B$24),AM97-AM98,"") -> 0 | AN99: =IF(AN81<=(Indata!$B$26+Indata!$B$24),AN97-AN98,"") -> 0 | AO99: =IF(AO81<=(Indata!$B$26+Indata!$B$24),AO97-AO98,"") -> 0 | AP99: =IF(AP81<=(Indata!$B$26+Indata!$B$24),AP97-AP98,"") -> 0 | AQ99: =IF(AQ81<=(Indata!$B$26+Indata!$B$24),AQ97-AQ98,"") -> 0 | AR99: =IF(AR81<=(Indata!$B$26+Indata!$B$24),AR97-AR98,"") -> 0 | AS99: =IF(AS81<=(Indata!$B$26+Indata!$B$24),AS97-AS98,"") -> 0 | AT99: =IF(AT81<=(Indata!$B$26+Indata!$B$24),AT97-AT98,"") ->  | AU99: =IF(AU81<=(Indata!$B$26+Indata!$B$24),AU97-AU98,"") ->  | AV99: =IF(AV81<=(Indata!$B$26+Indata!$B$24),AV97-AV98,"") ->  | AW99: =IF(AW81<=(Indata!$B$26+Indata!$B$24),AW97-AW98,"") ->  | AX99: =IF(AX81<=(Indata!$B$26+Indata!$B$24),AX97-AX98,"") ->  | AY99: =IF(AY81<=(Indata!$B$26+Indata!$B$24),AY97-AY98,"") ->  | AZ99: =IF(AZ81<=(Indata!$B$26+Indata!$B$24),AZ97-AZ98,"") ->  | BA99: =IF(BA81<=(Indata!$B$26+Indata!$B$24),BA97-BA98,"") ->  | BB99: =IF(BB81<=(Indata!$B$26+Indata!$B$24),BB97-BB98,"") ->  | BC99: =IF(BC81<=(Indata!$B$26+Indata!$B$24),BC97-BC98,"") ->  | BD99: =IF(BD81<=(Indata!$B$26+Indata!$B$24),BD97-BD98,"") ->  | BE99: =IF(BE81<=(Indata!$B$26+Indata!$B$24),BE97-BE98,"") ->  | BF99: =IF(BF81<=(Indata!$B$26+Indata!$B$24),BF97-BF98,"") ->  | BG99: =IF(BG81<=(Indata!$B$26+Indata!$B$24),BG97-BG98,"") ->  | BH99: =IF(BH81<=(Indata!$B$26+Indata!$B$24),BH97-BH98,"") ->  | BI99: =IF(BI81<=(Indata!$B$26+Indata!$B$24),BI97-BI98,"") ->  | BJ99: =IF(BJ81<=(Indata!$B$26+Indata!$B$24),BJ97-BJ98,"") ->  | BK99: =IF(BK81<=(Indata!$B$26+Indata!$B$24),BK97-BK98,"") ->  | BL99: =IF(BL81<=(Indata!$B$26+Indata!$B$24),BL97-BL98,"") ->  | BM99: =IF(BM81<=(Indata!$B$26+Indata!$B$24),BM97-BM98,"") ->  | BN99: =IF(BN81<=(Indata!$B$26+Indata!$B$24),BN97-BN98,"") ->  | BO99: =IF(BO81<=(Indata!$B$26+Indata!$B$24),BO97-BO98,"") ->  | BP99: =IF(BP81<=(Indata!$B$26+Indata!$B$24),BP97-BP98,"") ->  | BQ99: =IF(BQ81<=(Indata!$B$26+Indata!$B$24),BQ97-BQ98,"") ->  | BR99: =IF(BR81<=(Indata!$B$26+Indata!$B$24),BR97-BR98,"") ->  | BS99: =IF(BS81<=(Indata!$B$26+Indata!$B$24),BS97-BS98,"") -> 
A100: Summa nuvärde SEK reinvkostnader (mkr) | B100: =SUM(B99:BS99) -> 0.5443974122
A108: Diskontering av effekter
A109: År | B109: =Indata!B26 -> 2031 | C109: =B109+1 -> 2032 | D109: =C109+1 -> 2033 | E109: =D109+1 -> 2034 | F109: =E109+1 -> 2035 | G109: =F109+1 -> 2036 | H109: =G109+1 -> 2037 | I109: =H109+1 -> 2038 | J109: =I109+1 -> 2039 | K109: =J109+1 -> 2040 | L109: =K109+1 -> 2041 | M109: =L109+1 -> 2042 | N109: =M109+1 -> 2043 | O109: =N109+1 -> 2044 | P109: =O109+1 -> 2045 | Q109: =P109+1 -> 2046 | R109: =Q109+1 -> 2047 | S109: =R109+1 -> 2048 | T109: =S109+1 -> 2049 | U109: =T109+1 -> 2050 | V109: =U109+1 -> 2051 | W109: =V109+1 -> 2052 | X109: =W109+1 -> 2053 | Y109: =X109+1 -> 2054 | Z109: =Y109+1 -> 2055 | AA109: =Z109+1 -> 2056 | AB109: =AA109+1 -> 2057 | AC109: =AB109+1 -> 2058 | AD109: =AC109+1 -> 2059 | AE109: =AD109+1 -> 2060 | AF109: =AE109+1 -> 2061 | AG109: =AF109+1 -> 2062 | AH109: =AG109+1 -> 2063 | AI109: =AH109+1 -> 2064 | AJ109: =AI109+1 -> 2065 | AK109: =AJ109+1 -> 2066 | AL109: =AK109+1 -> 2067 | AM109: =AL109+1 -> 2068 | AN109: =AM109+1 -> 2069 | AO109: =AN109+1 -> 2070 | AP109: =AO109+1 -> 2071 | AQ109: =AP109+1 -> 2072 | AR109: =AQ109+1 -> 2073 | AS109: =AR109+1 -> 2074 | AT109: =AS109+1 -> 2075 | AU109: =AT109+1 -> 2076 | AV109: =AU109+1 -> 2077 | AW109: =AV109+1 -> 2078 | AX109: =AW109+1 -> 2079 | AY109: =AX109+1 -> 2080 | AZ109: =AY109+1 -> 2081 | BA109: =AZ109+1 -> 2082 | BB109: =BA109+1 -> 2083 | BC109: =BB109+1 -> 2084 | BD109: =BC109+1 -> 2085 | BE109: =BD109+1 -> 2086 | BF109: =BE109+1 -> 2087 | BG109: =BF109+1 -> 2088 | BH109: =BG109+1 -> 2089 | BI109: =BH109+1 -> 2090 | BJ109: =BI109+1 -> 2091 | BK109: =BJ109+1 -> 2092 | BL109: =BK109+1 -> 2093 | BM109: =BL109+1 -> 2094 | BN109: =BM109+1 -> 2095 | BO109: =BN109+1 -> 2096 | BP109: =BO109+1 -> 2097 | BQ109: =BP109+1 -> 2098 | BR109: =BQ109+1 -> 2099 | BS109: =BR109+1 -> 2100
A110: År (nr) | B110: =Indata!B25 -> 3 | C110: =B110+1 -> 4 | D110: 5 | E110: 6 | F110: 7 | G110: 8 | H110: 9 | I110: 10 | J110: 11 | K110: 12 | L110: 13 | M110: 14 | N110: 15 | O110: 16 | P110: 17 | Q110: 18 | R110: 19 | S110: 20 | T110: 21 | U110: 22 | V110: 23 | W110: 24 | X110: 25 | Y110: 26 | Z110: 27 | AA110: 28 | AB110: 29 | AC110: 30 | AD110: 31 | AE110: 32 | AF110: 33 | AG110: 34 | AH110: 35 | AI110: 36 | AJ110: 37 | AK110: 38 | AL110: 39 | AM110: 40 | AN110: 41 | AO110: 42 | AP110: 43 | AQ110: 44 | AR110: 45 | AS110: 46 | AT110: 47 | AU110: 48 | AV110: 49 | AW110: 50 | AX110: 51 | AY110: 52 | AZ110: 53 | BA110: 54 | BB110: 55 | BC110: 56 | BD110: 57 | BE110: 58 | BF110: 59 | BG110: 60 | BH110: 61 | BI110: 62 | BJ110: 63 | BK110: 64 | BL110: 65 | BM110: 66 | BN110: 67 | BO110: 68 | BP110: 69 | BQ110: 70 | BR110: 71 | BS110: 72
A111: Diskonteringsfaktor | B111: =(1+Kalkylvärden!$B$4/100)^(Diskontering!B110) -> 1.108717875 | C111: =(1+Kalkylvärden!$B$4/100)^(Diskontering!C110) -> 1.147523001 | D111: =(1+Kalkylvärden!$B$4/100)^(Diskontering!D110) -> 1.187686306 | E111: =(1+Kalkylvärden!$B$4/100)^(Diskontering!E110) -> 1.229255326 | F111: =(1+Kalkylvärden!$B$4/100)^(Diskontering!F110) -> 1.272279263 | G111: =(1+Kalkylvärden!$B$4/100)^(Diskontering!G110) -> 1.316809037 | H111: =(1+Kalkylvärden!$B$4/100)^(Diskontering!H110) -> 1.362897353 | I111: =(1+Kalkylvärden!$B$4/100)^(Diskontering!I110) -> 1.410598761 | J111: =(1+Kalkylvärden!$B$4/100)^(Diskontering!J110) -> 1.459969717 | K111: =(1+Kalkylvärden!$B$4/100)^(Diskontering!K110) -> 1.511068657 | L111: =(1+Kalkylvärden!$B$4/100)^(Diskontering!L110) -> 1.56395606 | M111: =(1+Kalkylvärden!$B$4/100)^(Diskontering!M110) -> 1.618694522 | N111: =(1+Kalkylvärden!$B$4/100)^(Diskontering!N110) -> 1.675348831 | O111: =(1+Kalkylvärden!$B$4/100)^(Diskontering!O110) -> 1.73398604 | P111: =(1+Kalkylvärden!$B$4/100)^(Diskontering!P110) -> 1.794675551 | Q111: =(1+Kalkylvärden!$B$4/100)^(Diskontering!Q110) -> 1.857489196 | R111: =(1+Kalkylvärden!$B$4/100)^(Diskontering!R110) -> 1.922501317 | S111: =(1+Kalkylvärden!$B$4/100)^(Diskontering!S110) -> 1.989788863 | T111: =(1+Kalkylvärden!$B$4/100)^(Diskontering!T110) -> 2.059431474 | U111: =(1+Kalkylvärden!$B$4/100)^(Diskontering!U110) -> 2.131511575 | V111: =(1+Kalkylvärden!$B$4/100)^(Diskontering!V110) -> 2.20611448 | W111: =(1+Kalkylvärden!$B$4/100)^(Diskontering!W110) -> 2.283328487 | X111: =(1+Kalkylvärden!$B$4/100)^(Diskontering!X110) -> 2.363244984 | Y111: =(1+Kalkylvärden!$B$4/100)^(Diskontering!Y110) -> 2.445958559 | Z111: =(1+Kalkylvärden!$B$4/100)^(Diskontering!Z110) -> 2.531567108 | AA111: =(1+Kalkylvärden!$B$4/100)^(Diskontering!AA110) -> 2.620171957 | AB111: =(1+Kalkylvärden!$B$4/100)^(Diskontering!AB110) -> 2.711877976 | AC111: =(1+Kalkylvärden!$B$4/100)^(Diskontering!AC110) -> 2.806793705 | AD111: =(1+Kalkylvärden!$B$4/100)^(Diskontering!AD110) -> 2.905031484 | AE111: =(1+Kalkylvärden!$B$4/100)^(Diskontering!AE110) -> 3.006707586 | AF111: =(1+Kalkylvärden!$B$4/100)^(Diskontering!AF110) -> 3.111942352 | AG111: =(1+Kalkylvärden!$B$4/100)^(Diskontering!AG110) -> 3.220860334 | AH111: =(1+Kalkylvärden!$B$4/100)^(Diskontering!AH110) -> 3.333590446 | AI111: =(1+Kalkylvärden!$B$4/100)^(Diskontering!AI110) -> 3.450266111 | AJ111: =(1+Kalkylvärden!$B$4/100)^(Diskontering!AJ110) -> 3.571025425 | AK111: =(1+Kalkylvärden!$B$4/100)^(Diskontering!AK110) -> 3.696011315 | AL111: =(1+Kalkylvärden!$B$4/100)^(Diskontering!AL110) -> 3.825371711 | AM111: =(1+Kalkylvärden!$B$4/100)^(Diskontering!AM110) -> 3.959259721 | AN111: =(1+Kalkylvärden!$B$4/100)^(Diskontering!AN110) -> 4.097833811 | AO111: =(1+Kalkylvärden!$B$4/100)^(Diskontering!AO110) -> 4.241257995 | AP111: =(1+Kalkylvärden!$B$4/100)^(Diskontering!AP110) -> 4.389702025 | AQ111: =(1+Kalkylvärden!$B$4/100)^(Diskontering!AQ110) -> 4.543341595 | AR111: =(1+Kalkylvärden!$B$4/100)^(Diskontering!AR110) -> 4.702358551 | AS111: =(1+Kalkylvärden!$B$4/100)^(Diskontering!AS110) -> 4.866941101 | AT111: =(1+Kalkylvärden!$B$4/100)^(Diskontering!AT110) -> 5.037284039 | AU111: =(1+Kalkylvärden!$B$4/100)^(Diskontering!AU110) -> 5.213588981 | AV111: =(1+Kalkylvärden!$B$4/100)^(Diskontering!AV110) -> 5.396064595 | AW111: =(1+Kalkylvärden!$B$4/100)^(Diskontering!AW110) -> 5.584926856 | AX111: =(1+Kalkylvärden!$B$4/100)^(Diskontering!AX110) -> 5.780399296 | AY111: =(1+Kalkylvärden!$B$4/100)^(Diskontering!AY110) -> 5.982713271 | AZ111: =(1+Kalkylvärden!$B$4/100)^(Diskontering!AZ110) -> 6.192108235 | BA111: =(1+Kalkylvärden!$B$4/100)^(Diskontering!BA110) -> 6.408832024 | BB111: =(1+Kalkylvärden!$B$4/100)^(Diskontering!BB110) -> 6.633141145 | BC111: =(1+Kalkylvärden!$B$4/100)^(Diskontering!BC110) -> 6.865301085 | BD111: =(1+Kalkylvärden!$B$4/100)^(Diskontering!BD110) -> 7.105586623 | BE111: =(1+Kalkylvärden!$B$4/100)^(Diskontering!BE110) -> 7.354282154 | BF111: =(1+Kalkylvärden!$B$4/100)^(Diskontering!BF110) -> 7.61168203 | BG111: =(1+Kalkylvärden!$B$4/100)^(Diskontering!BG110) -> 7.878090901 | BH111: =(1+Kalkylvärden!$B$4/100)^(Diskontering!BH110) -> 8.153824082 | BI111: =(1+Kalkylvärden!$B$4/100)^(Diskontering!BI110) -> 8.439207925 | BJ111: =(1+Kalkylvärden!$B$4/100)^(Diskontering!BJ110) -> 8.734580203 | BK111: =(1+Kalkylvärden!$B$4/100)^(Diskontering!BK110) -> 9.04029051 | BL111: =(1+Kalkylvärden!$B$4/100)^(Diskontering!BL110) -> 9.356700677 | BM111: =(1+Kalkylvärden!$B$4/100)^(Diskontering!BM110) -> 9.684185201 | BN111: =(1+Kalkylvärden!$B$4/100)^(Diskontering!BN110) -> 10.02313168 | BO111: =(1+Kalkylvärden!$B$4/100)^(Diskontering!BO110) -> 10.37394129 | BP111: =(1+Kalkylvärden!$B$4/100)^(Diskontering!BP110) -> 10.73702924 | BQ111: =(1+Kalkylvärden!$B$4/100)^(Diskontering!BQ110) -> 11.11282526 | BR111: =(1+Kalkylvärden!$B$4/100)^(Diskontering!BR110) -> 11.50177414 | BS111: =(1+Kalkylvärden!$B$4/100)^(Diskontering!BS110) -> 11.90433624
A113: Trafiktillväxt
A114: Trafiktillväxt (Pb och Lb) | B114: =IF(Diskontering!B109>Kalkylvärden!$B7,A114*(1+Diskontering!$B7/100),(1+Diskontering!$B6/100)^(B109-Kalkylvärden!$B6)) -> 1.045678375 | C114: =IF(Diskontering!C109>Kalkylvärden!$B7,B114*(1+Diskontering!$B7/100),(1+Diskontering!$B6/100)^(C109-Kalkylvärden!$B6)) -> 1.061363551 | D114: =IF(Diskontering!D109>Kalkylvärden!$B7,C114*(1+Diskontering!$B7/100),(1+Diskontering!$B6/100)^(D109-Kalkylvärden!$B6)) -> 1.077284004 | E114: =IF(Diskontering!E109>Kalkylvärden!$B7,D114*(1+Diskontering!$B7/100),(1+Diskontering!$B6/100)^(E109-Kalkylvärden!$B6)) -> 1.093443264 | F114: =IF(Diskontering!F109>Kalkylvärden!$B7,E114*(1+Diskontering!$B7/100),(1+Diskontering!$B6/100)^(F109-Kalkylvärden!$B6)) -> 1.109844913 | G114: =IF(Diskontering!G109>Kalkylvärden!$B7,F114*(1+Diskontering!$B7/100),(1+Diskontering!$B6/100)^(G109-Kalkylvärden!$B6)) -> 1.126492587 | H114: =IF(Diskontering!H109>Kalkylvärden!$B7,G114*(1+Diskontering!$B7/100),(1+Diskontering!$B6/100)^(H109-Kalkylvärden!$B6)) -> 1.143389975 | I114: =IF(Diskontering!I109>Kalkylvärden!$B7,H114*(1+Diskontering!$B7/100),(1+Diskontering!$B6/100)^(I109-Kalkylvärden!$B6)) -> 1.160540825 | J114: =IF(Diskontering!J109>Kalkylvärden!$B7,I114*(1+Diskontering!$B7/100),(1+Diskontering!$B6/100)^(J109-Kalkylvärden!$B6)) -> 1.177948937 | K114: =IF(Diskontering!K109>Kalkylvärden!$B7,J114*(1+Diskontering!$B7/100),(1+Diskontering!$B6/100)^(K109-Kalkylvärden!$B6)) -> 1.195618171 | L114: =IF(Diskontering!L109>Kalkylvärden!$B7,K114*(1+Diskontering!$B7/100),(1+Diskontering!$B6/100)^(L109-Kalkylvärden!$B6)) -> 1.213552444 | M114: =IF(Diskontering!M109>Kalkylvärden!$B7,L114*(1+Diskontering!$B7/100),(1+Diskontering!$B6/100)^(M109-Kalkylvärden!$B6)) -> 1.231755731 | N114: =IF(Diskontering!N109>Kalkylvärden!$B7,M114*(1+Diskontering!$B7/100),(1+Diskontering!$B6/100)^(N109-Kalkylvärden!$B6)) -> 1.250232067 | O114: =IF(Diskontering!O109>Kalkylvärden!$B7,N114*(1+Diskontering!$B7/100),(1+Diskontering!$B6/100)^(O109-Kalkylvärden!$B6)) -> 1.268985548 | P114: =IF(Diskontering!P109>Kalkylvärden!$B7,O114*(1+Diskontering!$B7/100),(1+Diskontering!$B6/100)^(P109-Kalkylvärden!$B6)) -> 1.288020331 | Q114: =IF(Diskontering!Q109>Kalkylvärden!$B7,P114*(1+Diskontering!$B7/100),(1+Diskontering!$B6/100)^(Q109-Kalkylvärden!$B6)) -> 1.294460433 | R114: =IF(Diskontering!R109>Kalkylvärden!$B7,Q114*(1+Diskontering!$B7/100),(1+Diskontering!$B6/100)^(R109-Kalkylvärden!$B6)) -> 1.300932735 | S114: =IF(Diskontering!S109>Kalkylvärden!$B7,R114*(1+Diskontering!$B7/100),(1+Diskontering!$B6/100)^(S109-Kalkylvärden!$B6)) -> 1.307437398 | T114: =IF(Diskontering!T109>Kalkylvärden!$B7,S114*(1+Diskontering!$B7/100),(1+Diskontering!$B6/100)^(T109-Kalkylvärden!$B6)) -> 1.313974585 | U114: =IF(Diskontering!U109>Kalkylvärden!$B7,T114*(1+Diskontering!$B7/100),(1+Diskontering!$B6/100)^(U109-Kalkylvärden!$B6)) -> 1.320544458 | V114: =IF(Diskontering!V109>Kalkylvärden!$B7,U114*(1+Diskontering!$B7/100),(1+Diskontering!$B6/100)^(V109-Kalkylvärden!$B6)) -> 1.327147181 | W114: =IF(Diskontering!W109>Kalkylvärden!$B7,V114*(1+Diskontering!$B7/100),(1+Diskontering!$B6/100)^(W109-Kalkylvärden!$B6)) -> 1.333782916 | X114: =IF(Diskontering!X109>Kalkylvärden!$B7,W114*(1+Diskontering!$B7/100),(1+Diskontering!$B6/100)^(X109-Kalkylvärden!$B6)) -> 1.340451831 | Y114: =IF(Diskontering!Y109>Kalkylvärden!$B7,X114*(1+Diskontering!$B7/100),(1+Diskontering!$B6/100)^(Y109-Kalkylvärden!$B6)) -> 1.34715409 | Z114: =IF(Diskontering!Z109>Kalkylvärden!$B7,Y114*(1+Diskontering!$B7/100),(1+Diskontering!$B6/100)^(Z109-Kalkylvärden!$B6)) -> 1.353889861 | AA114: =IF(Diskontering!AA109>Kalkylvärden!$B7,Z114*(1+Diskontering!$B7/100),(1+Diskontering!$B6/100)^(AA109-Kalkylvärden!$B6)) -> 1.36065931 | AB114: =IF(Diskontering!AB109>Kalkylvärden!$B7,AA114*(1+Diskontering!$B7/100),(1+Diskontering!$B6/100)^(AB109-Kalkylvärden!$B6)) -> 1.367462607 | AC114: =IF(Diskontering!AC109>Kalkylvärden!$B7,AB114*(1+Diskontering!$B7/100),(1+Diskontering!$B6/100)^(AC109-Kalkylvärden!$B6)) -> 1.37429992 | AD114: =IF(Diskontering!AD109>Kalkylvärden!$B7,AC114*(1+Diskontering!$B7/100),(1+Diskontering!$B6/100)^(AD109-Kalkylvärden!$B6)) -> 1.381171419 | AE114: =IF(Diskontering!AE109>Kalkylvärden!$B7,AD114*(1+Diskontering!$B7/100),(1+Diskontering!$B6/100)^(AE109-Kalkylvärden!$B6)) -> 1.388077276 | AF114: =IF(Diskontering!AF109>Kalkylvärden!$B7,AE114*(1+Diskontering!$B7/100),(1+Diskontering!$B6/100)^(AF109-Kalkylvärden!$B6)) -> 1.395017663 | AG114: =IF(Diskontering!AG109>Kalkylvärden!$B7,AF114*(1+Diskontering!$B7/100),(1+Diskontering!$B6/100)^(AG109-Kalkylvärden!$B6)) -> 1.401992751 | AH114: =IF(Diskontering!AH109>Kalkylvärden!$B7,AG114*(1+Diskontering!$B7/100),(1+Diskontering!$B6/100)^(AH109-Kalkylvärden!$B6)) -> 1.409002715 | AI114: =IF(Diskontering!AI109>Kalkylvärden!$B7,AH114*(1+Diskontering!$B7/100),(1+Diskontering!$B6/100)^(AI109-Kalkylvärden!$B6)) -> 1.416047728 | AJ114: =IF(Diskontering!AJ109>Kalkylvärden!$B7,AI114*(1+Diskontering!$B7/100),(1+Diskontering!$B6/100)^(AJ109-Kalkylvärden!$B6)) -> 1.423127967 | AK114: =IF(Diskontering!AK109>Kalkylvärden!$B7,AJ114*(1+Diskontering!$B7/100),(1+Diskontering!$B6/100)^(AK109-Kalkylvärden!$B6)) -> 1.430243607 | AL114: =IF(Diskontering!AL109>Kalkylvärden!$B7,AK114*(1+Diskontering!$B7/100),(1+Diskontering!$B6/100)^(AL109-Kalkylvärden!$B6)) -> 1.437394825 | AM114: =IF(Diskontering!AM109>Kalkylvärden!$B7,AL114*(1+Diskontering!$B7/100),(1+Diskontering!$B6/100)^(AM109-Kalkylvärden!$B6)) -> 1.444581799 | AN114: =IF(Diskontering!AN109>Kalkylvärden!$B7,AM114*(1+Diskontering!$B7/100),(1+Diskontering!$B6/100)^(AN109-Kalkylvärden!$B6)) -> 1.451804708 | AO114: =IF(Diskontering!AO109>Kalkylvärden!$B7,AN114*(1+Diskontering!$B7/100),(1+Diskontering!$B6/100)^(AO109-Kalkylvärden!$B6)) -> 1.459063731 | AP114: =IF(Diskontering!AP109>Kalkylvärden!$B7,AO114*(1+Diskontering!$B7/100),(1+Diskontering!$B6/100)^(AP109-Kalkylvärden!$B6)) -> 1.46635905 | AQ114: =IF(Diskontering!AQ109>Kalkylvärden!$B7,AP114*(1+Diskontering!$B7/100),(1+Diskontering!$B6/100)^(AQ109-Kalkylvärden!$B6)) -> 1.473690845 | AR114: =IF(Diskontering!AR109>Kalkylvärden!$B7,AQ114*(1+Diskontering!$B7/100),(1+Diskontering!$B6/100)^(AR109-Kalkylvärden!$B6)) -> 1.4810593 | AS114: =IF(Diskontering!AS109>Kalkylvärden!$B7,AR114*(1+Diskontering!$B7/100),(1+Diskontering!$B6/100)^(AS109-Kalkylvärden!$B6)) -> 1.488464596 | AT114: =IF(Diskontering!AT109>Kalkylvärden!$B7,AS114*(1+Diskontering!$B7/100),(1+Diskontering!$B6/100)^(AT109-Kalkylvärden!$B6)) -> 1.495906919 | AU114: =IF(Diskontering!AU109>Kalkylvärden!$B7,AT114*(1+Diskontering!$B7/100),(1+Diskontering!$B6/100)^(AU109-Kalkylvärden!$B6)) -> 1.503386454 | AV114: =IF(Diskontering!AV109>Kalkylvärden!$B7,AU114*(1+Diskontering!$B7/100),(1+Diskontering!$B6/100)^(AV109-Kalkylvärden!$B6)) -> 1.510903386 | AW114: =IF(Diskontering!AW109>Kalkylvärden!$B7,AV114*(1+Diskontering!$B7/100),(1+Diskontering!$B6/100)^(AW109-Kalkylvärden!$B6)) -> 1.518457903 | AX114: =IF(Diskontering!AX109>Kalkylvärden!$B7,AW114*(1+Diskontering!$B7/100),(1+Diskontering!$B6/100)^(AX109-Kalkylvärden!$B6)) -> 1.526050192 | AY114: =IF(Diskontering!AY109>Kalkylvärden!$B7,AX114*(1+Diskontering!$B7/100),(1+Diskontering!$B6/100)^(AY109-Kalkylvärden!$B6)) -> 1.533680443 | AZ114: =IF(Diskontering!AZ109>Kalkylvärden!$B7,AY114*(1+Diskontering!$B7/100),(1+Diskontering!$B6/100)^(AZ109-Kalkylvärden!$B6)) -> 1.541348846 | BA114: =IF(Diskontering!BA109>Kalkylvärden!$B7,AZ114*(1+Diskontering!$B7/100),(1+Diskontering!$B6/100)^(BA109-Kalkylvärden!$B6)) -> 1.54905559 | BB114: =IF(Diskontering!BB109>Kalkylvärden!$B7,BA114*(1+Diskontering!$B7/100),(1+Diskontering!$B6/100)^(BB109-Kalkylvärden!$B6)) -> 1.556800868 | BC114: =IF(Diskontering!BC109>Kalkylvärden!$B7,BB114*(1+Diskontering!$B7/100),(1+Diskontering!$B6/100)^(BC109-Kalkylvärden!$B6)) -> 1.564584872 | BD114: =IF(Diskontering!BD109>Kalkylvärden!$B7,BC114*(1+Diskontering!$B7/100),(1+Diskontering!$B6/100)^(BD109-Kalkylvärden!$B6)) -> 1.572407796 | BE114: =IF(Diskontering!BE109>Kalkylvärden!$B7,BD114*(1+Diskontering!$B7/100),(1+Diskontering!$B6/100)^(BE109-Kalkylvärden!$B6)) -> 1.580269835 | BF114: =IF(Diskontering!BF109>Kalkylvärden!$B7,BE114*(1+Diskontering!$B7/100),(1+Diskontering!$B6/100)^(BF109-Kalkylvärden!$B6)) -> 1.588171185 | BG114: =IF(Diskontering!BG109>Kalkylvärden!$B7,BF114*(1+Diskontering!$B7/100),(1+Diskontering!$B6/100)^(BG109-Kalkylvärden!$B6)) -> 1.59611204 | BH114: =IF(Diskontering!BH109>Kalkylvärden!$B7,BG114*(1+Diskontering!$B7/100),(1+Diskontering!$B6/100)^(BH109-Kalkylvärden!$B6)) -> 1.604092601 | BI114: =IF(Diskontering!BI109>Kalkylvärden!$B7,BH114*(1+Diskontering!$B7/100),(1+Diskontering!$B6/100)^(BI109-Kalkylvärden!$B6)) -> 1.612113064 | BJ114: =IF(Diskontering!BJ109>Kalkylvärden!$B7,BI114*(1+Diskontering!$B7/100),(1+Diskontering!$B6/100)^(BJ109-Kalkylvärden!$B6)) -> 1.620173629 | BK114: =IF(Diskontering!BK109>Kalkylvärden!$B7,BJ114*(1+Diskontering!$B7/100),(1+Diskontering!$B6/100)^(BK109-Kalkylvärden!$B6)) -> 1.628274497 | BL114: =IF(Diskontering!BL109>Kalkylvärden!$B7,BK114*(1+Diskontering!$B7/100),(1+Diskontering!$B6/100)^(BL109-Kalkylvärden!$B6)) -> 1.63641587 | BM114: =IF(Diskontering!BM109>Kalkylvärden!$B7,BL114*(1+Diskontering!$B7/100),(1+Diskontering!$B6/100)^(BM109-Kalkylvärden!$B6)) -> 1.644597949 | BN114: =IF(Diskontering!BN109>Kalkylvärden!$B7,BM114*(1+Diskontering!$B7/100),(1+Diskontering!$B6/100)^(BN109-Kalkylvärden!$B6)) -> 1.652820939 | BO114: =IF(Diskontering!BO109>Kalkylvärden!$B7,BN114*(1+Diskontering!$B7/100),(1+Diskontering!$B6/100)^(BO109-Kalkylvärden!$B6)) -> 1.661085043 | BP114: =IF(Diskontering!BP109>Kalkylvärden!$B7,BO114*(1+Diskontering!$B7/100),(1+Diskontering!$B6/100)^(BP109-Kalkylvärden!$B6)) -> 1.669390469 | BQ114: =IF(Diskontering!BQ109>Kalkylvärden!$B7,BP114*(1+Diskontering!$B7/100),(1+Diskontering!$B6/100)^(BQ109-Kalkylvärden!$B6)) -> 1.677737421 | BR114: =IF(Diskontering!BR109>Kalkylvärden!$B7,BQ114*(1+Diskontering!$B7/100),(1+Diskontering!$B6/100)^(BR109-Kalkylvärden!$B6)) -> 1.686126108
A115: Trafiktillväxt (antal tåg) | B115: =IF(Diskontering!B109>Kalkylvärden!$B7,A115*(1+Diskontering!$B10/100),(1+Diskontering!$B9/100)^(B109-Kalkylvärden!$B6)) -> 1.074174722 | C115: =IF(Diskontering!C109>Kalkylvärden!$B7,B115*(1+Diskontering!$B10/100),(1+Diskontering!$B9/100)^(C109-Kalkylvärden!$B6)) -> 1.100102717 | D115: =IF(Diskontering!D109>Kalkylvärden!$B7,C115*(1+Diskontering!$B10/100),(1+Diskontering!$B9/100)^(D109-Kalkylvärden!$B6)) -> 1.126656552 | E115: =IF(Diskontering!E109>Kalkylvärden!$B7,D115*(1+Diskontering!$B10/100),(1+Diskontering!$B9/100)^(E109-Kalkylvärden!$B6)) -> 1.153851333 | F115: =IF(Diskontering!F109>Kalkylvärden!$B7,E115*(1+Diskontering!$B10/100),(1+Diskontering!$B9/100)^(F109-Kalkylvärden!$B6)) -> 1.18170253 | G115: =IF(Diskontering!G109>Kalkylvärden!$B7,F115*(1+Diskontering!$B10/100),(1+Diskontering!$B9/100)^(G109-Kalkylvärden!$B6)) -> 1.210225989 | H115: =IF(Diskontering!H109>Kalkylvärden!$B7,G115*(1+Diskontering!$B10/100),(1+Diskontering!$B9/100)^(H109-Kalkylvärden!$B6)) -> 1.239437935 | I115: =IF(Diskontering!I109>Kalkylvärden!$B7,H115*(1+Diskontering!$B10/100),(1+Diskontering!$B9/100)^(I109-Kalkylvärden!$B6)) -> 1.269354987 | J115: =IF(Diskontering!J109>Kalkylvärden!$B7,I115*(1+Diskontering!$B10/100),(1+Diskontering!$B9/100)^(J109-Kalkylvärden!$B6)) -> 1.299994165 | K115: =IF(Diskontering!K109>Kalkylvärden!$B7,J115*(1+Diskontering!$B10/100),(1+Diskontering!$B9/100)^(K109-Kalkylvärden!$B6)) -> 1.331372899 | L115: =IF(Diskontering!L109>Kalkylvärden!$B7,K115*(1+Diskontering!$B10/100),(1+Diskontering!$B9/100)^(L109-Kalkylvärden!$B6)) -> 1.36350904 | M115: =IF(Diskontering!M109>Kalkylvärden!$B7,L115*(1+Diskontering!$B10/100),(1+Diskontering!$B9/100)^(M109-Kalkylvärden!$B6)) -> 1.39642087 | N115: =IF(Diskontering!N109>Kalkylvärden!$B7,M115*(1+Diskontering!$B10/100),(1+Diskontering!$B9/100)^(N109-Kalkylvärden!$B6)) -> 1.430127113 | O115: =IF(Diskontering!O109>Kalkylvärden!$B7,N115*(1+Diskontering!$B10/100),(1+Diskontering!$B9/100)^(O109-Kalkylvärden!$B6)) -> 1.464646944 | P115: =IF(Diskontering!P109>Kalkylvärden!$B7,O115*(1+Diskontering!$B10/100),(1+Diskontering!$B9/100)^(P109-Kalkylvärden!$B6)) -> 1.5 | Q115: =IF(Diskontering!Q109>Kalkylvärden!$B7,P115*(1+Diskontering!$B10/100),(1+Diskontering!$B9/100)^(Q109-Kalkylvärden!$B6)) -> 1.5 | R115: =IF(Diskontering!R109>Kalkylvärden!$B7,Q115*(1+Diskontering!$B10/100),(1+Diskontering!$B9/100)^(R109-Kalkylvärden!$B6)) -> 1.5 | S115: =IF(Diskontering!S109>Kalkylvärden!$B7,R115*(1+Diskontering!$B10/100),(1+Diskontering!$B9/100)^(S109-Kalkylvärden!$B6)) -> 1.5 | T115: =IF(Diskontering!T109>Kalkylvärden!$B7,S115*(1+Diskontering!$B10/100),(1+Diskontering!$B9/100)^(T109-Kalkylvärden!$B6)) -> 1.5 | U115: =IF(Diskontering!U109>Kalkylvärden!$B7,T115*(1+Diskontering!$B10/100),(1+Diskontering!$B9/100)^(U109-Kalkylvärden!$B6)) -> 1.5 | V115: =IF(Diskontering!V109>Kalkylvärden!$B7,U115*(1+Diskontering!$B10/100),(1+Diskontering!$B9/100)^(V109-Kalkylvärden!$B6)) -> 1.5 | W115: =IF(Diskontering!W109>Kalkylvärden!$B7,V115*(1+Diskontering!$B10/100),(1+Diskontering!$B9/100)^(W109-Kalkylvärden!$B6)) -> 1.5 | X115: =IF(Diskontering!X109>Kalkylvärden!$B7,W115*(1+Diskontering!$B10/100),(1+Diskontering!$B9/100)^(X109-Kalkylvärden!$B6)) -> 1.5 | Y115: =IF(Diskontering!Y109>Kalkylvärden!$B7,X115*(1+Diskontering!$B10/100),(1+Diskontering!$B9/100)^(Y109-Kalkylvärden!$B6)) -> 1.5 | Z115: =IF(Diskontering!Z109>Kalkylvärden!$B7,Y115*(1+Diskontering!$B10/100),(1+Diskontering!$B9/100)^(Z109-Kalkylvärden!$B6)) -> 1.5 | AA115: =IF(Diskontering!AA109>Kalkylvärden!$B7,Z115*(1+Diskontering!$B10/100),(1+Diskontering!$B9/100)^(AA109-Kalkylvärden!$B6)) -> 1.5 | AB115: =IF(Diskontering!AB109>Kalkylvärden!$B7,AA115*(1+Diskontering!$B10/100),(1+Diskontering!$B9/100)^(AB109-Kalkylvärden!$B6)) -> 1.5 | AC115: =IF(Diskontering!AC109>Kalkylvärden!$B7,AB115*(1+Diskontering!$B10/100),(1+Diskontering!$B9/100)^(AC109-Kalkylvärden!$B6)) -> 1.5 | AD115: =IF(Diskontering!AD109>Kalkylvärden!$B7,AC115*(1+Diskontering!$B10/100),(1+Diskontering!$B9/100)^(AD109-Kalkylvärden!$B6)) -> 1.5 | AE115: =IF(Diskontering!AE109>Kalkylvärden!$B7,AD115*(1+Diskontering!$B10/100),(1+Diskontering!$B9/100)^(AE109-Kalkylvärden!$B6)) -> 1.5 | AF115: =IF(Diskontering!AF109>Kalkylvärden!$B7,AE115*(1+Diskontering!$B10/100),(1+Diskontering!$B9/100)^(AF109-Kalkylvärden!$B6)) -> 1.5 | AG115: =IF(Diskontering!AG109>Kalkylvärden!$B7,AF115*(1+Diskontering!$B10/100),(1+Diskontering!$B9/100)^(AG109-Kalkylvärden!$B6)) -> 1.5 | AH115: =IF(Diskontering!AH109>Kalkylvärden!$B7,AG115*(1+Diskontering!$B10/100),(1+Diskontering!$B9/100)^(AH109-Kalkylvärden!$B6)) -> 1.5 | AI115: =IF(Diskontering!AI109>Kalkylvärden!$B7,AH115*(1+Diskontering!$B10/100),(1+Diskontering!$B9/100)^(AI109-Kalkylvärden!$B6)) -> 1.5 | AJ115: =IF(Diskontering!AJ109>Kalkylvärden!$B7,AI115*(1+Diskontering!$B10/100),(1+Diskontering!$B9/100)^(AJ109-Kalkylvärden!$B6)) -> 1.5 | AK115: =IF(Diskontering!AK109>Kalkylvärden!$B7,AJ115*(1+Diskontering!$B10/100),(1+Diskontering!$B9/100)^(AK109-Kalkylvärden!$B6)) -> 1.5 | AL115: =IF(Diskontering!AL109>Kalkylvärden!$B7,AK115*(1+Diskontering!$B10/100),(1+Diskontering!$B9/100)^(AL109-Kalkylvärden!$B6)) -> 1.5 | AM115: =IF(Diskontering!AM109>Kalkylvärden!$B7,AL115*(1+Diskontering!$B10/100),(1+Diskontering!$B9/100)^(AM109-Kalkylvärden!$B6)) -> 1.5 | AN115: =IF(Diskontering!AN109>Kalkylvärden!$B7,AM115*(1+Diskontering!$B10/100),(1+Diskontering!$B9/100)^(AN109-Kalkylvärden!$B6)) -> 1.5 | AO115: =IF(Diskontering!AO109>Kalkylvärden!$B7,AN115*(1+Diskontering!$B10/100),(1+Diskontering!$B9/100)^(AO109-Kalkylvärden!$B6)) -> 1.5 | AP115: =IF(Diskontering!AP109>Kalkylvärden!$B7,AO115*(1+Diskontering!$B10/100),(1+Diskontering!$B9/100)^(AP109-Kalkylvärden!$B6)) -> 1.5 | AQ115: =IF(Diskontering!AQ109>Kalkylvärden!$B7,AP115*(1+Diskontering!$B10/100),(1+Diskontering!$B9/100)^(AQ109-Kalkylvärden!$B6)) -> 1.5 | AR115: =IF(Diskontering!AR109>Kalkylvärden!$B7,AQ115*(1+Diskontering!$B10/100),(1+Diskontering!$B9/100)^(AR109-Kalkylvärden!$B6)) -> 1.5 | AS115: =IF(Diskontering!AS109>Kalkylvärden!$B7,AR115*(1+Diskontering!$B10/100),(1+Diskontering!$B9/100)^(AS109-Kalkylvärden!$B6)) -> 1.5 | AT115: =IF(Diskontering!AT109>Kalkylvärden!$B7,AS115*(1+Diskontering!$B10/100),(1+Diskontering!$B9/100)^(AT109-Kalkylvärden!$B6)) -> 1.5 | AU115: =IF(Diskontering!AU109>Kalkylvärden!$B7,AT115*(1+Diskontering!$B10/100),(1+Diskontering!$B9/100)^(AU109-Kalkylvärden!$B6)) -> 1.5 | AV115: =IF(Diskontering!AV109>Kalkylvärden!$B7,AU115*(1+Diskontering!$B10/100),(1+Diskontering!$B9/100)^(AV109-Kalkylvärden!$B6)) -> 1.5 | AW115: =IF(Diskontering!AW109>Kalkylvärden!$B7,AV115*(1+Diskontering!$B10/100),(1+Diskontering!$B9/100)^(AW109-Kalkylvärden!$B6)) -> 1.5 | AX115: =IF(Diskontering!AX109>Kalkylvärden!$B7,AW115*(1+Diskontering!$B10/100),(1+Diskontering!$B9/100)^(AX109-Kalkylvärden!$B6)) -> 1.5 | AY115: =IF(Diskontering!AY109>Kalkylvärden!$B7,AX115*(1+Diskontering!$B10/100),(1+Diskontering!$B9/100)^(AY109-Kalkylvärden!$B6)) -> 1.5 | AZ115: =IF(Diskontering!AZ109>Kalkylvärden!$B7,AY115*(1+Diskontering!$B10/100),(1+Diskontering!$B9/100)^(AZ109-Kalkylvärden!$B6)) -> 1.5 | BA115: =IF(Diskontering!BA109>Kalkylvärden!$B7,AZ115*(1+Diskontering!$B10/100),(1+Diskontering!$B9/100)^(BA109-Kalkylvärden!$B6)) -> 1.5 | BB115: =IF(Diskontering!BB109>Kalkylvärden!$B7,BA115*(1+Diskontering!$B10/100),(1+Diskontering!$B9/100)^(BB109-Kalkylvärden!$B6)) -> 1.5 | BC115: =IF(Diskontering!BC109>Kalkylvärden!$B7,BB115*(1+Diskontering!$B10/100),(1+Diskontering!$B9/100)^(BC109-Kalkylvärden!$B6)) -> 1.5 | BD115: =IF(Diskontering!BD109>Kalkylvärden!$B7,BC115*(1+Diskontering!$B10/100),(1+Diskontering!$B9/100)^(BD109-Kalkylvärden!$B6)) -> 1.5 | BE115: =IF(Diskontering!BE109>Kalkylvärden!$B7,BD115*(1+Diskontering!$B10/100),(1+Diskontering!$B9/100)^(BE109-Kalkylvärden!$B6)) -> 1.5 | BF115: =IF(Diskontering!BF109>Kalkylvärden!$B7,BE115*(1+Diskontering!$B10/100),(1+Diskontering!$B9/100)^(BF109-Kalkylvärden!$B6)) -> 1.5 | BG115: =IF(Diskontering!BG109>Kalkylvärden!$B7,BF115*(1+Diskontering!$B10/100),(1+Diskontering!$B9/100)^(BG109-Kalkylvärden!$B6)) -> 1.5 | BH115: =IF(Diskontering!BH109>Kalkylvärden!$B7,BG115*(1+Diskontering!$B10/100),(1+Diskontering!$B9/100)^(BH109-Kalkylvärden!$B6)) -> 1.5 | BI115: =IF(Diskontering!BI109>Kalkylvärden!$B7,BH115*(1+Diskontering!$B10/100),(1+Diskontering!$B9/100)^(BI109-Kalkylvärden!$B6)) -> 1.5 | BJ115: =IF(Diskontering!BJ109>Kalkylvärden!$B7,BI115*(1+Diskontering!$B10/100),(1+Diskontering!$B9/100)^(BJ109-Kalkylvärden!$B6)) -> 1.5 | BK115: =IF(Diskontering!BK109>Kalkylvärden!$B7,BJ115*(1+Diskontering!$B10/100),(1+Diskontering!$B9/100)^(BK109-Kalkylvärden!$B6)) -> 1.5 | BL115: =IF(Diskontering!BL109>Kalkylvärden!$B7,BK115*(1+Diskontering!$B10/100),(1+Diskontering!$B9/100)^(BL109-Kalkylvärden!$B6)) -> 1.5 | BM115: =IF(Diskontering!BM109>Kalkylvärden!$B7,BL115*(1+Diskontering!$B10/100),(1+Diskontering!$B9/100)^(BM109-Kalkylvärden!$B6)) -> 1.5 | BN115: =IF(Diskontering!BN109>Kalkylvärden!$B7,BM115*(1+Diskontering!$B10/100),(1+Diskontering!$B9/100)^(BN109-Kalkylvärden!$B6)) -> 1.5 | BO115: =IF(Diskontering!BO109>Kalkylvärden!$B7,BN115*(1+Diskontering!$B10/100),(1+Diskontering!$B9/100)^(BO109-Kalkylvärden!$B6)) -> 1.5 | BP115: =IF(Diskontering!BP109>Kalkylvärden!$B7,BO115*(1+Diskontering!$B10/100),(1+Diskontering!$B9/100)^(BP109-Kalkylvärden!$B6)) -> 1.5 | BQ115: =IF(Diskontering!BQ109>Kalkylvärden!$B7,BP115*(1+Diskontering!$B10/100),(1+Diskontering!$B9/100)^(BQ109-Kalkylvärden!$B6)) -> 1.5 | BR115: =IF(Diskontering!BR109>Kalkylvärden!$B7,BQ115*(1+Diskontering!$B10/100),(1+Diskontering!$B9/100)^(BR109-Kalkylvärden!$B6)) -> 1.5
A116: Trafiktillväxt (Gång och cykel) | B116: =IF(Diskontering!B109>Kalkylvärden!$B7,A116*(1+Diskontering!$B13/100),(1+Diskontering!$B12/100)^(B109-Kalkylvärden!$B6)) -> 1 | C116: =IF(Diskontering!C109>Kalkylvärden!$B7,B116*(1+Diskontering!$B13/100),(1+Diskontering!$B12/100)^(C109-Kalkylvärden!$B6)) -> 1 | D116: =IF(Diskontering!D109>Kalkylvärden!$B7,C116*(1+Diskontering!$B13/100),(1+Diskontering!$B12/100)^(D109-Kalkylvärden!$B6)) -> 1 | E116: =IF(Diskontering!E109>Kalkylvärden!$B7,D116*(1+Diskontering!$B13/100),(1+Diskontering!$B12/100)^(E109-Kalkylvärden!$B6)) -> 1 | F116: =IF(Diskontering!F109>Kalkylvärden!$B7,E116*(1+Diskontering!$B13/100),(1+Diskontering!$B12/100)^(F109-Kalkylvärden!$B6)) -> 1 | G116: =IF(Diskontering!G109>Kalkylvärden!$B7,F116*(1+Diskontering!$B13/100),(1+Diskontering!$B12/100)^(G109-Kalkylvärden!$B6)) -> 1 | H116: =IF(Diskontering!H109>Kalkylvärden!$B7,G116*(1+Diskontering!$B13/100),(1+Diskontering!$B12/100)^(H109-Kalkylvärden!$B6)) -> 1 | I116: =IF(Diskontering!I109>Kalkylvärden!$B7,H116*(1+Diskontering!$B13/100),(1+Diskontering!$B12/100)^(I109-Kalkylvärden!$B6)) -> 1 | J116: =IF(Diskontering!J109>Kalkylvärden!$B7,I116*(1+Diskontering!$B13/100),(1+Diskontering!$B12/100)^(J109-Kalkylvärden!$B6)) -> 1 | K116: =IF(Diskontering!K109>Kalkylvärden!$B7,J116*(1+Diskontering!$B13/100),(1+Diskontering!$B12/100)^(K109-Kalkylvärden!$B6)) -> 1 | L116: =IF(Diskontering!L109>Kalkylvärden!$B7,K116*(1+Diskontering!$B13/100),(1+Diskontering!$B12/100)^(L109-Kalkylvärden!$B6)) -> 1 | M116: =IF(Diskontering!M109>Kalkylvärden!$B7,L116*(1+Diskontering!$B13/100),(1+Diskontering!$B12/100)^(M109-Kalkylvärden!$B6)) -> 1 | N116: =IF(Diskontering!N109>Kalkylvärden!$B7,M116*(1+Diskontering!$B13/100),(1+Diskontering!$B12/100)^(N109-Kalkylvärden!$B6)) -> 1 | O116: =IF(Diskontering!O109>Kalkylvärden!$B7,N116*(1+Diskontering!$B13/100),(1+Diskontering!$B12/100)^(O109-Kalkylvärden!$B6)) -> 1 | P116: =IF(Diskontering!P109>Kalkylvärden!$B7,O116*(1+Diskontering!$B13/100),(1+Diskontering!$B12/100)^(P109-Kalkylvärden!$B6)) -> 1 | Q116: =IF(Diskontering!Q109>Kalkylvärden!$B7,P116*(1+Diskontering!$B13/100),(1+Diskontering!$B12/100)^(Q109-Kalkylvärden!$B6)) -> 1 | R116: =IF(Diskontering!R109>Kalkylvärden!$B7,Q116*(1+Diskontering!$B13/100),(1+Diskontering!$B12/100)^(R109-Kalkylvärden!$B6)) -> 1 | S116: =IF(Diskontering!S109>Kalkylvärden!$B7,R116*(1+Diskontering!$B13/100),(1+Diskontering!$B12/100)^(S109-Kalkylvärden!$B6)) -> 1 | T116: =IF(Diskontering!T109>Kalkylvärden!$B7,S116*(1+Diskontering!$B13/100),(1+Diskontering!$B12/100)^(T109-Kalkylvärden!$B6)) -> 1 | U116: =IF(Diskontering!U109>Kalkylvärden!$B7,T116*(1+Diskontering!$B13/100),(1+Diskontering!$B12/100)^(U109-Kalkylvärden!$B6)) -> 1 | V116: =IF(Diskontering!V109>Kalkylvärden!$B7,U116*(1+Diskontering!$B13/100),(1+Diskontering!$B12/100)^(V109-Kalkylvärden!$B6)) -> 1 | W116: =IF(Diskontering!W109>Kalkylvärden!$B7,V116*(1+Diskontering!$B13/100),(1+Diskontering!$B12/100)^(W109-Kalkylvärden!$B6)) -> 1 | X116: =IF(Diskontering!X109>Kalkylvärden!$B7,W116*(1+Diskontering!$B13/100),(1+Diskontering!$B12/100)^(X109-Kalkylvärden!$B6)) -> 1 | Y116: =IF(Diskontering!Y109>Kalkylvärden!$B7,X116*(1+Diskontering!$B13/100),(1+Diskontering!$B12/100)^(Y109-Kalkylvärden!$B6)) -> 1 | Z116: =IF(Diskontering!Z109>Kalkylvärden!$B7,Y116*(1+Diskontering!$B13/100),(1+Diskontering!$B12/100)^(Z109-Kalkylvärden!$B6)) -> 1 | AA116: =IF(Diskontering!AA109>Kalkylvärden!$B7,Z116*(1+Diskontering!$B13/100),(1+Diskontering!$B12/100)^(AA109-Kalkylvärden!$B6)) -> 1 | AB116: =IF(Diskontering!AB109>Kalkylvärden!$B7,AA116*(1+Diskontering!$B13/100),(1+Diskontering!$B12/100)^(AB109-Kalkylvärden!$B6)) -> 1 | AC116: =IF(Diskontering!AC109>Kalkylvärden!$B7,AB116*(1+Diskontering!$B13/100),(1+Diskontering!$B12/100)^(AC109-Kalkylvärden!$B6)) -> 1 | AD116: =IF(Diskontering!AD109>Kalkylvärden!$B7,AC116*(1+Diskontering!$B13/100),(1+Diskontering!$B12/100)^(AD109-Kalkylvärden!$B6)) -> 1 | AE116: =IF(Diskontering!AE109>Kalkylvärden!$B7,AD116*(1+Diskontering!$B13/100),(1+Diskontering!$B12/100)^(AE109-Kalkylvärden!$B6)) -> 1 | AF116: =IF(Diskontering!AF109>Kalkylvärden!$B7,AE116*(1+Diskontering!$B13/100),(1+Diskontering!$B12/100)^(AF109-Kalkylvärden!$B6)) -> 1 | AG116: =IF(Diskontering!AG109>Kalkylvärden!$B7,AF116*(1+Diskontering!$B13/100),(1+Diskontering!$B12/100)^(AG109-Kalkylvärden!$B6)) -> 1 | AH116: =IF(Diskontering!AH109>Kalkylvärden!$B7,AG116*(1+Diskontering!$B13/100),(1+Diskontering!$B12/100)^(AH109-Kalkylvärden!$B6)) -> 1 | AI116: =IF(Diskontering!AI109>Kalkylvärden!$B7,AH116*(1+Diskontering!$B13/100),(1+Diskontering!$B12/100)^(AI109-Kalkylvärden!$B6)) -> 1 | AJ116: =IF(Diskontering!AJ109>Kalkylvärden!$B7,AI116*(1+Diskontering!$B13/100),(1+Diskontering!$B12/100)^(AJ109-Kalkylvärden!$B6)) -> 1 | AK116: =IF(Diskontering!AK109>Kalkylvärden!$B7,AJ116*(1+Diskontering!$B13/100),(1+Diskontering!$B12/100)^(AK109-Kalkylvärden!$B6)) -> 1 | AL116: =IF(Diskontering!AL109>Kalkylvärden!$B7,AK116*(1+Diskontering!$B13/100),(1+Diskontering!$B12/100)^(AL109-Kalkylvärden!$B6)) -> 1 | AM116: =IF(Diskontering!AM109>Kalkylvärden!$B7,AL116*(1+Diskontering!$B13/100),(1+Diskontering!$B12/100)^(AM109-Kalkylvärden!$B6)) -> 1 | AN116: =IF(Diskontering!AN109>Kalkylvärden!$B7,AM116*(1+Diskontering!$B13/100),(1+Diskontering!$B12/100)^(AN109-Kalkylvärden!$B6)) -> 1 | AO116: =IF(Diskontering!AO109>Kalkylvärden!$B7,AN116*(1+Diskontering!$B13/100),(1+Diskontering!$B12/100)^(AO109-Kalkylvärden!$B6)) -> 1 | AP116: =IF(Diskontering!AP109>Kalkylvärden!$B7,AO116*(1+Diskontering!$B13/100),(1+Diskontering!$B12/100)^(AP109-Kalkylvärden!$B6)) -> 1 | AQ116: =IF(Diskontering!AQ109>Kalkylvärden!$B7,AP116*(1+Diskontering!$B13/100),(1+Diskontering!$B12/100)^(AQ109-Kalkylvärden!$B6)) -> 1 | AR116: =IF(Diskontering!AR109>Kalkylvärden!$B7,AQ116*(1+Diskontering!$B13/100),(1+Diskontering!$B12/100)^(AR109-Kalkylvärden!$B6)) -> 1 | AS116: =IF(Diskontering!AS109>Kalkylvärden!$B7,AR116*(1+Diskontering!$B13/100),(1+Diskontering!$B12/100)^(AS109-Kalkylvärden!$B6)) -> 1 | AT116: =IF(Diskontering!AT109>Kalkylvärden!$B7,AS116*(1+Diskontering!$B13/100),(1+Diskontering!$B12/100)^(AT109-Kalkylvärden!$B6)) -> 1 | AU116: =IF(Diskontering!AU109>Kalkylvärden!$B7,AT116*(1+Diskontering!$B13/100),(1+Diskontering!$B12/100)^(AU109-Kalkylvärden!$B6)) -> 1 | AV116: =IF(Diskontering!AV109>Kalkylvärden!$B7,AU116*(1+Diskontering!$B13/100),(1+Diskontering!$B12/100)^(AV109-Kalkylvärden!$B6)) -> 1 | AW116: =IF(Diskontering!AW109>Kalkylvärden!$B7,AV116*(1+Diskontering!$B13/100),(1+Diskontering!$B12/100)^(AW109-Kalkylvärden!$B6)) -> 1 | AX116: =IF(Diskontering!AX109>Kalkylvärden!$B7,AW116*(1+Diskontering!$B13/100),(1+Diskontering!$B12/100)^(AX109-Kalkylvärden!$B6)) -> 1 | AY116: =IF(Diskontering!AY109>Kalkylvärden!$B7,AX116*(1+Diskontering!$B13/100),(1+Diskontering!$B12/100)^(AY109-Kalkylvärden!$B6)) -> 1 | AZ116: =IF(Diskontering!AZ109>Kalkylvärden!$B7,AY116*(1+Diskontering!$B13/100),(1+Diskontering!$B12/100)^(AZ109-Kalkylvärden!$B6)) -> 1 | BA116: =IF(Diskontering!BA109>Kalkylvärden!$B7,AZ116*(1+Diskontering!$B13/100),(1+Diskontering!$B12/100)^(BA109-Kalkylvärden!$B6)) -> 1 | BB116: =IF(Diskontering!BB109>Kalkylvärden!$B7,BA116*(1+Diskontering!$B13/100),(1+Diskontering!$B12/100)^(BB109-Kalkylvärden!$B6)) -> 1 | BC116: =IF(Diskontering!BC109>Kalkylvärden!$B7,BB116*(1+Diskontering!$B13/100),(1+Diskontering!$B12/100)^(BC109-Kalkylvärden!$B6)) -> 1 | BD116: =IF(Diskontering!BD109>Kalkylvärden!$B7,BC116*(1+Diskontering!$B13/100),(1+Diskontering!$B12/100)^(BD109-Kalkylvärden!$B6)) -> 1 | BE116: =IF(Diskontering!BE109>Kalkylvärden!$B7,BD116*(1+Diskontering!$B13/100),(1+Diskontering!$B12/100)^(BE109-Kalkylvärden!$B6)) -> 1 | BF116: =IF(Diskontering!BF109>Kalkylvärden!$B7,BE116*(1+Diskontering!$B13/100),(1+Diskontering!$B12/100)^(BF109-Kalkylvärden!$B6)) -> 1 | BG116: =IF(Diskontering!BG109>Kalkylvärden!$B7,BF116*(1+Diskontering!$B13/100),(1+Diskontering!$B12/100)^(BG109-Kalkylvärden!$B6)) -> 1 | BH116: =IF(Diskontering!BH109>Kalkylvärden!$B7,BG116*(1+Diskontering!$B13/100),(1+Diskontering!$B12/100)^(BH109-Kalkylvärden!$B6)) -> 1 | BI116: =IF(Diskontering!BI109>Kalkylvärden!$B7,BH116*(1+Diskontering!$B13/100),(1+Diskontering!$B12/100)^(BI109-Kalkylvärden!$B6)) -> 1 | BJ116: =IF(Diskontering!BJ109>Kalkylvärden!$B7,BI116*(1+Diskontering!$B13/100),(1+Diskontering!$B12/100)^(BJ109-Kalkylvärden!$B6)) -> 1 | BK116: =IF(Diskontering!BK109>Kalkylvärden!$B7,BJ116*(1+Diskontering!$B13/100),(1+Diskontering!$B12/100)^(BK109-Kalkylvärden!$B6)) -> 1 | BL116: =IF(Diskontering!BL109>Kalkylvärden!$B7,BK116*(1+Diskontering!$B13/100),(1+Diskontering!$B12/100)^(BL109-Kalkylvärden!$B6)) -> 1 | BM116: =IF(Diskontering!BM109>Kalkylvärden!$B7,BL116*(1+Diskontering!$B13/100),(1+Diskontering!$B12/100)^(BM109-Kalkylvärden!$B6)) -> 1 | BN116: =IF(Diskontering!BN109>Kalkylvärden!$B7,BM116*(1+Diskontering!$B13/100),(1+Diskontering!$B12/100)^(BN109-Kalkylvärden!$B6)) -> 1 | BO116: =IF(Diskontering!BO109>Kalkylvärden!$B7,BN116*(1+Diskontering!$B13/100),(1+Diskontering!$B12/100)^(BO109-Kalkylvärden!$B6)) -> 1 | BP116: =IF(Diskontering!BP109>Kalkylvärden!$B7,BO116*(1+Diskontering!$B13/100),(1+Diskontering!$B12/100)^(BP109-Kalkylvärden!$B6)) -> 1 | BQ116: =IF(Diskontering!BQ109>Kalkylvärden!$B7,BP116*(1+Diskontering!$B13/100),(1+Diskontering!$B12/100)^(BQ109-Kalkylvärden!$B6)) -> 1 | BR116: =IF(Diskontering!BR109>Kalkylvärden!$B7,BQ116*(1+Diskontering!$B13/100),(1+Diskontering!$B12/100)^(BR109-Kalkylvärden!$B6)) -> 1
A117: Trafiktillväxt (Pb och Lb) * Trafiktillväxt (antal tåg) | B117: =B114*B115 -> 1.123241278 | C117: =C114*C115 -> 1.167608926 | D117: =D114*D115 -> 1.213729082 | E117: =E114*E115 -> 1.261670968 | F117: 1.311506542 | G117: 1.363310604 | H117: 1.41716091 | I117: 1.473138284 | J117: 1.531326745 | K117: 1.591813631 | L117: 1.654689728 | M117: 1.72004941 | N117: 1.787990776 | O117: 1.858615804 | P117: 1.932030496 | Q117: 1.941690649 | R117: 1.951399102 | S117: 1.961156098 | T117: 1.970961878 | U117: 1.980816687 | V117: 1.990720771 | W117: 2.000674375 | X117: 2.010677747 | Y117: 2.020731135 | Z117: 2.030834791 | AA117: 2.040988965 | AB117: 2.05119391 | AC117: 2.061449879 | AD117: 2.071757129 | AE117: 2.082115914 | AF117: 2.092526494 | AG117: 2.102989126 | AH117: 2.113504072 | AI117: 2.124071592 | AJ117: 2.13469195 | AK117: 2.14536541 | AL117: 2.156092237 | AM117: 2.166872698 | AN117: 2.177707062 | AO117: 2.188595597 | AP117: 2.199538575 | AQ117: 2.210536268 | AR117: 2.221588949 | AS117: 2.232696894 | AT117: 2.243860379 | AU117: 2.25507968 | AV117: 2.266355079 | AW117: 2.277686854 | AX117: 2.289075289 | AY117: 2.300520665 | AZ117: 2.312023268 | BA117: 2.323583385 | BB117: 2.335201302 | BC117: 2.346877308 | BD117: 2.358611695 | BE117: 2.370404753 | BF117: 2.382256777 | BG117: 2.394168061 | BH117: 2.406138901 | BI117: 2.418169596 | BJ117: 2.430260444 | BK117: 2.442411746 | BL117: 2.454623804 | BM117: 2.466896923 | BN117: 2.479231408 | BO117: =BO114*BO115 -> 2.491627565 | BP117: 2.504085703 | BQ117: 2.516606131 | BR117: 2.529189162
A118: Trafiktillväxt (antal tåg) * (Gång och cykel) | B118: =B115*B116 -> 1.074174722 | C118: =C115*C116 -> 1.100102717 | D118: 1.126656552 | E118: 1.153851333 | F118: 1.18170253 | G118: 1.210225989 | H118: 1.239437935 | I118: 1.269354987 | J118: 1.299994165 | K118: 1.331372899 | L118: 1.36350904 | M118: 1.39642087 | N118: 1.430127113 | O118: 1.464646944 | P118: 1.5 | Q118: 1.5 | R118: 1.5 | S118: 1.5 | T118: 1.5 | U118: 1.5 | V118: 1.5 | W118: 1.5 | X118: 1.5 | Y118: 1.5 | Z118: 1.5 | AA118: 1.5 | AB118: 1.5 | AC118: 1.5 | AD118: 1.5 | AE118: 1.5 | AF118: 1.5 | AG118: 1.5 | AH118: 1.5 | AI118: 1.5 | AJ118: 1.5 | AK118: 1.5 | AL118: 1.5 | AM118: 1.5 | AN118: 1.5 | AO118: 1.5 | AP118: 1.5 | AQ118: 1.5 | AR118: 1.5 | AS118: 1.5 | AT118: 1.5 | AU118: 1.5 | AV118: 1.5 | AW118: 1.5 | AX118: 1.5 | AY118: 1.5 | AZ118: 1.5 | BA118: 1.5 | BB118: 1.5 | BC118: 1.5 | BD118: 1.5 | BE118: 1.5 | BF118: 1.5 | BG118: 1.5 | BH118: 1.5 | BI118: 1.5 | BJ118: 1.5 | BK118: 1.5 | BL118: 1.5 | BM118: 1.5 | BN118: 1.5 | BO118: =BO115*BO116 -> 1.5 | BP118: 1.5 | BQ118: 1.5 | BR118: 1.5
A120: Index emissionsfaktor Pb
A121: Pmavgas | B121: =HLOOKUP(B109,'Transponerade index'!N24:AY25,2) -> 0.1526136491 | C121: =HLOOKUP(C109,'Transponerade index'!O24:AZ25,2) -> 0.13048467 | D121: =HLOOKUP(D109,'Transponerade index'!P24:BA25,2) -> 0.1115643928 | E121: =HLOOKUP(E109,'Transponerade index'!Q24:BB25,2) -> 0.09538755587 | F121: =HLOOKUP(F109,'Transponerade index'!R24:BC25,2) -> 0.08155636027 | G121: =HLOOKUP(G109,'Transponerade index'!S24:BD25,2) -> 0.06973068803 | H121: =HLOOKUP(H109,'Transponerade index'!T24:BE25,2) -> 0.05961973826 | I121: =HLOOKUP(I109,'Transponerade index'!U24:BF25,2) -> 0.05097487622 | J121: =HLOOKUP(J109,'Transponerade index'!V24:BG25,2) -> 0.04358351916 | K121: =HLOOKUP(K109,'Transponerade index'!W24:BH25,2) -> 0.03726390889 | L121: =HLOOKUP(L109,'Transponerade index'!X24:BI25,2) -> 0.0318606421 | M121: =HLOOKUP(M109,'Transponerade index'!Y24:BJ25,2) -> 0.02724084899 | N121: =HLOOKUP(N109,'Transponerade index'!Z24:BK25,2) -> 0.02329092589 | O121: =HLOOKUP(O109,'Transponerade index'!AA24:BL25,2) -> 0.01991374164 | P121: =HLOOKUP(P109,'Transponerade index'!AB24:BM25,2) -> 0.0004347826087 | Q121: =HLOOKUP(Q109,'Transponerade index'!AC24:BN25,2) -> 0 | R121: =HLOOKUP(R109,'Transponerade index'!AD24:BO25,2) -> 0 | S121: =HLOOKUP(S109,'Transponerade index'!AE24:BP25,2) -> 0 | T121: =HLOOKUP(T109,'Transponerade index'!AF24:BQ25,2) -> 0 | U121: =HLOOKUP(U109,'Transponerade index'!AG24:BR25,2) -> 0 | V121: =HLOOKUP(V109,'Transponerade index'!AH24:BS25,2) -> 0 | W121: =HLOOKUP(W109,'Transponerade index'!AI24:BT25,2) -> 0 | X121: =HLOOKUP(X109,'Transponerade index'!AJ24:BU25,2) -> 0 | Y121: =HLOOKUP(Y109,'Transponerade index'!AK24:BV25,2) -> 0 | Z121: =HLOOKUP(Z109,'Transponerade index'!AL24:BW25,2) -> 0 | AA121: =HLOOKUP(AA109,'Transponerade index'!AM24:BX25,2) -> 0 | AB121: =HLOOKUP(AB109,'Transponerade index'!AN24:BY25,2) -> 0 | AC121: =HLOOKUP(AC109,'Transponerade index'!AO24:BZ25,2) -> 0 | AD121: =HLOOKUP(AD109,'Transponerade index'!AP24:CA25,2) -> 0 | AE121: =HLOOKUP(AE109,'Transponerade index'!AQ24:CB25,2) -> 0 | AF121: =HLOOKUP(AF109,'Transponerade index'!AR24:CC25,2) -> 0 | AG121: =HLOOKUP(AG109,'Transponerade index'!AS24:CD25,2) -> 0 | AH121: =HLOOKUP(AH109,'Transponerade index'!AT24:CE25,2) -> 0 | AI121: =HLOOKUP(AI109,'Transponerade index'!AU24:CF25,2) -> 0 | AJ121: =HLOOKUP(AJ109,'Transponerade index'!AV24:CG25,2) -> 0 | AK121: =HLOOKUP(AK109,'Transponerade index'!AW24:CH25,2) -> 0 | AL121: =HLOOKUP(AL109,'Transponerade index'!AX24:CI25,2) -> 0 | AM121: =HLOOKUP(AM109,'Transponerade index'!AY24:CJ25,2) -> 0 | AN121: =HLOOKUP(AN109,'Transponerade index'!AZ24:CK25,2) -> 0 | AO121: =HLOOKUP(AO109,'Transponerade index'!BA24:CL25,2) -> 0 | AP121: =HLOOKUP(AP109,'Transponerade index'!BB24:CM25,2) -> 0 | AQ121: =HLOOKUP(AQ109,'Transponerade index'!BC24:CN25,2) -> 0 | AR121: =HLOOKUP(AR109,'Transponerade index'!BD24:CO25,2) -> 0 | AS121: =HLOOKUP(AS109,'Transponerade index'!BE24:CP25,2) -> 0 | AT121: =HLOOKUP(AT109,'Transponerade index'!BF24:CQ25,2) -> 0 | AU121: =HLOOKUP(AU109,'Transponerade index'!BG24:CR25,2) -> 0 | AV121: =HLOOKUP(AV109,'Transponerade index'!BH24:CS25,2) -> 0 | AW121: =HLOOKUP(AW109,'Transponerade index'!BI24:CT25,2) -> 0 | AX121: =HLOOKUP(AX109,'Transponerade index'!BJ24:CU25,2) -> 0 | AY121: =HLOOKUP(AY109,'Transponerade index'!BK24:CV25,2) -> 0 | AZ121: =HLOOKUP(AZ109,'Transponerade index'!BL24:CW25,2) -> 0 | BA121: =HLOOKUP(BA109,'Transponerade index'!BM24:CX25,2) -> 0 | BB121: =HLOOKUP(BB109,'Transponerade index'!BN24:CY25,2) -> 0 | BC121: =HLOOKUP(BC109,'Transponerade index'!BO24:CZ25,2) -> 0 | BD121: =HLOOKUP(BD109,'Transponerade index'!BP24:DA25,2) -> 0 | BE121: =HLOOKUP(BE109,'Transponerade index'!BQ24:DB25,2) -> 0 | BF121: =HLOOKUP(BF109,'Transponerade index'!BR24:DC25,2) -> 0 | BG121: =HLOOKUP(BG109,'Transponerade index'!BS24:DD25,2) -> 0 | BH121: =HLOOKUP(BH109,'Transponerade index'!BT24:DE25,2) -> 0 | BI121: =HLOOKUP(BI109,'Transponerade index'!BU24:DF25,2) -> 0 | BJ121: =HLOOKUP(BJ109,'Transponerade index'!BV24:DG25,2) -> 0 | BK121: =HLOOKUP(BK109,'Transponerade index'!BW24:DH25,2) -> 0 | BL121: =HLOOKUP(BL109,'Transponerade index'!BX24:DI25,2) -> 0 | BM121: =HLOOKUP(BM109,'Transponerade index'!BY24:DJ25,2) -> 0 | BN121: =HLOOKUP(BN109,'Transponerade index'!BZ24:DK25,2) -> 0 | BO121: =HLOOKUP(BO109,'Transponerade index'!CA24:DL25,2) -> 0 | BP121: =HLOOKUP(BP109,'Transponerade index'!CB24:DM25,2) -> 0 | BQ121: =HLOOKUP(BQ109,'Transponerade index'!CC24:DN25,2) -> 0 | BR121: =HLOOKUP(BR109,'Transponerade index'!CD24:DO25,2) -> 0 | BS121: =HLOOKUP(BS109,'Transponerade index'!CE24:DP25,2) -> 0
A122: Pslitage | B122: =HLOOKUP(B109,'Transponerade index'!N24:AY26,3) -> 1 | C122: =HLOOKUP(C109,'Transponerade index'!O24:AZ26,3) -> 1 | D122: =HLOOKUP(D109,'Transponerade index'!P24:BA26,3) -> 1 | E122: =HLOOKUP(E109,'Transponerade index'!Q24:BB26,3) -> 1 | F122: =HLOOKUP(F109,'Transponerade index'!R24:BC26,3) -> 1 | G122: =HLOOKUP(G109,'Transponerade index'!S24:BD26,3) -> 1 | H122: =HLOOKUP(H109,'Transponerade index'!T24:BE26,3) -> 1 | I122: =HLOOKUP(I109,'Transponerade index'!U24:BF26,3) -> 1 | J122: =HLOOKUP(J109,'Transponerade index'!V24:BG26,3) -> 1 | K122: =HLOOKUP(K109,'Transponerade index'!W24:BH26,3) -> 1 | L122: =HLOOKUP(L109,'Transponerade index'!X24:BI26,3) -> 1 | M122: =HLOOKUP(M109,'Transponerade index'!Y24:BJ26,3) -> 1 | N122: =HLOOKUP(N109,'Transponerade index'!Z24:BK26,3) -> 1 | O122: =HLOOKUP(O109,'Transponerade index'!AA24:BL26,3) -> 1 | P122: =HLOOKUP(P109,'Transponerade index'!AB24:BM26,3) -> 1 | Q122: =HLOOKUP(Q109,'Transponerade index'!AC24:BN26,3) -> 1 | R122: =HLOOKUP(R109,'Transponerade index'!AD24:BO26,3) -> 1 | S122: =HLOOKUP(S109,'Transponerade index'!AE24:BP26,3) -> 1 | T122: =HLOOKUP(T109,'Transponerade index'!AF24:BQ26,3) -> 1 | U122: =HLOOKUP(U109,'Transponerade index'!AG24:BR26,3) -> 1 | V122: =HLOOKUP(V109,'Transponerade index'!AH24:BS26,3) -> 1 | W122: =HLOOKUP(W109,'Transponerade index'!AI24:BT26,3) -> 1 | X122: =HLOOKUP(X109,'Transponerade index'!AJ24:BU26,3) -> 1 | Y122: =HLOOKUP(Y109,'Transponerade index'!AK24:BV26,3) -> 1 | Z122: =HLOOKUP(Z109,'Transponerade index'!AL24:BW26,3) -> 1 | AA122: =HLOOKUP(AA109,'Transponerade index'!AM24:BX26,3) -> 1 | AB122: =HLOOKUP(AB109,'Transponerade index'!AN24:BY26,3) -> 1 | AC122: =HLOOKUP(AC109,'Transponerade index'!AO24:BZ26,3) -> 1 | AD122: =HLOOKUP(AD109,'Transponerade index'!AP24:CA26,3) -> 1 | AE122: =HLOOKUP(AE109,'Transponerade index'!AQ24:CB26,3) -> 1 | AF122: =HLOOKUP(AF109,'Transponerade index'!AR24:CC26,3) -> 1 | AG122: =HLOOKUP(AG109,'Transponerade index'!AS24:CD26,3) -> 1 | AH122: =HLOOKUP(AH109,'Transponerade index'!AT24:CE26,3) -> 1 | AI122: =HLOOKUP(AI109,'Transponerade index'!AU24:CF26,3) -> 1 | AJ122: =HLOOKUP(AJ109,'Transponerade index'!AV24:CG26,3) -> 1 | AK122: =HLOOKUP(AK109,'Transponerade index'!AW24:CH26,3) -> 1 | AL122: =HLOOKUP(AL109,'Transponerade index'!AX24:CI26,3) -> 1 | AM122: =HLOOKUP(AM109,'Transponerade index'!AY24:CJ26,3) -> 1 | AN122: =HLOOKUP(AN109,'Transponerade index'!AZ24:CK26,3) -> 1 | AO122: =HLOOKUP(AO109,'Transponerade index'!BA24:CL26,3) -> 1 | AP122: =HLOOKUP(AP109,'Transponerade index'!BB24:CM26,3) -> 1 | AQ122: =HLOOKUP(AQ109,'Transponerade index'!BC24:CN26,3) -> 1 | AR122: =HLOOKUP(AR109,'Transponerade index'!BD24:CO26,3) -> 1 | AS122: =HLOOKUP(AS109,'Transponerade index'!BE24:CP26,3) -> 1 | AT122: =HLOOKUP(AT109,'Transponerade index'!BF24:CQ26,3) -> 1 | AU122: =HLOOKUP(AU109,'Transponerade index'!BG24:CR26,3) -> 1 | AV122: =HLOOKUP(AV109,'Transponerade index'!BH24:CS26,3) -> 1 | AW122: =HLOOKUP(AW109,'Transponerade index'!BI24:CT26,3) -> 1 | AX122: =HLOOKUP(AX109,'Transponerade index'!BJ24:CU26,3) -> 1 | AY122: =HLOOKUP(AY109,'Transponerade index'!BK24:CV26,3) -> 1 | AZ122: =HLOOKUP(AZ109,'Transponerade index'!BL24:CW26,3) -> 1 | BA122: =HLOOKUP(BA109,'Transponerade index'!BM24:CX26,3) -> 1 | BB122: =HLOOKUP(BB109,'Transponerade index'!BN24:CY26,3) -> 1 | BC122: =HLOOKUP(BC109,'Transponerade index'!BO24:CZ26,3) -> 1 | BD122: =HLOOKUP(BD109,'Transponerade index'!BP24:DA26,3) -> 1 | BE122: =HLOOKUP(BE109,'Transponerade index'!BQ24:DB26,3) -> 1 | BF122: =HLOOKUP(BF109,'Transponerade index'!BR24:DC26,3) -> 1 | BG122: =HLOOKUP(BG109,'Transponerade index'!BS24:DD26,3) -> 1 | BH122: =HLOOKUP(BH109,'Transponerade index'!BT24:DE26,3) -> 1 | BI122: =HLOOKUP(BI109,'Transponerade index'!BU24:DF26,3) -> 1 | BJ122: =HLOOKUP(BJ109,'Transponerade index'!BV24:DG26,3) -> 1 | BK122: =HLOOKUP(BK109,'Transponerade index'!BW24:DH26,3) -> 1 | BL122: =HLOOKUP(BL109,'Transponerade index'!BX24:DI26,3) -> 1 | BM122: =HLOOKUP(BM109,'Transponerade index'!BY24:DJ26,3) -> 1 | BN122: =HLOOKUP(BN109,'Transponerade index'!BZ24:DK26,3) -> 1 | BO122: =HLOOKUP(BO109,'Transponerade index'!CA24:DL26,3) -> 1 | BP122: =HLOOKUP(BP109,'Transponerade index'!CB24:DM26,3) -> 1 | BQ122: =HLOOKUP(BQ109,'Transponerade index'!CC24:DN26,3) -> 1 | BR122: =HLOOKUP(BR109,'Transponerade index'!CD24:DO26,3) -> 1 | BS122: =HLOOKUP(BS109,'Transponerade index'!CE24:DP26,3) -> 1
A123: Nox | B123: =HLOOKUP(B109,'Transponerade index'!N24:AY27,4) -> 0.4240295976 | C123: =HLOOKUP(C109,'Transponerade index'!O24:AZ27,4) -> 0.3947715554 | D123: =HLOOKUP(D109,'Transponerade index'!P24:BA27,4) -> 0.3675323181 | E123: =HLOOKUP(E109,'Transponerade index'!Q24:BB27,4) -> 0.3421725881 | F123: =HLOOKUP(F109,'Transponerade index'!R24:BC27,4) -> 0.3185626795 | G123: =HLOOKUP(G109,'Transponerade index'!S24:BD27,4) -> 0.2965818547 | H123: =HLOOKUP(H109,'Transponerade index'!T24:BE27,4) -> 0.2761177067 | I123: =HLOOKUP(I109,'Transponerade index'!U24:BF27,4) -> 0.2570655849 | J123: =HLOOKUP(J109,'Transponerade index'!V24:BG27,4) -> 0.2393280596 | K123: =HLOOKUP(K109,'Transponerade index'!W24:BH27,4) -> 0.2228144235 | L123: =HLOOKUP(L109,'Transponerade index'!X24:BI27,4) -> 0.2074402282 | M123: =HLOOKUP(M109,'Transponerade index'!Y24:BJ27,4) -> 0.1931268525 | N123: =HLOOKUP(N109,'Transponerade index'!Z24:BK27,4) -> 0.1798010997 | O123: =HLOOKUP(O109,'Transponerade index'!AA24:BL27,4) -> 0.1673948238 | P123: =HLOOKUP(P109,'Transponerade index'!AB24:BM27,4) -> 0.1538461538 | Q123: =HLOOKUP(Q109,'Transponerade index'!AC24:BN27,4) -> 0.1230769231 | R123: =HLOOKUP(R109,'Transponerade index'!AD24:BO27,4) -> 0.09846153846 | S123: =HLOOKUP(S109,'Transponerade index'!AE24:BP27,4) -> 0.07876923077 | T123: =HLOOKUP(T109,'Transponerade index'!AF24:BQ27,4) -> 0.06301538462 | U123: =HLOOKUP(U109,'Transponerade index'!AG24:BR27,4) -> 0.05041230769 | V123: =HLOOKUP(V109,'Transponerade index'!AH24:BS27,4) -> 0.04032984615 | W123: =HLOOKUP(W109,'Transponerade index'!AI24:BT27,4) -> 0.03226387692 | X123: =HLOOKUP(X109,'Transponerade index'!AJ24:BU27,4) -> 0.02581110154 | Y123: =HLOOKUP(Y109,'Transponerade index'!AK24:BV27,4) -> 0.02064888123 | Z123: =HLOOKUP(Z109,'Transponerade index'!AL24:BW27,4) -> 0.01651910498 | AA123: =HLOOKUP(AA109,'Transponerade index'!AM24:BX27,4) -> 0.01321528399 | AB123: =HLOOKUP(AB109,'Transponerade index'!AN24:BY27,4) -> 0.01057222719 | AC123: =HLOOKUP(AC109,'Transponerade index'!AO24:BZ27,4) -> 0.008457781752 | AD123: =HLOOKUP(AD109,'Transponerade index'!AP24:CA27,4) -> 0.006766225402 | AE123: =HLOOKUP(AE109,'Transponerade index'!AQ24:CB27,4) -> 0.005412980321 | AF123: =HLOOKUP(AF109,'Transponerade index'!AR24:CC27,4) -> 0.004330384257 | AG123: =HLOOKUP(AG109,'Transponerade index'!AS24:CD27,4) -> 0.003464307406 | AH123: =HLOOKUP(AH109,'Transponerade index'!AT24:CE27,4) -> 0.002771445925 | AI123: =HLOOKUP(AI109,'Transponerade index'!AU24:CF27,4) -> 0.00221715674 | AJ123: =HLOOKUP(AJ109,'Transponerade index'!AV24:CG27,4) -> 0 | AK123: =HLOOKUP(AK109,'Transponerade index'!AW24:CH27,4) -> 0 | AL123: =HLOOKUP(AL109,'Transponerade index'!AX24:CI27,4) -> 0 | AM123: =HLOOKUP(AM109,'Transponerade index'!AY24:CJ27,4) -> 0 | AN123: =HLOOKUP(AN109,'Transponerade index'!AZ24:CK27,4) -> 0 | AO123: =HLOOKUP(AO109,'Transponerade index'!BA24:CL27,4) -> 0 | AP123: =HLOOKUP(AP109,'Transponerade index'!BB24:CM27,4) -> 0 | AQ123: =HLOOKUP(AQ109,'Transponerade index'!BC24:CN27,4) -> 0 | AR123: =HLOOKUP(AR109,'Transponerade index'!BD24:CO27,4) -> 0 | AS123: =HLOOKUP(AS109,'Transponerade index'!BE24:CP27,4) -> 0 | AT123: =HLOOKUP(AT109,'Transponerade index'!BF24:CQ27,4) -> 0 | AU123: =HLOOKUP(AU109,'Transponerade index'!BG24:CR27,4) -> 0 | AV123: =HLOOKUP(AV109,'Transponerade index'!BH24:CS27,4) -> 0 | AW123: =HLOOKUP(AW109,'Transponerade index'!BI24:CT27,4) -> 0 | AX123: =HLOOKUP(AX109,'Transponerade index'!BJ24:CU27,4) -> 0 | AY123: =HLOOKUP(AY109,'Transponerade index'!BK24:CV27,4) -> 0 | AZ123: =HLOOKUP(AZ109,'Transponerade index'!BL24:CW27,4) -> 0 | BA123: =HLOOKUP(BA109,'Transponerade index'!BM24:CX27,4) -> 0 | BB123: =HLOOKUP(BB109,'Transponerade index'!BN24:CY27,4) -> 0 | BC123: =HLOOKUP(BC109,'Transponerade index'!BO24:CZ27,4) -> 0 | BD123: =HLOOKUP(BD109,'Transponerade index'!BP24:DA27,4) -> 0 | BE123: =HLOOKUP(BE109,'Transponerade index'!BQ24:DB27,4) -> 0 | BF123: =HLOOKUP(BF109,'Transponerade index'!BR24:DC27,4) -> 0 | BG123: =HLOOKUP(BG109,'Transponerade index'!BS24:DD27,4) -> 0 | BH123: =HLOOKUP(BH109,'Transponerade index'!BT24:DE27,4) -> 0 | BI123: =HLOOKUP(BI109,'Transponerade index'!BU24:DF27,4) -> 0 | BJ123: =HLOOKUP(BJ109,'Transponerade index'!BV24:DG27,4) -> 0 | BK123: =HLOOKUP(BK109,'Transponerade index'!BW24:DH27,4) -> 0 | BL123: =HLOOKUP(BL109,'Transponerade index'!BX24:DI27,4) -> 0 | BM123: =HLOOKUP(BM109,'Transponerade index'!BY24:DJ27,4) -> 0 | BN123: =HLOOKUP(BN109,'Transponerade index'!BZ24:DK27,4) -> 0 | BO123: =HLOOKUP(BO109,'Transponerade index'!CA24:DL27,4) -> 0 | BP123: =HLOOKUP(BP109,'Transponerade index'!CB24:DM27,4) -> 0 | BQ123: =HLOOKUP(BQ109,'Transponerade index'!CC24:DN27,4) -> 0 | BR123: =HLOOKUP(BR109,'Transponerade index'!CD24:DO27,4) -> 0 | BS123: =HLOOKUP(BS109,'Transponerade index'!CE24:DP27,4) -> 0
A124: CO2 | B124: =HLOOKUP(B109,'Transponerade index'!N24:AY28,5) -> 0.5571365051 | C124: =HLOOKUP(C109,'Transponerade index'!O24:AZ28,5) -> 0.5202312139 | D124: =HLOOKUP(D109,'Transponerade index'!P24:BA28,5) -> 0.4833259226 | E124: =HLOOKUP(E109,'Transponerade index'!Q24:BB28,5) -> 0.4464206314 | F124: =HLOOKUP(F109,'Transponerade index'!R24:BC28,5) -> 0.4095153402 | G124: =HLOOKUP(G109,'Transponerade index'!S24:BD28,5) -> 0.3726100489 | H124: =HLOOKUP(H109,'Transponerade index'!T24:BE28,5) -> 0.3357047577 | I124: =HLOOKUP(I109,'Transponerade index'!U24:BF28,5) -> 0.2987994664 | J124: =HLOOKUP(J109,'Transponerade index'!V24:BG28,5) -> 0.2618941752 | K124: =HLOOKUP(K109,'Transponerade index'!W24:BH28,5) -> 0.2249888839 | L124: =HLOOKUP(L109,'Transponerade index'!X24:BI28,5) -> 0.1880835927 | M124: =HLOOKUP(M109,'Transponerade index'!Y24:BJ28,5) -> 0.1511783015 | N124: =HLOOKUP(N109,'Transponerade index'!Z24:BK28,5) -> 0.1142730102 | O124: =HLOOKUP(O109,'Transponerade index'!AA24:BL28,5) -> 0.07736771899 | P124: =HLOOKUP(P109,'Transponerade index'!AB24:BM28,5) -> 0.04046242775 | Q124: =HLOOKUP(Q109,'Transponerade index'!AC24:BN28,5) -> 0.03843930636 | R124: =HLOOKUP(R109,'Transponerade index'!AD24:BO28,5) -> 0.03641618497 | S124: =HLOOKUP(S109,'Transponerade index'!AE24:BP28,5) -> 0.03439306358 | T124: =HLOOKUP(T109,'Transponerade index'!AF24:BQ28,5) -> 0.0323699422 | U124: =HLOOKUP(U109,'Transponerade index'!AG24:BR28,5) -> 0.03034682081 | V124: =HLOOKUP(V109,'Transponerade index'!AH24:BS28,5) -> 0.02832369942 | W124: =HLOOKUP(W109,'Transponerade index'!AI24:BT28,5) -> 0.02630057803 | X124: =HLOOKUP(X109,'Transponerade index'!AJ24:BU28,5) -> 0.02427745665 | Y124: =HLOOKUP(Y109,'Transponerade index'!AK24:BV28,5) -> 0.02225433526 | Z124: =HLOOKUP(Z109,'Transponerade index'!AL24:BW28,5) -> 0.02023121387 | AA124: =HLOOKUP(AA109,'Transponerade index'!AM24:BX28,5) -> 0.01820809249 | AB124: =HLOOKUP(AB109,'Transponerade index'!AN24:BY28,5) -> 0.0161849711 | AC124: =HLOOKUP(AC109,'Transponerade index'!AO24:BZ28,5) -> 0.01416184971 | AD124: =HLOOKUP(AD109,'Transponerade index'!AP24:CA28,5) -> 0.01213872832 | AE124: =HLOOKUP(AE109,'Transponerade index'!AQ24:CB28,5) -> 0.01011560694 | AF124: =HLOOKUP(AF109,'Transponerade index'!AR24:CC28,5) -> 0.008092485549 | AG124: =HLOOKUP(AG109,'Transponerade index'!AS24:CD28,5) -> 0.006069364162 | AH124: =HLOOKUP(AH109,'Transponerade index'!AT24:CE28,5) -> 0.004046242775 | AI124: =HLOOKUP(AI109,'Transponerade index'!AU24:CF28,5) -> 0.002023121387 | AJ124: =HLOOKUP(AJ109,'Transponerade index'!AV24:CG28,5) -> 0 | AK124: =HLOOKUP(AK109,'Transponerade index'!AW24:CH28,5) -> 0 | AL124: =HLOOKUP(AL109,'Transponerade index'!AX24:CI28,5) -> 0 | AM124: =HLOOKUP(AM109,'Transponerade index'!AY24:CJ28,5) -> 0 | AN124: =HLOOKUP(AN109,'Transponerade index'!AZ24:CK28,5) -> 0 | AO124: =HLOOKUP(AO109,'Transponerade index'!BA24:CL28,5) -> 0 | AP124: =HLOOKUP(AP109,'Transponerade index'!BB24:CM28,5) -> 0 | AQ124: =HLOOKUP(AQ109,'Transponerade index'!BC24:CN28,5) -> 0 | AR124: =HLOOKUP(AR109,'Transponerade index'!BD24:CO28,5) -> 0 | AS124: =HLOOKUP(AS109,'Transponerade index'!BE24:CP28,5) -> 0 | AT124: =HLOOKUP(AT109,'Transponerade index'!BF24:CQ28,5) -> 0 | AU124: =HLOOKUP(AU109,'Transponerade index'!BG24:CR28,5) -> 0 | AV124: =HLOOKUP(AV109,'Transponerade index'!BH24:CS28,5) -> 0 | AW124: =HLOOKUP(AW109,'Transponerade index'!BI24:CT28,5) -> 0 | AX124: =HLOOKUP(AX109,'Transponerade index'!BJ24:CU28,5) -> 0 | AY124: =HLOOKUP(AY109,'Transponerade index'!BK24:CV28,5) -> 0 | AZ124: =HLOOKUP(AZ109,'Transponerade index'!BL24:CW28,5) -> 0 | BA124: =HLOOKUP(BA109,'Transponerade index'!BM24:CX28,5) -> 0 | BB124: =HLOOKUP(BB109,'Transponerade index'!BN24:CY28,5) -> 0 | BC124: =HLOOKUP(BC109,'Transponerade index'!BO24:CZ28,5) -> 0 | BD124: =HLOOKUP(BD109,'Transponerade index'!BP24:DA28,5) -> 0 | BE124: =HLOOKUP(BE109,'Transponerade index'!BQ24:DB28,5) -> 0 | BF124: =HLOOKUP(BF109,'Transponerade index'!BR24:DC28,5) -> 0 | BG124: =HLOOKUP(BG109,'Transponerade index'!BS24:DD28,5) -> 0 | BH124: =HLOOKUP(BH109,'Transponerade index'!BT24:DE28,5) -> 0 | BI124: =HLOOKUP(BI109,'Transponerade index'!BU24:DF28,5) -> 0 | BJ124: =HLOOKUP(BJ109,'Transponerade index'!BV24:DG28,5) -> 0 | BK124: =HLOOKUP(BK109,'Transponerade index'!BW24:DH28,5) -> 0 | BL124: =HLOOKUP(BL109,'Transponerade index'!BX24:DI28,5) -> 0 | BM124: =HLOOKUP(BM109,'Transponerade index'!BY24:DJ28,5) -> 0 | BN124: =HLOOKUP(BN109,'Transponerade index'!BZ24:DK28,5) -> 0 | BO124: =HLOOKUP(BO109,'Transponerade index'!CA24:DL28,5) -> 0 | BP124: =HLOOKUP(BP109,'Transponerade index'!CB24:DM28,5) -> 0 | BQ124: =HLOOKUP(BQ109,'Transponerade index'!CC24:DN28,5) -> 0 | BR124: =HLOOKUP(BR109,'Transponerade index'!CD24:DO28,5) -> 0 | BS124: =HLOOKUP(BS109,'Transponerade index'!CE24:DP28,5) -> 0
A126: Index emissionsfaktor Lb
A127: Pmavgas | B127: =HLOOKUP(B109,'Transponerade index'!N24:AY32,6) -> 0.1880316822 | C127: =HLOOKUP(C109,'Transponerade index'!O24:AZ32,6) -> 0.1635875635 | D127: =HLOOKUP(D109,'Transponerade index'!P24:BA32,6) -> 0.1423211803 | E127: =HLOOKUP(E109,'Transponerade index'!Q24:BB32,6) -> 0.1238194268 | F127: =HLOOKUP(F109,'Transponerade index'!R24:BC32,6) -> 0.1077229013 | G127: =HLOOKUP(G109,'Transponerade index'!S24:BD32,6) -> 0.09371892416 | H127: =HLOOKUP(H109,'Transponerade index'!T24:BE32,6) -> 0.08153546402 | I127: =HLOOKUP(I109,'Transponerade index'!U24:BF32,6) -> 0.0709358537 | J127: =HLOOKUP(J109,'Transponerade index'!V24:BG32,6) -> 0.06171419272 | K127: =HLOOKUP(K109,'Transponerade index'!W24:BH32,6) -> 0.05369134767 | L127: =HLOOKUP(L109,'Transponerade index'!X24:BI32,6) -> 0.04671147247 | M127: =HLOOKUP(M109,'Transponerade index'!Y24:BJ32,6) -> 0.04063898105 | N127: =HLOOKUP(N109,'Transponerade index'!Z24:BK32,6) -> 0.03535591351 | O127: =HLOOKUP(O109,'Transponerade index'!AA24:BL32,6) -> 0.03075964476 | P127: =HLOOKUP(P109,'Transponerade index'!AB24:BM32,6) -> 0.02941176471 | Q127: =HLOOKUP(Q109,'Transponerade index'!AC24:BN32,6) -> 0.02205882353 | R127: =HLOOKUP(R109,'Transponerade index'!AD24:BO32,6) -> 0.01654411765 | S127: =HLOOKUP(S109,'Transponerade index'!AE24:BP32,6) -> 0.01240808824 | T127: =HLOOKUP(T109,'Transponerade index'!AF24:BQ32,6) -> 0.009306066176 | U127: =HLOOKUP(U109,'Transponerade index'!AG24:BR32,6) -> 0.006979549632 | V127: =HLOOKUP(V109,'Transponerade index'!AH24:BS32,6) -> 0.005234662224 | W127: =HLOOKUP(W109,'Transponerade index'!AI24:BT32,6) -> 0.003925996668 | X127: =HLOOKUP(X109,'Transponerade index'!AJ24:BU32,6) -> 0.002944497501 | Y127: =HLOOKUP(Y109,'Transponerade index'!AK24:BV32,6) -> 0.002208373126 | Z127: =HLOOKUP(Z109,'Transponerade index'!AL24:BW32,6) -> 0.001656279844 | AA127: =HLOOKUP(AA109,'Transponerade index'!AM24:BX32,6) -> 0.001242209883 | AB127: =HLOOKUP(AB109,'Transponerade index'!AN24:BY32,6) -> 0.0009316574125 | AC127: =HLOOKUP(AC109,'Transponerade index'!AO24:BZ32,6) -> 0.0006987430594 | AD127: =HLOOKUP(AD109,'Transponerade index'!AP24:CA32,6) -> 0.0005240572945 | AE127: =HLOOKUP(AE109,'Transponerade index'!AQ24:CB32,6) -> 0.0003930429709 | AF127: =HLOOKUP(AF109,'Transponerade index'!AR24:CC32,6) -> 0.0002947822282 | AG127: =HLOOKUP(AG109,'Transponerade index'!AS24:CD32,6) -> 0.0002210866711 | AH127: =HLOOKUP(AH109,'Transponerade index'!AT24:CE32,6) -> 0.0001658150033 | AI127: =HLOOKUP(AI109,'Transponerade index'!AU24:CF32,6) -> 0.0001243612525 | AJ127: =HLOOKUP(AJ109,'Transponerade index'!AV24:CG32,6) -> 0 | AK127: =HLOOKUP(AK109,'Transponerade index'!AW24:CH32,6) -> 0 | AL127: =HLOOKUP(AL109,'Transponerade index'!AX24:CI32,6) -> 0 | AM127: =HLOOKUP(AM109,'Transponerade index'!AY24:CJ32,6) -> 0 | AN127: =HLOOKUP(AN109,'Transponerade index'!AZ24:CK32,6) -> 0 | AO127: =HLOOKUP(AO109,'Transponerade index'!BA24:CL32,6) -> 0 | AP127: =HLOOKUP(AP109,'Transponerade index'!BB24:CM32,6) -> 0 | AQ127: =HLOOKUP(AQ109,'Transponerade index'!BC24:CN32,6) -> 0 | AR127: =HLOOKUP(AR109,'Transponerade index'!BD24:CO32,6) -> 0 | AS127: =HLOOKUP(AS109,'Transponerade index'!BE24:CP32,6) -> 0 | AT127: =HLOOKUP(AT109,'Transponerade index'!BF24:CQ32,6) -> 0 | AU127: =HLOOKUP(AU109,'Transponerade index'!BG24:CR32,6) -> 0 | AV127: =HLOOKUP(AV109,'Transponerade index'!BH24:CS32,6) -> 0 | AW127: =HLOOKUP(AW109,'Transponerade index'!BI24:CT32,6) -> 0 | AX127: =HLOOKUP(AX109,'Transponerade index'!BJ24:CU32,6) -> 0 | AY127: =HLOOKUP(AY109,'Transponerade index'!BK24:CV32,6) -> 0 | AZ127: =HLOOKUP(AZ109,'Transponerade index'!BL24:CW32,6) -> 0 | BA127: =HLOOKUP(BA109,'Transponerade index'!BM24:CX32,6) -> 0 | BB127: =HLOOKUP(BB109,'Transponerade index'!BN24:CY32,6) -> 0 | BC127: =HLOOKUP(BC109,'Transponerade index'!BO24:CZ32,6) -> 0 | BD127: =HLOOKUP(BD109,'Transponerade index'!BP24:DA32,6) -> 0 | BE127: =HLOOKUP(BE109,'Transponerade index'!BQ24:DB32,6) -> 0 | BF127: =HLOOKUP(BF109,'Transponerade index'!BR24:DC32,6) -> 0 | BG127: =HLOOKUP(BG109,'Transponerade index'!BS24:DD32,6) -> 0 | BH127: =HLOOKUP(BH109,'Transponerade index'!BT24:DE32,6) -> 0 | BI127: =HLOOKUP(BI109,'Transponerade index'!BU24:DF32,6) -> 0 | BJ127: =HLOOKUP(BJ109,'Transponerade index'!BV24:DG32,6) -> 0 | BK127: =HLOOKUP(BK109,'Transponerade index'!BW24:DH32,6) -> 0 | BL127: =HLOOKUP(BL109,'Transponerade index'!BX24:DI32,6) -> 0 | BM127: =HLOOKUP(BM109,'Transponerade index'!BY24:DJ32,6) -> 0 | BN127: =HLOOKUP(BN109,'Transponerade index'!BZ24:DK32,6) -> 0 | BO127: =HLOOKUP(BO109,'Transponerade index'!CA24:DL32,6) -> 0 | BP127: =HLOOKUP(BP109,'Transponerade index'!CB24:DM32,6) -> 0 | BQ127: =HLOOKUP(BQ109,'Transponerade index'!CC24:DN32,6) -> 0 | BR127: =HLOOKUP(BR109,'Transponerade index'!CD24:DO32,6) -> 0 | BS127: =HLOOKUP(BS109,'Transponerade index'!CE24:DP32,6) -> 0
A128: Pslitage | B128: =HLOOKUP(B109,'Transponerade index'!N24:AY32,7) -> 1 | C128: =HLOOKUP(C109,'Transponerade index'!O24:AZ32,7) -> 1 | D128: =HLOOKUP(D109,'Transponerade index'!P24:BA32,7) -> 1 | E128: =HLOOKUP(E109,'Transponerade index'!Q24:BB32,7) -> 1 | F128: =HLOOKUP(F109,'Transponerade index'!R24:BC32,7) -> 1 | G128: =HLOOKUP(G109,'Transponerade index'!S24:BD32,7) -> 1 | H128: =HLOOKUP(H109,'Transponerade index'!T24:BE32,7) -> 1 | I128: =HLOOKUP(I109,'Transponerade index'!U24:BF32,7) -> 1 | J128: =HLOOKUP(J109,'Transponerade index'!V24:BG32,7) -> 1 | K128: =HLOOKUP(K109,'Transponerade index'!W24:BH32,7) -> 1 | L128: =HLOOKUP(L109,'Transponerade index'!X24:BI32,7) -> 1 | M128: =HLOOKUP(M109,'Transponerade index'!Y24:BJ32,7) -> 1 | N128: =HLOOKUP(N109,'Transponerade index'!Z24:BK32,7) -> 1 | O128: =HLOOKUP(O109,'Transponerade index'!AA24:BL32,7) -> 1 | P128: =HLOOKUP(P109,'Transponerade index'!AB24:BM32,7) -> 1 | Q128: =HLOOKUP(Q109,'Transponerade index'!AC24:BN32,7) -> 1 | R128: =HLOOKUP(R109,'Transponerade index'!AD24:BO32,7) -> 1 | S128: =HLOOKUP(S109,'Transponerade index'!AE24:BP32,7) -> 1 | T128: =HLOOKUP(T109,'Transponerade index'!AF24:BQ32,7) -> 1 | U128: =HLOOKUP(U109,'Transponerade index'!AG24:BR32,7) -> 1 | V128: =HLOOKUP(V109,'Transponerade index'!AH24:BS32,7) -> 1 | W128: =HLOOKUP(W109,'Transponerade index'!AI24:BT32,7) -> 1 | X128: =HLOOKUP(X109,'Transponerade index'!AJ24:BU32,7) -> 1 | Y128: =HLOOKUP(Y109,'Transponerade index'!AK24:BV32,7) -> 1 | Z128: =HLOOKUP(Z109,'Transponerade index'!AL24:BW32,7) -> 1 | AA128: =HLOOKUP(AA109,'Transponerade index'!AM24:BX32,7) -> 1 | AB128: =HLOOKUP(AB109,'Transponerade index'!AN24:BY32,7) -> 1 | AC128: =HLOOKUP(AC109,'Transponerade index'!AO24:BZ32,7) -> 1 | AD128: =HLOOKUP(AD109,'Transponerade index'!AP24:CA32,7) -> 1 | AE128: =HLOOKUP(AE109,'Transponerade index'!AQ24:CB32,7) -> 1 | AF128: =HLOOKUP(AF109,'Transponerade index'!AR24:CC32,7) -> 1 | AG128: =HLOOKUP(AG109,'Transponerade index'!AS24:CD32,7) -> 1 | AH128: =HLOOKUP(AH109,'Transponerade index'!AT24:CE32,7) -> 1 | AI128: =HLOOKUP(AI109,'Transponerade index'!AU24:CF32,7) -> 1 | AJ128: =HLOOKUP(AJ109,'Transponerade index'!AV24:CG32,7) -> 1 | AK128: =HLOOKUP(AK109,'Transponerade index'!AW24:CH32,7) -> 1 | AL128: =HLOOKUP(AL109,'Transponerade index'!AX24:CI32,7) -> 1 | AM128: =HLOOKUP(AM109,'Transponerade index'!AY24:CJ32,7) -> 1 | AN128: =HLOOKUP(AN109,'Transponerade index'!AZ24:CK32,7) -> 1 | AO128: =HLOOKUP(AO109,'Transponerade index'!BA24:CL32,7) -> 1 | AP128: =HLOOKUP(AP109,'Transponerade index'!BB24:CM32,7) -> 1 | AQ128: =HLOOKUP(AQ109,'Transponerade index'!BC24:CN32,7) -> 1 | AR128: =HLOOKUP(AR109,'Transponerade index'!BD24:CO32,7) -> 1 | AS128: =HLOOKUP(AS109,'Transponerade index'!BE24:CP32,7) -> 1 | AT128: =HLOOKUP(AT109,'Transponerade index'!BF24:CQ32,7) -> 1 | AU128: =HLOOKUP(AU109,'Transponerade index'!BG24:CR32,7) -> 1 | AV128: =HLOOKUP(AV109,'Transponerade index'!BH24:CS32,7) -> 1 | AW128: =HLOOKUP(AW109,'Transponerade index'!BI24:CT32,7) -> 1 | AX128: =HLOOKUP(AX109,'Transponerade index'!BJ24:CU32,7) -> 1 | AY128: =HLOOKUP(AY109,'Transponerade index'!BK24:CV32,7) -> 1 | AZ128: =HLOOKUP(AZ109,'Transponerade index'!BL24:CW32,7) -> 1 | BA128: =HLOOKUP(BA109,'Transponerade index'!BM24:CX32,7) -> 1 | BB128: =HLOOKUP(BB109,'Transponerade index'!BN24:CY32,7) -> 1 | BC128: =HLOOKUP(BC109,'Transponerade index'!BO24:CZ32,7) -> 1 | BD128: =HLOOKUP(BD109,'Transponerade index'!BP24:DA32,7) -> 1 | BE128: =HLOOKUP(BE109,'Transponerade index'!BQ24:DB32,7) -> 1 | BF128: =HLOOKUP(BF109,'Transponerade index'!BR24:DC32,7) -> 1 | BG128: =HLOOKUP(BG109,'Transponerade index'!BS24:DD32,7) -> 1 | BH128: =HLOOKUP(BH109,'Transponerade index'!BT24:DE32,7) -> 1 | BI128: =HLOOKUP(BI109,'Transponerade index'!BU24:DF32,7) -> 1 | BJ128: =HLOOKUP(BJ109,'Transponerade index'!BV24:DG32,7) -> 1 | BK128: =HLOOKUP(BK109,'Transponerade index'!BW24:DH32,7) -> 1 | BL128: =HLOOKUP(BL109,'Transponerade index'!BX24:DI32,7) -> 1 | BM128: =HLOOKUP(BM109,'Transponerade index'!BY24:DJ32,7) -> 1 | BN128: =HLOOKUP(BN109,'Transponerade index'!BZ24:DK32,7) -> 1 | BO128: =HLOOKUP(BO109,'Transponerade index'!CA24:DL32,7) -> 1 | BP128: =HLOOKUP(BP109,'Transponerade index'!CB24:DM32,7) -> 1 | BQ128: =HLOOKUP(BQ109,'Transponerade index'!CC24:DN32,7) -> 1 | BR128: =HLOOKUP(BR109,'Transponerade index'!CD24:DO32,7) -> 1 | BS128: =HLOOKUP(BS109,'Transponerade index'!CE24:DP32,7) -> 1
A129: Nox | B129: =HLOOKUP(B109,'Transponerade index'!N24:AY32,8) -> 0.3443920589 | C129: =HLOOKUP(C109,'Transponerade index'!O24:AZ32,8) -> 0.3151187339 | D129: =HLOOKUP(D109,'Transponerade index'!P24:BA32,8) -> 0.2883336415 | E129: =HLOOKUP(E109,'Transponerade index'!Q24:BB32,8) -> 0.263825282 | F129: =HLOOKUP(F109,'Transponerade index'!R24:BC32,8) -> 0.241400133 | G129: =HLOOKUP(G109,'Transponerade index'!S24:BD32,8) -> 0.2208811217 | H129: =HLOOKUP(H109,'Transponerade index'!T24:BE32,8) -> 0.2021062264 | I129: =HLOOKUP(I109,'Transponerade index'!U24:BF32,8) -> 0.1849271971 | J129: =HLOOKUP(J109,'Transponerade index'!V24:BG32,8) -> 0.1692083854 | K129: =HLOOKUP(K109,'Transponerade index'!W24:BH32,8) -> 0.1548256726 | L129: =HLOOKUP(L109,'Transponerade index'!X24:BI32,8) -> 0.1416654904 | M129: =HLOOKUP(M109,'Transponerade index'!Y24:BJ32,8) -> 0.1296239238 | N129: =HLOOKUP(N109,'Transponerade index'!Z24:BK32,8) -> 0.1186058902 | O129: =HLOOKUP(O109,'Transponerade index'!AA24:BL32,8) -> 0.1085243896 | P129: =HLOOKUP(P109,'Transponerade index'!AB24:BM32,8) -> 0.100896861 | Q129: =HLOOKUP(Q109,'Transponerade index'!AC24:BN32,8) -> 0.07567264574 | R129: =HLOOKUP(R109,'Transponerade index'!AD24:BO32,8) -> 0.0567544843 | S129: =HLOOKUP(S109,'Transponerade index'!AE24:BP32,8) -> 0.04256586323 | T129: =HLOOKUP(T109,'Transponerade index'!AF24:BQ32,8) -> 0.03192439742 | U129: =HLOOKUP(U109,'Transponerade index'!AG24:BR32,8) -> 0.02394329807 | V129: =HLOOKUP(V109,'Transponerade index'!AH24:BS32,8) -> 0.01795747355 | W129: =HLOOKUP(W109,'Transponerade index'!AI24:BT32,8) -> 0.01346810516 | X129: =HLOOKUP(X109,'Transponerade index'!AJ24:BU32,8) -> 0.01010107887 | Y129: =HLOOKUP(Y109,'Transponerade index'!AK24:BV32,8) -> 0.007575809154 | Z129: =HLOOKUP(Z109,'Transponerade index'!AL24:BW32,8) -> 0.005681856865 | AA129: =HLOOKUP(AA109,'Transponerade index'!AM24:BX32,8) -> 0.004261392649 | AB129: =HLOOKUP(AB109,'Transponerade index'!AN24:BY32,8) -> 0.003196044487 | AC129: =HLOOKUP(AC109,'Transponerade index'!AO24:BZ32,8) -> 0.002397033365 | AD129: =HLOOKUP(AD109,'Transponerade index'!AP24:CA32,8) -> 0.001797775024 | AE129: =HLOOKUP(AE109,'Transponerade index'!AQ24:CB32,8) -> 0.001348331268 | AF129: =HLOOKUP(AF109,'Transponerade index'!AR24:CC32,8) -> 0.001011248451 | AG129: =HLOOKUP(AG109,'Transponerade index'!AS24:CD32,8) -> 0.0007584363382 | AH129: =HLOOKUP(AH109,'Transponerade index'!AT24:CE32,8) -> 0.0005688272536 | AI129: =HLOOKUP(AI109,'Transponerade index'!AU24:CF32,8) -> 0.0004266204402 | AJ129: =HLOOKUP(AJ109,'Transponerade index'!AV24:CG32,8) -> 0 | AK129: =HLOOKUP(AK109,'Transponerade index'!AW24:CH32,8) -> 0 | AL129: =HLOOKUP(AL109,'Transponerade index'!AX24:CI32,8) -> 0 | AM129: =HLOOKUP(AM109,'Transponerade index'!AY24:CJ32,8) -> 0 | AN129: =HLOOKUP(AN109,'Transponerade index'!AZ24:CK32,8) -> 0 | AO129: =HLOOKUP(AO109,'Transponerade index'!BA24:CL32,8) -> 0 | AP129: =HLOOKUP(AP109,'Transponerade index'!BB24:CM32,8) -> 0 | AQ129: =HLOOKUP(AQ109,'Transponerade index'!BC24:CN32,8) -> 0 | AR129: =HLOOKUP(AR109,'Transponerade index'!BD24:CO32,8) -> 0 | AS129: =HLOOKUP(AS109,'Transponerade index'!BE24:CP32,8) -> 0 | AT129: =HLOOKUP(AT109,'Transponerade index'!BF24:CQ32,8) -> 0 | AU129: =HLOOKUP(AU109,'Transponerade index'!BG24:CR32,8) -> 0 | AV129: =HLOOKUP(AV109,'Transponerade index'!BH24:CS32,8) -> 0 | AW129: =HLOOKUP(AW109,'Transponerade index'!BI24:CT32,8) -> 0 | AX129: =HLOOKUP(AX109,'Transponerade index'!BJ24:CU32,8) -> 0 | AY129: =HLOOKUP(AY109,'Transponerade index'!BK24:CV32,8) -> 0 | AZ129: =HLOOKUP(AZ109,'Transponerade index'!BL24:CW32,8) -> 0 | BA129: =HLOOKUP(BA109,'Transponerade index'!BM24:CX32,8) -> 0 | BB129: =HLOOKUP(BB109,'Transponerade index'!BN24:CY32,8) -> 0 | BC129: =HLOOKUP(BC109,'Transponerade index'!BO24:CZ32,8) -> 0 | BD129: =HLOOKUP(BD109,'Transponerade index'!BP24:DA32,8) -> 0 | BE129: =HLOOKUP(BE109,'Transponerade index'!BQ24:DB32,8) -> 0 | BF129: =HLOOKUP(BF109,'Transponerade index'!BR24:DC32,8) -> 0 | BG129: =HLOOKUP(BG109,'Transponerade index'!BS24:DD32,8) -> 0 | BH129: =HLOOKUP(BH109,'Transponerade index'!BT24:DE32,8) -> 0 | BI129: =HLOOKUP(BI109,'Transponerade index'!BU24:DF32,8) -> 0 | BJ129: =HLOOKUP(BJ109,'Transponerade index'!BV24:DG32,8) -> 0 | BK129: =HLOOKUP(BK109,'Transponerade index'!BW24:DH32,8) -> 0 | BL129: =HLOOKUP(BL109,'Transponerade index'!BX24:DI32,8) -> 0 | BM129: =HLOOKUP(BM109,'Transponerade index'!BY24:DJ32,8) -> 0 | BN129: =HLOOKUP(BN109,'Transponerade index'!BZ24:DK32,8) -> 0 | BO129: =HLOOKUP(BO109,'Transponerade index'!CA24:DL32,8) -> 0 | BP129: =HLOOKUP(BP109,'Transponerade index'!CB24:DM32,8) -> 0 | BQ129: =HLOOKUP(BQ109,'Transponerade index'!CC24:DN32,8) -> 0 | BR129: =HLOOKUP(BR109,'Transponerade index'!CD24:DO32,8) -> 0 | BS129: =HLOOKUP(BS109,'Transponerade index'!CE24:DP32,8) -> 0
A130: CO2 | B130: =HLOOKUP(B109,'Transponerade index'!N24:AY32,9) -> 0.6105374078 | C130: =HLOOKUP(C109,'Transponerade index'!O24:AZ32,9) -> 0.5780821918 | D130: =HLOOKUP(D109,'Transponerade index'!P24:BA32,9) -> 0.5456269758 | E130: =HLOOKUP(E109,'Transponerade index'!Q24:BB32,9) -> 0.5131717597 | F130: =HLOOKUP(F109,'Transponerade index'!R24:BC32,9) -> 0.4807165437 | G130: =HLOOKUP(G109,'Transponerade index'!S24:BD32,9) -> 0.4482613277 | H130: =HLOOKUP(H109,'Transponerade index'!T24:BE32,9) -> 0.4158061117 | I130: =HLOOKUP(I109,'Transponerade index'!U24:BF32,9) -> 0.3833508957 | J130: =HLOOKUP(J109,'Transponerade index'!V24:BG32,9) -> 0.3508956797 | K130: =HLOOKUP(K109,'Transponerade index'!W24:BH32,9) -> 0.3184404636 | L130: =HLOOKUP(L109,'Transponerade index'!X24:BI32,9) -> 0.2859852476 | M130: =HLOOKUP(M109,'Transponerade index'!Y24:BJ32,9) -> 0.2535300316 | N130: =HLOOKUP(N109,'Transponerade index'!Z24:BK32,9) -> 0.2210748156 | O130: =HLOOKUP(O109,'Transponerade index'!AA24:BL32,9) -> 0.1886195996 | P130: =HLOOKUP(P109,'Transponerade index'!AB24:BM32,9) -> 0.1561643836 | Q130: =HLOOKUP(Q109,'Transponerade index'!AC24:BN32,9) -> 0.1483561644 | R130: =HLOOKUP(R109,'Transponerade index'!AD24:BO32,9) -> 0.1405479452 | S130: =HLOOKUP(S109,'Transponerade index'!AE24:BP32,9) -> 0.132739726 | T130: =HLOOKUP(T109,'Transponerade index'!AF24:BQ32,9) -> 0.1249315068 | U130: =HLOOKUP(U109,'Transponerade index'!AG24:BR32,9) -> 0.1171232877 | V130: =HLOOKUP(V109,'Transponerade index'!AH24:BS32,9) -> 0.1093150685 | W130: =HLOOKUP(W109,'Transponerade index'!AI24:BT32,9) -> 0.1015068493 | X130: =HLOOKUP(X109,'Transponerade index'!AJ24:BU32,9) -> 0.09369863014 | Y130: =HLOOKUP(Y109,'Transponerade index'!AK24:BV32,9) -> 0.08589041096 | Z130: =HLOOKUP(Z109,'Transponerade index'!AL24:BW32,9) -> 0.07808219178 | AA130: =HLOOKUP(AA109,'Transponerade index'!AM24:BX32,9) -> 0.0702739726 | AB130: =HLOOKUP(AB109,'Transponerade index'!AN24:BY32,9) -> 0.06246575342 | AC130: =HLOOKUP(AC109,'Transponerade index'!AO24:BZ32,9) -> 0.05465753425 | AD130: =HLOOKUP(AD109,'Transponerade index'!AP24:CA32,9) -> 0.04684931507 | AE130: =HLOOKUP(AE109,'Transponerade index'!AQ24:CB32,9) -> 0.03904109589 | AF130: =HLOOKUP(AF109,'Transponerade index'!AR24:CC32,9) -> 0.03123287671 | AG130: =HLOOKUP(AG109,'Transponerade index'!AS24:CD32,9) -> 0.02342465753 | AH130: =HLOOKUP(AH109,'Transponerade index'!AT24:CE32,9) -> 0.01561643836 | AI130: =HLOOKUP(AI109,'Transponerade index'!AU24:CF32,9) -> 0.007808219178 | AJ130: =HLOOKUP(AJ109,'Transponerade index'!AV24:CG32,9) -> 0 | AK130: =HLOOKUP(AK109,'Transponerade index'!AW24:CH32,9) -> 0 | AL130: =HLOOKUP(AL109,'Transponerade index'!AX24:CI32,9) -> 0 | AM130: =HLOOKUP(AM109,'Transponerade index'!AY24:CJ32,9) -> 0 | AN130: =HLOOKUP(AN109,'Transponerade index'!AZ24:CK32,9) -> 0 | AO130: =HLOOKUP(AO109,'Transponerade index'!BA24:CL32,9) -> 0 | AP130: =HLOOKUP(AP109,'Transponerade index'!BB24:CM32,9) -> 0 | AQ130: =HLOOKUP(AQ109,'Transponerade index'!BC24:CN32,9) -> 0 | AR130: =HLOOKUP(AR109,'Transponerade index'!BD24:CO32,9) -> 0 | AS130: =HLOOKUP(AS109,'Transponerade index'!BE24:CP32,9) -> 0 | AT130: =HLOOKUP(AT109,'Transponerade index'!BF24:CQ32,9) -> 0 | AU130: =HLOOKUP(AU109,'Transponerade index'!BG24:CR32,9) -> 0 | AV130: =HLOOKUP(AV109,'Transponerade index'!BH24:CS32,9) -> 0 | AW130: =HLOOKUP(AW109,'Transponerade index'!BI24:CT32,9) -> 0 | AX130: =HLOOKUP(AX109,'Transponerade index'!BJ24:CU32,9) -> 0 | AY130: =HLOOKUP(AY109,'Transponerade index'!BK24:CV32,9) -> 0 | AZ130: =HLOOKUP(AZ109,'Transponerade index'!BL24:CW32,9) -> 0 | BA130: =HLOOKUP(BA109,'Transponerade index'!BM24:CX32,9) -> 0 | BB130: =HLOOKUP(BB109,'Transponerade index'!BN24:CY32,9) -> 0 | BC130: =HLOOKUP(BC109,'Transponerade index'!BO24:CZ32,9) -> 0 | BD130: =HLOOKUP(BD109,'Transponerade index'!BP24:DA32,9) -> 0 | BE130: =HLOOKUP(BE109,'Transponerade index'!BQ24:DB32,9) -> 0 | BF130: =HLOOKUP(BF109,'Transponerade index'!BR24:DC32,9) -> 0 | BG130: =HLOOKUP(BG109,'Transponerade index'!BS24:DD32,9) -> 0 | BH130: =HLOOKUP(BH109,'Transponerade index'!BT24:DE32,9) -> 0 | BI130: =HLOOKUP(BI109,'Transponerade index'!BU24:DF32,9) -> 0 | BJ130: =HLOOKUP(BJ109,'Transponerade index'!BV24:DG32,9) -> 0 | BK130: =HLOOKUP(BK109,'Transponerade index'!BW24:DH32,9) -> 0 | BL130: =HLOOKUP(BL109,'Transponerade index'!BX24:DI32,9) -> 0 | BM130: =HLOOKUP(BM109,'Transponerade index'!BY24:DJ32,9) -> 0 | BN130: =HLOOKUP(BN109,'Transponerade index'!BZ24:DK32,9) -> 0 | BO130: =HLOOKUP(BO109,'Transponerade index'!CA24:DL32,9) -> 0 | BP130: =HLOOKUP(BP109,'Transponerade index'!CB24:DM32,9) -> 0 | BQ130: =HLOOKUP(BQ109,'Transponerade index'!CC24:DN32,9) -> 0 | BR130: =HLOOKUP(BR109,'Transponerade index'!CD24:DO32,9) -> 0 | BS130: =HLOOKUP(BS109,'Transponerade index'!CE24:DP32,9) -> 0
A132: Index CO2-värdering | B132: =HLOOKUP(B109,'Transponerade index'!N24:AY38,15) -> 2.224080268 | C132: =HLOOKUP(C109,'Transponerade index'!O24:AZ38,15) -> 2.326086957 | D132: =HLOOKUP(D109,'Transponerade index'!P24:BA38,15) -> 2.428093645 | E132: =HLOOKUP(E109,'Transponerade index'!Q24:BB38,15) -> 2.530100334 | F132: =HLOOKUP(F109,'Transponerade index'!R24:BC38,15) -> 2.632107023 | G132: =HLOOKUP(G109,'Transponerade index'!S24:BD38,15) -> 2.734113712 | H132: =HLOOKUP(H109,'Transponerade index'!T24:BE38,15) -> 2.836120401 | I132: =HLOOKUP(I109,'Transponerade index'!U24:BF38,15) -> 2.93812709 | J132: =HLOOKUP(J109,'Transponerade index'!V24:BG38,15) -> 3.040133779 | K132: =HLOOKUP(K109,'Transponerade index'!W24:BH38,15) -> 3.142140468 | L132: =HLOOKUP(L109,'Transponerade index'!X24:BI38,15) -> 3.244147157 | M132: =HLOOKUP(M109,'Transponerade index'!Y24:BJ38,15) -> 3.346153846 | N132: =HLOOKUP(N109,'Transponerade index'!Z24:BK38,15) -> 3.448160535 | O132: =HLOOKUP(O109,'Transponerade index'!AA24:BL38,15) -> 3.550167224 | P132: =HLOOKUP(P109,'Transponerade index'!AB24:BM38,15) -> 3.652173913 | Q132: =HLOOKUP(Q109,'Transponerade index'!AC24:BN38,15) -> 3.658695652 | R132: =HLOOKUP(R109,'Transponerade index'!AD24:BO38,15) -> 3.665217391 | S132: =HLOOKUP(S109,'Transponerade index'!AE24:BP38,15) -> 3.67173913 | T132: =HLOOKUP(T109,'Transponerade index'!AF24:BQ38,15) -> 3.67826087 | U132: =HLOOKUP(U109,'Transponerade index'!AG24:BR38,15) -> 3.684782609 | V132: =HLOOKUP(V109,'Transponerade index'!AH24:BS38,15) -> 3.691304348 | W132: =HLOOKUP(W109,'Transponerade index'!AI24:BT38,15) -> 3.697826087 | X132: =HLOOKUP(X109,'Transponerade index'!AJ24:BU38,15) -> 3.704347826 | Y132: =HLOOKUP(Y109,'Transponerade index'!AK24:BV38,15) -> 3.710869565 | Z132: =HLOOKUP(Z109,'Transponerade index'!AL24:BW38,15) -> 3.717391304 | AA132: =HLOOKUP(AA109,'Transponerade index'!AM24:BX38,15) -> 3.723913043 | AB132: =HLOOKUP(AB109,'Transponerade index'!AN24:BY38,15) -> 3.730434783 | AC132: =HLOOKUP(AC109,'Transponerade index'!AO24:BZ38,15) -> 3.736956522 | AD132: =HLOOKUP(AD109,'Transponerade index'!AP24:CA38,15) -> 3.743478261 | AE132: =HLOOKUP(AE109,'Transponerade index'!AQ24:CB38,15) -> 3.75 | AF132: =HLOOKUP(AF109,'Transponerade index'!AR24:CC38,15) -> 3.756521739 | AG132: =HLOOKUP(AG109,'Transponerade index'!AS24:CD38,15) -> 3.763043478 | AH132: =HLOOKUP(AH109,'Transponerade index'!AT24:CE38,15) -> 3.769565217 | AI132: =HLOOKUP(AI109,'Transponerade index'!AU24:CF38,15) -> 3.776086957 | AJ132: =HLOOKUP(AJ109,'Transponerade index'!AV24:CG38,15) -> 3.782608696 | AK132: =HLOOKUP(AK109,'Transponerade index'!AW24:CH38,15) -> 0 | AL132: =HLOOKUP(AL109,'Transponerade index'!AX24:CI38,15) -> 0 | AM132: =HLOOKUP(AM109,'Transponerade index'!AY24:CJ38,15) -> 0 | AN132: =HLOOKUP(AN109,'Transponerade index'!AZ24:CK38,15) -> 0 | AO132: =HLOOKUP(AO109,'Transponerade index'!BA24:CL38,15) -> 0 | AP132: =HLOOKUP(AP109,'Transponerade index'!BB24:CM38,15) -> 0 | AQ132: =HLOOKUP(AQ109,'Transponerade index'!BC24:CN38,15) -> 0 | AR132: =HLOOKUP(AR109,'Transponerade index'!BD24:CO38,15) -> 0 | AS132: =HLOOKUP(AS109,'Transponerade index'!BE24:CP38,15) -> 0 | AT132: =HLOOKUP(AT109,'Transponerade index'!BF24:CQ38,15) -> 0 | AU132: =HLOOKUP(AU109,'Transponerade index'!BG24:CR38,15) -> 0 | AV132: =HLOOKUP(AV109,'Transponerade index'!BH24:CS38,15) -> 0 | AW132: =HLOOKUP(AW109,'Transponerade index'!BI24:CT38,15) -> 0 | AX132: =HLOOKUP(AX109,'Transponerade index'!BJ24:CU38,15) -> 0 | AY132: =HLOOKUP(AY109,'Transponerade index'!BK24:CV38,15) -> 0 | AZ132: =HLOOKUP(AZ109,'Transponerade index'!BL24:CW38,15) -> 0 | BA132: =HLOOKUP(BA109,'Transponerade index'!BM24:CX38,15) -> 0 | BB132: =HLOOKUP(BB109,'Transponerade index'!BN24:CY38,15) -> 0 | BC132: =HLOOKUP(BC109,'Transponerade index'!BO24:CZ38,15) -> 0 | BD132: =HLOOKUP(BD109,'Transponerade index'!BP24:DA38,15) -> 0 | BE132: =HLOOKUP(BE109,'Transponerade index'!BQ24:DB38,15) -> 0 | BF132: =HLOOKUP(BF109,'Transponerade index'!BR24:DC38,15) -> 0 | BG132: =HLOOKUP(BG109,'Transponerade index'!BS24:DD38,15) -> 0 | BH132: =HLOOKUP(BH109,'Transponerade index'!BT24:DE38,15) -> 0 | BI132: =HLOOKUP(BI109,'Transponerade index'!BU24:DF38,15) -> 0 | BJ132: =HLOOKUP(BJ109,'Transponerade index'!BV24:DG38,15) -> 0 | BK132: =HLOOKUP(BK109,'Transponerade index'!BW24:DH38,15) -> 0 | BL132: =HLOOKUP(BL109,'Transponerade index'!BX24:DI38,15) -> 0 | BM132: =HLOOKUP(BM109,'Transponerade index'!BY24:DJ38,15) -> 0 | BN132: =HLOOKUP(BN109,'Transponerade index'!BZ24:DK38,15) -> 0 | BO132: =HLOOKUP(BO109,'Transponerade index'!CA24:DL38,15) -> 0 | BP132: =HLOOKUP(BP109,'Transponerade index'!CB24:DM38,15) -> 0 | BQ132: =HLOOKUP(BQ109,'Transponerade index'!CC24:DN38,15) -> 0 | BR132: =HLOOKUP(BR109,'Transponerade index'!CD24:DO38,15) -> 0 | BS132: =HLOOKUP(BS109,'Transponerade index'!CE24:DP38,15) -> 0
A134: Index körkostnad bil | B134: =HLOOKUP(B109,'Transponerade index'!N24:AY35,12) -> 0.8967334036 | C134: =HLOOKUP(C109,'Transponerade index'!O24:AZ35,12) -> 0.8881278539 | D134: =HLOOKUP(D109,'Transponerade index'!P24:BA35,12) -> 0.8795223042 | E134: =HLOOKUP(E109,'Transponerade index'!Q24:BB35,12) -> 0.8709167545 | F134: =HLOOKUP(F109,'Transponerade index'!R24:BC35,12) -> 0.8623112048 | G134: =HLOOKUP(G109,'Transponerade index'!S24:BD35,12) -> 0.8537056551 | H134: =HLOOKUP(H109,'Transponerade index'!T24:BE35,12) -> 0.8451001054 | I134: =HLOOKUP(I109,'Transponerade index'!U24:BF35,12) -> 0.8364945557 | J134: =HLOOKUP(J109,'Transponerade index'!V24:BG35,12) -> 0.827889006 | K134: =HLOOKUP(K109,'Transponerade index'!W24:BH35,12) -> 0.8192834563 | L134: =HLOOKUP(L109,'Transponerade index'!X24:BI35,12) -> 0.8106779066 | M134: =HLOOKUP(M109,'Transponerade index'!Y24:BJ35,12) -> 0.8020723569 | N134: =HLOOKUP(N109,'Transponerade index'!Z24:BK35,12) -> 0.7934668072 | O134: =HLOOKUP(O109,'Transponerade index'!AA24:BL35,12) -> 0.7848612575 | P134: =HLOOKUP(P109,'Transponerade index'!AB24:BM35,12) -> 0.7762557078 | Q134: =HLOOKUP(Q109,'Transponerade index'!AC24:BN35,12) -> 0.7748858447 | R134: =HLOOKUP(R109,'Transponerade index'!AD24:BO35,12) -> 0.7735159817 | S134: =HLOOKUP(S109,'Transponerade index'!AE24:BP35,12) -> 0.7721461187 | T134: =HLOOKUP(T109,'Transponerade index'!AF24:BQ35,12) -> 0.7707762557 | U134: =HLOOKUP(U109,'Transponerade index'!AG24:BR35,12) -> 0.7694063927 | V134: =HLOOKUP(V109,'Transponerade index'!AH24:BS35,12) -> 0.7680365297 | W134: =HLOOKUP(W109,'Transponerade index'!AI24:BT35,12) -> 0.7666666667 | X134: =HLOOKUP(X109,'Transponerade index'!AJ24:BU35,12) -> 0.7652968037 | Y134: =HLOOKUP(Y109,'Transponerade index'!AK24:BV35,12) -> 0.7639269406 | Z134: =HLOOKUP(Z109,'Transponerade index'!AL24:BW35,12) -> 0.7625570776 | AA134: =HLOOKUP(AA109,'Transponerade index'!AM24:BX35,12) -> 0.7611872146 | AB134: =HLOOKUP(AB109,'Transponerade index'!AN24:BY35,12) -> 0.7598173516 | AC134: =HLOOKUP(AC109,'Transponerade index'!AO24:BZ35,12) -> 0.7584474886 | AD134: =HLOOKUP(AD109,'Transponerade index'!AP24:CA35,12) -> 0.7570776256 | AE134: =HLOOKUP(AE109,'Transponerade index'!AQ24:CB35,12) -> 0.7557077626 | AF134: =HLOOKUP(AF109,'Transponerade index'!AR24:CC35,12) -> 0.7543378995 | AG134: =HLOOKUP(AG109,'Transponerade index'!AS24:CD35,12) -> 0.7529680365 | AH134: =HLOOKUP(AH109,'Transponerade index'!AT24:CE35,12) -> 0.7515981735 | AI134: =HLOOKUP(AI109,'Transponerade index'!AU24:CF35,12) -> 0.7502283105 | AJ134: =HLOOKUP(AJ109,'Transponerade index'!AV24:CG35,12) -> 0.7488584475 | AK134: =HLOOKUP(AK109,'Transponerade index'!AW24:CH35,12) -> 0.7488584475 | AL134: =HLOOKUP(AL109,'Transponerade index'!AX24:CI35,12) -> 0.7488584475 | AM134: =HLOOKUP(AM109,'Transponerade index'!AY24:CJ35,12) -> 0.7488584475 | AN134: =HLOOKUP(AN109,'Transponerade index'!AZ24:CK35,12) -> 0.7488584475 | AO134: =HLOOKUP(AO109,'Transponerade index'!BA24:CL35,12) -> 0.7488584475 | AP134: =HLOOKUP(AP109,'Transponerade index'!BB24:CM35,12) -> 0.7488584475 | AQ134: =HLOOKUP(AQ109,'Transponerade index'!BC24:CN35,12) -> 0.7488584475 | AR134: =HLOOKUP(AR109,'Transponerade index'!BD24:CO35,12) -> 0.7488584475 | AS134: =HLOOKUP(AS109,'Transponerade index'!BE24:CP35,12) -> 0.7488584475 | AT134: =HLOOKUP(AT109,'Transponerade index'!BF24:CQ35,12) -> 0.7488584475 | AU134: =HLOOKUP(AU109,'Transponerade index'!BG24:CR35,12) -> 0.7488584475 | AV134: =HLOOKUP(AV109,'Transponerade index'!BH24:CS35,12) -> 0.7488584475 | AW134: =HLOOKUP(AW109,'Transponerade index'!BI24:CT35,12) -> 0.7488584475 | AX134: =HLOOKUP(AX109,'Transponerade index'!BJ24:CU35,12) -> 0.7488584475 | AY134: =HLOOKUP(AY109,'Transponerade index'!BK24:CV35,12) -> 0.7488584475 | AZ134: =HLOOKUP(AZ109,'Transponerade index'!BL24:CW35,12) -> 0.7488584475 | BA134: =HLOOKUP(BA109,'Transponerade index'!BM24:CX35,12) -> 0.7488584475 | BB134: =HLOOKUP(BB109,'Transponerade index'!BN24:CY35,12) -> 0.7488584475 | BC134: =HLOOKUP(BC109,'Transponerade index'!BO24:CZ35,12) -> 0.7488584475 | BD134: =HLOOKUP(BD109,'Transponerade index'!BP24:DA35,12) -> 0.7488584475 | BE134: =HLOOKUP(BE109,'Transponerade index'!BQ24:DB35,12) -> 0.7488584475 | BF134: =HLOOKUP(BF109,'Transponerade index'!BR24:DC35,12) -> 0.7488584475 | BG134: =HLOOKUP(BG109,'Transponerade index'!BS24:DD35,12) -> 0.7488584475 | BH134: =HLOOKUP(BH109,'Transponerade index'!BT24:DE35,12) -> 0.7488584475 | BI134: =HLOOKUP(BI109,'Transponerade index'!BU24:DF35,12) -> 0.7488584475 | BJ134: =HLOOKUP(BJ109,'Transponerade index'!BV24:DG35,12) -> 0.7488584475 | BK134: =HLOOKUP(BK109,'Transponerade index'!BW24:DH35,12) -> 0.7488584475 | BL134: =HLOOKUP(BL109,'Transponerade index'!BX24:DI35,12) -> 0.7488584475 | BM134: =HLOOKUP(BM109,'Transponerade index'!BY24:DJ35,12) -> 0.7488584475 | BN134: =HLOOKUP(BN109,'Transponerade index'!BZ24:DK35,12) -> 0.7488584475 | BO134: =HLOOKUP(BO109,'Transponerade index'!CA24:DL35,12) -> 0.7488584475 | BP134: =HLOOKUP(BP109,'Transponerade index'!CB24:DM35,12) -> 0.7488584475 | BQ134: =HLOOKUP(BQ109,'Transponerade index'!CC24:DN35,12) -> 0.7488584475 | BR134: =HLOOKUP(BR109,'Transponerade index'!CD24:DO35,12) -> 0.7488584475 | BS134: =HLOOKUP(BS109,'Transponerade index'!CE24:DP35,12) -> 0.7488584475
A135: Index körkostnad lastbil | B135: =HLOOKUP(B109,'Transponerade index'!N24:AY37,14) -> 0.9890831901 | C135: =HLOOKUP(C109,'Transponerade index'!O24:AZ37,14) -> 0.988173456 | D135: =HLOOKUP(D109,'Transponerade index'!P24:BA37,14) -> 0.9872637218 | E135: =HLOOKUP(E109,'Transponerade index'!Q24:BB37,14) -> 0.9863539877 | F135: =HLOOKUP(F109,'Transponerade index'!R24:BC37,14) -> 0.9854442535 | G135: =HLOOKUP(G109,'Transponerade index'!S24:BD37,14) -> 0.9845345194 | H135: =HLOOKUP(H109,'Transponerade index'!T24:BE37,14) -> 0.9836247852 | I135: =HLOOKUP(I109,'Transponerade index'!U24:BF37,14) -> 0.982715051 | J135: =HLOOKUP(J109,'Transponerade index'!V24:BG37,14) -> 0.9818053169 | K135: =HLOOKUP(K109,'Transponerade index'!W24:BH37,14) -> 0.9808955827 | L135: =HLOOKUP(L109,'Transponerade index'!X24:BI37,14) -> 0.9799858486 | M135: =HLOOKUP(M109,'Transponerade index'!Y24:BJ37,14) -> 0.9790761144 | N135: =HLOOKUP(N109,'Transponerade index'!Z24:BK37,14) -> 0.9781663803 | O135: =HLOOKUP(O109,'Transponerade index'!AA24:BL37,14) -> 0.9772566461 | P135: =HLOOKUP(P109,'Transponerade index'!AB24:BM37,14) -> 0.976346912 | Q135: =HLOOKUP(Q109,'Transponerade index'!AC24:BN37,14) -> 0.9726018397 | R135: =HLOOKUP(R109,'Transponerade index'!AD24:BO37,14) -> 0.9688567674 | S135: =HLOOKUP(S109,'Transponerade index'!AE24:BP37,14) -> 0.9651116951 | T135: =HLOOKUP(T109,'Transponerade index'!AF24:BQ37,14) -> 0.9613666229 | U135: =HLOOKUP(U109,'Transponerade index'!AG24:BR37,14) -> 0.9576215506 | V135: =HLOOKUP(V109,'Transponerade index'!AH24:BS37,14) -> 0.9538764783 | W135: =HLOOKUP(W109,'Transponerade index'!AI24:BT37,14) -> 0.950131406 | X135: =HLOOKUP(X109,'Transponerade index'!AJ24:BU37,14) -> 0.9463863338 | Y135: =HLOOKUP(Y109,'Transponerade index'!AK24:BV37,14) -> 0.9426412615 | Z135: =HLOOKUP(Z109,'Transponerade index'!AL24:BW37,14) -> 0.9388961892 | AA135: =HLOOKUP(AA109,'Transponerade index'!AM24:BX37,14) -> 0.935151117 | AB135: =HLOOKUP(AB109,'Transponerade index'!AN24:BY37,14) -> 0.9314060447 | AC135: =HLOOKUP(AC109,'Transponerade index'!AO24:BZ37,14) -> 0.9276609724 | AD135: =HLOOKUP(AD109,'Transponerade index'!AP24:CA37,14) -> 0.9239159001 | AE135: =HLOOKUP(AE109,'Transponerade index'!AQ24:CB37,14) -> 0.9201708279 | AF135: =HLOOKUP(AF109,'Transponerade index'!AR24:CC37,14) -> 0.9164257556 | AG135: =HLOOKUP(AG109,'Transponerade index'!AS24:CD37,14) -> 0.9126806833 | AH135: =HLOOKUP(AH109,'Transponerade index'!AT24:CE37,14) -> 0.908935611 | AI135: =HLOOKUP(AI109,'Transponerade index'!AU24:CF37,14) -> 0.9051905388 | AJ135: =HLOOKUP(AJ109,'Transponerade index'!AV24:CG37,14) -> 0.9014454665 | AK135: =HLOOKUP(AK109,'Transponerade index'!AW24:CH37,14) -> 0.9014454665 | AL135: =HLOOKUP(AL109,'Transponerade index'!AX24:CI37,14) -> 0.9014454665 | AM135: =HLOOKUP(AM109,'Transponerade index'!AY24:CJ37,14) -> 0.9014454665 | AN135: =HLOOKUP(AN109,'Transponerade index'!AZ24:CK37,14) -> 0.9014454665 | AO135: =HLOOKUP(AO109,'Transponerade index'!BA24:CL37,14) -> 0.9014454665 | AP135: =HLOOKUP(AP109,'Transponerade index'!BB24:CM37,14) -> 0.9014454665 | AQ135: =HLOOKUP(AQ109,'Transponerade index'!BC24:CN37,14) -> 0.9014454665 | AR135: =HLOOKUP(AR109,'Transponerade index'!BD24:CO37,14) -> 0.9014454665 | AS135: =HLOOKUP(AS109,'Transponerade index'!BE24:CP37,14) -> 0.9014454665 | AT135: =HLOOKUP(AT109,'Transponerade index'!BF24:CQ37,14) -> 0.9014454665 | AU135: =HLOOKUP(AU109,'Transponerade index'!BG24:CR37,14) -> 0.9014454665 | AV135: =HLOOKUP(AV109,'Transponerade index'!BH24:CS37,14) -> 0.9014454665 | AW135: =HLOOKUP(AW109,'Transponerade index'!BI24:CT37,14) -> 0.9014454665 | AX135: =HLOOKUP(AX109,'Transponerade index'!BJ24:CU37,14) -> 0.9014454665 | AY135: =HLOOKUP(AY109,'Transponerade index'!BK24:CV37,14) -> 0.9014454665 | AZ135: =HLOOKUP(AZ109,'Transponerade index'!BL24:CW37,14) -> 0.9014454665 | BA135: =HLOOKUP(BA109,'Transponerade index'!BM24:CX37,14) -> 0.9014454665 | BB135: =HLOOKUP(BB109,'Transponerade index'!BN24:CY37,14) -> 0.9014454665 | BC135: =HLOOKUP(BC109,'Transponerade index'!BO24:CZ37,14) -> 0.9014454665 | BD135: =HLOOKUP(BD109,'Transponerade index'!BP24:DA37,14) -> 0.9014454665 | BE135: =HLOOKUP(BE109,'Transponerade index'!BQ24:DB37,14) -> 0.9014454665 | BF135: =HLOOKUP(BF109,'Transponerade index'!BR24:DC37,14) -> 0.9014454665 | BG135: =HLOOKUP(BG109,'Transponerade index'!BS24:DD37,14) -> 0.9014454665 | BH135: =HLOOKUP(BH109,'Transponerade index'!BT24:DE37,14) -> 0.9014454665 | BI135: =HLOOKUP(BI109,'Transponerade index'!BU24:DF37,14) -> 0.9014454665 | BJ135: =HLOOKUP(BJ109,'Transponerade index'!BV24:DG37,14) -> 0.9014454665 | BK135: =HLOOKUP(BK109,'Transponerade index'!BW24:DH37,14) -> 0.9014454665 | BL135: =HLOOKUP(BL109,'Transponerade index'!BX24:DI37,14) -> 0.9014454665 | BM135: =HLOOKUP(BM109,'Transponerade index'!BY24:DJ37,14) -> 0.9014454665 | BN135: =HLOOKUP(BN109,'Transponerade index'!BZ24:DK37,14) -> 0.9014454665 | BO135: =HLOOKUP(BO109,'Transponerade index'!CA24:DL37,14) -> 0.9014454665 | BP135: =HLOOKUP(BP109,'Transponerade index'!CB24:DM37,14) -> 0.9014454665 | BQ135: =HLOOKUP(BQ109,'Transponerade index'!CC24:DN37,14) -> 0.9014454665 | BR135: =HLOOKUP(BR109,'Transponerade index'!CD24:DO37,14) -> 0.9014454665 | BS135: =HLOOKUP(BS109,'Transponerade index'!CE24:DP37,14) -> 0.9014454665
A137: Diskonteringsnuvärde UTAN uppräkning med real BNP
A138: Diskonteringsnuvärde (Pb och Lb) | B138: =B114/B111 -> 0.9431419828 | C138: =C114/C111 -> 0.924917017 | D138: =D114/D111 -> 0.9070442244 | E138: 0.8895167997 | F138: 0.8723280693 | G138: 0.8554714883 | H138: 0.8389406382 | I138: 0.8227292249 | J138: 0.8068310757 | K138: 0.791240137 | L138: 0.7759504725 | M138: 0.7609562605 | N138: 0.7462517917 | O138: 0.7318314672 | P138: 0.7176897963 | Q138: 0.6968871936 | R138: 0.6766875648 | S138: 0.6570734324 | T138: 0.6380278257 | U138: 0.6195342655 | V138: 0.6015767506 | W138: 0.5841397433 | X138: 0.5672081566 | Y138: 0.5507673404 | Z138: 0.5348030697 | AA138: 0.5193015315 | AB138: 0.5042493131 | AC138: 0.489633391 | AD138: 0.4754411188 | AE138: 0.4616602168 | AF138: 0.4482787613 | AG138: 0.435285174 | AH138: 0.4226682124 | AI138: 0.4104169599 | AJ138: 0.3985208161 | AK138: 0.3869694881 | AL138: 0.3757529812 | AM138: 0.3648615905 | AN138: 0.3542858922 | AO138: 0.3440167359 | AP138: 0.3340452363 | AQ138: 0.3243627657 | AR138: 0.3149609464 | AS138: 0.3058316436 | AT138: 0.2969669583 | AU138: 0.2883592203 | AV138: 0.2800009821 | AW138: 0.2718850116 | AX138: 0.2640042866 | AY138: 0.2563519884 | AZ138: 0.248921496 | BA138: 0.2417063802 | BB138: 0.2347003982 | BC138: 0.2278974881 | BD138: 0.2212917638 | BE138: 0.2148775098 | BF138: 0.2086491761 | BG138: 0.2026013739 | BH138: 0.1967288703 | BI138: 0.1910265842 | BJ138: 0.1854895818 | BK138: 0.1801130722 | BL138: 0.1748924034 | BM138: 0.1698230584 | BN138: 0.1649006509 | BO138: =BO114/BO111 -> 0.1601209219 | BP138: =BP114/BP111 -> 0.1554797358 | BQ138: =BQ114/BQ111 -> 0.1509730767 | BR138: =BR114/BR111 -> 0.1465970455 | BS138: =BS114/BS111 -> 0
A139: Diskonteringsnuvärde (G/C) | B139: =B116/B111 -> 0.9019427057 | C139: =C116/C111 -> 0.8714422277 | D139: 0.8419731669 | E139: 0.8135006443 | F139: 0.7859909607 | G139: 0.7594115562 | H139: 0.7337309722 | I139: 0.7089188137 | J139: 0.6849457137 | K139: 0.6617832983 | L139: 0.6394041529 | M139: 0.6177817903 | N139: 0.5968906186 | O139: 0.5767059117 | P139: 0.5572037794 | Q139: 0.5383611396 | R139: 0.5201556904 | S139: 0.5025658844 | T139: 0.4855709028 | U139: 0.4691506308 | V139: 0.4532856336 | W139: 0.4379571339 | X139: 0.4231469893 | Y139: 0.4088376708 | Z139: 0.3950122423 | AA139: 0.3816543404 | AB139: 0.368748155 | AC139: 0.3562784106 | AD139: 0.3442303484 | AE139: 0.3325897086 | AF139: 0.3213427136 | AG139: 0.3104760518 | AH139: 0.2999768617 | AI139: 0.2898327166 | AJ139: 0.2800316102 | AK139: 0.2705619422 | AL139: 0.2614125046 | AM139: 0.2525724682 | AN139: 0.2440313702 | AO139: 0.2357791017 | AP139: 0.2278058953 | AQ139: 0.2201023143 | AR139: 0.2126592409 | AS139: 0.2054678656 | AT139: 0.1985196769 | AU139: 0.1918064511 | AV139: 0.1853202426 | AW139: 0.1790533745 | AX139: 0.1729984295 | AY139: 0.1671482411 | AZ139: 0.1614958851 | BA139: 0.1560346716 | BB139: 0.1507581368 | BC139: 0.1456600355 | BD139: 0.1407343339 | BE139: 0.1359752018 | BF139: 0.1313770066 | BG139: 0.1269343059 | BH139: 0.1226418414 | BI139: 0.1184945328 | BJ139: 0.1144874713 | BK139: 0.1106159143 | BL139: 0.1068752795 | BM139: 0.1032611396 | BN139: 0.09976921701 | BO139: =BO116/BO111 -> 0.09639537875 | BP139: =BP116/BP111 -> 0.09313563164 | BQ139: =BQ116/BQ111 -> 0.08998611753 | BR139: =BR116/BR111 -> 0.08694310872
